Workbook

Sheet Stammdaten
G5: Stammdaten
E10: 1 | J10: Name des Steuerpflichtigen: | AE10: Meier
E11: 2 | J11: Vorname des Steuerpflichtigen: | AE11: Michael
E12: 3 | J12: Betriebs-/Steuernummer: | AE12: 1232 / 456 / 789
E13: 3 | J13: Wirtschafts-Identifikationsnummer: | AE13: DE123456789-12345
J14: Straße: | AE14: Beispielstraße 2
J15: PLZ: | AE15: 12345
J16: Ort: | AE16: Beispielort
J17: Telefon: | AE17: +49 123 987456
J18: Fax: | AE18: +49 123 987457
J19: Mail: | AE19: Meier@beispielbetrieb.de
J20: WWW: | AE20: www.beispielbetrieb.de
E28: 0 | J28: Rechnungsjahr: | AE28: 2024
J29: Verteuerung: | AE29: 1 - Vereinnahmte Entgelte
J30: Vorsteuerabzugsberechtigt: | AE30: 1 - Ja
J31: Zeitraum für die UST-Voranmeldung:
J32: Rechnungsdatum / Zahlungsdatum erlaubt ab: | AE32: =+IF(ISNUMBER($AE$28),(DATE($AE$28-1,12,21)),"") -> 2023-12-21
J33: Rechnungsdatum / Zahlungsdatum erlaubt bis: | AE33: =+IF(ISNUMBER($AE$28),(DATE($AE$28+1,1,10)),"") -> 2025-01-10
E34: 4 | J34: Abweichendes Geschäfsjahr: | AE34: 2 - Nein
E35: 4-131 | J35: =+IF(AE34="1 - Ja","Abweichender Beginn der Geschäftstätigkeit:","BeginndesGeschäftsjahrs:") -> BeginndesGeschäftsjahrs: | AE35: =+IF(AND(ISNUMBER(AE28),AE34="2 - Nein"),DATE(AE28,1,1),"") -> 2024-01-01
E36: 4-132 | J36: =+IF(AE34="1 - Ja","Abweichendes Ende der Geschäftstätigkeit:","Ende des Geschäftsjahrs:") -> Ende des Geschäftsjahrs: | AE36: =+IF(AND(ISNUMBER(AE28),AE34="2 - Nein"),DATE(AE28,12,31),"") -> 2024-12-31
E37: 5 | J37: Art des Betriebs: | AE37: Entwickler von Excel-Tabellen
E38: 6 | J38: Rechtsform des Betriebs: | AE38: Natürliche Person
E39: 7 | J39: Einkunftsart: | AE39: 3 - Selbstständige Arbeit
E40: 8 | J40: Betriebsinhaber: | AE40: 1 - Steuerpflichtiger
E41: 9 | J41: Wurde der Betrieb beendet: | AE41: 2 - Nein
E42: 10 | J42: Wurden Grundstücke veräußert: | AE42: 2 - Nein
G47: © 2025 by VNR Verlag für die Deutsche Wirtschaft AG
G48: Die Vervielfältigung, Verbreitung oder Veräußerung der Daten oder Texte ist unzulässig und
G49: ausdrücklich nur mit Genehmigung des Verlags gestattet.

Sheet Steuerung
B2: Zeilensteuerung für die EÜR
D6: Einnahmen
D10: Zeile | E10: Text | F10: Beschreibung | G10: Zeile
D11: 12 | E11: Einnahme | F11: Einnahme als Kleinunternehmer | G11: =IF(D11="","",D11) -> 12
D12: 14 | E12: Einnahme LuF | F12: Einnahme aus Land- und Forstwirtschaft | G12: =IF(D12="","",D12) -> 14
D13: 15 | E13: Einnahmen UST-pfl. | F13: Umsatzsteuerpflichtige Einnahmen | G13: 15
D14: 16 | E14: Einnahmen USt-frei | F14: Umsatzsteuerfreie Einnahmen | G14: 16
D15: 20 | E15: Private PKW-Nutzung | F15: Private PKW-Nutzung | G15: 20
D21: Ausgaben
D25: Zeile | E25: Text | F25: Beschreibung | G25: Zeile
D26: A | E26: Anschaffungskosten | F26: Anschaffungskosten Anlagevermögen | G26: =IF(D26="","",D26) -> A
D27: 29 | E27: Fremdleistung | F27: Bezogene Fremdleistungen | G27: =IF(D27="","",D27) -> 29
D28: 30 | E28: Personal | F28: Ausgaben für eigenes Personal | G28: 30
D29: 43 | E29: Kommunikation | F29: Telefon, Internet etc. | G29: 43
D30: 44 | E30: Reisekosten | F30: Übernachtungs- und Reisekosten | G30: 44
D31: 45 | E31: Fortbildung | F31: Fortbildungskosten | G31: 45
D32: 46 | E32: Beratung | F32: Rechts- und Beratungskosten, Buchführung | G32: 46
D33: 47 | E33: Miete/Leasing | F33: Leasing für bewegl. Wirtchaftsgüter ohne Kfz | G33: 47
D34: 48 | E34: Reparatur | F34: Erhaltung, Wartung, Reparatur | G34: 48
D35: 49 | E35: Beiträge, Gebühren | F35: Beiträge und Gebühren | G35: 49
D36: 50 | E36: EDV-Kosten | F36: EDV-Kosten | G36: 50
D37: 51 | E37: Arbeitsmittel | F37: Arbeitsmittel | G37: 51
D38: 54 | E38: Werbekosten | F38: Werbekosten | G38: 54
D39: 68 | E39: Leasing | F39: Leasing | G39: 68
D40: 69 | E40: Kfz - Steuern, Vers. etc. | F40: Steuern, Versicherung und Maut | G40: 69
D41: 70 | E41: Kfz - sonst. Kosten | F41: Sonstige KfZ-Kosten (Benzin, Öl etc.) | G41: =IF(D41="","",D41) -> 70
D42: 71 | E42: Kfz - Fremdfahrzeuge | F42: Kosten für Fremdfahrzeuge | G42: 71
D43: 36 | E43: GWG | F43: GWG | G43: 36
B53: © 2025 by VNR Verlag für die Deutsche Wirtschaft AG
B54: Die Vervielfältigung, Verbreitung oder Veräußerung der Daten oder Texte ist unzulässig und
B55: ausdrücklich nur mit Genehmigung des Verlags gestattet.

Sheet Einnahmen
B3: 1 | C3: =1+B3 -> 2 | D3: 3 | E3: 4 | F3: 5 | G3: 6 | H3: 7 | I3: 8 | J3: 9 | K3: 10 | L3: 11 | M3: 12 | N3: 13 | O3: 14 | AB3: 5
B4: Rng-Nr. | C4: Zeile | D4: Rng.-Datum | E4: Monat | F4: Zahl-Datum | G4: Monat | H4: Art der Einnahme | I4: Netto-Betrag | J4: USt% | K4: USt | L4: Brutto-Betrag | M4: Bemerkung | N4: Übergabe_EÜR | O4: Übergabe_EÜR_UST | Q4: Hinweis | U4: =+B3 -> 1 | V4: =+D3 -> 3 | W4: =+H3 -> 7 | X4: =+L3 -> 11 | Y4: =+F3 -> 5 | AA4: ∑1 | AB4: ∑2 | AC4: OK | AD4: BF
B5: 1 | C5: =IF(H5="","",VLOOKUP(H5,Steuerung!$E$11:$G$17,3,FALSE)) -> 15 | D5: 2023-12-31 | E5: =IF(Stammdaten!$AE$29="2 - Vereinbarte Entgelte",IF(ISNUMBER(D5),IF(YEAR(D5)<Stammdaten!$AE$28,1,IF(YEAR(D5)>Stammdaten!$AE$28,12,MONTH(D5))),""),"") ->  | F5: 2024-01-13 | G5: =IF(Stammdaten!$AE$29="1 - Vereinnahmte Entgelte",IF(ISNUMBER(F5),IF(YEAR(F5)<Stammdaten!$AE$28,1,IF(YEAR(F5)>Stammdaten!$AE$28,12,MONTH(F5))),""),"") -> 1 | H5: Einnahmen UST-pfl. | I5: 1,000.00 | J5: 19% | K5: =+IF(AND(ISNUMBER(I5),ISNUMBER(J5)),ROUND(I5*J5,2),"") -> 190.00 | L5: =+IF(AND(ISNUMBER(I5),ISNUMBER(K5)),I5+K5,"") -> 1,190.00 | N5: =+IF(Stammdaten!$AE$30="1 - Ja",Einnahmen!I5,Einnahmen!L5) -> 1,000.00 | O5: =+IF(Stammdaten!$AE$30="1 - Ja",K5,0) -> 190.00 | Q5: =+IF(AD5=0,"","Eingaben unvollständig") ->  | U5: =+IF(B5="",0,1) -> 1 | V5: =+IF(ISNUMBER(D5),1,0) -> 1 | W5: =+IF(H5="",0,1) -> 1 | X5: =+IF(ISNUMBER(L5),1,0) -> 1 | Y5: =+IF(ISNUMBER(F5),1,0) -> 1 | AA5: =+SUM(U5:Z5) -> 5 | AB5: =+$AB$3 -> 5 | AC5: =+IF(AA5=AB5,1,0) -> 1 | AD5: =+IF(AND(AA5>0,AC5=0),1,0) -> 0
B6: 2 | C6: =IF(H6="","",VLOOKUP(H6,Steuerung!$E$11:$G$17,3,FALSE)) -> 15 | D6: 2024-02-15 | E6: =IF(Stammdaten!$AE$29="2 - Vereinbarte Entgelte",IF(ISNUMBER(D6),IF(YEAR(D6)<Stammdaten!$AE$28,1,IF(YEAR(D6)>Stammdaten!$AE$28,12,MONTH(D6))),""),"") ->  | F6: 2024-02-28 | G6: =IF(Stammdaten!$AE$29="1 - Vereinnahmte Entgelte",IF(ISNUMBER(F6),IF(YEAR(F6)<Stammdaten!$AE$28,1,IF(YEAR(F6)>Stammdaten!$AE$28,12,MONTH(F6))),""),"") -> 2 | H6: Einnahmen UST-pfl. | I6: 1,250.00 | J6: 19% | K6: 237.50 | L6: =+IF(AND(ISNUMBER(I6),ISNUMBER(K6)),I6+K6,"") -> 1,487.50 | N6: =+IF(Stammdaten!$AE$30="1 - Ja",Einnahmen!I6,Einnahmen!L6) -> 1,250.00 | O6: =+IF(Stammdaten!$AE$30="1 - Ja",K6,0) -> 237.50 | Q6: =+IF(AD6=0,"","Eingaben unvollständig") ->  | U6: 1 | V6: 1 | W6: 1 | X6: 1 | Y6: 1 | AA6: =+SUM(U6:Z6) -> 5 | AB6: =+$AB$3 -> 5 | AC6: =+IF(AA6=AB6,1,0) -> 1 | AD6: =+IF(AND(AA6>0,AC6=0),1,0) -> 0
B7: 3 | C7: =IF(H7="","",VLOOKUP(H7,Steuerung!$E$11:$G$17,3,FALSE)) -> 15 | D7: 2024-03-30 | E7: =IF(Stammdaten!$AE$29="2 - Vereinbarte Entgelte",IF(ISNUMBER(D7),IF(YEAR(D7)<Stammdaten!$AE$28,1,IF(YEAR(D7)>Stammdaten!$AE$28,12,MONTH(D7))),""),"") ->  | F7: 2024-04-15 | G7: =IF(Stammdaten!$AE$29="1 - Vereinnahmte Entgelte",IF(ISNUMBER(F7),IF(YEAR(F7)<Stammdaten!$AE$28,1,IF(YEAR(F7)>Stammdaten!$AE$28,12,MONTH(F7))),""),"") -> 4 | H7: Einnahmen UST-pfl. | I7: 1,750.00 | J7: 19% | K7: 332.50 | L7: 2,082.50 | N7: =+IF(Stammdaten!$AE$30="1 - Ja",Einnahmen!I7,Einnahmen!L7) -> 1,750.00 | O7: =+IF(Stammdaten!$AE$30="1 - Ja",K7,0) -> 332.50 | U7: 1 | V7: 1 | W7: 1 | X7: 1 | Y7: 1 | AA7: 5 | AB7: 5 | AC7: 1 | AD7: 0
B8: 4 | C8: =IF(H8="","",VLOOKUP(H8,Steuerung!$E$11:$G$17,3,FALSE)) -> 15 | D8: 2024-05-30 | E8: =IF(Stammdaten!$AE$29="2 - Vereinbarte Entgelte",IF(ISNUMBER(D8),IF(YEAR(D8)<Stammdaten!$AE$28,1,IF(YEAR(D8)>Stammdaten!$AE$28,12,MONTH(D8))),""),"") ->  | F8: 2024-06-30 | G8: =IF(Stammdaten!$AE$29="1 - Vereinnahmte Entgelte",IF(ISNUMBER(F8),IF(YEAR(F8)<Stammdaten!$AE$28,1,IF(YEAR(F8)>Stammdaten!$AE$28,12,MONTH(F8))),""),"") -> 6 | H8: Einnahmen UST-pfl. | I8: 800.00 | J8: 19% | K8: 152.00 | L8: 952.00 | N8: =+IF(Stammdaten!$AE$30="1 - Ja",Einnahmen!I8,Einnahmen!L8) -> 800.00 | O8: =+IF(Stammdaten!$AE$30="1 - Ja",K8,0) -> 152.00 | U8: 1 | V8: 1 | W8: 1 | X8: 1 | Y8: 1 | AA8: 5 | AB8: 5 | AC8: 1 | AD8: 0
B9: 5 | C9: =IF(H9="","",VLOOKUP(H9,Steuerung!$E$11:$G$17,3,FALSE)) -> 15 | D9: 2024-07-30 | E9: =IF(Stammdaten!$AE$29="2 - Vereinbarte Entgelte",IF(ISNUMBER(D9),IF(YEAR(D9)<Stammdaten!$AE$28,1,IF(YEAR(D9)>Stammdaten!$AE$28,12,MONTH(D9))),""),"") ->  | F9: 2024-08-30 | G9: =IF(Stammdaten!$AE$29="1 - Vereinnahmte Entgelte",IF(ISNUMBER(F9),IF(YEAR(F9)<Stammdaten!$AE$28,1,IF(YEAR(F9)>Stammdaten!$AE$28,12,MONTH(F9))),""),"") -> 8 | H9: Einnahmen UST-pfl. | I9: 1,750.00 | J9: 19% | K9: 332.50 | L9: 2,082.50 | N9: =+IF(Stammdaten!$AE$30="1 - Ja",Einnahmen!I9,Einnahmen!L9) -> 1,750.00 | O9: =+IF(Stammdaten!$AE$30="1 - Ja",K9,0) -> 332.50 | U9: 1 | V9: 1 | W9: 1 | X9: 1 | Y9: 1 | AA9: 5 | AB9: 5 | AC9: 1 | AD9: 0
B10: 6 | C10: =IF(H10="","",VLOOKUP(H10,Steuerung!$E$11:$G$17,3,FALSE)) -> 15 | D10: 2024-09-01 | E10: =IF(Stammdaten!$AE$29="2 - Vereinbarte Entgelte",IF(ISNUMBER(D10),IF(YEAR(D10)<Stammdaten!$AE$28,1,IF(YEAR(D10)>Stammdaten!$AE$28,12,MONTH(D10))),""),"") ->  | F10: 2024-09-30 | G10: =IF(Stammdaten!$AE$29="1 - Vereinnahmte Entgelte",IF(ISNUMBER(F10),IF(YEAR(F10)<Stammdaten!$AE$28,1,IF(YEAR(F10)>Stammdaten!$AE$28,12,MONTH(F10))),""),"") -> 9 | H10: Einnahmen UST-pfl. | I10: 2,500.00 | J10: 19% | K10: 475.00 | L10: 2,975.00 | N10: =+IF(Stammdaten!$AE$30="1 - Ja",Einnahmen!I10,Einnahmen!L10) -> 2,500.00 | O10: =+IF(Stammdaten!$AE$30="1 - Ja",K10,0) -> 475.00 | U10: 1 | V10: 1 | W10: 1 | X10: 1 | Y10: 1 | AA10: 5 | AB10: 5 | AC10: 1 | AD10: 0
B11: 7 | C11: =IF(H11="","",VLOOKUP(H11,Steuerung!$E$11:$G$17,3,FALSE)) -> 15 | D11: 2024-10-20 | E11: =IF(Stammdaten!$AE$29="2 - Vereinbarte Entgelte",IF(ISNUMBER(D11),IF(YEAR(D11)<Stammdaten!$AE$28,1,IF(YEAR(D11)>Stammdaten!$AE$28,12,MONTH(D11))),""),"") ->  | F11: 2024-10-30 | G11: =IF(Stammdaten!$AE$29="1 - Vereinnahmte Entgelte",IF(ISNUMBER(F11),IF(YEAR(F11)<Stammdaten!$AE$28,1,IF(YEAR(F11)>Stammdaten!$AE$28,12,MONTH(F11))),""),"") -> 10 | H11: Einnahmen UST-pfl. | I11: 1,111.00 | J11: 19% | K11: 211.09 | L11: 1,322.09 | N11: =+IF(Stammdaten!$AE$30="1 - Ja",Einnahmen!I11,Einnahmen!L11) -> 1,111.00 | O11: =+IF(Stammdaten!$AE$30="1 - Ja",K11,0) -> 211.09 | U11: 1 | V11: 1 | W11: 1 | X11: 1 | Y11: 1 | AA11: 5 | AB11: 5 | AC11: 1 | AD11: 0
B12: 8 | C12: =IF(H12="","",VLOOKUP(H12,Steuerung!$E$11:$G$17,3,FALSE)) -> 15 | D12: 2024-11-15 | E12: =IF(Stammdaten!$AE$29="2 - Vereinbarte Entgelte",IF(ISNUMBER(D12),IF(YEAR(D12)<Stammdaten!$AE$28,1,IF(YEAR(D12)>Stammdaten!$AE$28,12,MONTH(D12))),""),"") ->  | F12: 2024-12-01 | G12: =IF(Stammdaten!$AE$29="1 - Vereinnahmte Entgelte",IF(ISNUMBER(F12),IF(YEAR(F12)<Stammdaten!$AE$28,1,IF(YEAR(F12)>Stammdaten!$AE$28,12,MONTH(F12))),""),"") -> 12 | H12: Einnahmen UST-pfl. | I12: 1,980.00 | J12: 19% | K12: 376.20 | L12: 2,356.20 | N12: =+IF(Stammdaten!$AE$30="1 - Ja",Einnahmen!I12,Einnahmen!L12) -> 1,980.00 | O12: =+IF(Stammdaten!$AE$30="1 - Ja",K12,0) -> 376.20 | U12: 1 | V12: 1 | W12: 1 | X12: 1 | Y12: 1 | AA12: 5 | AB12: 5 | AC12: 1 | AD12: 0
B13: 9 | C13: =IF(H13="","",VLOOKUP(H13,Steuerung!$E$11:$G$17,3,FALSE)) -> 15 | D13: 2024-12-15 | E13: =IF(Stammdaten!$AE$29="2 - Vereinbarte Entgelte",IF(ISNUMBER(D13),IF(YEAR(D13)<Stammdaten!$AE$28,1,IF(YEAR(D13)>Stammdaten!$AE$28,12,MONTH(D13))),""),"") ->  | F13: 2025-01-01 | G13: =IF(Stammdaten!$AE$29="1 - Vereinnahmte Entgelte",IF(ISNUMBER(F13),IF(YEAR(F13)<Stammdaten!$AE$28,1,IF(YEAR(F13)>Stammdaten!$AE$28,12,MONTH(F13))),""),"") -> 12 | H13: Einnahmen UST-pfl. | I13: 777.00 | J13: 19% | K13: 147.63 | L13: 924.63 | N13: =+IF(Stammdaten!$AE$30="1 - Ja",Einnahmen!I13,Einnahmen!L13) -> 777.00 | O13: =+IF(Stammdaten!$AE$30="1 - Ja",K13,0) -> 147.63 | U13: 1 | V13: 1 | W13: 1 | X13: 1 | Y13: 1 | AA13: 5 | AB13: 5 | AC13: 1 | AD13: 0
B14: 10 | C14: =IF(H14="","",VLOOKUP(H14,Steuerung!$E$11:$G$17,3,FALSE)) -> 15 | D14: 2024-12-15 | E14: =IF(Stammdaten!$AE$29="2 - Vereinbarte Entgelte",IF(ISNUMBER(D14),IF(YEAR(D14)<Stammdaten!$AE$28,1,IF(YEAR(D14)>Stammdaten!$AE$28,12,MONTH(D14))),""),"") ->  | F14: 2025-12-15 | G14: =IF(Stammdaten!$AE$29="1 - Vereinnahmte Entgelte",IF(ISNUMBER(F14),IF(YEAR(F14)<Stammdaten!$AE$28,1,IF(YEAR(F14)>Stammdaten!$AE$28,12,MONTH(F14))),""),"") -> 12 | H14: Einnahmen UST-pfl. | I14: 1,250.00 | J14: 19% | K14: 237.50 | L14: 1,487.50 | N14: =+IF(Stammdaten!$AE$30="1 - Ja",Einnahmen!I14,Einnahmen!L14) -> 1,250.00 | O14: =+IF(Stammdaten!$AE$30="1 - Ja",K14,0) -> 237.50 | U14: 1 | V14: 1 | W14: 1 | X14: 1 | Y14: 1 | AA14: 5 | AB14: 5 | AC14: 1 | AD14: 0
B15: 11 | C15: =IF(H15="","",VLOOKUP(H15,Steuerung!$E$11:$G$17,3,FALSE)) -> 15 | D15: 2024-06-01 | E15: =IF(Stammdaten!$AE$29="2 - Vereinbarte Entgelte",IF(ISNUMBER(D15),IF(YEAR(D15)<Stammdaten!$AE$28,1,IF(YEAR(D15)>Stammdaten!$AE$28,12,MONTH(D15))),""),"") ->  | F15: 2024-06-01 | G15: =IF(Stammdaten!$AE$29="1 - Vereinnahmte Entgelte",IF(ISNUMBER(F15),IF(YEAR(F15)<Stammdaten!$AE$28,1,IF(YEAR(F15)>Stammdaten!$AE$28,12,MONTH(F15))),""),"") -> 6 | H15: Einnahmen UST-pfl. | I15: 1,800.00 | J15: 19% | K15: 342.00 | L15: =+IF(AND(ISNUMBER(I15),ISNUMBER(K15)),I15+K15,"") -> 2,142.00 | N15: =+IF(Stammdaten!$AE$30="1 - Ja",Einnahmen!I15,Einnahmen!L15) -> 1,800.00 | O15: =+IF(Stammdaten!$AE$30="1 - Ja",K15,0) -> 342.00 | U15: 1 | V15: 1 | W15: 1 | X15: 1 | Y15: 1 | AA15: =+SUM(U15:Z15) -> 5 | AB15: 5 | AC15: =+IF(AA15=AB15,1,0) -> 1 | AD15: 0
B16: 12 | C16: =IF(H16="","",VLOOKUP(H16,Steuerung!$E$11:$G$17,3,FALSE)) -> 15 | D16: 2024-07-15 | E16: =IF(Stammdaten!$AE$29="2 - Vereinbarte Entgelte",IF(ISNUMBER(D16),IF(YEAR(D16)<Stammdaten!$AE$28,1,IF(YEAR(D16)>Stammdaten!$AE$28,12,MONTH(D16))),""),"") ->  | F16: 2024-07-15 | G16: =IF(Stammdaten!$AE$29="1 - Vereinnahmte Entgelte",IF(ISNUMBER(F16),IF(YEAR(F16)<Stammdaten!$AE$28,1,IF(YEAR(F16)>Stammdaten!$AE$28,12,MONTH(F16))),""),"") -> 7 | H16: Einnahmen UST-pfl. | I16: 120.00 | J16: 19% | K16: 22.80 | L16: 142.80 | N16: =+IF(Stammdaten!$AE$30="1 - Ja",Einnahmen!I16,Einnahmen!L16) -> 120.00 | O16: =+IF(Stammdaten!$AE$30="1 - Ja",K16,0) -> 22.80 | U16: 1 | V16: 1 | W16: 1 | X16: 1 | Y16: 1 | AA16: 5 | AB16: 5 | AC16: 1 | AD16: 0
B17: 13 | C17: =IF(H17="","",VLOOKUP(H17,Steuerung!$E$11:$G$17,3,FALSE)) -> 15 | D17: 2024-08-15 | E17: =IF(Stammdaten!$AE$29="2 - Vereinbarte Entgelte",IF(ISNUMBER(D17),IF(YEAR(D17)<Stammdaten!$AE$28,1,IF(YEAR(D17)>Stammdaten!$AE$28,12,MONTH(D17))),""),"") ->  | F17: 2024-09-15 | G17: =IF(Stammdaten!$AE$29="1 - Vereinnahmte Entgelte",IF(ISNUMBER(F17),IF(YEAR(F17)<Stammdaten!$AE$28,1,IF(YEAR(F17)>Stammdaten!$AE$28,12,MONTH(F17))),""),"") -> 9 | H17: Einnahmen UST-pfl. | I17: 270.00 | J17: 19% | K17: 51.30 | L17: 321.30 | N17: =+IF(Stammdaten!$AE$30="1 - Ja",Einnahmen!I17,Einnahmen!L17) -> 270.00 | O17: =+IF(Stammdaten!$AE$30="1 - Ja",K17,0) -> 51.30 | U17: 1 | V17: 1 | W17: 1 | X17: 1 | Y17: 1 | AA17: 5 | AB17: 5 | AC17: 1 | AD17: 0
B18: 14 | C18: =IF(H18="","",VLOOKUP(H18,Steuerung!$E$11:$G$17,3,FALSE)) -> 20 | D18: 2024-02-18 | E18: =IF(Stammdaten!$AE$29="2 - Vereinbarte Entgelte",IF(ISNUMBER(D18),IF(YEAR(D18)<Stammdaten!$AE$28,1,IF(YEAR(D18)>Stammdaten!$AE$28,12,MONTH(D18))),""),"") ->  | F18: 2024-02-18 | G18: =IF(Stammdaten!$AE$29="1 - Vereinnahmte Entgelte",IF(ISNUMBER(F18),IF(YEAR(F18)<Stammdaten!$AE$28,1,IF(YEAR(F18)>Stammdaten!$AE$28,12,MONTH(F18))),""),"") -> 2 | H18: Private PKW-Nutzung | I18: 125.00 | J18: 0% | K18: 0.00 | L18: 125.00 | N18: =+IF(Stammdaten!$AE$30="1 - Ja",Einnahmen!I18,Einnahmen!L18) -> 125.00 | O18: =+IF(Stammdaten!$AE$30="1 - Ja",K18,0) -> 0.00 | U18: 1 | V18: 1 | W18: 1 | X18: 1 | Y18: 1 | AA18: 5 | AB18: 5 | AC18: 1 | AD18: 0
C19: =IF(H19="","",VLOOKUP(H19,Steuerung!$E$11:$G$17,3,FALSE)) ->  | E19: =IF(Stammdaten!$AE$29="2 - Vereinbarte Entgelte",IF(ISNUMBER(D19),IF(YEAR(D19)<Stammdaten!$AE$28,1,IF(YEAR(D19)>Stammdaten!$AE$28,12,MONTH(D19))),""),"") ->  | G19: =IF(Stammdaten!$AE$29="1 - Vereinnahmte Entgelte",IF(ISNUMBER(F19),IF(YEAR(F19)<Stammdaten!$AE$28,1,IF(YEAR(F19)>Stammdaten!$AE$28,12,MONTH(F19))),""),"") ->  | N19: =+IF(Stammdaten!$AE$30="1 - Ja",Einnahmen!I19,Einnahmen!L19) -> 0.00 | O19: =+IF(Stammdaten!$AE$30="1 - Ja",K19,0) ->  | U19: 0 | V19: 0 | W19: 0 | X19: 0 | Y19: 0 | AA19: 0 | AB19: 5 | AC19: 0 | AD19: 0
C20: =IF(H20="","",VLOOKUP(H20,Steuerung!$E$11:$G$17,3,FALSE)) ->  | E20: =IF(Stammdaten!$AE$29="2 - Vereinbarte Entgelte",IF(ISNUMBER(D20),IF(YEAR(D20)<Stammdaten!$AE$28,1,IF(YEAR(D20)>Stammdaten!$AE$28,12,MONTH(D20))),""),"") ->  | G20: =IF(Stammdaten!$AE$29="1 - Vereinnahmte Entgelte",IF(ISNUMBER(F20),IF(YEAR(F20)<Stammdaten!$AE$28,1,IF(YEAR(F20)>Stammdaten!$AE$28,12,MONTH(F20))),""),"") ->  | N20: =+IF(Stammdaten!$AE$30="1 - Ja",Einnahmen!I20,Einnahmen!L20) -> 0.00 | O20: =+IF(Stammdaten!$AE$30="1 - Ja",K20,0) ->  | U20: 0 | V20: 0 | W20: 0 | X20: 0 | Y20: 0 | AA20: 0 | AB20: 5 | AC20: 0 | AD20: 0
C21: =IF(H21="","",VLOOKUP(H21,Steuerung!$E$11:$G$17,3,FALSE)) ->  | E21: =IF(Stammdaten!$AE$29="2 - Vereinbarte Entgelte",IF(ISNUMBER(D21),IF(YEAR(D21)<Stammdaten!$AE$28,1,IF(YEAR(D21)>Stammdaten!$AE$28,12,MONTH(D21))),""),"") ->  | G21: =IF(Stammdaten!$AE$29="1 - Vereinnahmte Entgelte",IF(ISNUMBER(F21),IF(YEAR(F21)<Stammdaten!$AE$28,1,IF(YEAR(F21)>Stammdaten!$AE$28,12,MONTH(F21))),""),"") ->  | N21: =+IF(Stammdaten!$AE$30="1 - Ja",Einnahmen!I21,Einnahmen!L21) -> 0.00 | O21: =+IF(Stammdaten!$AE$30="1 - Ja",K21,0) ->  | U21: 0 | V21: 0 | W21: 0 | X21: 0 | Y21: 0 | AA21: 0 | AB21: 5 | AC21: 0 | AD21: 0
C22: =IF(H22="","",VLOOKUP(H22,Steuerung!$E$11:$G$17,3,FALSE)) ->  | E22: =IF(Stammdaten!$AE$29="2 - Vereinbarte Entgelte",IF(ISNUMBER(D22),IF(YEAR(D22)<Stammdaten!$AE$28,1,IF(YEAR(D22)>Stammdaten!$AE$28,12,MONTH(D22))),""),"") ->  | G22: =IF(Stammdaten!$AE$29="1 - Vereinnahmte Entgelte",IF(ISNUMBER(F22),IF(YEAR(F22)<Stammdaten!$AE$28,1,IF(YEAR(F22)>Stammdaten!$AE$28,12,MONTH(F22))),""),"") ->  | N22: =+IF(Stammdaten!$AE$30="1 - Ja",Einnahmen!I22,Einnahmen!L22) -> 0.00 | O22: =+IF(Stammdaten!$AE$30="1 - Ja",K22,0) ->  | U22: 0 | V22: 0 | W22: 0 | X22: 0 | Y22: 0 | AA22: 0 | AB22: 5 | AC22: 0 | AD22: 0
C23: =IF(H23="","",VLOOKUP(H23,Steuerung!$E$11:$G$17,3,FALSE)) ->  | E23: =IF(Stammdaten!$AE$29="2 - Vereinbarte Entgelte",IF(ISNUMBER(D23),IF(YEAR(D23)<Stammdaten!$AE$28,1,IF(YEAR(D23)>Stammdaten!$AE$28,12,MONTH(D23))),""),"") ->  | G23: =IF(Stammdaten!$AE$29="1 - Vereinnahmte Entgelte",IF(ISNUMBER(F23),IF(YEAR(F23)<Stammdaten!$AE$28,1,IF(YEAR(F23)>Stammdaten!$AE$28,12,MONTH(F23))),""),"") ->  | N23: =+IF(Stammdaten!$AE$30="1 - Ja",Einnahmen!I23,Einnahmen!L23) -> 0.00 | O23: =+IF(Stammdaten!$AE$30="1 - Ja",K23,0) ->  | U23: 0 | V23: 0 | W23: 0 | X23: 0 | Y23: 0 | AA23: 0 | AB23: 5 | AC23: 0 | AD23: 0
C24: =IF(H24="","",VLOOKUP(H24,Steuerung!$E$11:$G$17,3,FALSE)) ->  | E24: =IF(Stammdaten!$AE$29="2 - Vereinbarte Entgelte",IF(ISNUMBER(D24),IF(YEAR(D24)<Stammdaten!$AE$28,1,IF(YEAR(D24)>Stammdaten!$AE$28,12,MONTH(D24))),""),"") ->  | G24: =IF(Stammdaten!$AE$29="1 - Vereinnahmte Entgelte",IF(ISNUMBER(F24),IF(YEAR(F24)<Stammdaten!$AE$28,1,IF(YEAR(F24)>Stammdaten!$AE$28,12,MONTH(F24))),""),"") ->  | N24: =+IF(Stammdaten!$AE$30="1 - Ja",Einnahmen!I24,Einnahmen!L24) -> 0.00 | O24: =+IF(Stammdaten!$AE$30="1 - Ja",K24,0) ->  | U24: 0 | V24: 0 | W24: 0 | X24: 0 | Y24: 0 | AA24: 0 | AB24: 5 | AC24: 0 | AD24: 0
C25: =IF(H25="","",VLOOKUP(H25,Steuerung!$E$11:$G$17,3,FALSE)) ->  | E25: =IF(Stammdaten!$AE$29="2 - Vereinbarte Entgelte",IF(ISNUMBER(D25),IF(YEAR(D25)<Stammdaten!$AE$28,1,IF(YEAR(D25)>Stammdaten!$AE$28,12,MONTH(D25))),""),"") ->  | G25: =IF(Stammdaten!$AE$29="1 - Vereinnahmte Entgelte",IF(ISNUMBER(F25),IF(YEAR(F25)<Stammdaten!$AE$28,1,IF(YEAR(F25)>Stammdaten!$AE$28,12,MONTH(F25))),""),"") ->  | N25: =+IF(Stammdaten!$AE$30="1 - Ja",Einnahmen!I25,Einnahmen!L25) -> 0.00 | O25: =+IF(Stammdaten!$AE$30="1 - Ja",K25,0) ->  | U25: 0 | V25: 0 | W25: 0 | X25: 0 | Y25: 0 | AA25: 0 | AB25: 5 | AC25: 0 | AD25: 0
C26: =IF(H26="","",VLOOKUP(H26,Steuerung!$E$11:$G$17,3,FALSE)) ->  | E26: =IF(Stammdaten!$AE$29="2 - Vereinbarte Entgelte",IF(ISNUMBER(D26),IF(YEAR(D26)<Stammdaten!$AE$28,1,IF(YEAR(D26)>Stammdaten!$AE$28,12,MONTH(D26))),""),"") ->  | G26: =IF(Stammdaten!$AE$29="1 - Vereinnahmte Entgelte",IF(ISNUMBER(F26),IF(YEAR(F26)<Stammdaten!$AE$28,1,IF(YEAR(F26)>Stammdaten!$AE$28,12,MONTH(F26))),""),"") ->  | N26: =+IF(Stammdaten!$AE$30="1 - Ja",Einnahmen!I26,Einnahmen!L26) -> 0.00 | O26: =+IF(Stammdaten!$AE$30="1 - Ja",K26,0) ->  | U26: 0 | V26: 0 | W26: 0 | X26: 0 | Y26: 0 | AA26: 0 | AB26: 5 | AC26: 0 | AD26: 0
C27: =IF(H27="","",VLOOKUP(H27,Steuerung!$E$11:$G$17,3,FALSE)) ->  | E27: =IF(Stammdaten!$AE$29="2 - Vereinbarte Entgelte",IF(ISNUMBER(D27),IF(YEAR(D27)<Stammdaten!$AE$28,1,IF(YEAR(D27)>Stammdaten!$AE$28,12,MONTH(D27))),""),"") ->  | G27: =IF(Stammdaten!$AE$29="1 - Vereinnahmte Entgelte",IF(ISNUMBER(F27),IF(YEAR(F27)<Stammdaten!$AE$28,1,IF(YEAR(F27)>Stammdaten!$AE$28,12,MONTH(F27))),""),"") ->  | N27: =+IF(Stammdaten!$AE$30="1 - Ja",Einnahmen!I27,Einnahmen!L27) -> 0.00 | O27: =+IF(Stammdaten!$AE$30="1 - Ja",K27,0) ->  | U27: 0 | V27: 0 | W27: 0 | X27: 0 | Y27: 0 | AA27: 0 | AB27: 5 | AC27: 0 | AD27: 0
C28: =IF(H28="","",VLOOKUP(H28,Steuerung!$E$11:$G$17,3,FALSE)) ->  | E28: =IF(Stammdaten!$AE$29="2 - Vereinbarte Entgelte",IF(ISNUMBER(D28),IF(YEAR(D28)<Stammdaten!$AE$28,1,IF(YEAR(D28)>Stammdaten!$AE$28,12,MONTH(D28))),""),"") ->  | G28: =IF(Stammdaten!$AE$29="1 - Vereinnahmte Entgelte",IF(ISNUMBER(F28),IF(YEAR(F28)<Stammdaten!$AE$28,1,IF(YEAR(F28)>Stammdaten!$AE$28,12,MONTH(F28))),""),"") ->  | N28: =+IF(Stammdaten!$AE$30="1 - Ja",Einnahmen!I28,Einnahmen!L28) -> 0.00 | O28: =+IF(Stammdaten!$AE$30="1 - Ja",K28,0) ->  | U28: 0 | V28: 0 | W28: 0 | X28: 0 | Y28: 0 | AA28: 0 | AB28: 5 | AC28: 0 | AD28: 0
C29: =IF(H29="","",VLOOKUP(H29,Steuerung!$E$11:$G$17,3,FALSE)) ->  | E29: =IF(Stammdaten!$AE$29="2 - Vereinbarte Entgelte",IF(ISNUMBER(D29),IF(YEAR(D29)<Stammdaten!$AE$28,1,IF(YEAR(D29)>Stammdaten!$AE$28,12,MONTH(D29))),""),"") ->  | G29: =IF(Stammdaten!$AE$29="1 - Vereinnahmte Entgelte",IF(ISNUMBER(F29),IF(YEAR(F29)<Stammdaten!$AE$28,1,IF(YEAR(F29)>Stammdaten!$AE$28,12,MONTH(F29))),""),"") ->  | N29: =+IF(Stammdaten!$AE$30="1 - Ja",Einnahmen!I29,Einnahmen!L29) -> 0.00 | O29: =+IF(Stammdaten!$AE$30="1 - Ja",K29,0) ->  | U29: 0 | V29: 0 | W29: 0 | X29: 0 | Y29: 0 | AA29: 0 | AB29: 5 | AC29: 0 | AD29: 0
C30: =IF(H30="","",VLOOKUP(H30,Steuerung!$E$11:$G$17,3,FALSE)) ->  | E30: =IF(Stammdaten!$AE$29="2 - Vereinbarte Entgelte",IF(ISNUMBER(D30),IF(YEAR(D30)<Stammdaten!$AE$28,1,IF(YEAR(D30)>Stammdaten!$AE$28,12,MONTH(D30))),""),"") ->  | G30: =IF(Stammdaten!$AE$29="1 - Vereinnahmte Entgelte",IF(ISNUMBER(F30),IF(YEAR(F30)<Stammdaten!$AE$28,1,IF(YEAR(F30)>Stammdaten!$AE$28,12,MONTH(F30))),""),"") ->  | N30: =+IF(Stammdaten!$AE$30="1 - Ja",Einnahmen!I30,Einnahmen!L30) -> 0.00 | O30: =+IF(Stammdaten!$AE$30="1 - Ja",K30,0) ->  | U30: 0 | V30: 0 | W30: 0 | X30: 0 | Y30: 0 | AA30: 0 | AB30: 5 | AC30: 0 | AD30: 0
C31: =IF(H31="","",VLOOKUP(H31,Steuerung!$E$11:$G$17,3,FALSE)) ->  | E31: =IF(Stammdaten!$AE$29="2 - Vereinbarte Entgelte",IF(ISNUMBER(D31),IF(YEAR(D31)<Stammdaten!$AE$28,1,IF(YEAR(D31)>Stammdaten!$AE$28,12,MONTH(D31))),""),"") ->  | G31: =IF(Stammdaten!$AE$29="1 - Vereinnahmte Entgelte",IF(ISNUMBER(F31),IF(YEAR(F31)<Stammdaten!$AE$28,1,IF(YEAR(F31)>Stammdaten!$AE$28,12,MONTH(F31))),""),"") ->  | N31: =+IF(Stammdaten!$AE$30="1 - Ja",Einnahmen!I31,Einnahmen!L31) -> 0.00 | O31: =+IF(Stammdaten!$AE$30="1 - Ja",K31,0) ->  | U31: 0 | V31: 0 | W31: 0 | X31: 0 | Y31: 0 | AA31: 0 | AB31: 5 | AC31: 0 | AD31: 0
C32: =IF(H32="","",VLOOKUP(H32,Steuerung!$E$11:$G$17,3,FALSE)) ->  | E32: =IF(Stammdaten!$AE$29="2 - Vereinbarte Entgelte",IF(ISNUMBER(D32),IF(YEAR(D32)<Stammdaten!$AE$28,1,IF(YEAR(D32)>Stammdaten!$AE$28,12,MONTH(D32))),""),"") ->  | G32: =IF(Stammdaten!$AE$29="1 - Vereinnahmte Entgelte",IF(ISNUMBER(F32),IF(YEAR(F32)<Stammdaten!$AE$28,1,IF(YEAR(F32)>Stammdaten!$AE$28,12,MONTH(F32))),""),"") ->  | N32: =+IF(Stammdaten!$AE$30="1 - Ja",Einnahmen!I32,Einnahmen!L32) -> 0.00 | O32: =+IF(Stammdaten!$AE$30="1 - Ja",K32,0) ->  | U32: 0 | V32: 0 | W32: 0 | X32: 0 | Y32: 0 | AA32: 0 | AB32: 5 | AC32: 0 | AD32: 0
C33: =IF(H33="","",VLOOKUP(H33,Steuerung!$E$11:$G$17,3,FALSE)) ->  | E33: =IF(Stammdaten!$AE$29="2 - Vereinbarte Entgelte",IF(ISNUMBER(D33),IF(YEAR(D33)<Stammdaten!$AE$28,1,IF(YEAR(D33)>Stammdaten!$AE$28,12,MONTH(D33))),""),"") ->  | G33: =IF(Stammdaten!$AE$29="1 - Vereinnahmte Entgelte",IF(ISNUMBER(F33),IF(YEAR(F33)<Stammdaten!$AE$28,1,IF(YEAR(F33)>Stammdaten!$AE$28,12,MONTH(F33))),""),"") ->  | N33: =+IF(Stammdaten!$AE$30="1 - Ja",Einnahmen!I33,Einnahmen!L33) -> 0.00 | O33: =+IF(Stammdaten!$AE$30="1 - Ja",K33,0) ->  | U33: 0 | V33: 0 | W33: 0 | X33: 0 | Y33: 0 | AA33: 0 | AB33: 5 | AC33: 0 | AD33: 0
C34: =IF(H34="","",VLOOKUP(H34,Steuerung!$E$11:$G$17,3,FALSE)) ->  | E34: =IF(Stammdaten!$AE$29="2 - Vereinbarte Entgelte",IF(ISNUMBER(D34),IF(YEAR(D34)<Stammdaten!$AE$28,1,IF(YEAR(D34)>Stammdaten!$AE$28,12,MONTH(D34))),""),"") ->  | G34: =IF(Stammdaten!$AE$29="1 - Vereinnahmte Entgelte",IF(ISNUMBER(F34),IF(YEAR(F34)<Stammdaten!$AE$28,1,IF(YEAR(F34)>Stammdaten!$AE$28,12,MONTH(F34))),""),"") ->  | N34: =+IF(Stammdaten!$AE$30="1 - Ja",Einnahmen!I34,Einnahmen!L34) -> 0.00 | O34: =+IF(Stammdaten!$AE$30="1 - Ja",K34,0) ->  | U34: 0 | V34: 0 | W34: 0 | X34: 0 | Y34: 0 | AA34: 0 | AB34: 5 | AC34: 0 | AD34: 0
C35: =IF(H35="","",VLOOKUP(H35,Steuerung!$E$11:$G$17,3,FALSE)) ->  | E35: =IF(Stammdaten!$AE$29="2 - Vereinbarte Entgelte",IF(ISNUMBER(D35),IF(YEAR(D35)<Stammdaten!$AE$28,1,IF(YEAR(D35)>Stammdaten!$AE$28,12,MONTH(D35))),""),"") ->  | G35: =IF(Stammdaten!$AE$29="1 - Vereinnahmte Entgelte",IF(ISNUMBER(F35),IF(YEAR(F35)<Stammdaten!$AE$28,1,IF(YEAR(F35)>Stammdaten!$AE$28,12,MONTH(F35))),""),"") ->  | N35: =+IF(Stammdaten!$AE$30="1 - Ja",Einnahmen!I35,Einnahmen!L35) -> 0.00 | O35: =+IF(Stammdaten!$AE$30="1 - Ja",K35,0) ->  | U35: 0 | V35: 0 | W35: 0 | X35: 0 | Y35: 0 | AA35: 0 | AB35: 5 | AC35: 0 | AD35: 0
C36: =IF(H36="","",VLOOKUP(H36,Steuerung!$E$11:$G$17,3,FALSE)) ->  | E36: =IF(Stammdaten!$AE$29="2 - Vereinbarte Entgelte",IF(ISNUMBER(D36),IF(YEAR(D36)<Stammdaten!$AE$28,1,IF(YEAR(D36)>Stammdaten!$AE$28,12,MONTH(D36))),""),"") ->  | G36: =IF(Stammdaten!$AE$29="1 - Vereinnahmte Entgelte",IF(ISNUMBER(F36),IF(YEAR(F36)<Stammdaten!$AE$28,1,IF(YEAR(F36)>Stammdaten!$AE$28,12,MONTH(F36))),""),"") ->  | N36: =+IF(Stammdaten!$AE$30="1 - Ja",Einnahmen!I36,Einnahmen!L36) -> 0.00 | O36: =+IF(Stammdaten!$AE$30="1 - Ja",K36,0) ->  | U36: 0 | V36: 0 | W36: 0 | X36: 0 | Y36: 0 | AA36: 0 | AB36: 5 | AC36: 0 | AD36: 0
C37: =IF(H37="","",VLOOKUP(H37,Steuerung!$E$11:$G$17,3,FALSE)) ->  | E37: =IF(Stammdaten!$AE$29="2 - Vereinbarte Entgelte",IF(ISNUMBER(D37),IF(YEAR(D37)<Stammdaten!$AE$28,1,IF(YEAR(D37)>Stammdaten!$AE$28,12,MONTH(D37))),""),"") ->  | G37: =IF(Stammdaten!$AE$29="1 - Vereinnahmte Entgelte",IF(ISNUMBER(F37),IF(YEAR(F37)<Stammdaten!$AE$28,1,IF(YEAR(F37)>Stammdaten!$AE$28,12,MONTH(F37))),""),"") ->  | K37: =+IF(AND(ISNUMBER(I37),ISNUMBER(J37)),ROUND(I37*J37,2),"") ->  | N37: =+IF(Stammdaten!$AE$30="1 - Ja",Einnahmen!I37,Einnahmen!L37) -> 0.00 | O37: =+IF(Stammdaten!$AE$30="1 - Ja",K37,0) ->  | U37: =+IF(B37="",0,1) -> 0 | V37: =+IF(ISNUMBER(D37),1,0) -> 0 | W37: =+IF(H37="",0,1) -> 0 | X37: =+IF(ISNUMBER(L37),1,0) -> 0 | Y37: =+IF(ISNUMBER(F37),1,0) -> 0 | AA37: 0 | AB37: 5 | AC37: 0 | AD37: 0
C38: =IF(H38="","",VLOOKUP(H38,Steuerung!$E$11:$G$17,3,FALSE)) ->  | E38: =IF(Stammdaten!$AE$29="2 - Vereinbarte Entgelte",IF(ISNUMBER(D38),IF(YEAR(D38)<Stammdaten!$AE$28,1,IF(YEAR(D38)>Stammdaten!$AE$28,12,MONTH(D38))),""),"") ->  | G38: =IF(Stammdaten!$AE$29="1 - Vereinnahmte Entgelte",IF(ISNUMBER(F38),IF(YEAR(F38)<Stammdaten!$AE$28,1,IF(YEAR(F38)>Stammdaten!$AE$28,12,MONTH(F38))),""),"") ->  | N38: =+IF(Stammdaten!$AE$30="1 - Ja",Einnahmen!I38,Einnahmen!L38) -> 0.00 | O38: =+IF(Stammdaten!$AE$30="1 - Ja",K38,0) ->  | U38: 0 | V38: 0 | W38: 0 | X38: 0 | Y38: 0 | AA38: 0 | AB38: 5 | AC38: 0 | AD38: 0
C39: =IF(H39="","",VLOOKUP(H39,Steuerung!$E$11:$G$17,3,FALSE)) ->  | E39: =IF(Stammdaten!$AE$29="2 - Vereinbarte Entgelte",IF(ISNUMBER(D39),IF(YEAR(D39)<Stammdaten!$AE$28,1,IF(YEAR(D39)>Stammdaten!$AE$28,12,MONTH(D39))),""),"") ->  | G39: =IF(Stammdaten!$AE$29="1 - Vereinnahmte Entgelte",IF(ISNUMBER(F39),IF(YEAR(F39)<Stammdaten!$AE$28,1,IF(YEAR(F39)>Stammdaten!$AE$28,12,MONTH(F39))),""),"") ->  | N39: =+IF(Stammdaten!$AE$30="1 - Ja",Einnahmen!I39,Einnahmen!L39) -> 0.00 | O39: =+IF(Stammdaten!$AE$30="1 - Ja",K39,0) ->  | U39: 0 | V39: 0 | W39: 0 | X39: 0 | Y39: 0 | AA39: 0 | AB39: 5 | AC39: 0 | AD39: 0
C40: =IF(H40="","",VLOOKUP(H40,Steuerung!$E$11:$G$17,3,FALSE)) ->  | E40: =IF(Stammdaten!$AE$29="2 - Vereinbarte Entgelte",IF(ISNUMBER(D40),IF(YEAR(D40)<Stammdaten!$AE$28,1,IF(YEAR(D40)>Stammdaten!$AE$28,12,MONTH(D40))),""),"") ->  | G40: =IF(Stammdaten!$AE$29="1 - Vereinnahmte Entgelte",IF(ISNUMBER(F40),IF(YEAR(F40)<Stammdaten!$AE$28,1,IF(YEAR(F40)>Stammdaten!$AE$28,12,MONTH(F40))),""),"") ->  | N40: =+IF(Stammdaten!$AE$30="1 - Ja",Einnahmen!I40,Einnahmen!L40) -> 0.00 | O40: =+IF(Stammdaten!$AE$30="1 - Ja",K40,0) ->  | U40: 0 | V40: 0 | W40: 0 | X40: 0 | Y40: 0 | AA40: 0 | AB40: 5 | AC40: 0 | AD40: 0
C41: =IF(H41="","",VLOOKUP(H41,Steuerung!$E$11:$G$17,3,FALSE)) ->  | E41: =IF(Stammdaten!$AE$29="2 - Vereinbarte Entgelte",IF(ISNUMBER(D41),IF(YEAR(D41)<Stammdaten!$AE$28,1,IF(YEAR(D41)>Stammdaten!$AE$28,12,MONTH(D41))),""),"") ->  | G41: =IF(Stammdaten!$AE$29="1 - Vereinnahmte Entgelte",IF(ISNUMBER(F41),IF(YEAR(F41)<Stammdaten!$AE$28,1,IF(YEAR(F41)>Stammdaten!$AE$28,12,MONTH(F41))),""),"") ->  | N41: =+IF(Stammdaten!$AE$30="1 - Ja",Einnahmen!I41,Einnahmen!L41) -> 0.00 | O41: =+IF(Stammdaten!$AE$30="1 - Ja",K41,0) ->  | U41: 0 | V41: 0 | W41: 0 | X41: 0 | Y41: 0 | AA41: 0 | AB41: 5 | AC41: 0 | AD41: 0
C42: =IF(H42="","",VLOOKUP(H42,Steuerung!$E$11:$G$17,3,FALSE)) ->  | E42: =IF(Stammdaten!$AE$29="2 - Vereinbarte Entgelte",IF(ISNUMBER(D42),IF(YEAR(D42)<Stammdaten!$AE$28,1,IF(YEAR(D42)>Stammdaten!$AE$28,12,MONTH(D42))),""),"") ->  | G42: =IF(Stammdaten!$AE$29="1 - Vereinnahmte Entgelte",IF(ISNUMBER(F42),IF(YEAR(F42)<Stammdaten!$AE$28,1,IF(YEAR(F42)>Stammdaten!$AE$28,12,MONTH(F42))),""),"") ->  | N42: =+IF(Stammdaten!$AE$30="1 - Ja",Einnahmen!I42,Einnahmen!L42) -> 0.00 | O42: =+IF(Stammdaten!$AE$30="1 - Ja",K42,0) ->  | U42: 0 | V42: 0 | W42: 0 | X42: 0 | Y42: 0 | AA42: 0 | AB42: 5 | AC42: 0 | AD42: 0
C43: =IF(H43="","",VLOOKUP(H43,Steuerung!$E$11:$G$17,3,FALSE)) ->  | E43: =IF(Stammdaten!$AE$29="2 - Vereinbarte Entgelte",IF(ISNUMBER(D43),IF(YEAR(D43)<Stammdaten!$AE$28,1,IF(YEAR(D43)>Stammdaten!$AE$28,12,MONTH(D43))),""),"") ->  | G43: =IF(Stammdaten!$AE$29="1 - Vereinnahmte Entgelte",IF(ISNUMBER(F43),IF(YEAR(F43)<Stammdaten!$AE$28,1,IF(YEAR(F43)>Stammdaten!$AE$28,12,MONTH(F43))),""),"") ->  | N43: =+IF(Stammdaten!$AE$30="1 - Ja",Einnahmen!I43,Einnahmen!L43) -> 0.00 | O43: =+IF(Stammdaten!$AE$30="1 - Ja",K43,0) ->  | U43: 0 | V43: 0 | W43: 0 | X43: 0 | Y43: 0 | AA43: 0 | AB43: 5 | AC43: 0 | AD43: 0
C44: =IF(H44="","",VLOOKUP(H44,Steuerung!$E$11:$G$17,3,FALSE)) ->  | E44: =IF(Stammdaten!$AE$29="2 - Vereinbarte Entgelte",IF(ISNUMBER(D44),IF(YEAR(D44)<Stammdaten!$AE$28,1,IF(YEAR(D44)>Stammdaten!$AE$28,12,MONTH(D44))),""),"") ->  | G44: =IF(Stammdaten!$AE$29="1 - Vereinnahmte Entgelte",IF(ISNUMBER(F44),IF(YEAR(F44)<Stammdaten!$AE$28,1,IF(YEAR(F44)>Stammdaten!$AE$28,12,MONTH(F44))),""),"") ->  | N44: =+IF(Stammdaten!$AE$30="1 - Ja",Einnahmen!I44,Einnahmen!L44) -> 0.00 | O44: =+IF(Stammdaten!$AE$30="1 - Ja",K44,0) ->  | U44: 0 | V44: 0 | W44: 0 | X44: 0 | Y44: 0 | AA44: 0 | AB44: 5 | AC44: 0 | AD44: 0
C45: =IF(H45="","",VLOOKUP(H45,Steuerung!$E$11:$G$17,3,FALSE)) ->  | E45: =IF(Stammdaten!$AE$29="2 - Vereinbarte Entgelte",IF(ISNUMBER(D45),IF(YEAR(D45)<Stammdaten!$AE$28,1,IF(YEAR(D45)>Stammdaten!$AE$28,12,MONTH(D45))),""),"") ->  | G45: =IF(Stammdaten!$AE$29="1 - Vereinnahmte Entgelte",IF(ISNUMBER(F45),IF(YEAR(F45)<Stammdaten!$AE$28,1,IF(YEAR(F45)>Stammdaten!$AE$28,12,MONTH(F45))),""),"") ->  | N45: =+IF(Stammdaten!$AE$30="1 - Ja",Einnahmen!I45,Einnahmen!L45) -> 0.00 | O45: =+IF(Stammdaten!$AE$30="1 - Ja",K45,0) ->  | U45: 0 | V45: 0 | W45: 0 | X45: 0 | Y45: 0 | AA45: 0 | AB45: 5 | AC45: 0 | AD45: 0
C46: =IF(H46="","",VLOOKUP(H46,Steuerung!$E$11:$G$17,3,FALSE)) ->  | E46: =IF(Stammdaten!$AE$29="2 - Vereinbarte Entgelte",IF(ISNUMBER(D46),IF(YEAR(D46)<Stammdaten!$AE$28,1,IF(YEAR(D46)>Stammdaten!$AE$28,12,MONTH(D46))),""),"") ->  | G46: =IF(Stammdaten!$AE$29="1 - Vereinnahmte Entgelte",IF(ISNUMBER(F46),IF(YEAR(F46)<Stammdaten!$AE$28,1,IF(YEAR(F46)>Stammdaten!$AE$28,12,MONTH(F46))),""),"") ->  | N46: =+IF(Stammdaten!$AE$30="1 - Ja",Einnahmen!I46,Einnahmen!L46) -> 0.00 | O46: =+IF(Stammdaten!$AE$30="1 - Ja",K46,0) ->  | U46: 0 | V46: 0 | W46: 0 | X46: 0 | Y46: 0 | AA46: 0 | AB46: 5 | AC46: 0 | AD46: 0
C47: =IF(H47="","",VLOOKUP(H47,Steuerung!$E$11:$G$17,3,FALSE)) ->  | E47: =IF(Stammdaten!$AE$29="2 - Vereinbarte Entgelte",IF(ISNUMBER(D47),IF(YEAR(D47)<Stammdaten!$AE$28,1,IF(YEAR(D47)>Stammdaten!$AE$28,12,MONTH(D47))),""),"") ->  | G47: =IF(Stammdaten!$AE$29="1 - Vereinnahmte Entgelte",IF(ISNUMBER(F47),IF(YEAR(F47)<Stammdaten!$AE$28,1,IF(YEAR(F47)>Stammdaten!$AE$28,12,MONTH(F47))),""),"") ->  | N47: =+IF(Stammdaten!$AE$30="1 - Ja",Einnahmen!I47,Einnahmen!L47) -> 0.00 | O47: =+IF(Stammdaten!$AE$30="1 - Ja",K47,0) ->  | U47: 0 | V47: 0 | W47: 0 | X47: 0 | Y47: 0 | AA47: 0 | AB47: 5 | AC47: 0 | AD47: 0
C48: =IF(H48="","",VLOOKUP(H48,Steuerung!$E$11:$G$17,3,FALSE)) ->  | E48: =IF(Stammdaten!$AE$29="2 - Vereinbarte Entgelte",IF(ISNUMBER(D48),IF(YEAR(D48)<Stammdaten!$AE$28,1,IF(YEAR(D48)>Stammdaten!$AE$28,12,MONTH(D48))),""),"") ->  | G48: =IF(Stammdaten!$AE$29="1 - Vereinnahmte Entgelte",IF(ISNUMBER(F48),IF(YEAR(F48)<Stammdaten!$AE$28,1,IF(YEAR(F48)>Stammdaten!$AE$28,12,MONTH(F48))),""),"") ->  | N48: =+IF(Stammdaten!$AE$30="1 - Ja",Einnahmen!I48,Einnahmen!L48) -> 0.00 | O48: =+IF(Stammdaten!$AE$30="1 - Ja",K48,0) ->  | U48: 0 | V48: 0 | W48: 0 | X48: 0 | Y48: 0 | AA48: 0 | AB48: 5 | AC48: 0 | AD48: 0
C49: =IF(H49="","",VLOOKUP(H49,Steuerung!$E$11:$G$17,3,FALSE)) ->  | E49: =IF(Stammdaten!$AE$29="2 - Vereinbarte Entgelte",IF(ISNUMBER(D49),IF(YEAR(D49)<Stammdaten!$AE$28,1,IF(YEAR(D49)>Stammdaten!$AE$28,12,MONTH(D49))),""),"") ->  | G49: =IF(Stammdaten!$AE$29="1 - Vereinnahmte Entgelte",IF(ISNUMBER(F49),IF(YEAR(F49)<Stammdaten!$AE$28,1,IF(YEAR(F49)>Stammdaten!$AE$28,12,MONTH(F49))),""),"") ->  | N49: =+IF(Stammdaten!$AE$30="1 - Ja",Einnahmen!I49,Einnahmen!L49) -> 0.00 | O49: =+IF(Stammdaten!$AE$30="1 - Ja",K49,0) ->  | U49: 0 | V49: 0 | W49: 0 | X49: 0 | Y49: 0 | AA49: 0 | AB49: 5 | AC49: 0 | AD49: 0
C50: =IF(H50="","",VLOOKUP(H50,Steuerung!$E$11:$G$17,3,FALSE)) ->  | E50: =IF(Stammdaten!$AE$29="2 - Vereinbarte Entgelte",IF(ISNUMBER(D50),IF(YEAR(D50)<Stammdaten!$AE$28,1,IF(YEAR(D50)>Stammdaten!$AE$28,12,MONTH(D50))),""),"") ->  | G50: =IF(Stammdaten!$AE$29="1 - Vereinnahmte Entgelte",IF(ISNUMBER(F50),IF(YEAR(F50)<Stammdaten!$AE$28,1,IF(YEAR(F50)>Stammdaten!$AE$28,12,MONTH(F50))),""),"") ->  | L50: =+IF(AND(ISNUMBER(I50),ISNUMBER(K50)),I50+K50,"") ->  | N50: =+IF(Stammdaten!$AE$30="1 - Ja",Einnahmen!I50,Einnahmen!L50) -> 0.00 | O50: =+IF(Stammdaten!$AE$30="1 - Ja",K50,0) ->  | Q50: =+IF(AD50=0,"","Eingaben unvollständig") ->  | U50: 0 | V50: 0 | W50: 0 | X50: 0 | Y50: 0 | AA50: 0 | AB50: 5 | AC50: 0 | AD50: 0
C51: =IF(H51="","",VLOOKUP(H51,Steuerung!$E$11:$G$17,3,FALSE)) ->  | E51: =IF(Stammdaten!$AE$29="2 - Vereinbarte Entgelte",IF(ISNUMBER(D51),IF(YEAR(D51)<Stammdaten!$AE$28,1,IF(YEAR(D51)>Stammdaten!$AE$28,12,MONTH(D51))),""),"") ->  | G51: =IF(Stammdaten!$AE$29="1 - Vereinnahmte Entgelte",IF(ISNUMBER(F51),IF(YEAR(F51)<Stammdaten!$AE$28,1,IF(YEAR(F51)>Stammdaten!$AE$28,12,MONTH(F51))),""),"") ->  | N51: =+IF(Stammdaten!$AE$30="1 - Ja",Einnahmen!I51,Einnahmen!L51) -> 0.00 | O51: =+IF(Stammdaten!$AE$30="1 - Ja",K51,0) ->  | U51: 0 | V51: 0 | W51: 0 | X51: 0 | Y51: 0 | AA51: =+SUM(U51:Z51) -> 0 | AB51: 5 | AC51: =+IF(AA51=AB51,1,0) -> 0 | AD51: =+IF(AND(AA51>0,AC51=0),1,0) -> 0
C52: =IF(H52="","",VLOOKUP(H52,Steuerung!$E$11:$G$17,3,FALSE)) ->  | E52: =IF(Stammdaten!$AE$29="2 - Vereinbarte Entgelte",IF(ISNUMBER(D52),IF(YEAR(D52)<Stammdaten!$AE$28,1,IF(YEAR(D52)>Stammdaten!$AE$28,12,MONTH(D52))),""),"") ->  | G52: =IF(Stammdaten!$AE$29="1 - Vereinnahmte Entgelte",IF(ISNUMBER(F52),IF(YEAR(F52)<Stammdaten!$AE$28,1,IF(YEAR(F52)>Stammdaten!$AE$28,12,MONTH(F52))),""),"") ->  | N52: =+IF(Stammdaten!$AE$30="1 - Ja",Einnahmen!I52,Einnahmen!L52) -> 0.00 | O52: =+IF(Stammdaten!$AE$30="1 - Ja",K52,0) ->  | U52: 0 | V52: 0 | W52: 0 | X52: 0 | Y52: 0 | AA52: 0 | AB52: 5 | AC52: 0 | AD52: 0
C53: =IF(H53="","",VLOOKUP(H53,Steuerung!$E$11:$G$17,3,FALSE)) ->  | E53: =IF(Stammdaten!$AE$29="2 - Vereinbarte Entgelte",IF(ISNUMBER(D53),IF(YEAR(D53)<Stammdaten!$AE$28,1,IF(YEAR(D53)>Stammdaten!$AE$28,12,MONTH(D53))),""),"") ->  | G53: =IF(Stammdaten!$AE$29="1 - Vereinnahmte Entgelte",IF(ISNUMBER(F53),IF(YEAR(F53)<Stammdaten!$AE$28,1,IF(YEAR(F53)>Stammdaten!$AE$28,12,MONTH(F53))),""),"") ->  | N53: =+IF(Stammdaten!$AE$30="1 - Ja",Einnahmen!I53,Einnahmen!L53) -> 0.00 | O53: =+IF(Stammdaten!$AE$30="1 - Ja",K53,0) ->  | U53: 0 | V53: 0 | W53: 0 | X53: 0 | Y53: 0 | AA53: 0 | AB53: 5 | AC53: 0 | AD53: 0
C54: =IF(H54="","",VLOOKUP(H54,Steuerung!$E$11:$G$17,3,FALSE)) ->  | E54: =IF(Stammdaten!$AE$29="2 - Vereinbarte Entgelte",IF(ISNUMBER(D54),IF(YEAR(D54)<Stammdaten!$AE$28,1,IF(YEAR(D54)>Stammdaten!$AE$28,12,MONTH(D54))),""),"") ->  | G54: =IF(Stammdaten!$AE$29="1 - Vereinnahmte Entgelte",IF(ISNUMBER(F54),IF(YEAR(F54)<Stammdaten!$AE$28,1,IF(YEAR(F54)>Stammdaten!$AE$28,12,MONTH(F54))),""),"") ->  | N54: =+IF(Stammdaten!$AE$30="1 - Ja",Einnahmen!I54,Einnahmen!L54) -> 0.00 | O54: =+IF(Stammdaten!$AE$30="1 - Ja",K54,0) ->  | U54: 0 | V54: 0 | W54: 0 | X54: 0 | Y54: 0 | AA54: 0 | AB54: 5 | AC54: 0 | AD54: 0
C55: =IF(H55="","",VLOOKUP(H55,Steuerung!$E$11:$G$17,3,FALSE)) ->  | E55: =IF(Stammdaten!$AE$29="2 - Vereinbarte Entgelte",IF(ISNUMBER(D55),IF(YEAR(D55)<Stammdaten!$AE$28,1,IF(YEAR(D55)>Stammdaten!$AE$28,12,MONTH(D55))),""),"") ->  | G55: =IF(Stammdaten!$AE$29="1 - Vereinnahmte Entgelte",IF(ISNUMBER(F55),IF(YEAR(F55)<Stammdaten!$AE$28,1,IF(YEAR(F55)>Stammdaten!$AE$28,12,MONTH(F55))),""),"") ->  | N55: =+IF(Stammdaten!$AE$30="1 - Ja",Einnahmen!I55,Einnahmen!L55) -> 0.00 | O55: =+IF(Stammdaten!$AE$30="1 - Ja",K55,0) ->  | U55: 0 | V55: 0 | W55: 0 | X55: 0 | Y55: 0 | AA55: 0 | AB55: 5 | AC55: 0 | AD55: 0
C56: =IF(H56="","",VLOOKUP(H56,Steuerung!$E$11:$G$17,3,FALSE)) ->  | E56: =IF(Stammdaten!$AE$29="2 - Vereinbarte Entgelte",IF(ISNUMBER(D56),IF(YEAR(D56)<Stammdaten!$AE$28,1,IF(YEAR(D56)>Stammdaten!$AE$28,12,MONTH(D56))),""),"") ->  | G56: =IF(Stammdaten!$AE$29="1 - Vereinnahmte Entgelte",IF(ISNUMBER(F56),IF(YEAR(F56)<Stammdaten!$AE$28,1,IF(YEAR(F56)>Stammdaten!$AE$28,12,MONTH(F56))),""),"") ->  | N56: =+IF(Stammdaten!$AE$30="1 - Ja",Einnahmen!I56,Einnahmen!L56) -> 0.00 | O56: =+IF(Stammdaten!$AE$30="1 - Ja",K56,0) ->  | U56: 0 | V56: 0 | W56: 0 | X56: 0 | Y56: 0 | AA56: 0 | AB56: 5 | AC56: 0 | AD56: 0
C57: =IF(H57="","",VLOOKUP(H57,Steuerung!$E$11:$G$17,3,FALSE)) ->  | E57: =IF(Stammdaten!$AE$29="2 - Vereinbarte Entgelte",IF(ISNUMBER(D57),IF(YEAR(D57)<Stammdaten!$AE$28,1,IF(YEAR(D57)>Stammdaten!$AE$28,12,MONTH(D57))),""),"") ->  | G57: =IF(Stammdaten!$AE$29="1 - Vereinnahmte Entgelte",IF(ISNUMBER(F57),IF(YEAR(F57)<Stammdaten!$AE$28,1,IF(YEAR(F57)>Stammdaten!$AE$28,12,MONTH(F57))),""),"") ->  | N57: =+IF(Stammdaten!$AE$30="1 - Ja",Einnahmen!I57,Einnahmen!L57) -> 0.00 | O57: =+IF(Stammdaten!$AE$30="1 - Ja",K57,0) ->  | U57: 0 | V57: 0 | W57: 0 | X57: 0 | Y57: 0 | AA57: 0 | AB57: 5 | AC57: 0 | AD57: 0
C58: =IF(H58="","",VLOOKUP(H58,Steuerung!$E$11:$G$17,3,FALSE)) ->  | E58: =IF(Stammdaten!$AE$29="2 - Vereinbarte Entgelte",IF(ISNUMBER(D58),IF(YEAR(D58)<Stammdaten!$AE$28,1,IF(YEAR(D58)>Stammdaten!$AE$28,12,MONTH(D58))),""),"") ->  | G58: =IF(Stammdaten!$AE$29="1 - Vereinnahmte Entgelte",IF(ISNUMBER(F58),IF(YEAR(F58)<Stammdaten!$AE$28,1,IF(YEAR(F58)>Stammdaten!$AE$28,12,MONTH(F58))),""),"") ->  | N58: =+IF(Stammdaten!$AE$30="1 - Ja",Einnahmen!I58,Einnahmen!L58) -> 0.00 | O58: =+IF(Stammdaten!$AE$30="1 - Ja",K58,0) ->  | U58: 0 | V58: 0 | W58: 0 | X58: 0 | Y58: 0 | AA58: 0 | AB58: 5 | AC58: 0 | AD58: 0
C59: =IF(H59="","",VLOOKUP(H59,Steuerung!$E$11:$G$17,3,FALSE)) ->  | E59: =IF(Stammdaten!$AE$29="2 - Vereinbarte Entgelte",IF(ISNUMBER(D59),IF(YEAR(D59)<Stammdaten!$AE$28,1,IF(YEAR(D59)>Stammdaten!$AE$28,12,MONTH(D59))),""),"") ->  | G59: =IF(Stammdaten!$AE$29="1 - Vereinnahmte Entgelte",IF(ISNUMBER(F59),IF(YEAR(F59)<Stammdaten!$AE$28,1,IF(YEAR(F59)>Stammdaten!$AE$28,12,MONTH(F59))),""),"") ->  | N59: =+IF(Stammdaten!$AE$30="1 - Ja",Einnahmen!I59,Einnahmen!L59) -> 0.00 | O59: =+IF(Stammdaten!$AE$30="1 - Ja",K59,0) ->  | U59: 0 | V59: 0 | W59: 0 | X59: 0 | Y59: 0 | AA59: 0 | AB59: 5 | AC59: 0 | AD59: 0
C60: =IF(H60="","",VLOOKUP(H60,Steuerung!$E$11:$G$17,3,FALSE)) ->  | E60: =IF(Stammdaten!$AE$29="2 - Vereinbarte Entgelte",IF(ISNUMBER(D60),IF(YEAR(D60)<Stammdaten!$AE$28,1,IF(YEAR(D60)>Stammdaten!$AE$28,12,MONTH(D60))),""),"") ->  | G60: =IF(Stammdaten!$AE$29="1 - Vereinnahmte Entgelte",IF(ISNUMBER(F60),IF(YEAR(F60)<Stammdaten!$AE$28,1,IF(YEAR(F60)>Stammdaten!$AE$28,12,MONTH(F60))),""),"") ->  | N60: =+IF(Stammdaten!$AE$30="1 - Ja",Einnahmen!I60,Einnahmen!L60) -> 0.00 | O60: =+IF(Stammdaten!$AE$30="1 - Ja",K60,0) ->  | U60: 0 | V60: 0 | W60: 0 | X60: 0 | Y60: 0 | AA60: 0 | AB60: 5 | AC60: 0 | AD60: 0
C61: =IF(H61="","",VLOOKUP(H61,Steuerung!$E$11:$G$17,3,FALSE)) ->  | E61: =IF(Stammdaten!$AE$29="2 - Vereinbarte Entgelte",IF(ISNUMBER(D61),IF(YEAR(D61)<Stammdaten!$AE$28,1,IF(YEAR(D61)>Stammdaten!$AE$28,12,MONTH(D61))),""),"") ->  | G61: =IF(Stammdaten!$AE$29="1 - Vereinnahmte Entgelte",IF(ISNUMBER(F61),IF(YEAR(F61)<Stammdaten!$AE$28,1,IF(YEAR(F61)>Stammdaten!$AE$28,12,MONTH(F61))),""),"") ->  | N61: =+IF(Stammdaten!$AE$30="1 - Ja",Einnahmen!I61,Einnahmen!L61) -> 0.00 | O61: =+IF(Stammdaten!$AE$30="1 - Ja",K61,0) ->  | U61: 0 | V61: 0 | W61: 0 | X61: 0 | Y61: 0 | AA61: 0 | AB61: 5 | AC61: 0 | AD61: 0
C62: =IF(H62="","",VLOOKUP(H62,Steuerung!$E$11:$G$17,3,FALSE)) ->  | E62: =IF(Stammdaten!$AE$29="2 - Vereinbarte Entgelte",IF(ISNUMBER(D62),IF(YEAR(D62)<Stammdaten!$AE$28,1,IF(YEAR(D62)>Stammdaten!$AE$28,12,MONTH(D62))),""),"") ->  | G62: =IF(Stammdaten!$AE$29="1 - Vereinnahmte Entgelte",IF(ISNUMBER(F62),IF(YEAR(F62)<Stammdaten!$AE$28,1,IF(YEAR(F62)>Stammdaten!$AE$28,12,MONTH(F62))),""),"") ->  | N62: =+IF(Stammdaten!$AE$30="1 - Ja",Einnahmen!I62,Einnahmen!L62) -> 0.00 | O62: =+IF(Stammdaten!$AE$30="1 - Ja",K62,0) ->  | U62: 0 | V62: 0 | W62: 0 | X62: 0 | Y62: 0 | AA62: 0 | AB62: 5 | AC62: 0 | AD62: 0
C63: =IF(H63="","",VLOOKUP(H63,Steuerung!$E$11:$G$17,3,FALSE)) ->  | E63: =IF(Stammdaten!$AE$29="2 - Vereinbarte Entgelte",IF(ISNUMBER(D63),IF(YEAR(D63)<Stammdaten!$AE$28,1,IF(YEAR(D63)>Stammdaten!$AE$28,12,MONTH(D63))),""),"") ->  | G63: =IF(Stammdaten!$AE$29="1 - Vereinnahmte Entgelte",IF(ISNUMBER(F63),IF(YEAR(F63)<Stammdaten!$AE$28,1,IF(YEAR(F63)>Stammdaten!$AE$28,12,MONTH(F63))),""),"") ->  | N63: =+IF(Stammdaten!$AE$30="1 - Ja",Einnahmen!I63,Einnahmen!L63) -> 0.00 | O63: =+IF(Stammdaten!$AE$30="1 - Ja",K63,0) ->  | U63: 0 | V63: 0 | W63: 0 | X63: 0 | Y63: 0 | AA63: 0 | AB63: 5 | AC63: 0 | AD63: 0
C64: =IF(H64="","",VLOOKUP(H64,Steuerung!$E$11:$G$17,3,FALSE)) ->  | E64: =IF(Stammdaten!$AE$29="2 - Vereinbarte Entgelte",IF(ISNUMBER(D64),IF(YEAR(D64)<Stammdaten!$AE$28,1,IF(YEAR(D64)>Stammdaten!$AE$28,12,MONTH(D64))),""),"") ->  | G64: =IF(Stammdaten!$AE$29="1 - Vereinnahmte Entgelte",IF(ISNUMBER(F64),IF(YEAR(F64)<Stammdaten!$AE$28,1,IF(YEAR(F64)>Stammdaten!$AE$28,12,MONTH(F64))),""),"") ->  | N64: =+IF(Stammdaten!$AE$30="1 - Ja",Einnahmen!I64,Einnahmen!L64) -> 0.00 | O64: =+IF(Stammdaten!$AE$30="1 - Ja",K64,0) ->  | U64: 0 | V64: 0 | W64: 0 | X64: 0 | Y64: 0 | AA64: 0 | AB64: 5 | AC64: 0 | AD64: 0
C65: =IF(H65="","",VLOOKUP(H65,Steuerung!$E$11:$G$17,3,FALSE)) ->  | E65: =IF(Stammdaten!$AE$29="2 - Vereinbarte Entgelte",IF(ISNUMBER(D65),IF(YEAR(D65)<Stammdaten!$AE$28,1,IF(YEAR(D65)>Stammdaten!$AE$28,12,MONTH(D65))),""),"") ->  | G65: =IF(Stammdaten!$AE$29="1 - Vereinnahmte Entgelte",IF(ISNUMBER(F65),IF(YEAR(F65)<Stammdaten!$AE$28,1,IF(YEAR(F65)>Stammdaten!$AE$28,12,MONTH(F65))),""),"") ->  | N65: =+IF(Stammdaten!$AE$30="1 - Ja",Einnahmen!I65,Einnahmen!L65) -> 0.00 | O65: =+IF(Stammdaten!$AE$30="1 - Ja",K65,0) ->  | U65: 0 | V65: 0 | W65: 0 | X65: 0 | Y65: 0 | AA65: 0 | AB65: 5 | AC65: 0 | AD65: 0
C66: =IF(H66="","",VLOOKUP(H66,Steuerung!$E$11:$G$17,3,FALSE)) ->  | E66: =IF(Stammdaten!$AE$29="2 - Vereinbarte Entgelte",IF(ISNUMBER(D66),IF(YEAR(D66)<Stammdaten!$AE$28,1,IF(YEAR(D66)>Stammdaten!$AE$28,12,MONTH(D66))),""),"") ->  | G66: =IF(Stammdaten!$AE$29="1 - Vereinnahmte Entgelte",IF(ISNUMBER(F66),IF(YEAR(F66)<Stammdaten!$AE$28,1,IF(YEAR(F66)>Stammdaten!$AE$28,12,MONTH(F66))),""),"") ->  | N66: =+IF(Stammdaten!$AE$30="1 - Ja",Einnahmen!I66,Einnahmen!L66) -> 0.00 | O66: =+IF(Stammdaten!$AE$30="1 - Ja",K66,0) ->  | U66: 0 | V66: 0 | W66: 0 | X66: 0 | Y66: 0 | AA66: 0 | AB66: 5 | AC66: 0 | AD66: 0
C67: =IF(H67="","",VLOOKUP(H67,Steuerung!$E$11:$G$17,3,FALSE)) ->  | E67: =IF(Stammdaten!$AE$29="2 - Vereinbarte Entgelte",IF(ISNUMBER(D67),IF(YEAR(D67)<Stammdaten!$AE$28,1,IF(YEAR(D67)>Stammdaten!$AE$28,12,MONTH(D67))),""),"") ->  | G67: =IF(Stammdaten!$AE$29="1 - Vereinnahmte Entgelte",IF(ISNUMBER(F67),IF(YEAR(F67)<Stammdaten!$AE$28,1,IF(YEAR(F67)>Stammdaten!$AE$28,12,MONTH(F67))),""),"") ->  | N67: =+IF(Stammdaten!$AE$30="1 - Ja",Einnahmen!I67,Einnahmen!L67) -> 0.00 | O67: =+IF(Stammdaten!$AE$30="1 - Ja",K67,0) ->  | U67: 0 | V67: 0 | W67: 0 | X67: 0 | Y67: 0 | AA67: 0 | AB67: 5 | AC67: 0 | AD67: 0
C68: =IF(H68="","",VLOOKUP(H68,Steuerung!$E$11:$G$17,3,FALSE)) ->  | E68: =IF(Stammdaten!$AE$29="2 - Vereinbarte Entgelte",IF(ISNUMBER(D68),IF(YEAR(D68)<Stammdaten!$AE$28,1,IF(YEAR(D68)>Stammdaten!$AE$28,12,MONTH(D68))),""),"") ->  | G68: =IF(Stammdaten!$AE$29="1 - Vereinnahmte Entgelte",IF(ISNUMBER(F68),IF(YEAR(F68)<Stammdaten!$AE$28,1,IF(YEAR(F68)>Stammdaten!$AE$28,12,MONTH(F68))),""),"") ->  | N68: =+IF(Stammdaten!$AE$30="1 - Ja",Einnahmen!I68,Einnahmen!L68) -> 0.00 | O68: =+IF(Stammdaten!$AE$30="1 - Ja",K68,0) ->  | U68: 0 | V68: 0 | W68: 0 | X68: 0 | Y68: 0 | AA68: 0 | AB68: 5 | AC68: 0 | AD68: 0
C69: =IF(H69="","",VLOOKUP(H69,Steuerung!$E$11:$G$17,3,FALSE)) ->  | E69: =IF(Stammdaten!$AE$29="2 - Vereinbarte Entgelte",IF(ISNUMBER(D69),IF(YEAR(D69)<Stammdaten!$AE$28,1,IF(YEAR(D69)>Stammdaten!$AE$28,12,MONTH(D69))),""),"") ->  | G69: =IF(Stammdaten!$AE$29="1 - Vereinnahmte Entgelte",IF(ISNUMBER(F69),IF(YEAR(F69)<Stammdaten!$AE$28,1,IF(YEAR(F69)>Stammdaten!$AE$28,12,MONTH(F69))),""),"") ->  | K69: =+IF(AND(ISNUMBER(I69),ISNUMBER(J69)),ROUND(I69*J69,2),"") ->  | N69: =+IF(Stammdaten!$AE$30="1 - Ja",Einnahmen!I69,Einnahmen!L69) -> 0.00 | O69: =+IF(Stammdaten!$AE$30="1 - Ja",K69,0) ->  | U69: =+IF(B69="",0,1) -> 0 | V69: =+IF(ISNUMBER(D69),1,0) -> 0 | W69: =+IF(H69="",0,1) -> 0 | X69: =+IF(ISNUMBER(L69),1,0) -> 0 | Y69: =+IF(ISNUMBER(F69),1,0) -> 0 | AA69: 0 | AB69: 5 | AC69: 0 | AD69: 0
C70: =IF(H70="","",VLOOKUP(H70,Steuerung!$E$11:$G$17,3,FALSE)) ->  | E70: =IF(Stammdaten!$AE$29="2 - Vereinbarte Entgelte",IF(ISNUMBER(D70),IF(YEAR(D70)<Stammdaten!$AE$28,1,IF(YEAR(D70)>Stammdaten!$AE$28,12,MONTH(D70))),""),"") ->  | G70: =IF(Stammdaten!$AE$29="1 - Vereinnahmte Entgelte",IF(ISNUMBER(F70),IF(YEAR(F70)<Stammdaten!$AE$28,1,IF(YEAR(F70)>Stammdaten!$AE$28,12,MONTH(F70))),""),"") ->  | N70: =+IF(Stammdaten!$AE$30="1 - Ja",Einnahmen!I70,Einnahmen!L70) -> 0.00 | O70: =+IF(Stammdaten!$AE$30="1 - Ja",K70,0) ->  | U70: 0 | V70: 0 | W70: 0 | X70: 0 | Y70: 0 | AA70: 0 | AB70: =+$AB$3 -> 5 | AC70: 0 | AD70: 0
C71: =IF(H71="","",VLOOKUP(H71,Steuerung!$E$11:$G$17,3,FALSE)) ->  | E71: =IF(Stammdaten!$AE$29="2 - Vereinbarte Entgelte",IF(ISNUMBER(D71),IF(YEAR(D71)<Stammdaten!$AE$28,1,IF(YEAR(D71)>Stammdaten!$AE$28,12,MONTH(D71))),""),"") ->  | G71: =IF(Stammdaten!$AE$29="1 - Vereinnahmte Entgelte",IF(ISNUMBER(F71),IF(YEAR(F71)<Stammdaten!$AE$28,1,IF(YEAR(F71)>Stammdaten!$AE$28,12,MONTH(F71))),""),"") ->  | N71: =+IF(Stammdaten!$AE$30="1 - Ja",Einnahmen!I71,Einnahmen!L71) -> 0.00 | O71: =+IF(Stammdaten!$AE$30="1 - Ja",K71,0) ->  | U71: 0 | V71: 0 | W71: 0 | X71: 0 | Y71: 0 | AA71: 0 | AB71: 5 | AC71: 0 | AD71: 0
C72: =IF(H72="","",VLOOKUP(H72,Steuerung!$E$11:$G$17,3,FALSE)) ->  | E72: =IF(Stammdaten!$AE$29="2 - Vereinbarte Entgelte",IF(ISNUMBER(D72),IF(YEAR(D72)<Stammdaten!$AE$28,1,IF(YEAR(D72)>Stammdaten!$AE$28,12,MONTH(D72))),""),"") ->  | G72: =IF(Stammdaten!$AE$29="1 - Vereinnahmte Entgelte",IF(ISNUMBER(F72),IF(YEAR(F72)<Stammdaten!$AE$28,1,IF(YEAR(F72)>Stammdaten!$AE$28,12,MONTH(F72))),""),"") ->  | N72: =+IF(Stammdaten!$AE$30="1 - Ja",Einnahmen!I72,Einnahmen!L72) -> 0.00 | O72: =+IF(Stammdaten!$AE$30="1 - Ja",K72,0) ->  | U72: 0 | V72: 0 | W72: 0 | X72: 0 | Y72: 0 | AA72: 0 | AB72: 5 | AC72: 0 | AD72: 0
C73: =IF(H73="","",VLOOKUP(H73,Steuerung!$E$11:$G$17,3,FALSE)) ->  | E73: =IF(Stammdaten!$AE$29="2 - Vereinbarte Entgelte",IF(ISNUMBER(D73),IF(YEAR(D73)<Stammdaten!$AE$28,1,IF(YEAR(D73)>Stammdaten!$AE$28,12,MONTH(D73))),""),"") ->  | G73: =IF(Stammdaten!$AE$29="1 - Vereinnahmte Entgelte",IF(ISNUMBER(F73),IF(YEAR(F73)<Stammdaten!$AE$28,1,IF(YEAR(F73)>Stammdaten!$AE$28,12,MONTH(F73))),""),"") ->  | N73: =+IF(Stammdaten!$AE$30="1 - Ja",Einnahmen!I73,Einnahmen!L73) -> 0.00 | O73: =+IF(Stammdaten!$AE$30="1 - Ja",K73,0) ->  | U73: 0 | V73: 0 | W73: 0 | X73: 0 | Y73: 0 | AA73: 0 | AB73: 5 | AC73: 0 | AD73: 0
C74: =IF(H74="","",VLOOKUP(H74,Steuerung!$E$11:$G$17,3,FALSE)) ->  | E74: =IF(Stammdaten!$AE$29="2 - Vereinbarte Entgelte",IF(ISNUMBER(D74),IF(YEAR(D74)<Stammdaten!$AE$28,1,IF(YEAR(D74)>Stammdaten!$AE$28,12,MONTH(D74))),""),"") ->  | G74: =IF(Stammdaten!$AE$29="1 - Vereinnahmte Entgelte",IF(ISNUMBER(F74),IF(YEAR(F74)<Stammdaten!$AE$28,1,IF(YEAR(F74)>Stammdaten!$AE$28,12,MONTH(F74))),""),"") ->  | N74: =+IF(Stammdaten!$AE$30="1 - Ja",Einnahmen!I74,Einnahmen!L74) -> 0.00 | O74: =+IF(Stammdaten!$AE$30="1 - Ja",K74,0) ->  | U74: 0 | V74: 0 | W74: 0 | X74: 0 | Y74: 0 | AA74: 0 | AB74: 5 | AC74: 0 | AD74: 0
C75: =IF(H75="","",VLOOKUP(H75,Steuerung!$E$11:$G$17,3,FALSE)) ->  | E75: =IF(Stammdaten!$AE$29="2 - Vereinbarte Entgelte",IF(ISNUMBER(D75),IF(YEAR(D75)<Stammdaten!$AE$28,1,IF(YEAR(D75)>Stammdaten!$AE$28,12,MONTH(D75))),""),"") ->  | G75: =IF(Stammdaten!$AE$29="1 - Vereinnahmte Entgelte",IF(ISNUMBER(F75),IF(YEAR(F75)<Stammdaten!$AE$28,1,IF(YEAR(F75)>Stammdaten!$AE$28,12,MONTH(F75))),""),"") ->  | N75: =+IF(Stammdaten!$AE$30="1 - Ja",Einnahmen!I75,Einnahmen!L75) -> 0.00 | O75: =+IF(Stammdaten!$AE$30="1 - Ja",K75,0) ->  | U75: 0 | V75: 0 | W75: 0 | X75: 0 | Y75: 0 | AA75: 0 | AB75: 5 | AC75: 0 | AD75: 0
C76: =IF(H76="","",VLOOKUP(H76,Steuerung!$E$11:$G$17,3,FALSE)) ->  | E76: =IF(Stammdaten!$AE$29="2 - Vereinbarte Entgelte",IF(ISNUMBER(D76),IF(YEAR(D76)<Stammdaten!$AE$28,1,IF(YEAR(D76)>Stammdaten!$AE$28,12,MONTH(D76))),""),"") ->  | G76: =IF(Stammdaten!$AE$29="1 - Vereinnahmte Entgelte",IF(ISNUMBER(F76),IF(YEAR(F76)<Stammdaten!$AE$28,1,IF(YEAR(F76)>Stammdaten!$AE$28,12,MONTH(F76))),""),"") ->  | N76: =+IF(Stammdaten!$AE$30="1 - Ja",Einnahmen!I76,Einnahmen!L76) -> 0.00 | O76: =+IF(Stammdaten!$AE$30="1 - Ja",K76,0) ->  | U76: 0 | V76: 0 | W76: 0 | X76: 0 | Y76: 0 | AA76: 0 | AB76: 5 | AC76: 0 | AD76: 0
C77: =IF(H77="","",VLOOKUP(H77,Steuerung!$E$11:$G$17,3,FALSE)) ->  | E77: =IF(Stammdaten!$AE$29="2 - Vereinbarte Entgelte",IF(ISNUMBER(D77),IF(YEAR(D77)<Stammdaten!$AE$28,1,IF(YEAR(D77)>Stammdaten!$AE$28,12,MONTH(D77))),""),"") ->  | G77: =IF(Stammdaten!$AE$29="1 - Vereinnahmte Entgelte",IF(ISNUMBER(F77),IF(YEAR(F77)<Stammdaten!$AE$28,1,IF(YEAR(F77)>Stammdaten!$AE$28,12,MONTH(F77))),""),"") ->  | N77: =+IF(Stammdaten!$AE$30="1 - Ja",Einnahmen!I77,Einnahmen!L77) -> 0.00 | O77: =+IF(Stammdaten!$AE$30="1 - Ja",K77,0) ->  | U77: 0 | V77: 0 | W77: 0 | X77: 0 | Y77: 0 | AA77: 0 | AB77: 5 | AC77: 0 | AD77: 0
C78: =IF(H78="","",VLOOKUP(H78,Steuerung!$E$11:$G$17,3,FALSE)) ->  | E78: =IF(Stammdaten!$AE$29="2 - Vereinbarte Entgelte",IF(ISNUMBER(D78),IF(YEAR(D78)<Stammdaten!$AE$28,1,IF(YEAR(D78)>Stammdaten!$AE$28,12,MONTH(D78))),""),"") ->  | G78: =IF(Stammdaten!$AE$29="1 - Vereinnahmte Entgelte",IF(ISNUMBER(F78),IF(YEAR(F78)<Stammdaten!$AE$28,1,IF(YEAR(F78)>Stammdaten!$AE$28,12,MONTH(F78))),""),"") ->  | N78: =+IF(Stammdaten!$AE$30="1 - Ja",Einnahmen!I78,Einnahmen!L78) -> 0.00 | O78: =+IF(Stammdaten!$AE$30="1 - Ja",K78,0) ->  | U78: 0 | V78: 0 | W78: 0 | X78: 0 | Y78: 0 | AA78: 0 | AB78: 5 | AC78: 0 | AD78: 0
C79: =IF(H79="","",VLOOKUP(H79,Steuerung!$E$11:$G$17,3,FALSE)) ->  | E79: =IF(Stammdaten!$AE$29="2 - Vereinbarte Entgelte",IF(ISNUMBER(D79),IF(YEAR(D79)<Stammdaten!$AE$28,1,IF(YEAR(D79)>Stammdaten!$AE$28,12,MONTH(D79))),""),"") ->  | G79: =IF(Stammdaten!$AE$29="1 - Vereinnahmte Entgelte",IF(ISNUMBER(F79),IF(YEAR(F79)<Stammdaten!$AE$28,1,IF(YEAR(F79)>Stammdaten!$AE$28,12,MONTH(F79))),""),"") ->  | N79: =+IF(Stammdaten!$AE$30="1 - Ja",Einnahmen!I79,Einnahmen!L79) -> 0.00 | O79: =+IF(Stammdaten!$AE$30="1 - Ja",K79,0) ->  | U79: 0 | V79: 0 | W79: 0 | X79: 0 | Y79: 0 | AA79: 0 | AB79: 5 | AC79: 0 | AD79: 0
C80: =IF(H80="","",VLOOKUP(H80,Steuerung!$E$11:$G$17,3,FALSE)) ->  | E80: =IF(Stammdaten!$AE$29="2 - Vereinbarte Entgelte",IF(ISNUMBER(D80),IF(YEAR(D80)<Stammdaten!$AE$28,1,IF(YEAR(D80)>Stammdaten!$AE$28,12,MONTH(D80))),""),"") ->  | G80: =IF(Stammdaten!$AE$29="1 - Vereinnahmte Entgelte",IF(ISNUMBER(F80),IF(YEAR(F80)<Stammdaten!$AE$28,1,IF(YEAR(F80)>Stammdaten!$AE$28,12,MONTH(F80))),""),"") ->  | N80: =+IF(Stammdaten!$AE$30="1 - Ja",Einnahmen!I80,Einnahmen!L80) -> 0.00 | O80: =+IF(Stammdaten!$AE$30="1 - Ja",K80,0) ->  | U80: 0 | V80: 0 | W80: 0 | X80: 0 | Y80: 0 | AA80: 0 | AB80: 5 | AC80: 0 | AD80: 0
C81: =IF(H81="","",VLOOKUP(H81,Steuerung!$E$11:$G$17,3,FALSE)) ->  | E81: =IF(Stammdaten!$AE$29="2 - Vereinbarte Entgelte",IF(ISNUMBER(D81),IF(YEAR(D81)<Stammdaten!$AE$28,1,IF(YEAR(D81)>Stammdaten!$AE$28,12,MONTH(D81))),""),"") ->  | G81: =IF(Stammdaten!$AE$29="1 - Vereinnahmte Entgelte",IF(ISNUMBER(F81),IF(YEAR(F81)<Stammdaten!$AE$28,1,IF(YEAR(F81)>Stammdaten!$AE$28,12,MONTH(F81))),""),"") ->  | N81: =+IF(Stammdaten!$AE$30="1 - Ja",Einnahmen!I81,Einnahmen!L81) -> 0.00 | O81: =+IF(Stammdaten!$AE$30="1 - Ja",K81,0) ->  | U81: 0 | V81: 0 | W81: 0 | X81: 0 | Y81: 0 | AA81: 0 | AB81: 5 | AC81: 0 | AD81: 0
C82: =IF(H82="","",VLOOKUP(H82,Steuerung!$E$11:$G$17,3,FALSE)) ->  | E82: =IF(Stammdaten!$AE$29="2 - Vereinbarte Entgelte",IF(ISNUMBER(D82),IF(YEAR(D82)<Stammdaten!$AE$28,1,IF(YEAR(D82)>Stammdaten!$AE$28,12,MONTH(D82))),""),"") ->  | G82: =IF(Stammdaten!$AE$29="1 - Vereinnahmte Entgelte",IF(ISNUMBER(F82),IF(YEAR(F82)<Stammdaten!$AE$28,1,IF(YEAR(F82)>Stammdaten!$AE$28,12,MONTH(F82))),""),"") ->  | N82: =+IF(Stammdaten!$AE$30="1 - Ja",Einnahmen!I82,Einnahmen!L82) -> 0.00 | O82: =+IF(Stammdaten!$AE$30="1 - Ja",K82,0) ->  | U82: 0 | V82: 0 | W82: 0 | X82: 0 | Y82: 0 | AA82: 0 | AB82: 5 | AC82: 0 | AD82: 0
C83: =IF(H83="","",VLOOKUP(H83,Steuerung!$E$11:$G$17,3,FALSE)) ->  | E83: =IF(Stammdaten!$AE$29="2 - Vereinbarte Entgelte",IF(ISNUMBER(D83),IF(YEAR(D83)<Stammdaten!$AE$28,1,IF(YEAR(D83)>Stammdaten!$AE$28,12,MONTH(D83))),""),"") ->  | G83: =IF(Stammdaten!$AE$29="1 - Vereinnahmte Entgelte",IF(ISNUMBER(F83),IF(YEAR(F83)<Stammdaten!$AE$28,1,IF(YEAR(F83)>Stammdaten!$AE$28,12,MONTH(F83))),""),"") ->  | N83: =+IF(Stammdaten!$AE$30="1 - Ja",Einnahmen!I83,Einnahmen!L83) -> 0.00 | O83: =+IF(Stammdaten!$AE$30="1 - Ja",K83,0) ->  | U83: 0 | V83: 0 | W83: 0 | X83: 0 | Y83: 0 | AA83: 0 | AB83: 5 | AC83: 0 | AD83: 0
C84: =IF(H84="","",VLOOKUP(H84,Steuerung!$E$11:$G$17,3,FALSE)) ->  | E84: =IF(Stammdaten!$AE$29="2 - Vereinbarte Entgelte",IF(ISNUMBER(D84),IF(YEAR(D84)<Stammdaten!$AE$28,1,IF(YEAR(D84)>Stammdaten!$AE$28,12,MONTH(D84))),""),"") ->  | G84: =IF(Stammdaten!$AE$29="1 - Vereinnahmte Entgelte",IF(ISNUMBER(F84),IF(YEAR(F84)<Stammdaten!$AE$28,1,IF(YEAR(F84)>Stammdaten!$AE$28,12,MONTH(F84))),""),"") ->  | N84: =+IF(Stammdaten!$AE$30="1 - Ja",Einnahmen!I84,Einnahmen!L84) -> 0.00 | O84: =+IF(Stammdaten!$AE$30="1 - Ja",K84,0) ->  | U84: 0 | V84: 0 | W84: 0 | X84: 0 | Y84: 0 | AA84: 0 | AB84: 5 | AC84: 0 | AD84: 0
C85: =IF(H85="","",VLOOKUP(H85,Steuerung!$E$11:$G$17,3,FALSE)) ->  | E85: =IF(Stammdaten!$AE$29="2 - Vereinbarte Entgelte",IF(ISNUMBER(D85),IF(YEAR(D85)<Stammdaten!$AE$28,1,IF(YEAR(D85)>Stammdaten!$AE$28,12,MONTH(D85))),""),"") ->  | G85: =IF(Stammdaten!$AE$29="1 - Vereinnahmte Entgelte",IF(ISNUMBER(F85),IF(YEAR(F85)<Stammdaten!$AE$28,1,IF(YEAR(F85)>Stammdaten!$AE$28,12,MONTH(F85))),""),"") ->  | N85: =+IF(Stammdaten!$AE$30="1 - Ja",Einnahmen!I85,Einnahmen!L85) -> 0.00 | O85: =+IF(Stammdaten!$AE$30="1 - Ja",K85,0) ->  | U85: 0 | V85: 0 | W85: 0 | X85: 0 | Y85: 0 | AA85: 0 | AB85: 5 | AC85: 0 | AD85: 0
C86: =IF(H86="","",VLOOKUP(H86,Steuerung!$E$11:$G$17,3,FALSE)) ->  | E86: =IF(Stammdaten!$AE$29="2 - Vereinbarte Entgelte",IF(ISNUMBER(D86),IF(YEAR(D86)<Stammdaten!$AE$28,1,IF(YEAR(D86)>Stammdaten!$AE$28,12,MONTH(D86))),""),"") ->  | G86: =IF(Stammdaten!$AE$29="1 - Vereinnahmte Entgelte",IF(ISNUMBER(F86),IF(YEAR(F86)<Stammdaten!$AE$28,1,IF(YEAR(F86)>Stammdaten!$AE$28,12,MONTH(F86))),""),"") ->  | N86: =+IF(Stammdaten!$AE$30="1 - Ja",Einnahmen!I86,Einnahmen!L86) -> 0.00 | O86: =+IF(Stammdaten!$AE$30="1 - Ja",K86,0) ->  | U86: 0 | V86: 0 | W86: 0 | X86: 0 | Y86: 0 | AA86: 0 | AB86: 5 | AC86: 0 | AD86: 0
C87: =IF(H87="","",VLOOKUP(H87,Steuerung!$E$11:$G$17,3,FALSE)) ->  | E87: =IF(Stammdaten!$AE$29="2 - Vereinbarte Entgelte",IF(ISNUMBER(D87),IF(YEAR(D87)<Stammdaten!$AE$28,1,IF(YEAR(D87)>Stammdaten!$AE$28,12,MONTH(D87))),""),"") ->  | G87: =IF(Stammdaten!$AE$29="1 - Vereinnahmte Entgelte",IF(ISNUMBER(F87),IF(YEAR(F87)<Stammdaten!$AE$28,1,IF(YEAR(F87)>Stammdaten!$AE$28,12,MONTH(F87))),""),"") ->  | N87: =+IF(Stammdaten!$AE$30="1 - Ja",Einnahmen!I87,Einnahmen!L87) -> 0.00 | O87: =+IF(Stammdaten!$AE$30="1 - Ja",K87,0) ->  | U87: 0 | V87: 0 | W87: 0 | X87: 0 | Y87: 0 | AA87: 0 | AB87: 5 | AC87: 0 | AD87: 0
C88: =IF(H88="","",VLOOKUP(H88,Steuerung!$E$11:$G$17,3,FALSE)) ->  | E88: =IF(Stammdaten!$AE$29="2 - Vereinbarte Entgelte",IF(ISNUMBER(D88),IF(YEAR(D88)<Stammdaten!$AE$28,1,IF(YEAR(D88)>Stammdaten!$AE$28,12,MONTH(D88))),""),"") ->  | G88: =IF(Stammdaten!$AE$29="1 - Vereinnahmte Entgelte",IF(ISNUMBER(F88),IF(YEAR(F88)<Stammdaten!$AE$28,1,IF(YEAR(F88)>Stammdaten!$AE$28,12,MONTH(F88))),""),"") ->  | N88: =+IF(Stammdaten!$AE$30="1 - Ja",Einnahmen!I88,Einnahmen!L88) -> 0.00 | O88: =+IF(Stammdaten!$AE$30="1 - Ja",K88,0) ->  | U88: 0 | V88: 0 | W88: 0 | X88: 0 | Y88: 0 | AA88: 0 | AB88: 5 | AC88: 0 | AD88: 0
C89: =IF(H89="","",VLOOKUP(H89,Steuerung!$E$11:$G$17,3,FALSE)) ->  | E89: =IF(Stammdaten!$AE$29="2 - Vereinbarte Entgelte",IF(ISNUMBER(D89),IF(YEAR(D89)<Stammdaten!$AE$28,1,IF(YEAR(D89)>Stammdaten!$AE$28,12,MONTH(D89))),""),"") ->  | G89: =IF(Stammdaten!$AE$29="1 - Vereinnahmte Entgelte",IF(ISNUMBER(F89),IF(YEAR(F89)<Stammdaten!$AE$28,1,IF(YEAR(F89)>Stammdaten!$AE$28,12,MONTH(F89))),""),"") ->  | N89: =+IF(Stammdaten!$AE$30="1 - Ja",Einnahmen!I89,Einnahmen!L89) -> 0.00 | O89: =+IF(Stammdaten!$AE$30="1 - Ja",K89,0) ->  | U89: 0 | V89: 0 | W89: 0 | X89: 0 | Y89: 0 | AA89: 0 | AB89: 5 | AC89: 0 | AD89: 0
C90: =IF(H90="","",VLOOKUP(H90,Steuerung!$E$11:$G$17,3,FALSE)) ->  | E90: =IF(Stammdaten!$AE$29="2 - Vereinbarte Entgelte",IF(ISNUMBER(D90),IF(YEAR(D90)<Stammdaten!$AE$28,1,IF(YEAR(D90)>Stammdaten!$AE$28,12,MONTH(D90))),""),"") ->  | G90: =IF(Stammdaten!$AE$29="1 - Vereinnahmte Entgelte",IF(ISNUMBER(F90),IF(YEAR(F90)<Stammdaten!$AE$28,1,IF(YEAR(F90)>Stammdaten!$AE$28,12,MONTH(F90))),""),"") ->  | N90: =+IF(Stammdaten!$AE$30="1 - Ja",Einnahmen!I90,Einnahmen!L90) -> 0.00 | O90: =+IF(Stammdaten!$AE$30="1 - Ja",K90,0) ->  | U90: 0 | V90: 0 | W90: 0 | X90: 0 | Y90: 0 | AA90: 0 | AB90: 5 | AC90: 0 | AD90: 0
C91: =IF(H91="","",VLOOKUP(H91,Steuerung!$E$11:$G$17,3,FALSE)) ->  | E91: =IF(Stammdaten!$AE$29="2 - Vereinbarte Entgelte",IF(ISNUMBER(D91),IF(YEAR(D91)<Stammdaten!$AE$28,1,IF(YEAR(D91)>Stammdaten!$AE$28,12,MONTH(D91))),""),"") ->  | G91: =IF(Stammdaten!$AE$29="1 - Vereinnahmte Entgelte",IF(ISNUMBER(F91),IF(YEAR(F91)<Stammdaten!$AE$28,1,IF(YEAR(F91)>Stammdaten!$AE$28,12,MONTH(F91))),""),"") ->  | N91: =+IF(Stammdaten!$AE$30="1 - Ja",Einnahmen!I91,Einnahmen!L91) -> 0.00 | O91: =+IF(Stammdaten!$AE$30="1 - Ja",K91,0) ->  | U91: 0 | V91: 0 | W91: 0 | X91: 0 | Y91: 0 | AA91: 0 | AB91: 5 | AC91: 0 | AD91: 0
C92: =IF(H92="","",VLOOKUP(H92,Steuerung!$E$11:$G$17,3,FALSE)) ->  | E92: =IF(Stammdaten!$AE$29="2 - Vereinbarte Entgelte",IF(ISNUMBER(D92),IF(YEAR(D92)<Stammdaten!$AE$28,1,IF(YEAR(D92)>Stammdaten!$AE$28,12,MONTH(D92))),""),"") ->  | G92: =IF(Stammdaten!$AE$29="1 - Vereinnahmte Entgelte",IF(ISNUMBER(F92),IF(YEAR(F92)<Stammdaten!$AE$28,1,IF(YEAR(F92)>Stammdaten!$AE$28,12,MONTH(F92))),""),"") ->  | N92: =+IF(Stammdaten!$AE$30="1 - Ja",Einnahmen!I92,Einnahmen!L92) -> 0.00 | O92: =+IF(Stammdaten!$AE$30="1 - Ja",K92,0) ->  | U92: 0 | V92: 0 | W92: 0 | X92: 0 | Y92: 0 | AA92: 0 | AB92: 5 | AC92: 0 | AD92: 0
C93: =IF(H93="","",VLOOKUP(H93,Steuerung!$E$11:$G$17,3,FALSE)) ->  | E93: =IF(Stammdaten!$AE$29="2 - Vereinbarte Entgelte",IF(ISNUMBER(D93),IF(YEAR(D93)<Stammdaten!$AE$28,1,IF(YEAR(D93)>Stammdaten!$AE$28,12,MONTH(D93))),""),"") ->  | G93: =IF(Stammdaten!$AE$29="1 - Vereinnahmte Entgelte",IF(ISNUMBER(F93),IF(YEAR(F93)<Stammdaten!$AE$28,1,IF(YEAR(F93)>Stammdaten!$AE$28,12,MONTH(F93))),""),"") ->  | N93: =+IF(Stammdaten!$AE$30="1 - Ja",Einnahmen!I93,Einnahmen!L93) -> 0.00 | O93: =+IF(Stammdaten!$AE$30="1 - Ja",K93,0) ->  | U93: 0 | V93: 0 | W93: 0 | X93: 0 | Y93: 0 | AA93: 0 | AB93: 5 | AC93: 0 | AD93: 0
C94: =IF(H94="","",VLOOKUP(H94,Steuerung!$E$11:$G$17,3,FALSE)) ->  | E94: =IF(Stammdaten!$AE$29="2 - Vereinbarte Entgelte",IF(ISNUMBER(D94),IF(YEAR(D94)<Stammdaten!$AE$28,1,IF(YEAR(D94)>Stammdaten!$AE$28,12,MONTH(D94))),""),"") ->  | G94: =IF(Stammdaten!$AE$29="1 - Vereinnahmte Entgelte",IF(ISNUMBER(F94),IF(YEAR(F94)<Stammdaten!$AE$28,1,IF(YEAR(F94)>Stammdaten!$AE$28,12,MONTH(F94))),""),"") ->  | N94: =+IF(Stammdaten!$AE$30="1 - Ja",Einnahmen!I94,Einnahmen!L94) -> 0.00 | O94: =+IF(Stammdaten!$AE$30="1 - Ja",K94,0) ->  | U94: 0 | V94: 0 | W94: 0 | X94: 0 | Y94: 0 | AA94: 0 | AB94: 5 | AC94: 0 | AD94: 0
C95: =IF(H95="","",VLOOKUP(H95,Steuerung!$E$11:$G$17,3,FALSE)) ->  | E95: =IF(Stammdaten!$AE$29="2 - Vereinbarte Entgelte",IF(ISNUMBER(D95),IF(YEAR(D95)<Stammdaten!$AE$28,1,IF(YEAR(D95)>Stammdaten!$AE$28,12,MONTH(D95))),""),"") ->  | G95: =IF(Stammdaten!$AE$29="1 - Vereinnahmte Entgelte",IF(ISNUMBER(F95),IF(YEAR(F95)<Stammdaten!$AE$28,1,IF(YEAR(F95)>Stammdaten!$AE$28,12,MONTH(F95))),""),"") ->  | N95: =+IF(Stammdaten!$AE$30="1 - Ja",Einnahmen!I95,Einnahmen!L95) -> 0.00 | O95: =+IF(Stammdaten!$AE$30="1 - Ja",K95,0) ->  | U95: 0 | V95: 0 | W95: 0 | X95: 0 | Y95: 0 | AA95: 0 | AB95: 5 | AC95: 0 | AD95: 0
C96: =IF(H96="","",VLOOKUP(H96,Steuerung!$E$11:$G$17,3,FALSE)) ->  | E96: =IF(Stammdaten!$AE$29="2 - Vereinbarte Entgelte",IF(ISNUMBER(D96),IF(YEAR(D96)<Stammdaten!$AE$28,1,IF(YEAR(D96)>Stammdaten!$AE$28,12,MONTH(D96))),""),"") ->  | G96: =IF(Stammdaten!$AE$29="1 - Vereinnahmte Entgelte",IF(ISNUMBER(F96),IF(YEAR(F96)<Stammdaten!$AE$28,1,IF(YEAR(F96)>Stammdaten!$AE$28,12,MONTH(F96))),""),"") ->  | N96: =+IF(Stammdaten!$AE$30="1 - Ja",Einnahmen!I96,Einnahmen!L96) -> 0.00 | O96: =+IF(Stammdaten!$AE$30="1 - Ja",K96,0) ->  | U96: 0 | V96: 0 | W96: 0 | X96: 0 | Y96: 0 | AA96: 0 | AB96: 5 | AC96: 0 | AD96: 0
C97: =IF(H97="","",VLOOKUP(H97,Steuerung!$E$11:$G$17,3,FALSE)) ->  | E97: =IF(Stammdaten!$AE$29="2 - Vereinbarte Entgelte",IF(ISNUMBER(D97),IF(YEAR(D97)<Stammdaten!$AE$28,1,IF(YEAR(D97)>Stammdaten!$AE$28,12,MONTH(D97))),""),"") ->  | G97: =IF(Stammdaten!$AE$29="1 - Vereinnahmte Entgelte",IF(ISNUMBER(F97),IF(YEAR(F97)<Stammdaten!$AE$28,1,IF(YEAR(F97)>Stammdaten!$AE$28,12,MONTH(F97))),""),"") ->  | N97: =+IF(Stammdaten!$AE$30="1 - Ja",Einnahmen!I97,Einnahmen!L97) -> 0.00 | O97: =+IF(Stammdaten!$AE$30="1 - Ja",K97,0) ->  | U97: 0 | V97: 0 | W97: 0 | X97: 0 | Y97: 0 | AA97: 0 | AB97: 5 | AC97: 0 | AD97: 0
C98: =IF(H98="","",VLOOKUP(H98,Steuerung!$E$11:$G$17,3,FALSE)) ->  | E98: =IF(Stammdaten!$AE$29="2 - Vereinbarte Entgelte",IF(ISNUMBER(D98),IF(YEAR(D98)<Stammdaten!$AE$28,1,IF(YEAR(D98)>Stammdaten!$AE$28,12,MONTH(D98))),""),"") ->  | G98: =IF(Stammdaten!$AE$29="1 - Vereinnahmte Entgelte",IF(ISNUMBER(F98),IF(YEAR(F98)<Stammdaten!$AE$28,1,IF(YEAR(F98)>Stammdaten!$AE$28,12,MONTH(F98))),""),"") ->  | N98: =+IF(Stammdaten!$AE$30="1 - Ja",Einnahmen!I98,Einnahmen!L98) -> 0.00 | O98: =+IF(Stammdaten!$AE$30="1 - Ja",K98,0) ->  | U98: 0 | V98: 0 | W98: 0 | X98: 0 | Y98: 0 | AA98: 0 | AB98: 5 | AC98: 0 | AD98: 0
C99: =IF(H99="","",VLOOKUP(H99,Steuerung!$E$11:$G$17,3,FALSE)) ->  | E99: =IF(Stammdaten!$AE$29="2 - Vereinbarte Entgelte",IF(ISNUMBER(D99),IF(YEAR(D99)<Stammdaten!$AE$28,1,IF(YEAR(D99)>Stammdaten!$AE$28,12,MONTH(D99))),""),"") ->  | G99: =IF(Stammdaten!$AE$29="1 - Vereinnahmte Entgelte",IF(ISNUMBER(F99),IF(YEAR(F99)<Stammdaten!$AE$28,1,IF(YEAR(F99)>Stammdaten!$AE$28,12,MONTH(F99))),""),"") ->  | N99: =+IF(Stammdaten!$AE$30="1 - Ja",Einnahmen!I99,Einnahmen!L99) -> 0.00 | O99: =+IF(Stammdaten!$AE$30="1 - Ja",K99,0) ->  | U99: 0 | V99: 0 | W99: 0 | X99: 0 | Y99: 0 | AA99: 0 | AB99: 5 | AC99: 0 | AD99: 0
C100: =IF(H100="","",VLOOKUP(H100,Steuerung!$E$11:$G$17,3,FALSE)) ->  | E100: =IF(Stammdaten!$AE$29="2 - Vereinbarte Entgelte",IF(ISNUMBER(D100),IF(YEAR(D100)<Stammdaten!$AE$28,1,IF(YEAR(D100)>Stammdaten!$AE$28,12,MONTH(D100))),""),"") ->  | G100: =IF(Stammdaten!$AE$29="1 - Vereinnahmte Entgelte",IF(ISNUMBER(F100),IF(YEAR(F100)<Stammdaten!$AE$28,1,IF(YEAR(F100)>Stammdaten!$AE$28,12,MONTH(F100))),""),"") ->  | N100: =+IF(Stammdaten!$AE$30="1 - Ja",Einnahmen!I100,Einnahmen!L100) -> 0.00 | O100: =+IF(Stammdaten!$AE$30="1 - Ja",K100,0) ->  | U100: 0 | V100: 0 | W100: 0 | X100: 0 | Y100: 0 | AA100: 0 | AB100: 5 | AC100: 0 | AD100: 0
C101: =IF(H101="","",VLOOKUP(H101,Steuerung!$E$11:$G$17,3,FALSE)) ->  | E101: =IF(Stammdaten!$AE$29="2 - Vereinbarte Entgelte",IF(ISNUMBER(D101),IF(YEAR(D101)<Stammdaten!$AE$28,1,IF(YEAR(D101)>Stammdaten!$AE$28,12,MONTH(D101))),""),"") ->  | G101: =IF(Stammdaten!$AE$29="1 - Vereinnahmte Entgelte",IF(ISNUMBER(F101),IF(YEAR(F101)<Stammdaten!$AE$28,1,IF(YEAR(F101)>Stammdaten!$AE$28,12,MONTH(F101))),""),"") ->  | K101: =+IF(AND(ISNUMBER(I101),ISNUMBER(J101)),ROUND(I101*J101,2),"") ->  | N101: =+IF(Stammdaten!$AE$30="1 - Ja",Einnahmen!I101,Einnahmen!L101) -> 0.00 | O101: =+IF(Stammdaten!$AE$30="1 - Ja",K101,0) ->  | U101: =+IF(B101="",0,1) -> 0 | V101: =+IF(ISNUMBER(D101),1,0) -> 0 | W101: =+IF(H101="",0,1) -> 0 | X101: =+IF(ISNUMBER(L101),1,0) -> 0 | Y101: =+IF(ISNUMBER(F101),1,0) -> 0 | AA101: 0 | AB101: 5 | AC101: 0 | AD101: 0
C102: =IF(H102="","",VLOOKUP(H102,Steuerung!$E$11:$G$17,3,FALSE)) ->  | E102: =IF(Stammdaten!$AE$29="2 - Vereinbarte Entgelte",IF(ISNUMBER(D102),IF(YEAR(D102)<Stammdaten!$AE$28,1,IF(YEAR(D102)>Stammdaten!$AE$28,12,MONTH(D102))),""),"") ->  | G102: =IF(Stammdaten!$AE$29="1 - Vereinnahmte Entgelte",IF(ISNUMBER(F102),IF(YEAR(F102)<Stammdaten!$AE$28,1,IF(YEAR(F102)>Stammdaten!$AE$28,12,MONTH(F102))),""),"") ->  | N102: =+IF(Stammdaten!$AE$30="1 - Ja",Einnahmen!I102,Einnahmen!L102) -> 0.00 | O102: =+IF(Stammdaten!$AE$30="1 - Ja",K102,0) ->  | U102: 0 | V102: 0 | W102: 0 | X102: 0 | Y102: 0 | AA102: 0 | AB102: 5 | AC102: 0 | AD102: 0
C103: =IF(H103="","",VLOOKUP(H103,Steuerung!$E$11:$G$17,3,FALSE)) ->  | E103: =IF(Stammdaten!$AE$29="2 - Vereinbarte Entgelte",IF(ISNUMBER(D103),IF(YEAR(D103)<Stammdaten!$AE$28,1,IF(YEAR(D103)>Stammdaten!$AE$28,12,MONTH(D103))),""),"") ->  | G103: =IF(Stammdaten!$AE$29="1 - Vereinnahmte Entgelte",IF(ISNUMBER(F103),IF(YEAR(F103)<Stammdaten!$AE$28,1,IF(YEAR(F103)>Stammdaten!$AE$28,12,MONTH(F103))),""),"") ->  | N103: =+IF(Stammdaten!$AE$30="1 - Ja",Einnahmen!I103,Einnahmen!L103) -> 0.00 | O103: =+IF(Stammdaten!$AE$30="1 - Ja",K103,0) ->  | U103: 0 | V103: 0 | W103: 0 | X103: 0 | Y103: 0 | AA103: 0 | AB103: 5 | AC103: 0 | AD103: 0
C104: =IF(H104="","",VLOOKUP(H104,Steuerung!$E$11:$G$17,3,FALSE)) ->  | E104: =IF(Stammdaten!$AE$29="2 - Vereinbarte Entgelte",IF(ISNUMBER(D104),IF(YEAR(D104)<Stammdaten!$AE$28,1,IF(YEAR(D104)>Stammdaten!$AE$28,12,MONTH(D104))),""),"") ->  | G104: =IF(Stammdaten!$AE$29="1 - Vereinnahmte Entgelte",IF(ISNUMBER(F104),IF(YEAR(F104)<Stammdaten!$AE$28,1,IF(YEAR(F104)>Stammdaten!$AE$28,12,MONTH(F104))),""),"") ->  | N104: =+IF(Stammdaten!$AE$30="1 - Ja",Einnahmen!I104,Einnahmen!L104) -> 0.00 | O104: =+IF(Stammdaten!$AE$30="1 - Ja",K104,0) ->  | U104: 0 | V104: 0 | W104: 0 | X104: 0 | Y104: 0 | AA104: 0 | AB104: 5 | AC104: 0 | AD104: 0
C105: =IF(H105="","",VLOOKUP(H105,Steuerung!$E$11:$G$17,3,FALSE)) ->  | E105: =IF(Stammdaten!$AE$29="2 - Vereinbarte Entgelte",IF(ISNUMBER(D105),IF(YEAR(D105)<Stammdaten!$AE$28,1,IF(YEAR(D105)>Stammdaten!$AE$28,12,MONTH(D105))),""),"") ->  | G105: =IF(Stammdaten!$AE$29="1 - Vereinnahmte Entgelte",IF(ISNUMBER(F105),IF(YEAR(F105)<Stammdaten!$AE$28,1,IF(YEAR(F105)>Stammdaten!$AE$28,12,MONTH(F105))),""),"") ->  | N105: =+IF(Stammdaten!$AE$30="1 - Ja",Einnahmen!I105,Einnahmen!L105) -> 0.00 | O105: =+IF(Stammdaten!$AE$30="1 - Ja",K105,0) ->  | U105: 0 | V105: 0 | W105: 0 | X105: 0 | Y105: 0 | AA105: 0 | AB105: 5 | AC105: 0 | AD105: 0
C106: =IF(H106="","",VLOOKUP(H106,Steuerung!$E$11:$G$17,3,FALSE)) ->  | E106: =IF(Stammdaten!$AE$29="2 - Vereinbarte Entgelte",IF(ISNUMBER(D106),IF(YEAR(D106)<Stammdaten!$AE$28,1,IF(YEAR(D106)>Stammdaten!$AE$28,12,MONTH(D106))),""),"") ->  | G106: =IF(Stammdaten!$AE$29="1 - Vereinnahmte Entgelte",IF(ISNUMBER(F106),IF(YEAR(F106)<Stammdaten!$AE$28,1,IF(YEAR(F106)>Stammdaten!$AE$28,12,MONTH(F106))),""),"") ->  | N106: =+IF(Stammdaten!$AE$30="1 - Ja",Einnahmen!I106,Einnahmen!L106) -> 0.00 | O106: =+IF(Stammdaten!$AE$30="1 - Ja",K106,0) ->  | U106: 0 | V106: 0 | W106: 0 | X106: 0 | Y106: 0 | AA106: 0 | AB106: 5 | AC106: 0 | AD106: 0
C107: =IF(H107="","",VLOOKUP(H107,Steuerung!$E$11:$G$17,3,FALSE)) ->  | E107: =IF(Stammdaten!$AE$29="2 - Vereinbarte Entgelte",IF(ISNUMBER(D107),IF(YEAR(D107)<Stammdaten!$AE$28,1,IF(YEAR(D107)>Stammdaten!$AE$28,12,MONTH(D107))),""),"") ->  | G107: =IF(Stammdaten!$AE$29="1 - Vereinnahmte Entgelte",IF(ISNUMBER(F107),IF(YEAR(F107)<Stammdaten!$AE$28,1,IF(YEAR(F107)>Stammdaten!$AE$28,12,MONTH(F107))),""),"") ->  | N107: =+IF(Stammdaten!$AE$30="1 - Ja",Einnahmen!I107,Einnahmen!L107) -> 0.00 | O107: =+IF(Stammdaten!$AE$30="1 - Ja",K107,0) ->  | U107: 0 | V107: 0 | W107: 0 | X107: 0 | Y107: 0 | AA107: 0 | AB107: 5 | AC107: 0 | AD107: 0
C108: =IF(H108="","",VLOOKUP(H108,Steuerung!$E$11:$G$17,3,FALSE)) ->  | E108: =IF(Stammdaten!$AE$29="2 - Vereinbarte Entgelte",IF(ISNUMBER(D108),IF(YEAR(D108)<Stammdaten!$AE$28,1,IF(YEAR(D108)>Stammdaten!$AE$28,12,MONTH(D108))),""),"") ->  | G108: =IF(Stammdaten!$AE$29="1 - Vereinnahmte Entgelte",IF(ISNUMBER(F108),IF(YEAR(F108)<Stammdaten!$AE$28,1,IF(YEAR(F108)>Stammdaten!$AE$28,12,MONTH(F108))),""),"") ->  | N108: =+IF(Stammdaten!$AE$30="1 - Ja",Einnahmen!I108,Einnahmen!L108) -> 0.00 | O108: =+IF(Stammdaten!$AE$30="1 - Ja",K108,0) ->  | U108: 0 | V108: 0 | W108: 0 | X108: 0 | Y108: 0 | AA108: 0 | AB108: 5 | AC108: 0 | AD108: 0
C109: =IF(H109="","",VLOOKUP(H109,Steuerung!$E$11:$G$17,3,FALSE)) ->  | E109: =IF(Stammdaten!$AE$29="2 - Vereinbarte Entgelte",IF(ISNUMBER(D109),IF(YEAR(D109)<Stammdaten!$AE$28,1,IF(YEAR(D109)>Stammdaten!$AE$28,12,MONTH(D109))),""),"") ->  | G109: =IF(Stammdaten!$AE$29="1 - Vereinnahmte Entgelte",IF(ISNUMBER(F109),IF(YEAR(F109)<Stammdaten!$AE$28,1,IF(YEAR(F109)>Stammdaten!$AE$28,12,MONTH(F109))),""),"") ->  | N109: =+IF(Stammdaten!$AE$30="1 - Ja",Einnahmen!I109,Einnahmen!L109) -> 0.00 | O109: =+IF(Stammdaten!$AE$30="1 - Ja",K109,0) ->  | U109: 0 | V109: 0 | W109: 0 | X109: 0 | Y109: 0 | AA109: 0 | AB109: 5 | AC109: 0 | AD109: 0
C110: =IF(H110="","",VLOOKUP(H110,Steuerung!$E$11:$G$17,3,FALSE)) ->  | E110: =IF(Stammdaten!$AE$29="2 - Vereinbarte Entgelte",IF(ISNUMBER(D110),IF(YEAR(D110)<Stammdaten!$AE$28,1,IF(YEAR(D110)>Stammdaten!$AE$28,12,MONTH(D110))),""),"") ->  | G110: =IF(Stammdaten!$AE$29="1 - Vereinnahmte Entgelte",IF(ISNUMBER(F110),IF(YEAR(F110)<Stammdaten!$AE$28,1,IF(YEAR(F110)>Stammdaten!$AE$28,12,MONTH(F110))),""),"") ->  | N110: =+IF(Stammdaten!$AE$30="1 - Ja",Einnahmen!I110,Einnahmen!L110) -> 0.00 | O110: =+IF(Stammdaten!$AE$30="1 - Ja",K110,0) ->  | U110: 0 | V110: 0 | W110: 0 | X110: 0 | Y110: 0 | AA110: 0 | AB110: 5 | AC110: 0 | AD110: 0
C111: =IF(H111="","",VLOOKUP(H111,Steuerung!$E$11:$G$17,3,FALSE)) ->  | E111: =IF(Stammdaten!$AE$29="2 - Vereinbarte Entgelte",IF(ISNUMBER(D111),IF(YEAR(D111)<Stammdaten!$AE$28,1,IF(YEAR(D111)>Stammdaten!$AE$28,12,MONTH(D111))),""),"") ->  | G111: =IF(Stammdaten!$AE$29="1 - Vereinnahmte Entgelte",IF(ISNUMBER(F111),IF(YEAR(F111)<Stammdaten!$AE$28,1,IF(YEAR(F111)>Stammdaten!$AE$28,12,MONTH(F111))),""),"") ->  | N111: =+IF(Stammdaten!$AE$30="1 - Ja",Einnahmen!I111,Einnahmen!L111) -> 0.00 | O111: =+IF(Stammdaten!$AE$30="1 - Ja",K111,0) ->  | U111: 0 | V111: 0 | W111: 0 | X111: 0 | Y111: 0 | AA111: 0 | AB111: 5 | AC111: 0 | AD111: 0
C112: =IF(H112="","",VLOOKUP(H112,Steuerung!$E$11:$G$17,3,FALSE)) ->  | E112: =IF(Stammdaten!$AE$29="2 - Vereinbarte Entgelte",IF(ISNUMBER(D112),IF(YEAR(D112)<Stammdaten!$AE$28,1,IF(YEAR(D112)>Stammdaten!$AE$28,12,MONTH(D112))),""),"") ->  | G112: =IF(Stammdaten!$AE$29="1 - Vereinnahmte Entgelte",IF(ISNUMBER(F112),IF(YEAR(F112)<Stammdaten!$AE$28,1,IF(YEAR(F112)>Stammdaten!$AE$28,12,MONTH(F112))),""),"") ->  | N112: =+IF(Stammdaten!$AE$30="1 - Ja",Einnahmen!I112,Einnahmen!L112) -> 0.00 | O112: =+IF(Stammdaten!$AE$30="1 - Ja",K112,0) ->  | U112: 0 | V112: 0 | W112: 0 | X112: 0 | Y112: 0 | AA112: 0 | AB112: 5 | AC112: 0 | AD112: 0
C113: =IF(H113="","",VLOOKUP(H113,Steuerung!$E$11:$G$17,3,FALSE)) ->  | E113: =IF(Stammdaten!$AE$29="2 - Vereinbarte Entgelte",IF(ISNUMBER(D113),IF(YEAR(D113)<Stammdaten!$AE$28,1,IF(YEAR(D113)>Stammdaten!$AE$28,12,MONTH(D113))),""),"") ->  | G113: =IF(Stammdaten!$AE$29="1 - Vereinnahmte Entgelte",IF(ISNUMBER(F113),IF(YEAR(F113)<Stammdaten!$AE$28,1,IF(YEAR(F113)>Stammdaten!$AE$28,12,MONTH(F113))),""),"") ->  | N113: =+IF(Stammdaten!$AE$30="1 - Ja",Einnahmen!I113,Einnahmen!L113) -> 0.00 | O113: =+IF(Stammdaten!$AE$30="1 - Ja",K113,0) ->  | U113: 0 | V113: 0 | W113: 0 | X113: 0 | Y113: 0 | AA113: 0 | AB113: 5 | AC113: 0 | AD113: 0
C114: =IF(H114="","",VLOOKUP(H114,Steuerung!$E$11:$G$17,3,FALSE)) ->  | E114: =IF(Stammdaten!$AE$29="2 - Vereinbarte Entgelte",IF(ISNUMBER(D114),IF(YEAR(D114)<Stammdaten!$AE$28,1,IF(YEAR(D114)>Stammdaten!$AE$28,12,MONTH(D114))),""),"") ->  | G114: =IF(Stammdaten!$AE$29="1 - Vereinnahmte Entgelte",IF(ISNUMBER(F114),IF(YEAR(F114)<Stammdaten!$AE$28,1,IF(YEAR(F114)>Stammdaten!$AE$28,12,MONTH(F114))),""),"") ->  | L114: =+IF(AND(ISNUMBER(I114),ISNUMBER(K114)),I114+K114,"") ->  | N114: =+IF(Stammdaten!$AE$30="1 - Ja",Einnahmen!I114,Einnahmen!L114) -> 0.00 | O114: =+IF(Stammdaten!$AE$30="1 - Ja",K114,0) ->  | Q114: =+IF(AD114=0,"","Eingaben unvollständig") ->  | U114: 0 | V114: 0 | W114: 0 | X114: 0 | Y114: 0 | AA114: 0 | AB114: 5 | AC114: 0 | AD114: 0
C115: =IF(H115="","",VLOOKUP(H115,Steuerung!$E$11:$G$17,3,FALSE)) ->  | E115: =IF(Stammdaten!$AE$29="2 - Vereinbarte Entgelte",IF(ISNUMBER(D115),IF(YEAR(D115)<Stammdaten!$AE$28,1,IF(YEAR(D115)>Stammdaten!$AE$28,12,MONTH(D115))),""),"") ->  | G115: =IF(Stammdaten!$AE$29="1 - Vereinnahmte Entgelte",IF(ISNUMBER(F115),IF(YEAR(F115)<Stammdaten!$AE$28,1,IF(YEAR(F115)>Stammdaten!$AE$28,12,MONTH(F115))),""),"") ->  | N115: =+IF(Stammdaten!$AE$30="1 - Ja",Einnahmen!I115,Einnahmen!L115) -> 0.00 | O115: =+IF(Stammdaten!$AE$30="1 - Ja",K115,0) ->  | U115: 0 | V115: 0 | W115: 0 | X115: 0 | Y115: 0 | AA115: =+SUM(U115:Z115) -> 0 | AB115: 5 | AC115: =+IF(AA115=AB115,1,0) -> 0 | AD115: =+IF(AND(AA115>0,AC115=0),1,0) -> 0
C116: =IF(H116="","",VLOOKUP(H116,Steuerung!$E$11:$G$17,3,FALSE)) ->  | E116: =IF(Stammdaten!$AE$29="2 - Vereinbarte Entgelte",IF(ISNUMBER(D116),IF(YEAR(D116)<Stammdaten!$AE$28,1,IF(YEAR(D116)>Stammdaten!$AE$28,12,MONTH(D116))),""),"") ->  | G116: =IF(Stammdaten!$AE$29="1 - Vereinnahmte Entgelte",IF(ISNUMBER(F116),IF(YEAR(F116)<Stammdaten!$AE$28,1,IF(YEAR(F116)>Stammdaten!$AE$28,12,MONTH(F116))),""),"") ->  | N116: =+IF(Stammdaten!$AE$30="1 - Ja",Einnahmen!I116,Einnahmen!L116) -> 0.00 | O116: =+IF(Stammdaten!$AE$30="1 - Ja",K116,0) ->  | U116: 0 | V116: 0 | W116: 0 | X116: 0 | Y116: 0 | AA116: 0 | AB116: 5 | AC116: 0 | AD116: 0
C117: =IF(H117="","",VLOOKUP(H117,Steuerung!$E$11:$G$17,3,FALSE)) ->  | E117: =IF(Stammdaten!$AE$29="2 - Vereinbarte Entgelte",IF(ISNUMBER(D117),IF(YEAR(D117)<Stammdaten!$AE$28,1,IF(YEAR(D117)>Stammdaten!$AE$28,12,MONTH(D117))),""),"") ->  | G117: =IF(Stammdaten!$AE$29="1 - Vereinnahmte Entgelte",IF(ISNUMBER(F117),IF(YEAR(F117)<Stammdaten!$AE$28,1,IF(YEAR(F117)>Stammdaten!$AE$28,12,MONTH(F117))),""),"") ->  | N117: =+IF(Stammdaten!$AE$30="1 - Ja",Einnahmen!I117,Einnahmen!L117) -> 0.00 | O117: =+IF(Stammdaten!$AE$30="1 - Ja",K117,0) ->  | U117: 0 | V117: 0 | W117: 0 | X117: 0 | Y117: 0 | AA117: 0 | AB117: 5 | AC117: 0 | AD117: 0
C118: =IF(H118="","",VLOOKUP(H118,Steuerung!$E$11:$G$17,3,FALSE)) ->  | E118: =IF(Stammdaten!$AE$29="2 - Vereinbarte Entgelte",IF(ISNUMBER(D118),IF(YEAR(D118)<Stammdaten!$AE$28,1,IF(YEAR(D118)>Stammdaten!$AE$28,12,MONTH(D118))),""),"") ->  | G118: =IF(Stammdaten!$AE$29="1 - Vereinnahmte Entgelte",IF(ISNUMBER(F118),IF(YEAR(F118)<Stammdaten!$AE$28,1,IF(YEAR(F118)>Stammdaten!$AE$28,12,MONTH(F118))),""),"") ->  | N118: =+IF(Stammdaten!$AE$30="1 - Ja",Einnahmen!I118,Einnahmen!L118) -> 0.00 | O118: =+IF(Stammdaten!$AE$30="1 - Ja",K118,0) ->  | U118: 0 | V118: 0 | W118: 0 | X118: 0 | Y118: 0 | AA118: 0 | AB118: 5 | AC118: 0 | AD118: 0
C119: =IF(H119="","",VLOOKUP(H119,Steuerung!$E$11:$G$17,3,FALSE)) ->  | E119: =IF(Stammdaten!$AE$29="2 - Vereinbarte Entgelte",IF(ISNUMBER(D119),IF(YEAR(D119)<Stammdaten!$AE$28,1,IF(YEAR(D119)>Stammdaten!$AE$28,12,MONTH(D119))),""),"") ->  | G119: =IF(Stammdaten!$AE$29="1 - Vereinnahmte Entgelte",IF(ISNUMBER(F119),IF(YEAR(F119)<Stammdaten!$AE$28,1,IF(YEAR(F119)>Stammdaten!$AE$28,12,MONTH(F119))),""),"") ->  | N119: =+IF(Stammdaten!$AE$30="1 - Ja",Einnahmen!I119,Einnahmen!L119) -> 0.00 | O119: =+IF(Stammdaten!$AE$30="1 - Ja",K119,0) ->  | U119: 0 | V119: 0 | W119: 0 | X119: 0 | Y119: 0 | AA119: 0 | AB119: 5 | AC119: 0 | AD119: 0
C120: =IF(H120="","",VLOOKUP(H120,Steuerung!$E$11:$G$17,3,FALSE)) ->  | E120: =IF(Stammdaten!$AE$29="2 - Vereinbarte Entgelte",IF(ISNUMBER(D120),IF(YEAR(D120)<Stammdaten!$AE$28,1,IF(YEAR(D120)>Stammdaten!$AE$28,12,MONTH(D120))),""),"") ->  | G120: =IF(Stammdaten!$AE$29="1 - Vereinnahmte Entgelte",IF(ISNUMBER(F120),IF(YEAR(F120)<Stammdaten!$AE$28,1,IF(YEAR(F120)>Stammdaten!$AE$28,12,MONTH(F120))),""),"") ->  | N120: =+IF(Stammdaten!$AE$30="1 - Ja",Einnahmen!I120,Einnahmen!L120) -> 0.00 | O120: =+IF(Stammdaten!$AE$30="1 - Ja",K120,0) ->  | U120: 0 | V120: 0 | W120: 0 | X120: 0 | Y120: 0 | AA120: 0 | AB120: 5 | AC120: 0 | AD120: 0
C121: =IF(H121="","",VLOOKUP(H121,Steuerung!$E$11:$G$17,3,FALSE)) ->  | E121: =IF(Stammdaten!$AE$29="2 - Vereinbarte Entgelte",IF(ISNUMBER(D121),IF(YEAR(D121)<Stammdaten!$AE$28,1,IF(YEAR(D121)>Stammdaten!$AE$28,12,MONTH(D121))),""),"") ->  | G121: =IF(Stammdaten!$AE$29="1 - Vereinnahmte Entgelte",IF(ISNUMBER(F121),IF(YEAR(F121)<Stammdaten!$AE$28,1,IF(YEAR(F121)>Stammdaten!$AE$28,12,MONTH(F121))),""),"") ->  | N121: =+IF(Stammdaten!$AE$30="1 - Ja",Einnahmen!I121,Einnahmen!L121) -> 0.00 | O121: =+IF(Stammdaten!$AE$30="1 - Ja",K121,0) ->  | U121: 0 | V121: 0 | W121: 0 | X121: 0 | Y121: 0 | AA121: 0 | AB121: 5 | AC121: 0 | AD121: 0
C122: =IF(H122="","",VLOOKUP(H122,Steuerung!$E$11:$G$17,3,FALSE)) ->  | E122: =IF(Stammdaten!$AE$29="2 - Vereinbarte Entgelte",IF(ISNUMBER(D122),IF(YEAR(D122)<Stammdaten!$AE$28,1,IF(YEAR(D122)>Stammdaten!$AE$28,12,MONTH(D122))),""),"") ->  | G122: =IF(Stammdaten!$AE$29="1 - Vereinnahmte Entgelte",IF(ISNUMBER(F122),IF(YEAR(F122)<Stammdaten!$AE$28,1,IF(YEAR(F122)>Stammdaten!$AE$28,12,MONTH(F122))),""),"") ->  | N122: =+IF(Stammdaten!$AE$30="1 - Ja",Einnahmen!I122,Einnahmen!L122) -> 0.00 | O122: =+IF(Stammdaten!$AE$30="1 - Ja",K122,0) ->  | U122: 0 | V122: 0 | W122: 0 | X122: 0 | Y122: 0 | AA122: 0 | AB122: 5 | AC122: 0 | AD122: 0
C123: =IF(H123="","",VLOOKUP(H123,Steuerung!$E$11:$G$17,3,FALSE)) ->  | E123: =IF(Stammdaten!$AE$29="2 - Vereinbarte Entgelte",IF(ISNUMBER(D123),IF(YEAR(D123)<Stammdaten!$AE$28,1,IF(YEAR(D123)>Stammdaten!$AE$28,12,MONTH(D123))),""),"") ->  | G123: =IF(Stammdaten!$AE$29="1 - Vereinnahmte Entgelte",IF(ISNUMBER(F123),IF(YEAR(F123)<Stammdaten!$AE$28,1,IF(YEAR(F123)>Stammdaten!$AE$28,12,MONTH(F123))),""),"") ->  | N123: =+IF(Stammdaten!$AE$30="1 - Ja",Einnahmen!I123,Einnahmen!L123) -> 0.00 | O123: =+IF(Stammdaten!$AE$30="1 - Ja",K123,0) ->  | U123: 0 | V123: 0 | W123: 0 | X123: 0 | Y123: 0 | AA123: 0 | AB123: 5 | AC123: 0 | AD123: 0
C124: =IF(H124="","",VLOOKUP(H124,Steuerung!$E$11:$G$17,3,FALSE)) ->  | E124: =IF(Stammdaten!$AE$29="2 - Vereinbarte Entgelte",IF(ISNUMBER(D124),IF(YEAR(D124)<Stammdaten!$AE$28,1,IF(YEAR(D124)>Stammdaten!$AE$28,12,MONTH(D124))),""),"") ->  | G124: =IF(Stammdaten!$AE$29="1 - Vereinnahmte Entgelte",IF(ISNUMBER(F124),IF(YEAR(F124)<Stammdaten!$AE$28,1,IF(YEAR(F124)>Stammdaten!$AE$28,12,MONTH(F124))),""),"") ->  | N124: =+IF(Stammdaten!$AE$30="1 - Ja",Einnahmen!I124,Einnahmen!L124) -> 0.00 | O124: =+IF(Stammdaten!$AE$30="1 - Ja",K124,0) ->  | U124: 0 | V124: 0 | W124: 0 | X124: 0 | Y124: 0 | AA124: 0 | AB124: 5 | AC124: 0 | AD124: 0
C125: =IF(H125="","",VLOOKUP(H125,Steuerung!$E$11:$G$17,3,FALSE)) ->  | E125: =IF(Stammdaten!$AE$29="2 - Vereinbarte Entgelte",IF(ISNUMBER(D125),IF(YEAR(D125)<Stammdaten!$AE$28,1,IF(YEAR(D125)>Stammdaten!$AE$28,12,MONTH(D125))),""),"") ->  | G125: =IF(Stammdaten!$AE$29="1 - Vereinnahmte Entgelte",IF(ISNUMBER(F125),IF(YEAR(F125)<Stammdaten!$AE$28,1,IF(YEAR(F125)>Stammdaten!$AE$28,12,MONTH(F125))),""),"") ->  | N125: =+IF(Stammdaten!$AE$30="1 - Ja",Einnahmen!I125,Einnahmen!L125) -> 0.00 | O125: =+IF(Stammdaten!$AE$30="1 - Ja",K125,0) ->  | U125: 0 | V125: 0 | W125: 0 | X125: 0 | Y125: 0 | AA125: 0 | AB125: 5 | AC125: 0 | AD125: 0
C126: =IF(H126="","",VLOOKUP(H126,Steuerung!$E$11:$G$17,3,FALSE)) ->  | E126: =IF(Stammdaten!$AE$29="2 - Vereinbarte Entgelte",IF(ISNUMBER(D126),IF(YEAR(D126)<Stammdaten!$AE$28,1,IF(YEAR(D126)>Stammdaten!$AE$28,12,MONTH(D126))),""),"") ->  | G126: =IF(Stammdaten!$AE$29="1 - Vereinnahmte Entgelte",IF(ISNUMBER(F126),IF(YEAR(F126)<Stammdaten!$AE$28,1,IF(YEAR(F126)>Stammdaten!$AE$28,12,MONTH(F126))),""),"") ->  | N126: =+IF(Stammdaten!$AE$30="1 - Ja",Einnahmen!I126,Einnahmen!L126) -> 0.00 | O126: =+IF(Stammdaten!$AE$30="1 - Ja",K126,0) ->  | U126: 0 | V126: 0 | W126: 0 | X126: 0 | Y126: 0 | AA126: 0 | AB126: 5 | AC126: 0 | AD126: 0
C127: =IF(H127="","",VLOOKUP(H127,Steuerung!$E$11:$G$17,3,FALSE)) ->  | E127: =IF(Stammdaten!$AE$29="2 - Vereinbarte Entgelte",IF(ISNUMBER(D127),IF(YEAR(D127)<Stammdaten!$AE$28,1,IF(YEAR(D127)>Stammdaten!$AE$28,12,MONTH(D127))),""),"") ->  | G127: =IF(Stammdaten!$AE$29="1 - Vereinnahmte Entgelte",IF(ISNUMBER(F127),IF(YEAR(F127)<Stammdaten!$AE$28,1,IF(YEAR(F127)>Stammdaten!$AE$28,12,MONTH(F127))),""),"") ->  | N127: =+IF(Stammdaten!$AE$30="1 - Ja",Einnahmen!I127,Einnahmen!L127) -> 0.00 | O127: =+IF(Stammdaten!$AE$30="1 - Ja",K127,0) ->  | U127: 0 | V127: 0 | W127: 0 | X127: 0 | Y127: 0 | AA127: 0 | AB127: 5 | AC127: 0 | AD127: 0
C128: =IF(H128="","",VLOOKUP(H128,Steuerung!$E$11:$G$17,3,FALSE)) ->  | E128: =IF(Stammdaten!$AE$29="2 - Vereinbarte Entgelte",IF(ISNUMBER(D128),IF(YEAR(D128)<Stammdaten!$AE$28,1,IF(YEAR(D128)>Stammdaten!$AE$28,12,MONTH(D128))),""),"") ->  | G128: =IF(Stammdaten!$AE$29="1 - Vereinnahmte Entgelte",IF(ISNUMBER(F128),IF(YEAR(F128)<Stammdaten!$AE$28,1,IF(YEAR(F128)>Stammdaten!$AE$28,12,MONTH(F128))),""),"") ->  | N128: =+IF(Stammdaten!$AE$30="1 - Ja",Einnahmen!I128,Einnahmen!L128) -> 0.00 | O128: =+IF(Stammdaten!$AE$30="1 - Ja",K128,0) ->  | U128: 0 | V128: 0 | W128: 0 | X128: 0 | Y128: 0 | AA128: 0 | AB128: 5 | AC128: 0 | AD128: 0
C129: =IF(H129="","",VLOOKUP(H129,Steuerung!$E$11:$G$17,3,FALSE)) ->  | E129: =IF(Stammdaten!$AE$29="2 - Vereinbarte Entgelte",IF(ISNUMBER(D129),IF(YEAR(D129)<Stammdaten!$AE$28,1,IF(YEAR(D129)>Stammdaten!$AE$28,12,MONTH(D129))),""),"") ->  | G129: =IF(Stammdaten!$AE$29="1 - Vereinnahmte Entgelte",IF(ISNUMBER(F129),IF(YEAR(F129)<Stammdaten!$AE$28,1,IF(YEAR(F129)>Stammdaten!$AE$28,12,MONTH(F129))),""),"") ->  | N129: =+IF(Stammdaten!$AE$30="1 - Ja",Einnahmen!I129,Einnahmen!L129) -> 0.00 | O129: =+IF(Stammdaten!$AE$30="1 - Ja",K129,0) ->  | U129: 0 | V129: 0 | W129: 0 | X129: 0 | Y129: 0 | AA129: 0 | AB129: 5 | AC129: 0 | AD129: 0
C130: =IF(H130="","",VLOOKUP(H130,Steuerung!$E$11:$G$17,3,FALSE)) ->  | E130: =IF(Stammdaten!$AE$29="2 - Vereinbarte Entgelte",IF(ISNUMBER(D130),IF(YEAR(D130)<Stammdaten!$AE$28,1,IF(YEAR(D130)>Stammdaten!$AE$28,12,MONTH(D130))),""),"") ->  | G130: =IF(Stammdaten!$AE$29="1 - Vereinnahmte Entgelte",IF(ISNUMBER(F130),IF(YEAR(F130)<Stammdaten!$AE$28,1,IF(YEAR(F130)>Stammdaten!$AE$28,12,MONTH(F130))),""),"") ->  | N130: =+IF(Stammdaten!$AE$30="1 - Ja",Einnahmen!I130,Einnahmen!L130) -> 0.00 | O130: =+IF(Stammdaten!$AE$30="1 - Ja",K130,0) ->  | U130: 0 | V130: 0 | W130: 0 | X130: 0 | Y130: 0 | AA130: 0 | AB130: 5 | AC130: 0 | AD130: 0
C131: =IF(H131="","",VLOOKUP(H131,Steuerung!$E$11:$G$17,3,FALSE)) ->  | E131: =IF(Stammdaten!$AE$29="2 - Vereinbarte Entgelte",IF(ISNUMBER(D131),IF(YEAR(D131)<Stammdaten!$AE$28,1,IF(YEAR(D131)>Stammdaten!$AE$28,12,MONTH(D131))),""),"") ->  | G131: =IF(Stammdaten!$AE$29="1 - Vereinnahmte Entgelte",IF(ISNUMBER(F131),IF(YEAR(F131)<Stammdaten!$AE$28,1,IF(YEAR(F131)>Stammdaten!$AE$28,12,MONTH(F131))),""),"") ->  | N131: =+IF(Stammdaten!$AE$30="1 - Ja",Einnahmen!I131,Einnahmen!L131) -> 0.00 | O131: =+IF(Stammdaten!$AE$30="1 - Ja",K131,0) ->  | U131: 0 | V131: 0 | W131: 0 | X131: 0 | Y131: 0 | AA131: 0 | AB131: 5 | AC131: 0 | AD131: 0
C132: =IF(H132="","",VLOOKUP(H132,Steuerung!$E$11:$G$17,3,FALSE)) ->  | E132: =IF(Stammdaten!$AE$29="2 - Vereinbarte Entgelte",IF(ISNUMBER(D132),IF(YEAR(D132)<Stammdaten!$AE$28,1,IF(YEAR(D132)>Stammdaten!$AE$28,12,MONTH(D132))),""),"") ->  | G132: =IF(Stammdaten!$AE$29="1 - Vereinnahmte Entgelte",IF(ISNUMBER(F132),IF(YEAR(F132)<Stammdaten!$AE$28,1,IF(YEAR(F132)>Stammdaten!$AE$28,12,MONTH(F132))),""),"") ->  | N132: =+IF(Stammdaten!$AE$30="1 - Ja",Einnahmen!I132,Einnahmen!L132) -> 0.00 | O132: =+IF(Stammdaten!$AE$30="1 - Ja",K132,0) ->  | U132: 0 | V132: 0 | W132: 0 | X132: 0 | Y132: 0 | AA132: 0 | AB132: 5 | AC132: 0 | AD132: 0
C133: =IF(H133="","",VLOOKUP(H133,Steuerung!$E$11:$G$17,3,FALSE)) ->  | E133: =IF(Stammdaten!$AE$29="2 - Vereinbarte Entgelte",IF(ISNUMBER(D133),IF(YEAR(D133)<Stammdaten!$AE$28,1,IF(YEAR(D133)>Stammdaten!$AE$28,12,MONTH(D133))),""),"") ->  | G133: =IF(Stammdaten!$AE$29="1 - Vereinnahmte Entgelte",IF(ISNUMBER(F133),IF(YEAR(F133)<Stammdaten!$AE$28,1,IF(YEAR(F133)>Stammdaten!$AE$28,12,MONTH(F133))),""),"") ->  | K133: =+IF(AND(ISNUMBER(I133),ISNUMBER(J133)),ROUND(I133*J133,2),"") ->  | N133: =+IF(Stammdaten!$AE$30="1 - Ja",Einnahmen!I133,Einnahmen!L133) -> 0.00 | O133: =+IF(Stammdaten!$AE$30="1 - Ja",K133,0) ->  | U133: =+IF(B133="",0,1) -> 0 | V133: =+IF(ISNUMBER(D133),1,0) -> 0 | W133: =+IF(H133="",0,1) -> 0 | X133: =+IF(ISNUMBER(L133),1,0) -> 0 | Y133: =+IF(ISNUMBER(F133),1,0) -> 0 | AA133: 0 | AB133: 5 | AC133: 0 | AD133: 0
C134: =IF(H134="","",VLOOKUP(H134,Steuerung!$E$11:$G$17,3,FALSE)) ->  | E134: =IF(Stammdaten!$AE$29="2 - Vereinbarte Entgelte",IF(ISNUMBER(D134),IF(YEAR(D134)<Stammdaten!$AE$28,1,IF(YEAR(D134)>Stammdaten!$AE$28,12,MONTH(D134))),""),"") ->  | G134: =IF(Stammdaten!$AE$29="1 - Vereinnahmte Entgelte",IF(ISNUMBER(F134),IF(YEAR(F134)<Stammdaten!$AE$28,1,IF(YEAR(F134)>Stammdaten!$AE$28,12,MONTH(F134))),""),"") ->  | N134: =+IF(Stammdaten!$AE$30="1 - Ja",Einnahmen!I134,Einnahmen!L134) -> 0.00 | O134: =+IF(Stammdaten!$AE$30="1 - Ja",K134,0) ->  | U134: 0 | V134: 0 | W134: 0 | X134: 0 | Y134: 0 | AA134: 0 | AB134: =+$AB$3 -> 5 | AC134: 0 | AD134: 0
C135: =IF(H135="","",VLOOKUP(H135,Steuerung!$E$11:$G$17,3,FALSE)) ->  | E135: =IF(Stammdaten!$AE$29="2 - Vereinbarte Entgelte",IF(ISNUMBER(D135),IF(YEAR(D135)<Stammdaten!$AE$28,1,IF(YEAR(D135)>Stammdaten!$AE$28,12,MONTH(D135))),""),"") ->  | G135: =IF(Stammdaten!$AE$29="1 - Vereinnahmte Entgelte",IF(ISNUMBER(F135),IF(YEAR(F135)<Stammdaten!$AE$28,1,IF(YEAR(F135)>Stammdaten!$AE$28,12,MONTH(F135))),""),"") ->  | N135: =+IF(Stammdaten!$AE$30="1 - Ja",Einnahmen!I135,Einnahmen!L135) -> 0.00 | O135: =+IF(Stammdaten!$AE$30="1 - Ja",K135,0) ->  | U135: 0 | V135: 0 | W135: 0 | X135: 0 | Y135: 0 | AA135: 0 | AB135: 5 | AC135: 0 | AD135: 0
C136: =IF(H136="","",VLOOKUP(H136,Steuerung!$E$11:$G$17,3,FALSE)) ->  | E136: =IF(Stammdaten!$AE$29="2 - Vereinbarte Entgelte",IF(ISNUMBER(D136),IF(YEAR(D136)<Stammdaten!$AE$28,1,IF(YEAR(D136)>Stammdaten!$AE$28,12,MONTH(D136))),""),"") ->  | G136: =IF(Stammdaten!$AE$29="1 - Vereinnahmte Entgelte",IF(ISNUMBER(F136),IF(YEAR(F136)<Stammdaten!$AE$28,1,IF(YEAR(F136)>Stammdaten!$AE$28,12,MONTH(F136))),""),"") ->  | N136: =+IF(Stammdaten!$AE$30="1 - Ja",Einnahmen!I136,Einnahmen!L136) -> 0.00 | O136: =+IF(Stammdaten!$AE$30="1 - Ja",K136,0) ->  | U136: 0 | V136: 0 | W136: 0 | X136: 0 | Y136: 0 | AA136: 0 | AB136: 5 | AC136: 0 | AD136: 0
C137: =IF(H137="","",VLOOKUP(H137,Steuerung!$E$11:$G$17,3,FALSE)) ->  | E137: =IF(Stammdaten!$AE$29="2 - Vereinbarte Entgelte",IF(ISNUMBER(D137),IF(YEAR(D137)<Stammdaten!$AE$28,1,IF(YEAR(D137)>Stammdaten!$AE$28,12,MONTH(D137))),""),"") ->  | G137: =IF(Stammdaten!$AE$29="1 - Vereinnahmte Entgelte",IF(ISNUMBER(F137),IF(YEAR(F137)<Stammdaten!$AE$28,1,IF(YEAR(F137)>Stammdaten!$AE$28,12,MONTH(F137))),""),"") ->  | N137: =+IF(Stammdaten!$AE$30="1 - Ja",Einnahmen!I137,Einnahmen!L137) -> 0.00 | O137: =+IF(Stammdaten!$AE$30="1 - Ja",K137,0) ->  | U137: 0 | V137: 0 | W137: 0 | X137: 0 | Y137: 0 | AA137: 0 | AB137: 5 | AC137: 0 | AD137: 0
C138: =IF(H138="","",VLOOKUP(H138,Steuerung!$E$11:$G$17,3,FALSE)) ->  | E138: =IF(Stammdaten!$AE$29="2 - Vereinbarte Entgelte",IF(ISNUMBER(D138),IF(YEAR(D138)<Stammdaten!$AE$28,1,IF(YEAR(D138)>Stammdaten!$AE$28,12,MONTH(D138))),""),"") ->  | G138: =IF(Stammdaten!$AE$29="1 - Vereinnahmte Entgelte",IF(ISNUMBER(F138),IF(YEAR(F138)<Stammdaten!$AE$28,1,IF(YEAR(F138)>Stammdaten!$AE$28,12,MONTH(F138))),""),"") ->  | N138: =+IF(Stammdaten!$AE$30="1 - Ja",Einnahmen!I138,Einnahmen!L138) -> 0.00 | O138: =+IF(Stammdaten!$AE$30="1 - Ja",K138,0) ->  | U138: 0 | V138: 0 | W138: 0 | X138: 0 | Y138: 0 | AA138: 0 | AB138: 5 | AC138: 0 | AD138: 0
C139: =IF(H139="","",VLOOKUP(H139,Steuerung!$E$11:$G$17,3,FALSE)) ->  | E139: =IF(Stammdaten!$AE$29="2 - Vereinbarte Entgelte",IF(ISNUMBER(D139),IF(YEAR(D139)<Stammdaten!$AE$28,1,IF(YEAR(D139)>Stammdaten!$AE$28,12,MONTH(D139))),""),"") ->  | G139: =IF(Stammdaten!$AE$29="1 - Vereinnahmte Entgelte",IF(ISNUMBER(F139),IF(YEAR(F139)<Stammdaten!$AE$28,1,IF(YEAR(F139)>Stammdaten!$AE$28,12,MONTH(F139))),""),"") ->  | N139: =+IF(Stammdaten!$AE$30="1 - Ja",Einnahmen!I139,Einnahmen!L139) -> 0.00 | O139: =+IF(Stammdaten!$AE$30="1 - Ja",K139,0) ->  | U139: 0 | V139: 0 | W139: 0 | X139: 0 | Y139: 0 | AA139: 0 | AB139: 5 | AC139: 0 | AD139: 0
C140: =IF(H140="","",VLOOKUP(H140,Steuerung!$E$11:$G$17,3,FALSE)) ->  | E140: =IF(Stammdaten!$AE$29="2 - Vereinbarte Entgelte",IF(ISNUMBER(D140),IF(YEAR(D140)<Stammdaten!$AE$28,1,IF(YEAR(D140)>Stammdaten!$AE$28,12,MONTH(D140))),""),"") ->  | G140: =IF(Stammdaten!$AE$29="1 - Vereinnahmte Entgelte",IF(ISNUMBER(F140),IF(YEAR(F140)<Stammdaten!$AE$28,1,IF(YEAR(F140)>Stammdaten!$AE$28,12,MONTH(F140))),""),"") ->  | N140: =+IF(Stammdaten!$AE$30="1 - Ja",Einnahmen!I140,Einnahmen!L140) -> 0.00 | O140: =+IF(Stammdaten!$AE$30="1 - Ja",K140,0) ->  | U140: 0 | V140: 0 | W140: 0 | X140: 0 | Y140: 0 | AA140: 0 | AB140: 5 | AC140: 0 | AD140: 0
C141: =IF(H141="","",VLOOKUP(H141,Steuerung!$E$11:$G$17,3,FALSE)) ->  | E141: =IF(Stammdaten!$AE$29="2 - Vereinbarte Entgelte",IF(ISNUMBER(D141),IF(YEAR(D141)<Stammdaten!$AE$28,1,IF(YEAR(D141)>Stammdaten!$AE$28,12,MONTH(D141))),""),"") ->  | G141: =IF(Stammdaten!$AE$29="1 - Vereinnahmte Entgelte",IF(ISNUMBER(F141),IF(YEAR(F141)<Stammdaten!$AE$28,1,IF(YEAR(F141)>Stammdaten!$AE$28,12,MONTH(F141))),""),"") ->  | N141: =+IF(Stammdaten!$AE$30="1 - Ja",Einnahmen!I141,Einnahmen!L141) -> 0.00 | O141: =+IF(Stammdaten!$AE$30="1 - Ja",K141,0) ->  | U141: 0 | V141: 0 | W141: 0 | X141: 0 | Y141: 0 | AA141: 0 | AB141: 5 | AC141: 0 | AD141: 0
C142: =IF(H142="","",VLOOKUP(H142,Steuerung!$E$11:$G$17,3,FALSE)) ->  | E142: =IF(Stammdaten!$AE$29="2 - Vereinbarte Entgelte",IF(ISNUMBER(D142),IF(YEAR(D142)<Stammdaten!$AE$28,1,IF(YEAR(D142)>Stammdaten!$AE$28,12,MONTH(D142))),""),"") ->  | G142: =IF(Stammdaten!$AE$29="1 - Vereinnahmte Entgelte",IF(ISNUMBER(F142),IF(YEAR(F142)<Stammdaten!$AE$28,1,IF(YEAR(F142)>Stammdaten!$AE$28,12,MONTH(F142))),""),"") ->  | N142: =+IF(Stammdaten!$AE$30="1 - Ja",Einnahmen!I142,Einnahmen!L142) -> 0.00 | O142: =+IF(Stammdaten!$AE$30="1 - Ja",K142,0) ->  | U142: 0 | V142: 0 | W142: 0 | X142: 0 | Y142: 0 | AA142: 0 | AB142: 5 | AC142: 0 | AD142: 0
C143: =IF(H143="","",VLOOKUP(H143,Steuerung!$E$11:$G$17,3,FALSE)) ->  | E143: =IF(Stammdaten!$AE$29="2 - Vereinbarte Entgelte",IF(ISNUMBER(D143),IF(YEAR(D143)<Stammdaten!$AE$28,1,IF(YEAR(D143)>Stammdaten!$AE$28,12,MONTH(D143))),""),"") ->  | G143: =IF(Stammdaten!$AE$29="1 - Vereinnahmte Entgelte",IF(ISNUMBER(F143),IF(YEAR(F143)<Stammdaten!$AE$28,1,IF(YEAR(F143)>Stammdaten!$AE$28,12,MONTH(F143))),""),"") ->  | N143: =+IF(Stammdaten!$AE$30="1 - Ja",Einnahmen!I143,Einnahmen!L143) -> 0.00 | O143: =+IF(Stammdaten!$AE$30="1 - Ja",K143,0) ->  | U143: 0 | V143: 0 | W143: 0 | X143: 0 | Y143: 0 | AA143: 0 | AB143: 5 | AC143: 0 | AD143: 0
C144: =IF(H144="","",VLOOKUP(H144,Steuerung!$E$11:$G$17,3,FALSE)) ->  | E144: =IF(Stammdaten!$AE$29="2 - Vereinbarte Entgelte",IF(ISNUMBER(D144),IF(YEAR(D144)<Stammdaten!$AE$28,1,IF(YEAR(D144)>Stammdaten!$AE$28,12,MONTH(D144))),""),"") ->  | G144: =IF(Stammdaten!$AE$29="1 - Vereinnahmte Entgelte",IF(ISNUMBER(F144),IF(YEAR(F144)<Stammdaten!$AE$28,1,IF(YEAR(F144)>Stammdaten!$AE$28,12,MONTH(F144))),""),"") ->  | N144: =+IF(Stammdaten!$AE$30="1 - Ja",Einnahmen!I144,Einnahmen!L144) -> 0.00 | O144: =+IF(Stammdaten!$AE$30="1 - Ja",K144,0) ->  | U144: 0 | V144: 0 | W144: 0 | X144: 0 | Y144: 0 | AA144: 0 | AB144: 5 | AC144: 0 | AD144: 0
C145: =IF(H145="","",VLOOKUP(H145,Steuerung!$E$11:$G$17,3,FALSE)) ->  | E145: =IF(Stammdaten!$AE$29="2 - Vereinbarte Entgelte",IF(ISNUMBER(D145),IF(YEAR(D145)<Stammdaten!$AE$28,1,IF(YEAR(D145)>Stammdaten!$AE$28,12,MONTH(D145))),""),"") ->  | G145: =IF(Stammdaten!$AE$29="1 - Vereinnahmte Entgelte",IF(ISNUMBER(F145),IF(YEAR(F145)<Stammdaten!$AE$28,1,IF(YEAR(F145)>Stammdaten!$AE$28,12,MONTH(F145))),""),"") ->  | N145: =+IF(Stammdaten!$AE$30="1 - Ja",Einnahmen!I145,Einnahmen!L145) -> 0.00 | O145: =+IF(Stammdaten!$AE$30="1 - Ja",K145,0) ->  | U145: 0 | V145: 0 | W145: 0 | X145: 0 | Y145: 0 | AA145: 0 | AB145: 5 | AC145: 0 | AD145: 0
C146: =IF(H146="","",VLOOKUP(H146,Steuerung!$E$11:$G$17,3,FALSE)) ->  | E146: =IF(Stammdaten!$AE$29="2 - Vereinbarte Entgelte",IF(ISNUMBER(D146),IF(YEAR(D146)<Stammdaten!$AE$28,1,IF(YEAR(D146)>Stammdaten!$AE$28,12,MONTH(D146))),""),"") ->  | G146: =IF(Stammdaten!$AE$29="1 - Vereinnahmte Entgelte",IF(ISNUMBER(F146),IF(YEAR(F146)<Stammdaten!$AE$28,1,IF(YEAR(F146)>Stammdaten!$AE$28,12,MONTH(F146))),""),"") ->  | N146: =+IF(Stammdaten!$AE$30="1 - Ja",Einnahmen!I146,Einnahmen!L146) -> 0.00 | O146: =+IF(Stammdaten!$AE$30="1 - Ja",K146,0) ->  | U146: 0 | V146: 0 | W146: 0 | X146: 0 | Y146: 0 | AA146: 0 | AB146: 5 | AC146: 0 | AD146: 0
C147: =IF(H147="","",VLOOKUP(H147,Steuerung!$E$11:$G$17,3,FALSE)) ->  | E147: =IF(Stammdaten!$AE$29="2 - Vereinbarte Entgelte",IF(ISNUMBER(D147),IF(YEAR(D147)<Stammdaten!$AE$28,1,IF(YEAR(D147)>Stammdaten!$AE$28,12,MONTH(D147))),""),"") ->  | G147: =IF(Stammdaten!$AE$29="1 - Vereinnahmte Entgelte",IF(ISNUMBER(F147),IF(YEAR(F147)<Stammdaten!$AE$28,1,IF(YEAR(F147)>Stammdaten!$AE$28,12,MONTH(F147))),""),"") ->  | N147: =+IF(Stammdaten!$AE$30="1 - Ja",Einnahmen!I147,Einnahmen!L147) -> 0.00 | O147: =+IF(Stammdaten!$AE$30="1 - Ja",K147,0) ->  | U147: 0 | V147: 0 | W147: 0 | X147: 0 | Y147: 0 | AA147: 0 | AB147: 5 | AC147: 0 | AD147: 0
C148: =IF(H148="","",VLOOKUP(H148,Steuerung!$E$11:$G$17,3,FALSE)) ->  | E148: =IF(Stammdaten!$AE$29="2 - Vereinbarte Entgelte",IF(ISNUMBER(D148),IF(YEAR(D148)<Stammdaten!$AE$28,1,IF(YEAR(D148)>Stammdaten!$AE$28,12,MONTH(D148))),""),"") ->  | G148: =IF(Stammdaten!$AE$29="1 - Vereinnahmte Entgelte",IF(ISNUMBER(F148),IF(YEAR(F148)<Stammdaten!$AE$28,1,IF(YEAR(F148)>Stammdaten!$AE$28,12,MONTH(F148))),""),"") ->  | N148: =+IF(Stammdaten!$AE$30="1 - Ja",Einnahmen!I148,Einnahmen!L148) -> 0.00 | O148: =+IF(Stammdaten!$AE$30="1 - Ja",K148,0) ->  | U148: 0 | V148: 0 | W148: 0 | X148: 0 | Y148: 0 | AA148: 0 | AB148: 5 | AC148: 0 | AD148: 0
C149: =IF(H149="","",VLOOKUP(H149,Steuerung!$E$11:$G$17,3,FALSE)) ->  | E149: =IF(Stammdaten!$AE$29="2 - Vereinbarte Entgelte",IF(ISNUMBER(D149),IF(YEAR(D149)<Stammdaten!$AE$28,1,IF(YEAR(D149)>Stammdaten!$AE$28,12,MONTH(D149))),""),"") ->  | G149: =IF(Stammdaten!$AE$29="1 - Vereinnahmte Entgelte",IF(ISNUMBER(F149),IF(YEAR(F149)<Stammdaten!$AE$28,1,IF(YEAR(F149)>Stammdaten!$AE$28,12,MONTH(F149))),""),"") ->  | N149: =+IF(Stammdaten!$AE$30="1 - Ja",Einnahmen!I149,Einnahmen!L149) -> 0.00 | O149: =+IF(Stammdaten!$AE$30="1 - Ja",K149,0) ->  | U149: 0 | V149: 0 | W149: 0 | X149: 0 | Y149: 0 | AA149: 0 | AB149: 5 | AC149: 0 | AD149: 0
C150: =IF(H150="","",VLOOKUP(H150,Steuerung!$E$11:$G$17,3,FALSE)) ->  | E150: =IF(Stammdaten!$AE$29="2 - Vereinbarte Entgelte",IF(ISNUMBER(D150),IF(YEAR(D150)<Stammdaten!$AE$28,1,IF(YEAR(D150)>Stammdaten!$AE$28,12,MONTH(D150))),""),"") ->  | G150: =IF(Stammdaten!$AE$29="1 - Vereinnahmte Entgelte",IF(ISNUMBER(F150),IF(YEAR(F150)<Stammdaten!$AE$28,1,IF(YEAR(F150)>Stammdaten!$AE$28,12,MONTH(F150))),""),"") ->  | N150: =+IF(Stammdaten!$AE$30="1 - Ja",Einnahmen!I150,Einnahmen!L150) -> 0.00 | O150: =+IF(Stammdaten!$AE$30="1 - Ja",K150,0) ->  | U150: 0 | V150: 0 | W150: 0 | X150: 0 | Y150: 0 | AA150: 0 | AB150: 5 | AC150: 0 | AD150: 0
C151: =IF(H151="","",VLOOKUP(H151,Steuerung!$E$11:$G$17,3,FALSE)) ->  | E151: =IF(Stammdaten!$AE$29="2 - Vereinbarte Entgelte",IF(ISNUMBER(D151),IF(YEAR(D151)<Stammdaten!$AE$28,1,IF(YEAR(D151)>Stammdaten!$AE$28,12,MONTH(D151))),""),"") ->  | G151: =IF(Stammdaten!$AE$29="1 - Vereinnahmte Entgelte",IF(ISNUMBER(F151),IF(YEAR(F151)<Stammdaten!$AE$28,1,IF(YEAR(F151)>Stammdaten!$AE$28,12,MONTH(F151))),""),"") ->  | N151: =+IF(Stammdaten!$AE$30="1 - Ja",Einnahmen!I151,Einnahmen!L151) -> 0.00 | O151: =+IF(Stammdaten!$AE$30="1 - Ja",K151,0) ->  | U151: 0 | V151: 0 | W151: 0 | X151: 0 | Y151: 0 | AA151: 0 | AB151: 5 | AC151: 0 | AD151: 0
C152: =IF(H152="","",VLOOKUP(H152,Steuerung!$E$11:$G$17,3,FALSE)) ->  | E152: =IF(Stammdaten!$AE$29="2 - Vereinbarte Entgelte",IF(ISNUMBER(D152),IF(YEAR(D152)<Stammdaten!$AE$28,1,IF(YEAR(D152)>Stammdaten!$AE$28,12,MONTH(D152))),""),"") ->  | G152: =IF(Stammdaten!$AE$29="1 - Vereinnahmte Entgelte",IF(ISNUMBER(F152),IF(YEAR(F152)<Stammdaten!$AE$28,1,IF(YEAR(F152)>Stammdaten!$AE$28,12,MONTH(F152))),""),"") ->  | N152: =+IF(Stammdaten!$AE$30="1 - Ja",Einnahmen!I152,Einnahmen!L152) -> 0.00 | O152: =+IF(Stammdaten!$AE$30="1 - Ja",K152,0) ->  | U152: 0 | V152: 0 | W152: 0 | X152: 0 | Y152: 0 | AA152: 0 | AB152: 5 | AC152: 0 | AD152: 0
C153: =IF(H153="","",VLOOKUP(H153,Steuerung!$E$11:$G$17,3,FALSE)) ->  | E153: =IF(Stammdaten!$AE$29="2 - Vereinbarte Entgelte",IF(ISNUMBER(D153),IF(YEAR(D153)<Stammdaten!$AE$28,1,IF(YEAR(D153)>Stammdaten!$AE$28,12,MONTH(D153))),""),"") ->  | G153: =IF(Stammdaten!$AE$29="1 - Vereinnahmte Entgelte",IF(ISNUMBER(F153),IF(YEAR(F153)<Stammdaten!$AE$28,1,IF(YEAR(F153)>Stammdaten!$AE$28,12,MONTH(F153))),""),"") ->  | N153: =+IF(Stammdaten!$AE$30="1 - Ja",Einnahmen!I153,Einnahmen!L153) -> 0.00 | O153: =+IF(Stammdaten!$AE$30="1 - Ja",K153,0) ->  | U153: 0 | V153: 0 | W153: 0 | X153: 0 | Y153: 0 | AA153: 0 | AB153: 5 | AC153: 0 | AD153: 0
C154: =IF(H154="","",VLOOKUP(H154,Steuerung!$E$11:$G$17,3,FALSE)) ->  | E154: =IF(Stammdaten!$AE$29="2 - Vereinbarte Entgelte",IF(ISNUMBER(D154),IF(YEAR(D154)<Stammdaten!$AE$28,1,IF(YEAR(D154)>Stammdaten!$AE$28,12,MONTH(D154))),""),"") ->  | G154: =IF(Stammdaten!$AE$29="1 - Vereinnahmte Entgelte",IF(ISNUMBER(F154),IF(YEAR(F154)<Stammdaten!$AE$28,1,IF(YEAR(F154)>Stammdaten!$AE$28,12,MONTH(F154))),""),"") ->  | N154: =+IF(Stammdaten!$AE$30="1 - Ja",Einnahmen!I154,Einnahmen!L154) -> 0.00 | O154: =+IF(Stammdaten!$AE$30="1 - Ja",K154,0) ->  | U154: 0 | V154: 0 | W154: 0 | X154: 0 | Y154: 0 | AA154: 0 | AB154: 5 | AC154: 0 | AD154: 0
C155: =IF(H155="","",VLOOKUP(H155,Steuerung!$E$11:$G$17,3,FALSE)) ->  | E155: =IF(Stammdaten!$AE$29="2 - Vereinbarte Entgelte",IF(ISNUMBER(D155),IF(YEAR(D155)<Stammdaten!$AE$28,1,IF(YEAR(D155)>Stammdaten!$AE$28,12,MONTH(D155))),""),"") ->  | G155: =IF(Stammdaten!$AE$29="1 - Vereinnahmte Entgelte",IF(ISNUMBER(F155),IF(YEAR(F155)<Stammdaten!$AE$28,1,IF(YEAR(F155)>Stammdaten!$AE$28,12,MONTH(F155))),""),"") ->  | N155: =+IF(Stammdaten!$AE$30="1 - Ja",Einnahmen!I155,Einnahmen!L155) -> 0.00 | O155: =+IF(Stammdaten!$AE$30="1 - Ja",K155,0) ->  | U155: 0 | V155: 0 | W155: 0 | X155: 0 | Y155: 0 | AA155: 0 | AB155: 5 | AC155: 0 | AD155: 0
C156: =IF(H156="","",VLOOKUP(H156,Steuerung!$E$11:$G$17,3,FALSE)) ->  | E156: =IF(Stammdaten!$AE$29="2 - Vereinbarte Entgelte",IF(ISNUMBER(D156),IF(YEAR(D156)<Stammdaten!$AE$28,1,IF(YEAR(D156)>Stammdaten!$AE$28,12,MONTH(D156))),""),"") ->  | G156: =IF(Stammdaten!$AE$29="1 - Vereinnahmte Entgelte",IF(ISNUMBER(F156),IF(YEAR(F156)<Stammdaten!$AE$28,1,IF(YEAR(F156)>Stammdaten!$AE$28,12,MONTH(F156))),""),"") ->  | N156: =+IF(Stammdaten!$AE$30="1 - Ja",Einnahmen!I156,Einnahmen!L156) -> 0.00 | O156: =+IF(Stammdaten!$AE$30="1 - Ja",K156,0) ->  | U156: 0 | V156: 0 | W156: 0 | X156: 0 | Y156: 0 | AA156: 0 | AB156: 5 | AC156: 0 | AD156: 0
C157: =IF(H157="","",VLOOKUP(H157,Steuerung!$E$11:$G$17,3,FALSE)) ->  | E157: =IF(Stammdaten!$AE$29="2 - Vereinbarte Entgelte",IF(ISNUMBER(D157),IF(YEAR(D157)<Stammdaten!$AE$28,1,IF(YEAR(D157)>Stammdaten!$AE$28,12,MONTH(D157))),""),"") ->  | G157: =IF(Stammdaten!$AE$29="1 - Vereinnahmte Entgelte",IF(ISNUMBER(F157),IF(YEAR(F157)<Stammdaten!$AE$28,1,IF(YEAR(F157)>Stammdaten!$AE$28,12,MONTH(F157))),""),"") ->  | N157: =+IF(Stammdaten!$AE$30="1 - Ja",Einnahmen!I157,Einnahmen!L157) -> 0.00 | O157: =+IF(Stammdaten!$AE$30="1 - Ja",K157,0) ->  | U157: 0 | V157: 0 | W157: 0 | X157: 0 | Y157: 0 | AA157: 0 | AB157: 5 | AC157: 0 | AD157: 0
C158: =IF(H158="","",VLOOKUP(H158,Steuerung!$E$11:$G$17,3,FALSE)) ->  | E158: =IF(Stammdaten!$AE$29="2 - Vereinbarte Entgelte",IF(ISNUMBER(D158),IF(YEAR(D158)<Stammdaten!$AE$28,1,IF(YEAR(D158)>Stammdaten!$AE$28,12,MONTH(D158))),""),"") ->  | G158: =IF(Stammdaten!$AE$29="1 - Vereinnahmte Entgelte",IF(ISNUMBER(F158),IF(YEAR(F158)<Stammdaten!$AE$28,1,IF(YEAR(F158)>Stammdaten!$AE$28,12,MONTH(F158))),""),"") ->  | N158: =+IF(Stammdaten!$AE$30="1 - Ja",Einnahmen!I158,Einnahmen!L158) -> 0.00 | O158: =+IF(Stammdaten!$AE$30="1 - Ja",K158,0) ->  | U158: 0 | V158: 0 | W158: 0 | X158: 0 | Y158: 0 | AA158: 0 | AB158: 5 | AC158: 0 | AD158: 0
C159: =IF(H159="","",VLOOKUP(H159,Steuerung!$E$11:$G$17,3,FALSE)) ->  | E159: =IF(Stammdaten!$AE$29="2 - Vereinbarte Entgelte",IF(ISNUMBER(D159),IF(YEAR(D159)<Stammdaten!$AE$28,1,IF(YEAR(D159)>Stammdaten!$AE$28,12,MONTH(D159))),""),"") ->  | G159: =IF(Stammdaten!$AE$29="1 - Vereinnahmte Entgelte",IF(ISNUMBER(F159),IF(YEAR(F159)<Stammdaten!$AE$28,1,IF(YEAR(F159)>Stammdaten!$AE$28,12,MONTH(F159))),""),"") ->  | N159: =+IF(Stammdaten!$AE$30="1 - Ja",Einnahmen!I159,Einnahmen!L159) -> 0.00 | O159: =+IF(Stammdaten!$AE$30="1 - Ja",K159,0) ->  | U159: 0 | V159: 0 | W159: 0 | X159: 0 | Y159: 0 | AA159: 0 | AB159: 5 | AC159: 0 | AD159: 0
C160: =IF(H160="","",VLOOKUP(H160,Steuerung!$E$11:$G$17,3,FALSE)) ->  | E160: =IF(Stammdaten!$AE$29="2 - Vereinbarte Entgelte",IF(ISNUMBER(D160),IF(YEAR(D160)<Stammdaten!$AE$28,1,IF(YEAR(D160)>Stammdaten!$AE$28,12,MONTH(D160))),""),"") ->  | G160: =IF(Stammdaten!$AE$29="1 - Vereinnahmte Entgelte",IF(ISNUMBER(F160),IF(YEAR(F160)<Stammdaten!$AE$28,1,IF(YEAR(F160)>Stammdaten!$AE$28,12,MONTH(F160))),""),"") ->  | N160: =+IF(Stammdaten!$AE$30="1 - Ja",Einnahmen!I160,Einnahmen!L160) -> 0.00 | O160: =+IF(Stammdaten!$AE$30="1 - Ja",K160,0) ->  | U160: 0 | V160: 0 | W160: 0 | X160: 0 | Y160: 0 | AA160: 0 | AB160: 5 | AC160: 0 | AD160: 0
C161: =IF(H161="","",VLOOKUP(H161,Steuerung!$E$11:$G$17,3,FALSE)) ->  | E161: =IF(Stammdaten!$AE$29="2 - Vereinbarte Entgelte",IF(ISNUMBER(D161),IF(YEAR(D161)<Stammdaten!$AE$28,1,IF(YEAR(D161)>Stammdaten!$AE$28,12,MONTH(D161))),""),"") ->  | G161: =IF(Stammdaten!$AE$29="1 - Vereinnahmte Entgelte",IF(ISNUMBER(F161),IF(YEAR(F161)<Stammdaten!$AE$28,1,IF(YEAR(F161)>Stammdaten!$AE$28,12,MONTH(F161))),""),"") ->  | N161: =+IF(Stammdaten!$AE$30="1 - Ja",Einnahmen!I161,Einnahmen!L161) -> 0.00 | O161: =+IF(Stammdaten!$AE$30="1 - Ja",K161,0) ->  | U161: 0 | V161: 0 | W161: 0 | X161: 0 | Y161: 0 | AA161: 0 | AB161: 5 | AC161: 0 | AD161: 0
C162: =IF(H162="","",VLOOKUP(H162,Steuerung!$E$11:$G$17,3,FALSE)) ->  | E162: =IF(Stammdaten!$AE$29="2 - Vereinbarte Entgelte",IF(ISNUMBER(D162),IF(YEAR(D162)<Stammdaten!$AE$28,1,IF(YEAR(D162)>Stammdaten!$AE$28,12,MONTH(D162))),""),"") ->  | G162: =IF(Stammdaten!$AE$29="1 - Vereinnahmte Entgelte",IF(ISNUMBER(F162),IF(YEAR(F162)<Stammdaten!$AE$28,1,IF(YEAR(F162)>Stammdaten!$AE$28,12,MONTH(F162))),""),"") ->  | N162: =+IF(Stammdaten!$AE$30="1 - Ja",Einnahmen!I162,Einnahmen!L162) -> 0.00 | O162: =+IF(Stammdaten!$AE$30="1 - Ja",K162,0) ->  | U162: 0 | V162: 0 | W162: 0 | X162: 0 | Y162: 0 | AA162: 0 | AB162: 5 | AC162: 0 | AD162: 0
C163: =IF(H163="","",VLOOKUP(H163,Steuerung!$E$11:$G$17,3,FALSE)) ->  | E163: =IF(Stammdaten!$AE$29="2 - Vereinbarte Entgelte",IF(ISNUMBER(D163),IF(YEAR(D163)<Stammdaten!$AE$28,1,IF(YEAR(D163)>Stammdaten!$AE$28,12,MONTH(D163))),""),"") ->  | G163: =IF(Stammdaten!$AE$29="1 - Vereinnahmte Entgelte",IF(ISNUMBER(F163),IF(YEAR(F163)<Stammdaten!$AE$28,1,IF(YEAR(F163)>Stammdaten!$AE$28,12,MONTH(F163))),""),"") ->  | N163: =+IF(Stammdaten!$AE$30="1 - Ja",Einnahmen!I163,Einnahmen!L163) -> 0.00 | O163: =+IF(Stammdaten!$AE$30="1 - Ja",K163,0) ->  | U163: 0 | V163: 0 | W163: 0 | X163: 0 | Y163: 0 | AA163: 0 | AB163: 5 | AC163: 0 | AD163: 0
C164: =IF(H164="","",VLOOKUP(H164,Steuerung!$E$11:$G$17,3,FALSE)) ->  | E164: =IF(Stammdaten!$AE$29="2 - Vereinbarte Entgelte",IF(ISNUMBER(D164),IF(YEAR(D164)<Stammdaten!$AE$28,1,IF(YEAR(D164)>Stammdaten!$AE$28,12,MONTH(D164))),""),"") ->  | G164: =IF(Stammdaten!$AE$29="1 - Vereinnahmte Entgelte",IF(ISNUMBER(F164),IF(YEAR(F164)<Stammdaten!$AE$28,1,IF(YEAR(F164)>Stammdaten!$AE$28,12,MONTH(F164))),""),"") ->  | N164: =+IF(Stammdaten!$AE$30="1 - Ja",Einnahmen!I164,Einnahmen!L164) -> 0.00 | O164: =+IF(Stammdaten!$AE$30="1 - Ja",K164,0) ->  | U164: 0 | V164: 0 | W164: 0 | X164: 0 | Y164: 0 | AA164: 0 | AB164: 5 | AC164: 0 | AD164: 0
C165: =IF(H165="","",VLOOKUP(H165,Steuerung!$E$11:$G$17,3,FALSE)) ->  | E165: =IF(Stammdaten!$AE$29="2 - Vereinbarte Entgelte",IF(ISNUMBER(D165),IF(YEAR(D165)<Stammdaten!$AE$28,1,IF(YEAR(D165)>Stammdaten!$AE$28,12,MONTH(D165))),""),"") ->  | G165: =IF(Stammdaten!$AE$29="1 - Vereinnahmte Entgelte",IF(ISNUMBER(F165),IF(YEAR(F165)<Stammdaten!$AE$28,1,IF(YEAR(F165)>Stammdaten!$AE$28,12,MONTH(F165))),""),"") ->  | K165: =+IF(AND(ISNUMBER(I165),ISNUMBER(J165)),ROUND(I165*J165,2),"") ->  | N165: =+IF(Stammdaten!$AE$30="1 - Ja",Einnahmen!I165,Einnahmen!L165) -> 0.00 | O165: =+IF(Stammdaten!$AE$30="1 - Ja",K165,0) ->  | U165: =+IF(B165="",0,1) -> 0 | V165: =+IF(ISNUMBER(D165),1,0) -> 0 | W165: =+IF(H165="",0,1) -> 0 | X165: =+IF(ISNUMBER(L165),1,0) -> 0 | Y165: =+IF(ISNUMBER(F165),1,0) -> 0 | AA165: 0 | AB165: 5 | AC165: 0 | AD165: 0
C166: =IF(H166="","",VLOOKUP(H166,Steuerung!$E$11:$G$17,3,FALSE)) ->  | E166: =IF(Stammdaten!$AE$29="2 - Vereinbarte Entgelte",IF(ISNUMBER(D166),IF(YEAR(D166)<Stammdaten!$AE$28,1,IF(YEAR(D166)>Stammdaten!$AE$28,12,MONTH(D166))),""),"") ->  | G166: =IF(Stammdaten!$AE$29="1 - Vereinnahmte Entgelte",IF(ISNUMBER(F166),IF(YEAR(F166)<Stammdaten!$AE$28,1,IF(YEAR(F166)>Stammdaten!$AE$28,12,MONTH(F166))),""),"") ->  | N166: =+IF(Stammdaten!$AE$30="1 - Ja",Einnahmen!I166,Einnahmen!L166) -> 0.00 | O166: =+IF(Stammdaten!$AE$30="1 - Ja",K166,0) ->  | U166: 0 | V166: 0 | W166: 0 | X166: 0 | Y166: 0 | AA166: 0 | AB166: 5 | AC166: 0 | AD166: 0
C167: =IF(H167="","",VLOOKUP(H167,Steuerung!$E$11:$G$17,3,FALSE)) ->  | E167: =IF(Stammdaten!$AE$29="2 - Vereinbarte Entgelte",IF(ISNUMBER(D167),IF(YEAR(D167)<Stammdaten!$AE$28,1,IF(YEAR(D167)>Stammdaten!$AE$28,12,MONTH(D167))),""),"") ->  | G167: =IF(Stammdaten!$AE$29="1 - Vereinnahmte Entgelte",IF(ISNUMBER(F167),IF(YEAR(F167)<Stammdaten!$AE$28,1,IF(YEAR(F167)>Stammdaten!$AE$28,12,MONTH(F167))),""),"") ->  | N167: =+IF(Stammdaten!$AE$30="1 - Ja",Einnahmen!I167,Einnahmen!L167) -> 0.00 | O167: =+IF(Stammdaten!$AE$30="1 - Ja",K167,0) ->  | U167: 0 | V167: 0 | W167: 0 | X167: 0 | Y167: 0 | AA167: 0 | AB167: 5 | AC167: 0 | AD167: 0
C168: =IF(H168="","",VLOOKUP(H168,Steuerung!$E$11:$G$17,3,FALSE)) ->  | E168: =IF(Stammdaten!$AE$29="2 - Vereinbarte Entgelte",IF(ISNUMBER(D168),IF(YEAR(D168)<Stammdaten!$AE$28,1,IF(YEAR(D168)>Stammdaten!$AE$28,12,MONTH(D168))),""),"") ->  | G168: =IF(Stammdaten!$AE$29="1 - Vereinnahmte Entgelte",IF(ISNUMBER(F168),IF(YEAR(F168)<Stammdaten!$AE$28,1,IF(YEAR(F168)>Stammdaten!$AE$28,12,MONTH(F168))),""),"") ->  | N168: =+IF(Stammdaten!$AE$30="1 - Ja",Einnahmen!I168,Einnahmen!L168) -> 0.00 | O168: =+IF(Stammdaten!$AE$30="1 - Ja",K168,0) ->  | U168: 0 | V168: 0 | W168: 0 | X168: 0 | Y168: 0 | AA168: 0 | AB168: 5 | AC168: 0 | AD168: 0
C169: =IF(H169="","",VLOOKUP(H169,Steuerung!$E$11:$G$17,3,FALSE)) ->  | E169: =IF(Stammdaten!$AE$29="2 - Vereinbarte Entgelte",IF(ISNUMBER(D169),IF(YEAR(D169)<Stammdaten!$AE$28,1,IF(YEAR(D169)>Stammdaten!$AE$28,12,MONTH(D169))),""),"") ->  | G169: =IF(Stammdaten!$AE$29="1 - Vereinnahmte Entgelte",IF(ISNUMBER(F169),IF(YEAR(F169)<Stammdaten!$AE$28,1,IF(YEAR(F169)>Stammdaten!$AE$28,12,MONTH(F169))),""),"") ->  | N169: =+IF(Stammdaten!$AE$30="1 - Ja",Einnahmen!I169,Einnahmen!L169) -> 0.00 | O169: =+IF(Stammdaten!$AE$30="1 - Ja",K169,0) ->  | U169: 0 | V169: 0 | W169: 0 | X169: 0 | Y169: 0 | AA169: 0 | AB169: 5 | AC169: 0 | AD169: 0
C170: =IF(H170="","",VLOOKUP(H170,Steuerung!$E$11:$G$17,3,FALSE)) ->  | E170: =IF(Stammdaten!$AE$29="2 - Vereinbarte Entgelte",IF(ISNUMBER(D170),IF(YEAR(D170)<Stammdaten!$AE$28,1,IF(YEAR(D170)>Stammdaten!$AE$28,12,MONTH(D170))),""),"") ->  | G170: =IF(Stammdaten!$AE$29="1 - Vereinnahmte Entgelte",IF(ISNUMBER(F170),IF(YEAR(F170)<Stammdaten!$AE$28,1,IF(YEAR(F170)>Stammdaten!$AE$28,12,MONTH(F170))),""),"") ->  | N170: =+IF(Stammdaten!$AE$30="1 - Ja",Einnahmen!I170,Einnahmen!L170) -> 0.00 | O170: =+IF(Stammdaten!$AE$30="1 - Ja",K170,0) ->  | U170: 0 | V170: 0 | W170: 0 | X170: 0 | Y170: 0 | AA170: 0 | AB170: 5 | AC170: 0 | AD170: 0
C171: =IF(H171="","",VLOOKUP(H171,Steuerung!$E$11:$G$17,3,FALSE)) ->  | E171: =IF(Stammdaten!$AE$29="2 - Vereinbarte Entgelte",IF(ISNUMBER(D171),IF(YEAR(D171)<Stammdaten!$AE$28,1,IF(YEAR(D171)>Stammdaten!$AE$28,12,MONTH(D171))),""),"") ->  | G171: =IF(Stammdaten!$AE$29="1 - Vereinnahmte Entgelte",IF(ISNUMBER(F171),IF(YEAR(F171)<Stammdaten!$AE$28,1,IF(YEAR(F171)>Stammdaten!$AE$28,12,MONTH(F171))),""),"") ->  | N171: =+IF(Stammdaten!$AE$30="1 - Ja",Einnahmen!I171,Einnahmen!L171) -> 0.00 | O171: =+IF(Stammdaten!$AE$30="1 - Ja",K171,0) ->  | U171: 0 | V171: 0 | W171: 0 | X171: 0 | Y171: 0 | AA171: 0 | AB171: 5 | AC171: 0 | AD171: 0
C172: =IF(H172="","",VLOOKUP(H172,Steuerung!$E$11:$G$17,3,FALSE)) ->  | E172: =IF(Stammdaten!$AE$29="2 - Vereinbarte Entgelte",IF(ISNUMBER(D172),IF(YEAR(D172)<Stammdaten!$AE$28,1,IF(YEAR(D172)>Stammdaten!$AE$28,12,MONTH(D172))),""),"") ->  | G172: =IF(Stammdaten!$AE$29="1 - Vereinnahmte Entgelte",IF(ISNUMBER(F172),IF(YEAR(F172)<Stammdaten!$AE$28,1,IF(YEAR(F172)>Stammdaten!$AE$28,12,MONTH(F172))),""),"") ->  | N172: =+IF(Stammdaten!$AE$30="1 - Ja",Einnahmen!I172,Einnahmen!L172) -> 0.00 | O172: =+IF(Stammdaten!$AE$30="1 - Ja",K172,0) ->  | U172: 0 | V172: 0 | W172: 0 | X172: 0 | Y172: 0 | AA172: 0 | AB172: 5 | AC172: 0 | AD172: 0
C173: =IF(H173="","",VLOOKUP(H173,Steuerung!$E$11:$G$17,3,FALSE)) ->  | E173: =IF(Stammdaten!$AE$29="2 - Vereinbarte Entgelte",IF(ISNUMBER(D173),IF(YEAR(D173)<Stammdaten!$AE$28,1,IF(YEAR(D173)>Stammdaten!$AE$28,12,MONTH(D173))),""),"") ->  | G173: =IF(Stammdaten!$AE$29="1 - Vereinnahmte Entgelte",IF(ISNUMBER(F173),IF(YEAR(F173)<Stammdaten!$AE$28,1,IF(YEAR(F173)>Stammdaten!$AE$28,12,MONTH(F173))),""),"") ->  | N173: =+IF(Stammdaten!$AE$30="1 - Ja",Einnahmen!I173,Einnahmen!L173) -> 0.00 | O173: =+IF(Stammdaten!$AE$30="1 - Ja",K173,0) ->  | U173: 0 | V173: 0 | W173: 0 | X173: 0 | Y173: 0 | AA173: 0 | AB173: 5 | AC173: 0 | AD173: 0
C174: =IF(H174="","",VLOOKUP(H174,Steuerung!$E$11:$G$17,3,FALSE)) ->  | E174: =IF(Stammdaten!$AE$29="2 - Vereinbarte Entgelte",IF(ISNUMBER(D174),IF(YEAR(D174)<Stammdaten!$AE$28,1,IF(YEAR(D174)>Stammdaten!$AE$28,12,MONTH(D174))),""),"") ->  | G174: =IF(Stammdaten!$AE$29="1 - Vereinnahmte Entgelte",IF(ISNUMBER(F174),IF(YEAR(F174)<Stammdaten!$AE$28,1,IF(YEAR(F174)>Stammdaten!$AE$28,12,MONTH(F174))),""),"") ->  | N174: =+IF(Stammdaten!$AE$30="1 - Ja",Einnahmen!I174,Einnahmen!L174) -> 0.00 | O174: =+IF(Stammdaten!$AE$30="1 - Ja",K174,0) ->  | U174: 0 | V174: 0 | W174: 0 | X174: 0 | Y174: 0 | AA174: 0 | AB174: 5 | AC174: 0 | AD174: 0
C175: =IF(H175="","",VLOOKUP(H175,Steuerung!$E$11:$G$17,3,FALSE)) ->  | E175: =IF(Stammdaten!$AE$29="2 - Vereinbarte Entgelte",IF(ISNUMBER(D175),IF(YEAR(D175)<Stammdaten!$AE$28,1,IF(YEAR(D175)>Stammdaten!$AE$28,12,MONTH(D175))),""),"") ->  | G175: =IF(Stammdaten!$AE$29="1 - Vereinnahmte Entgelte",IF(ISNUMBER(F175),IF(YEAR(F175)<Stammdaten!$AE$28,1,IF(YEAR(F175)>Stammdaten!$AE$28,12,MONTH(F175))),""),"") ->  | N175: =+IF(Stammdaten!$AE$30="1 - Ja",Einnahmen!I175,Einnahmen!L175) -> 0.00 | O175: =+IF(Stammdaten!$AE$30="1 - Ja",K175,0) ->  | U175: 0 | V175: 0 | W175: 0 | X175: 0 | Y175: 0 | AA175: 0 | AB175: 5 | AC175: 0 | AD175: 0
C176: =IF(H176="","",VLOOKUP(H176,Steuerung!$E$11:$G$17,3,FALSE)) ->  | E176: =IF(Stammdaten!$AE$29="2 - Vereinbarte Entgelte",IF(ISNUMBER(D176),IF(YEAR(D176)<Stammdaten!$AE$28,1,IF(YEAR(D176)>Stammdaten!$AE$28,12,MONTH(D176))),""),"") ->  | G176: =IF(Stammdaten!$AE$29="1 - Vereinnahmte Entgelte",IF(ISNUMBER(F176),IF(YEAR(F176)<Stammdaten!$AE$28,1,IF(YEAR(F176)>Stammdaten!$AE$28,12,MONTH(F176))),""),"") ->  | N176: =+IF(Stammdaten!$AE$30="1 - Ja",Einnahmen!I176,Einnahmen!L176) -> 0.00 | O176: =+IF(Stammdaten!$AE$30="1 - Ja",K176,0) ->  | U176: 0 | V176: 0 | W176: 0 | X176: 0 | Y176: 0 | AA176: 0 | AB176: 5 | AC176: 0 | AD176: 0
C177: =IF(H177="","",VLOOKUP(H177,Steuerung!$E$11:$G$17,3,FALSE)) ->  | E177: =IF(Stammdaten!$AE$29="2 - Vereinbarte Entgelte",IF(ISNUMBER(D177),IF(YEAR(D177)<Stammdaten!$AE$28,1,IF(YEAR(D177)>Stammdaten!$AE$28,12,MONTH(D177))),""),"") ->  | G177: =IF(Stammdaten!$AE$29="1 - Vereinnahmte Entgelte",IF(ISNUMBER(F177),IF(YEAR(F177)<Stammdaten!$AE$28,1,IF(YEAR(F177)>Stammdaten!$AE$28,12,MONTH(F177))),""),"") ->  | N177: =+IF(Stammdaten!$AE$30="1 - Ja",Einnahmen!I177,Einnahmen!L177) -> 0.00 | O177: =+IF(Stammdaten!$AE$30="1 - Ja",K177,0) ->  | U177: 0 | V177: 0 | W177: 0 | X177: 0 | Y177: 0 | AA177: 0 | AB177: 5 | AC177: 0 | AD177: 0
C178: =IF(H178="","",VLOOKUP(H178,Steuerung!$E$11:$G$17,3,FALSE)) ->  | E178: =IF(Stammdaten!$AE$29="2 - Vereinbarte Entgelte",IF(ISNUMBER(D178),IF(YEAR(D178)<Stammdaten!$AE$28,1,IF(YEAR(D178)>Stammdaten!$AE$28,12,MONTH(D178))),""),"") ->  | G178: =IF(Stammdaten!$AE$29="1 - Vereinnahmte Entgelte",IF(ISNUMBER(F178),IF(YEAR(F178)<Stammdaten!$AE$28,1,IF(YEAR(F178)>Stammdaten!$AE$28,12,MONTH(F178))),""),"") ->  | L178: =+IF(AND(ISNUMBER(I178),ISNUMBER(K178)),I178+K178,"") ->  | N178: =+IF(Stammdaten!$AE$30="1 - Ja",Einnahmen!I178,Einnahmen!L178) -> 0.00 | O178: =+IF(Stammdaten!$AE$30="1 - Ja",K178,0) ->  | Q178: =+IF(AD178=0,"","Eingaben unvollständig") ->  | U178: 0 | V178: 0 | W178: 0 | X178: 0 | Y178: 0 | AA178: 0 | AB178: 5 | AC178: 0 | AD178: 0
C179: =IF(H179="","",VLOOKUP(H179,Steuerung!$E$11:$G$17,3,FALSE)) ->  | E179: =IF(Stammdaten!$AE$29="2 - Vereinbarte Entgelte",IF(ISNUMBER(D179),IF(YEAR(D179)<Stammdaten!$AE$28,1,IF(YEAR(D179)>Stammdaten!$AE$28,12,MONTH(D179))),""),"") ->  | G179: =IF(Stammdaten!$AE$29="1 - Vereinnahmte Entgelte",IF(ISNUMBER(F179),IF(YEAR(F179)<Stammdaten!$AE$28,1,IF(YEAR(F179)>Stammdaten!$AE$28,12,MONTH(F179))),""),"") ->  | N179: =+IF(Stammdaten!$AE$30="1 - Ja",Einnahmen!I179,Einnahmen!L179) -> 0.00 | O179: =+IF(Stammdaten!$AE$30="1 - Ja",K179,0) ->  | U179: 0 | V179: 0 | W179: 0 | X179: 0 | Y179: 0 | AA179: =+SUM(U179:Z179) -> 0 | AB179: 5 | AC179: =+IF(AA179=AB179,1,0) -> 0 | AD179: =+IF(AND(AA179>0,AC179=0),1,0) -> 0
C180: =IF(H180="","",VLOOKUP(H180,Steuerung!$E$11:$G$17,3,FALSE)) ->  | E180: =IF(Stammdaten!$AE$29="2 - Vereinbarte Entgelte",IF(ISNUMBER(D180),IF(YEAR(D180)<Stammdaten!$AE$28,1,IF(YEAR(D180)>Stammdaten!$AE$28,12,MONTH(D180))),""),"") ->  | G180: =IF(Stammdaten!$AE$29="1 - Vereinnahmte Entgelte",IF(ISNUMBER(F180),IF(YEAR(F180)<Stammdaten!$AE$28,1,IF(YEAR(F180)>Stammdaten!$AE$28,12,MONTH(F180))),""),"") ->  | N180: =+IF(Stammdaten!$AE$30="1 - Ja",Einnahmen!I180,Einnahmen!L180) -> 0.00 | O180: =+IF(Stammdaten!$AE$30="1 - Ja",K180,0) ->  | U180: 0 | V180: 0 | W180: 0 | X180: 0 | Y180: 0 | AA180: 0 | AB180: 5 | AC180: 0 | AD180: 0
C181: =IF(H181="","",VLOOKUP(H181,Steuerung!$E$11:$G$17,3,FALSE)) ->  | E181: =IF(Stammdaten!$AE$29="2 - Vereinbarte Entgelte",IF(ISNUMBER(D181),IF(YEAR(D181)<Stammdaten!$AE$28,1,IF(YEAR(D181)>Stammdaten!$AE$28,12,MONTH(D181))),""),"") ->  | G181: =IF(Stammdaten!$AE$29="1 - Vereinnahmte Entgelte",IF(ISNUMBER(F181),IF(YEAR(F181)<Stammdaten!$AE$28,1,IF(YEAR(F181)>Stammdaten!$AE$28,12,MONTH(F181))),""),"") ->  | N181: =+IF(Stammdaten!$AE$30="1 - Ja",Einnahmen!I181,Einnahmen!L181) -> 0.00 | O181: =+IF(Stammdaten!$AE$30="1 - Ja",K181,0) ->  | U181: 0 | V181: 0 | W181: 0 | X181: 0 | Y181: 0 | AA181: 0 | AB181: 5 | AC181: 0 | AD181: 0
C182: =IF(H182="","",VLOOKUP(H182,Steuerung!$E$11:$G$17,3,FALSE)) ->  | E182: =IF(Stammdaten!$AE$29="2 - Vereinbarte Entgelte",IF(ISNUMBER(D182),IF(YEAR(D182)<Stammdaten!$AE$28,1,IF(YEAR(D182)>Stammdaten!$AE$28,12,MONTH(D182))),""),"") ->  | G182: =IF(Stammdaten!$AE$29="1 - Vereinnahmte Entgelte",IF(ISNUMBER(F182),IF(YEAR(F182)<Stammdaten!$AE$28,1,IF(YEAR(F182)>Stammdaten!$AE$28,12,MONTH(F182))),""),"") ->  | N182: =+IF(Stammdaten!$AE$30="1 - Ja",Einnahmen!I182,Einnahmen!L182) -> 0.00 | O182: =+IF(Stammdaten!$AE$30="1 - Ja",K182,0) ->  | U182: 0 | V182: 0 | W182: 0 | X182: 0 | Y182: 0 | AA182: 0 | AB182: 5 | AC182: 0 | AD182: 0
C183: =IF(H183="","",VLOOKUP(H183,Steuerung!$E$11:$G$17,3,FALSE)) ->  | E183: =IF(Stammdaten!$AE$29="2 - Vereinbarte Entgelte",IF(ISNUMBER(D183),IF(YEAR(D183)<Stammdaten!$AE$28,1,IF(YEAR(D183)>Stammdaten!$AE$28,12,MONTH(D183))),""),"") ->  | G183: =IF(Stammdaten!$AE$29="1 - Vereinnahmte Entgelte",IF(ISNUMBER(F183),IF(YEAR(F183)<Stammdaten!$AE$28,1,IF(YEAR(F183)>Stammdaten!$AE$28,12,MONTH(F183))),""),"") ->  | N183: =+IF(Stammdaten!$AE$30="1 - Ja",Einnahmen!I183,Einnahmen!L183) -> 0.00 | O183: =+IF(Stammdaten!$AE$30="1 - Ja",K183,0) ->  | U183: 0 | V183: 0 | W183: 0 | X183: 0 | Y183: 0 | AA183: 0 | AB183: 5 | AC183: 0 | AD183: 0
C184: =IF(H184="","",VLOOKUP(H184,Steuerung!$E$11:$G$17,3,FALSE)) ->  | E184: =IF(Stammdaten!$AE$29="2 - Vereinbarte Entgelte",IF(ISNUMBER(D184),IF(YEAR(D184)<Stammdaten!$AE$28,1,IF(YEAR(D184)>Stammdaten!$AE$28,12,MONTH(D184))),""),"") ->  | G184: =IF(Stammdaten!$AE$29="1 - Vereinnahmte Entgelte",IF(ISNUMBER(F184),IF(YEAR(F184)<Stammdaten!$AE$28,1,IF(YEAR(F184)>Stammdaten!$AE$28,12,MONTH(F184))),""),"") ->  | N184: =+IF(Stammdaten!$AE$30="1 - Ja",Einnahmen!I184,Einnahmen!L184) -> 0.00 | O184: =+IF(Stammdaten!$AE$30="1 - Ja",K184,0) ->  | U184: 0 | V184: 0 | W184: 0 | X184: 0 | Y184: 0 | AA184: 0 | AB184: 5 | AC184: 0 | AD184: 0
C185: =IF(H185="","",VLOOKUP(H185,Steuerung!$E$11:$G$17,3,FALSE)) ->  | E185: =IF(Stammdaten!$AE$29="2 - Vereinbarte Entgelte",IF(ISNUMBER(D185),IF(YEAR(D185)<Stammdaten!$AE$28,1,IF(YEAR(D185)>Stammdaten!$AE$28,12,MONTH(D185))),""),"") ->  | G185: =IF(Stammdaten!$AE$29="1 - Vereinnahmte Entgelte",IF(ISNUMBER(F185),IF(YEAR(F185)<Stammdaten!$AE$28,1,IF(YEAR(F185)>Stammdaten!$AE$28,12,MONTH(F185))),""),"") ->  | N185: =+IF(Stammdaten!$AE$30="1 - Ja",Einnahmen!I185,Einnahmen!L185) -> 0.00 | O185: =+IF(Stammdaten!$AE$30="1 - Ja",K185,0) ->  | U185: 0 | V185: 0 | W185: 0 | X185: 0 | Y185: 0 | AA185: 0 | AB185: 5 | AC185: 0 | AD185: 0
C186: =IF(H186="","",VLOOKUP(H186,Steuerung!$E$11:$G$17,3,FALSE)) ->  | E186: =IF(Stammdaten!$AE$29="2 - Vereinbarte Entgelte",IF(ISNUMBER(D186),IF(YEAR(D186)<Stammdaten!$AE$28,1,IF(YEAR(D186)>Stammdaten!$AE$28,12,MONTH(D186))),""),"") ->  | G186: =IF(Stammdaten!$AE$29="1 - Vereinnahmte Entgelte",IF(ISNUMBER(F186),IF(YEAR(F186)<Stammdaten!$AE$28,1,IF(YEAR(F186)>Stammdaten!$AE$28,12,MONTH(F186))),""),"") ->  | N186: =+IF(Stammdaten!$AE$30="1 - Ja",Einnahmen!I186,Einnahmen!L186) -> 0.00 | O186: =+IF(Stammdaten!$AE$30="1 - Ja",K186,0) ->  | U186: 0 | V186: 0 | W186: 0 | X186: 0 | Y186: 0 | AA186: 0 | AB186: 5 | AC186: 0 | AD186: 0
C187: =IF(H187="","",VLOOKUP(H187,Steuerung!$E$11:$G$17,3,FALSE)) ->  | E187: =IF(Stammdaten!$AE$29="2 - Vereinbarte Entgelte",IF(ISNUMBER(D187),IF(YEAR(D187)<Stammdaten!$AE$28,1,IF(YEAR(D187)>Stammdaten!$AE$28,12,MONTH(D187))),""),"") ->  | G187: =IF(Stammdaten!$AE$29="1 - Vereinnahmte Entgelte",IF(ISNUMBER(F187),IF(YEAR(F187)<Stammdaten!$AE$28,1,IF(YEAR(F187)>Stammdaten!$AE$28,12,MONTH(F187))),""),"") ->  | N187: =+IF(Stammdaten!$AE$30="1 - Ja",Einnahmen!I187,Einnahmen!L187) -> 0.00 | O187: =+IF(Stammdaten!$AE$30="1 - Ja",K187,0) ->  | U187: 0 | V187: 0 | W187: 0 | X187: 0 | Y187: 0 | AA187: 0 | AB187: 5 | AC187: 0 | AD187: 0
C188: =IF(H188="","",VLOOKUP(H188,Steuerung!$E$11:$G$17,3,FALSE)) ->  | E188: =IF(Stammdaten!$AE$29="2 - Vereinbarte Entgelte",IF(ISNUMBER(D188),IF(YEAR(D188)<Stammdaten!$AE$28,1,IF(YEAR(D188)>Stammdaten!$AE$28,12,MONTH(D188))),""),"") ->  | G188: =IF(Stammdaten!$AE$29="1 - Vereinnahmte Entgelte",IF(ISNUMBER(F188),IF(YEAR(F188)<Stammdaten!$AE$28,1,IF(YEAR(F188)>Stammdaten!$AE$28,12,MONTH(F188))),""),"") ->  | N188: =+IF(Stammdaten!$AE$30="1 - Ja",Einnahmen!I188,Einnahmen!L188) -> 0.00 | O188: =+IF(Stammdaten!$AE$30="1 - Ja",K188,0) ->  | U188: 0 | V188: 0 | W188: 0 | X188: 0 | Y188: 0 | AA188: 0 | AB188: 5 | AC188: 0 | AD188: 0
C189: =IF(H189="","",VLOOKUP(H189,Steuerung!$E$11:$G$17,3,FALSE)) ->  | E189: =IF(Stammdaten!$AE$29="2 - Vereinbarte Entgelte",IF(ISNUMBER(D189),IF(YEAR(D189)<Stammdaten!$AE$28,1,IF(YEAR(D189)>Stammdaten!$AE$28,12,MONTH(D189))),""),"") ->  | G189: =IF(Stammdaten!$AE$29="1 - Vereinnahmte Entgelte",IF(ISNUMBER(F189),IF(YEAR(F189)<Stammdaten!$AE$28,1,IF(YEAR(F189)>Stammdaten!$AE$28,12,MONTH(F189))),""),"") ->  | N189: =+IF(Stammdaten!$AE$30="1 - Ja",Einnahmen!I189,Einnahmen!L189) -> 0.00 | O189: =+IF(Stammdaten!$AE$30="1 - Ja",K189,0) ->  | U189: 0 | V189: 0 | W189: 0 | X189: 0 | Y189: 0 | AA189: 0 | AB189: 5 | AC189: 0 | AD189: 0
C190: =IF(H190="","",VLOOKUP(H190,Steuerung!$E$11:$G$17,3,FALSE)) ->  | E190: =IF(Stammdaten!$AE$29="2 - Vereinbarte Entgelte",IF(ISNUMBER(D190),IF(YEAR(D190)<Stammdaten!$AE$28,1,IF(YEAR(D190)>Stammdaten!$AE$28,12,MONTH(D190))),""),"") ->  | G190: =IF(Stammdaten!$AE$29="1 - Vereinnahmte Entgelte",IF(ISNUMBER(F190),IF(YEAR(F190)<Stammdaten!$AE$28,1,IF(YEAR(F190)>Stammdaten!$AE$28,12,MONTH(F190))),""),"") ->  | N190: =+IF(Stammdaten!$AE$30="1 - Ja",Einnahmen!I190,Einnahmen!L190) -> 0.00 | O190: =+IF(Stammdaten!$AE$30="1 - Ja",K190,0) ->  | U190: 0 | V190: 0 | W190: 0 | X190: 0 | Y190: 0 | AA190: 0 | AB190: 5 | AC190: 0 | AD190: 0
C191: =IF(H191="","",VLOOKUP(H191,Steuerung!$E$11:$G$17,3,FALSE)) ->  | E191: =IF(Stammdaten!$AE$29="2 - Vereinbarte Entgelte",IF(ISNUMBER(D191),IF(YEAR(D191)<Stammdaten!$AE$28,1,IF(YEAR(D191)>Stammdaten!$AE$28,12,MONTH(D191))),""),"") ->  | G191: =IF(Stammdaten!$AE$29="1 - Vereinnahmte Entgelte",IF(ISNUMBER(F191),IF(YEAR(F191)<Stammdaten!$AE$28,1,IF(YEAR(F191)>Stammdaten!$AE$28,12,MONTH(F191))),""),"") ->  | N191: =+IF(Stammdaten!$AE$30="1 - Ja",Einnahmen!I191,Einnahmen!L191) -> 0.00 | O191: =+IF(Stammdaten!$AE$30="1 - Ja",K191,0) ->  | U191: 0 | V191: 0 | W191: 0 | X191: 0 | Y191: 0 | AA191: 0 | AB191: 5 | AC191: 0 | AD191: 0
C192: =IF(H192="","",VLOOKUP(H192,Steuerung!$E$11:$G$17,3,FALSE)) ->  | E192: =IF(Stammdaten!$AE$29="2 - Vereinbarte Entgelte",IF(ISNUMBER(D192),IF(YEAR(D192)<Stammdaten!$AE$28,1,IF(YEAR(D192)>Stammdaten!$AE$28,12,MONTH(D192))),""),"") ->  | G192: =IF(Stammdaten!$AE$29="1 - Vereinnahmte Entgelte",IF(ISNUMBER(F192),IF(YEAR(F192)<Stammdaten!$AE$28,1,IF(YEAR(F192)>Stammdaten!$AE$28,12,MONTH(F192))),""),"") ->  | N192: =+IF(Stammdaten!$AE$30="1 - Ja",Einnahmen!I192,Einnahmen!L192) -> 0.00 | O192: =+IF(Stammdaten!$AE$30="1 - Ja",K192,0) ->  | U192: 0 | V192: 0 | W192: 0 | X192: 0 | Y192: 0 | AA192: 0 | AB192: 5 | AC192: 0 | AD192: 0
C193: =IF(H193="","",VLOOKUP(H193,Steuerung!$E$11:$G$17,3,FALSE)) ->  | E193: =IF(Stammdaten!$AE$29="2 - Vereinbarte Entgelte",IF(ISNUMBER(D193),IF(YEAR(D193)<Stammdaten!$AE$28,1,IF(YEAR(D193)>Stammdaten!$AE$28,12,MONTH(D193))),""),"") ->  | G193: =IF(Stammdaten!$AE$29="1 - Vereinnahmte Entgelte",IF(ISNUMBER(F193),IF(YEAR(F193)<Stammdaten!$AE$28,1,IF(YEAR(F193)>Stammdaten!$AE$28,12,MONTH(F193))),""),"") ->  | N193: =+IF(Stammdaten!$AE$30="1 - Ja",Einnahmen!I193,Einnahmen!L193) -> 0.00 | O193: =+IF(Stammdaten!$AE$30="1 - Ja",K193,0) ->  | U193: 0 | V193: 0 | W193: 0 | X193: 0 | Y193: 0 | AA193: 0 | AB193: 5 | AC193: 0 | AD193: 0
C194: =IF(H194="","",VLOOKUP(H194,Steuerung!$E$11:$G$17,3,FALSE)) ->  | E194: =IF(Stammdaten!$AE$29="2 - Vereinbarte Entgelte",IF(ISNUMBER(D194),IF(YEAR(D194)<Stammdaten!$AE$28,1,IF(YEAR(D194)>Stammdaten!$AE$28,12,MONTH(D194))),""),"") ->  | G194: =IF(Stammdaten!$AE$29="1 - Vereinnahmte Entgelte",IF(ISNUMBER(F194),IF(YEAR(F194)<Stammdaten!$AE$28,1,IF(YEAR(F194)>Stammdaten!$AE$28,12,MONTH(F194))),""),"") ->  | N194: =+IF(Stammdaten!$AE$30="1 - Ja",Einnahmen!I194,Einnahmen!L194) -> 0.00 | O194: =+IF(Stammdaten!$AE$30="1 - Ja",K194,0) ->  | U194: 0 | V194: 0 | W194: 0 | X194: 0 | Y194: 0 | AA194: 0 | AB194: 5 | AC194: 0 | AD194: 0
C195: =IF(H195="","",VLOOKUP(H195,Steuerung!$E$11:$G$17,3,FALSE)) ->  | E195: =IF(Stammdaten!$AE$29="2 - Vereinbarte Entgelte",IF(ISNUMBER(D195),IF(YEAR(D195)<Stammdaten!$AE$28,1,IF(YEAR(D195)>Stammdaten!$AE$28,12,MONTH(D195))),""),"") ->  | G195: =IF(Stammdaten!$AE$29="1 - Vereinnahmte Entgelte",IF(ISNUMBER(F195),IF(YEAR(F195)<Stammdaten!$AE$28,1,IF(YEAR(F195)>Stammdaten!$AE$28,12,MONTH(F195))),""),"") ->  | N195: =+IF(Stammdaten!$AE$30="1 - Ja",Einnahmen!I195,Einnahmen!L195) -> 0.00 | O195: =+IF(Stammdaten!$AE$30="1 - Ja",K195,0) ->  | U195: 0 | V195: 0 | W195: 0 | X195: 0 | Y195: 0 | AA195: 0 | AB195: 5 | AC195: 0 | AD195: 0
C196: =IF(H196="","",VLOOKUP(H196,Steuerung!$E$11:$G$17,3,FALSE)) ->  | E196: =IF(Stammdaten!$AE$29="2 - Vereinbarte Entgelte",IF(ISNUMBER(D196),IF(YEAR(D196)<Stammdaten!$AE$28,1,IF(YEAR(D196)>Stammdaten!$AE$28,12,MONTH(D196))),""),"") ->  | G196: =IF(Stammdaten!$AE$29="1 - Vereinnahmte Entgelte",IF(ISNUMBER(F196),IF(YEAR(F196)<Stammdaten!$AE$28,1,IF(YEAR(F196)>Stammdaten!$AE$28,12,MONTH(F196))),""),"") ->  | N196: =+IF(Stammdaten!$AE$30="1 - Ja",Einnahmen!I196,Einnahmen!L196) -> 0.00 | O196: =+IF(Stammdaten!$AE$30="1 - Ja",K196,0) ->  | U196: 0 | V196: 0 | W196: 0 | X196: 0 | Y196: 0 | AA196: 0 | AB196: 5 | AC196: 0 | AD196: 0
C197: =IF(H197="","",VLOOKUP(H197,Steuerung!$E$11:$G$17,3,FALSE)) ->  | E197: =IF(Stammdaten!$AE$29="2 - Vereinbarte Entgelte",IF(ISNUMBER(D197),IF(YEAR(D197)<Stammdaten!$AE$28,1,IF(YEAR(D197)>Stammdaten!$AE$28,12,MONTH(D197))),""),"") ->  | G197: =IF(Stammdaten!$AE$29="1 - Vereinnahmte Entgelte",IF(ISNUMBER(F197),IF(YEAR(F197)<Stammdaten!$AE$28,1,IF(YEAR(F197)>Stammdaten!$AE$28,12,MONTH(F197))),""),"") ->  | K197: =+IF(AND(ISNUMBER(I197),ISNUMBER(J197)),ROUND(I197*J197,2),"") ->  | N197: =+IF(Stammdaten!$AE$30="1 - Ja",Einnahmen!I197,Einnahmen!L197) -> 0.00 | O197: =+IF(Stammdaten!$AE$30="1 - Ja",K197,0) ->  | U197: 0 | V197: 0 | W197: 0 | X197: 0 | Y197: 0 | AA197: 0 | AB197: 5 | AC197: 0 | AD197: 0
C198: =IF(H198="","",VLOOKUP(H198,Steuerung!$E$11:$G$17,3,FALSE)) ->  | E198: =IF(Stammdaten!$AE$29="2 - Vereinbarte Entgelte",IF(ISNUMBER(D198),IF(YEAR(D198)<Stammdaten!$AE$28,1,IF(YEAR(D198)>Stammdaten!$AE$28,12,MONTH(D198))),""),"") ->  | G198: =IF(Stammdaten!$AE$29="1 - Vereinnahmte Entgelte",IF(ISNUMBER(F198),IF(YEAR(F198)<Stammdaten!$AE$28,1,IF(YEAR(F198)>Stammdaten!$AE$28,12,MONTH(F198))),""),"") ->  | K198: =+IF(AND(ISNUMBER(I198),ISNUMBER(J198)),ROUND(I198*J198,2),"") ->  | N198: =+IF(Stammdaten!$AE$30="1 - Ja",Einnahmen!I198,Einnahmen!L198) -> 0.00 | O198: =+IF(Stammdaten!$AE$30="1 - Ja",K198,0) ->  | U198: 0 | V198: 0 | W198: 0 | X198: 0 | Y198: 0 | AA198: 0 | AB198: =+$AB$3 -> 5 | AC198: 0 | AD198: 0
C199: =IF(H199="","",VLOOKUP(H199,Steuerung!$E$11:$G$17,3,FALSE)) ->  | E199: =IF(Stammdaten!$AE$29="2 - Vereinbarte Entgelte",IF(ISNUMBER(D199),IF(YEAR(D199)<Stammdaten!$AE$28,1,IF(YEAR(D199)>Stammdaten!$AE$28,12,MONTH(D199))),""),"") ->  | G199: =IF(Stammdaten!$AE$29="1 - Vereinnahmte Entgelte",IF(ISNUMBER(F199),IF(YEAR(F199)<Stammdaten!$AE$28,1,IF(YEAR(F199)>Stammdaten!$AE$28,12,MONTH(F199))),""),"") ->  | K199: =+IF(AND(ISNUMBER(I199),ISNUMBER(J199)),ROUND(I199*J199,2),"") ->  | N199: =+IF(Stammdaten!$AE$30="1 - Ja",Einnahmen!I199,Einnahmen!L199) -> 0.00 | O199: =+IF(Stammdaten!$AE$30="1 - Ja",K199,0) ->  | U199: 0 | V199: 0 | W199: 0 | X199: 0 | Y199: 0 | AA199: 0 | AB199: =+$AB$3 -> 5 | AC199: 0 | AD199: 0
C200: =IF(H200="","",VLOOKUP(H200,Steuerung!$E$11:$G$17,3,FALSE)) ->  | E200: =IF(Stammdaten!$AE$29="2 - Vereinbarte Entgelte",IF(ISNUMBER(D200),IF(YEAR(D200)<Stammdaten!$AE$28,1,IF(YEAR(D200)>Stammdaten!$AE$28,12,MONTH(D200))),""),"") ->  | G200: =IF(Stammdaten!$AE$29="1 - Vereinnahmte Entgelte",IF(ISNUMBER(F200),IF(YEAR(F200)<Stammdaten!$AE$28,1,IF(YEAR(F200)>Stammdaten!$AE$28,12,MONTH(F200))),""),"") ->  | K200: =+IF(AND(ISNUMBER(I200),ISNUMBER(J200)),ROUND(I200*J200,2),"") ->  | N200: =+IF(Stammdaten!$AE$30="1 - Ja",Einnahmen!I200,Einnahmen!L200) -> 0.00 | O200: =+IF(Stammdaten!$AE$30="1 - Ja",K200,0) ->  | U200: 0 | V200: 0 | W200: 0 | X200: 0 | Y200: 0 | AA200: 0 | AB200: =+$AB$3 -> 5 | AC200: 0 | AD200: 0
B202: © 2025 by VNR Verlag für die Deutsche Wirtschaft AG
B203: Die Vervielfältigung, Verbreitung oder Veräußerung der Daten oder Texte ist unzulässig und
... 1 more rows

Sheet Ausgaben
B3: 1 | C3: =1+B3 -> 2 | D3: 3 | E3: 4 | F3: 5 | G3: 6 | H3: 7 | I3: 8 | J3: 9 | K3: 10 | L3: 11 | M3: 12 | N3: 13 | O3: 14 | AB3: 5
B4: Rng-Nr. | C4: Zeile | D4: Rng.-Datum | E4: Monat | F4: Zahl-Datum | G4: Monat | H4: Einnahme.Art | I4: Netto-Betrag | J4: USt% | K4: USt | L4: Brutto-Betrag | M4: Bemerkung | N4: Übergabe_EÜR | O4: Übergabe_EÜR_UST | Q4: Hinweis | U4: =+B3 -> 1 | V4: =+D3 -> 3 | W4: =+H3 -> 7 | X4: =+L3 -> 11 | Y4: =+F3 -> 5 | AA4: ∑1 | AB4: ∑2 | AC4: OK | AD4: BF
B5: 1 | C5: =IF(H5="","",VLOOKUP(H5,Steuerung!$E$26:$G$49,3,FALSE)) -> 29 | D5: 2023-12-31 | E5: =IF(Stammdaten!$AE$29="2 - Vereinbarte Entgelte",IF(ISNUMBER(D5),IF(YEAR(D5)<Stammdaten!$AE$28,1,IF(YEAR(D5)>Stammdaten!$AE$28,12,MONTH(D5))),""),"") ->  | F5: 2025-01-13 | G5: =IF(Stammdaten!$AE$29="1 - Vereinnahmte Entgelte",IF(ISNUMBER(F5),IF(YEAR(F5)<Stammdaten!$AE$28,1,IF(YEAR(F5)>Stammdaten!$AE$28,12,MONTH(F5))),""),"") -> 12 | H5: Fremdleistung | I5: 750.00 | J5: 19% | K5: =+IF(AND(ISNUMBER(I5),ISNUMBER(J5)),ROUND(I5*J5,2),"") -> 142.50 | L5: =+IF(AND(ISNUMBER(I5),ISNUMBER(K5)),I5+K5,"") -> 892.50 | N5: =+IF(Stammdaten!$AE$30="1 - Ja",I5,L5) -> 750.00 | O5: =+IF(Stammdaten!$AE$30="1 - Ja",K5,0) -> 142.50 | Q5: =+IF(AD5=0,"","Eingaben unvollständig") ->  | U5: =+IF(B5="",0,1) -> 1 | V5: =+IF(ISNUMBER(D5),1,0) -> 1 | W5: =+IF(H5="",0,1) -> 1 | X5: =+IF(ISNUMBER(L5),1,0) -> 1 | Y5: =+IF(ISNUMBER(F5),1,0) -> 1 | AA5: =+SUM(U5:Z5) -> 5 | AB5: =+$AB$3 -> 5 | AC5: =+IF(AA5=AB5,1,0) -> 1 | AD5: =+IF(AND(AA5>0,AC5=0),1,0) -> 0
B6: 2 | C6: =IF(H6="","",VLOOKUP(H6,Steuerung!$E$26:$G$49,3,FALSE)) -> 45 | D6: 2024-02-15 | E6: =IF(Stammdaten!$AE$29="2 - Vereinbarte Entgelte",IF(ISNUMBER(D6),IF(YEAR(D6)<Stammdaten!$AE$28,1,IF(YEAR(D6)>Stammdaten!$AE$28,12,MONTH(D6))),""),"") ->  | F6: 2024-02-28 | G6: =IF(Stammdaten!$AE$29="1 - Vereinnahmte Entgelte",IF(ISNUMBER(F6),IF(YEAR(F6)<Stammdaten!$AE$28,1,IF(YEAR(F6)>Stammdaten!$AE$28,12,MONTH(F6))),""),"") -> 2 | H6: Fortbildung | I6: 250.00 | J6: 19% | K6: 47.50 | L6: =+IF(AND(ISNUMBER(I6),ISNUMBER(K6)),I6+K6,"") -> 297.50 | N6: =+IF(Stammdaten!$AE$30="1 - Ja",I6,L6) -> 250.00 | O6: =+IF(Stammdaten!$AE$30="1 - Ja",K6,0) -> 47.50 | Q6: =+IF(AD6=0,"","Eingaben unvollständig") ->  | U6: 1 | V6: 1 | W6: 1 | X6: 1 | Y6: 1 | AA6: =+SUM(U6:Z6) -> 5 | AB6: =+$AB$3 -> 5 | AC6: =+IF(AA6=AB6,1,0) -> 1 | AD6: =+IF(AND(AA6>0,AC6=0),1,0) -> 0
B7: 3 | C7: =IF(H7="","",VLOOKUP(H7,Steuerung!$E$26:$G$49,3,FALSE)) -> 44 | D7: 2024-03-30 | E7: =IF(Stammdaten!$AE$29="2 - Vereinbarte Entgelte",IF(ISNUMBER(D7),IF(YEAR(D7)<Stammdaten!$AE$28,1,IF(YEAR(D7)>Stammdaten!$AE$28,12,MONTH(D7))),""),"") ->  | F7: 2024-04-15 | G7: =IF(Stammdaten!$AE$29="1 - Vereinnahmte Entgelte",IF(ISNUMBER(F7),IF(YEAR(F7)<Stammdaten!$AE$28,1,IF(YEAR(F7)>Stammdaten!$AE$28,12,MONTH(F7))),""),"") -> 4 | H7: Reisekosten | I7: 100.00 | J7: 19% | K7: 19.00 | L7: 119.00 | N7: =+IF(Stammdaten!$AE$30="1 - Ja",I7,L7) -> 100.00 | O7: =+IF(Stammdaten!$AE$30="1 - Ja",K7,0) -> 19.00 | U7: 1 | V7: 1 | W7: 1 | X7: 1 | Y7: 1 | AA7: 5 | AB7: 5 | AC7: 1 | AD7: 0
B8: 4 | C8: =IF(H8="","",VLOOKUP(H8,Steuerung!$E$26:$G$49,3,FALSE)) -> 43 | D8: 2024-05-30 | E8: =IF(Stammdaten!$AE$29="2 - Vereinbarte Entgelte",IF(ISNUMBER(D8),IF(YEAR(D8)<Stammdaten!$AE$28,1,IF(YEAR(D8)>Stammdaten!$AE$28,12,MONTH(D8))),""),"") ->  | F8: 2024-06-30 | G8: =IF(Stammdaten!$AE$29="1 - Vereinnahmte Entgelte",IF(ISNUMBER(F8),IF(YEAR(F8)<Stammdaten!$AE$28,1,IF(YEAR(F8)>Stammdaten!$AE$28,12,MONTH(F8))),""),"") -> 6 | H8: Kommunikation | I8: 500.00 | J8: 19% | K8: 95.00 | L8: 595.00 | N8: =+IF(Stammdaten!$AE$30="1 - Ja",I8,L8) -> 500.00 | O8: =+IF(Stammdaten!$AE$30="1 - Ja",K8,0) -> 95.00 | U8: 1 | V8: 1 | W8: 1 | X8: 1 | Y8: 1 | AA8: 5 | AB8: 5 | AC8: 1 | AD8: 0
B9: 5 | C9: =IF(H9="","",VLOOKUP(H9,Steuerung!$E$26:$G$49,3,FALSE)) -> 45 | D9: 2024-07-30 | E9: =IF(Stammdaten!$AE$29="2 - Vereinbarte Entgelte",IF(ISNUMBER(D9),IF(YEAR(D9)<Stammdaten!$AE$28,1,IF(YEAR(D9)>Stammdaten!$AE$28,12,MONTH(D9))),""),"") ->  | F9: 2024-08-30 | G9: =IF(Stammdaten!$AE$29="1 - Vereinnahmte Entgelte",IF(ISNUMBER(F9),IF(YEAR(F9)<Stammdaten!$AE$28,1,IF(YEAR(F9)>Stammdaten!$AE$28,12,MONTH(F9))),""),"") -> 8 | H9: Fortbildung | I9: 200.00 | J9: 19% | K9: 38.00 | L9: 238.00 | N9: =+IF(Stammdaten!$AE$30="1 - Ja",I9,L9) -> 200.00 | O9: =+IF(Stammdaten!$AE$30="1 - Ja",K9,0) -> 38.00 | U9: 1 | V9: 1 | W9: 1 | X9: 1 | Y9: 1 | AA9: 5 | AB9: 5 | AC9: 1 | AD9: 0
B10: 6 | C10: =IF(H10="","",VLOOKUP(H10,Steuerung!$E$26:$G$49,3,FALSE)) -> 48 | D10: 2024-09-01 | E10: =IF(Stammdaten!$AE$29="2 - Vereinbarte Entgelte",IF(ISNUMBER(D10),IF(YEAR(D10)<Stammdaten!$AE$28,1,IF(YEAR(D10)>Stammdaten!$AE$28,12,MONTH(D10))),""),"") ->  | F10: 2024-09-30 | G10: =IF(Stammdaten!$AE$29="1 - Vereinnahmte Entgelte",IF(ISNUMBER(F10),IF(YEAR(F10)<Stammdaten!$AE$28,1,IF(YEAR(F10)>Stammdaten!$AE$28,12,MONTH(F10))),""),"") -> 9 | H10: Reparatur | I10: 50.00 | J10: 19% | K10: 9.50 | L10: 59.50 | N10: =+IF(Stammdaten!$AE$30="1 - Ja",I10,L10) -> 50.00 | O10: =+IF(Stammdaten!$AE$30="1 - Ja",K10,0) -> 9.50 | U10: 1 | V10: 1 | W10: 1 | X10: 1 | Y10: 1 | AA10: 5 | AB10: 5 | AC10: 1 | AD10: 0
B11: 7 | C11: =IF(H11="","",VLOOKUP(H11,Steuerung!$E$26:$G$49,3,FALSE)) -> 49 | D11: 2024-10-20 | E11: =IF(Stammdaten!$AE$29="2 - Vereinbarte Entgelte",IF(ISNUMBER(D11),IF(YEAR(D11)<Stammdaten!$AE$28,1,IF(YEAR(D11)>Stammdaten!$AE$28,12,MONTH(D11))),""),"") ->  | F11: 2024-10-30 | G11: =IF(Stammdaten!$AE$29="1 - Vereinnahmte Entgelte",IF(ISNUMBER(F11),IF(YEAR(F11)<Stammdaten!$AE$28,1,IF(YEAR(F11)>Stammdaten!$AE$28,12,MONTH(F11))),""),"") -> 10 | H11: Beiträge, Gebühren | I11: 350.00 | J11: 19% | K11: 66.50 | L11: 416.50 | N11: =+IF(Stammdaten!$AE$30="1 - Ja",I11,L11) -> 350.00 | O11: =+IF(Stammdaten!$AE$30="1 - Ja",K11,0) -> 66.50 | U11: 1 | V11: 1 | W11: 1 | X11: 1 | Y11: 1 | AA11: 5 | AB11: 5 | AC11: 1 | AD11: 0
B12: 8 | C12: =IF(H12="","",VLOOKUP(H12,Steuerung!$E$26:$G$49,3,FALSE)) -> 54 | D12: 2024-11-15 | E12: =IF(Stammdaten!$AE$29="2 - Vereinbarte Entgelte",IF(ISNUMBER(D12),IF(YEAR(D12)<Stammdaten!$AE$28,1,IF(YEAR(D12)>Stammdaten!$AE$28,12,MONTH(D12))),""),"") ->  | F12: 2024-12-01 | G12: =IF(Stammdaten!$AE$29="1 - Vereinnahmte Entgelte",IF(ISNUMBER(F12),IF(YEAR(F12)<Stammdaten!$AE$28,1,IF(YEAR(F12)>Stammdaten!$AE$28,12,MONTH(F12))),""),"") -> 12 | H12: Werbekosten | I12: 500.00 | J12: 19% | K12: 95.00 | L12: 595.00 | N12: =+IF(Stammdaten!$AE$30="1 - Ja",I12,L12) -> 500.00 | O12: =+IF(Stammdaten!$AE$30="1 - Ja",K12,0) -> 95.00 | U12: 1 | V12: 1 | W12: 1 | X12: 1 | Y12: 1 | AA12: 5 | AB12: 5 | AC12: 1 | AD12: 0
B13: 9 | C13: =IF(H13="","",VLOOKUP(H13,Steuerung!$E$26:$G$49,3,FALSE)) -> 50 | D13: 2024-12-15 | E13: =IF(Stammdaten!$AE$29="2 - Vereinbarte Entgelte",IF(ISNUMBER(D13),IF(YEAR(D13)<Stammdaten!$AE$28,1,IF(YEAR(D13)>Stammdaten!$AE$28,12,MONTH(D13))),""),"") ->  | F13: 2025-01-01 | G13: =IF(Stammdaten!$AE$29="1 - Vereinnahmte Entgelte",IF(ISNUMBER(F13),IF(YEAR(F13)<Stammdaten!$AE$28,1,IF(YEAR(F13)>Stammdaten!$AE$28,12,MONTH(F13))),""),"") -> 12 | H13: EDV-Kosten | I13: 250.00 | J13: 19% | K13: 47.50 | L13: 297.50 | N13: =+IF(Stammdaten!$AE$30="1 - Ja",I13,L13) -> 250.00 | O13: =+IF(Stammdaten!$AE$30="1 - Ja",K13,0) -> 47.50 | U13: 1 | V13: 1 | W13: 1 | X13: 1 | Y13: 1 | AA13: 5 | AB13: 5 | AC13: 1 | AD13: 0
B14: 10 | C14: =IF(H14="","",VLOOKUP(H14,Steuerung!$E$26:$G$49,3,FALSE)) -> 29 | D14: 2024-03-15 | E14: =IF(Stammdaten!$AE$29="2 - Vereinbarte Entgelte",IF(ISNUMBER(D14),IF(YEAR(D14)<Stammdaten!$AE$28,1,IF(YEAR(D14)>Stammdaten!$AE$28,12,MONTH(D14))),""),"") ->  | F14: 2024-03-15 | G14: =IF(Stammdaten!$AE$29="1 - Vereinnahmte Entgelte",IF(ISNUMBER(F14),IF(YEAR(F14)<Stammdaten!$AE$28,1,IF(YEAR(F14)>Stammdaten!$AE$28,12,MONTH(F14))),""),"") -> 3 | H14: Fremdleistung | I14: 200.00 | J14: 19% | K14: 38.00 | L14: 238.00 | N14: =+IF(Stammdaten!$AE$30="1 - Ja",I14,L14) -> 200.00 | O14: =+IF(Stammdaten!$AE$30="1 - Ja",K14,0) -> 38.00 | U14: 1 | V14: 1 | W14: 1 | X14: 1 | Y14: 1 | AA14: 5 | AB14: 5 | AC14: 1 | AD14: 0
B15: 11 | C15: =IF(H15="","",VLOOKUP(H15,Steuerung!$E$26:$G$49,3,FALSE)) -> 29 | D15: 2024-12-15 | E15: =IF(Stammdaten!$AE$29="2 - Vereinbarte Entgelte",IF(ISNUMBER(D15),IF(YEAR(D15)<Stammdaten!$AE$28,1,IF(YEAR(D15)>Stammdaten!$AE$28,12,MONTH(D15))),""),"") ->  | F15: 2024-12-15 | G15: =IF(Stammdaten!$AE$29="1 - Vereinnahmte Entgelte",IF(ISNUMBER(F15),IF(YEAR(F15)<Stammdaten!$AE$28,1,IF(YEAR(F15)>Stammdaten!$AE$28,12,MONTH(F15))),""),"") -> 12 | H15: Fremdleistung | I15: 1,000.00 | J15: 19% | K15: 190.00 | L15: 1,190.00 | N15: =+IF(Stammdaten!$AE$30="1 - Ja",I15,L15) -> 1,000.00 | O15: =+IF(Stammdaten!$AE$30="1 - Ja",K15,0) -> 190.00 | U15: 1 | V15: 1 | W15: 1 | X15: 1 | Y15: 1 | AA15: 5 | AB15: 5 | AC15: 1 | AD15: 0
B16: 12 | C16: =IF(H16="","",VLOOKUP(H16,Steuerung!$E$26:$G$49,3,FALSE)) -> 30 | D16: 2024-02-23 | E16: =IF(Stammdaten!$AE$29="2 - Vereinbarte Entgelte",IF(ISNUMBER(D16),IF(YEAR(D16)<Stammdaten!$AE$28,1,IF(YEAR(D16)>Stammdaten!$AE$28,12,MONTH(D16))),""),"") ->  | F16: 2024-02-23 | G16: =IF(Stammdaten!$AE$29="1 - Vereinnahmte Entgelte",IF(ISNUMBER(F16),IF(YEAR(F16)<Stammdaten!$AE$28,1,IF(YEAR(F16)>Stammdaten!$AE$28,12,MONTH(F16))),""),"") -> 2 | H16: Personal | I16: 777.00 | J16: 19% | K16: 147.63 | L16: 924.63 | N16: =+IF(Stammdaten!$AE$30="1 - Ja",I16,L16) -> 777.00 | O16: =+IF(Stammdaten!$AE$30="1 - Ja",K16,0) -> 147.63 | U16: 1 | V16: 1 | W16: 1 | X16: 1 | Y16: 1 | AA16: 5 | AB16: 5 | AC16: 1 | AD16: 0
B17: 13 | C17: =IF(H17="","",VLOOKUP(H17,Steuerung!$E$26:$G$49,3,FALSE)) -> 47 | D17: 2024-06-30 | E17: =IF(Stammdaten!$AE$29="2 - Vereinbarte Entgelte",IF(ISNUMBER(D17),IF(YEAR(D17)<Stammdaten!$AE$28,1,IF(YEAR(D17)>Stammdaten!$AE$28,12,MONTH(D17))),""),"") ->  | F17: 2024-06-30 | G17: =IF(Stammdaten!$AE$29="1 - Vereinnahmte Entgelte",IF(ISNUMBER(F17),IF(YEAR(F17)<Stammdaten!$AE$28,1,IF(YEAR(F17)>Stammdaten!$AE$28,12,MONTH(F17))),""),"") -> 6 | H17: Miete/Leasing | I17: 555.00 | J17: 19% | K17: 105.45 | L17: 660.45 | N17: =+IF(Stammdaten!$AE$30="1 - Ja",I17,L17) -> 555.00 | O17: =+IF(Stammdaten!$AE$30="1 - Ja",K17,0) -> 105.45 | U17: 1 | V17: 1 | W17: 1 | X17: 1 | Y17: 1 | AA17: 5 | AB17: 5 | AC17: 1 | AD17: 0
B18: 14 | C18: =IF(H18="","",VLOOKUP(H18,Steuerung!$E$26:$G$49,3,FALSE)) -> 68 | D18: 2024-09-30 | E18: =IF(Stammdaten!$AE$29="2 - Vereinbarte Entgelte",IF(ISNUMBER(D18),IF(YEAR(D18)<Stammdaten!$AE$28,1,IF(YEAR(D18)>Stammdaten!$AE$28,12,MONTH(D18))),""),"") ->  | F18: 2024-09-30 | G18: =IF(Stammdaten!$AE$29="1 - Vereinnahmte Entgelte",IF(ISNUMBER(F18),IF(YEAR(F18)<Stammdaten!$AE$28,1,IF(YEAR(F18)>Stammdaten!$AE$28,12,MONTH(F18))),""),"") -> 9 | H18: Leasing | I18: 999.00 | J18: 19% | K18: 189.81 | L18: 1,188.81 | N18: =+IF(Stammdaten!$AE$30="1 - Ja",I18,L18) -> 999.00 | O18: =+IF(Stammdaten!$AE$30="1 - Ja",K18,0) -> 189.81 | U18: 1 | V18: 1 | W18: 1 | X18: 1 | Y18: 1 | AA18: 5 | AB18: 5 | AC18: 1 | AD18: 0
B19: 15 | C19: =IF(H19="","",VLOOKUP(H19,Steuerung!$E$26:$G$49,3,FALSE)) -> 69 | D19: 2024-12-01 | E19: =IF(Stammdaten!$AE$29="2 - Vereinbarte Entgelte",IF(ISNUMBER(D19),IF(YEAR(D19)<Stammdaten!$AE$28,1,IF(YEAR(D19)>Stammdaten!$AE$28,12,MONTH(D19))),""),"") ->  | F19: 2024-12-01 | G19: =IF(Stammdaten!$AE$29="1 - Vereinnahmte Entgelte",IF(ISNUMBER(F19),IF(YEAR(F19)<Stammdaten!$AE$28,1,IF(YEAR(F19)>Stammdaten!$AE$28,12,MONTH(F19))),""),"") -> 12 | H19: Kfz - Steuern, Vers. etc. | I19: 125.00 | J19: 0% | K19: 0.00 | L19: 125.00 | N19: =+IF(Stammdaten!$AE$30="1 - Ja",I19,L19) -> 125.00 | O19: =+IF(Stammdaten!$AE$30="1 - Ja",K19,0) -> 0.00 | U19: 1 | V19: 1 | W19: 1 | X19: 1 | Y19: 1 | AA19: 5 | AB19: 5 | AC19: 1 | AD19: 0
B20: 16 | C20: =IF(H20="","",VLOOKUP(H20,Steuerung!$E$26:$G$49,3,FALSE)) -> 70 | D20: 2024-12-01 | E20: =IF(Stammdaten!$AE$29="2 - Vereinbarte Entgelte",IF(ISNUMBER(D20),IF(YEAR(D20)<Stammdaten!$AE$28,1,IF(YEAR(D20)>Stammdaten!$AE$28,12,MONTH(D20))),""),"") ->  | F20: 2024-12-01 | G20: =IF(Stammdaten!$AE$29="1 - Vereinnahmte Entgelte",IF(ISNUMBER(F20),IF(YEAR(F20)<Stammdaten!$AE$28,1,IF(YEAR(F20)>Stammdaten!$AE$28,12,MONTH(F20))),""),"") -> 12 | H20: Kfz - sonst. Kosten | I20: 75.00 | J20: 19% | K20: 14.25 | L20: 89.25 | N20: =+IF(Stammdaten!$AE$30="1 - Ja",I20,L20) -> 75.00 | O20: =+IF(Stammdaten!$AE$30="1 - Ja",K20,0) -> 14.25 | U20: 1 | V20: 1 | W20: 1 | X20: 1 | Y20: 1 | AA20: 5 | AB20: 5 | AC20: 1 | AD20: 0
B21: 17 | C21: =IF(H21="","",VLOOKUP(H21,Steuerung!$E$26:$G$49,3,FALSE)) -> 71 | D21: 2024-12-01 | E21: =IF(Stammdaten!$AE$29="2 - Vereinbarte Entgelte",IF(ISNUMBER(D21),IF(YEAR(D21)<Stammdaten!$AE$28,1,IF(YEAR(D21)>Stammdaten!$AE$28,12,MONTH(D21))),""),"") ->  | F21: 2024-12-01 | G21: =IF(Stammdaten!$AE$29="1 - Vereinnahmte Entgelte",IF(ISNUMBER(F21),IF(YEAR(F21)<Stammdaten!$AE$28,1,IF(YEAR(F21)>Stammdaten!$AE$28,12,MONTH(F21))),""),"") -> 12 | H21: Kfz - Fremdfahrzeuge | I21: 500.00 | J21: 19% | K21: 95.00 | L21: 595.00 | N21: =+IF(Stammdaten!$AE$30="1 - Ja",I21,L21) -> 500.00 | O21: =+IF(Stammdaten!$AE$30="1 - Ja",K21,0) -> 95.00 | U21: 1 | V21: 1 | W21: 1 | X21: 1 | Y21: 1 | AA21: 5 | AB21: 5 | AC21: 1 | AD21: 0
B22: 18 | C22: =IF(H22="","",VLOOKUP(H22,Steuerung!$E$26:$G$49,3,FALSE)) -> 69 | D22: 2024-12-01 | E22: =IF(Stammdaten!$AE$29="2 - Vereinbarte Entgelte",IF(ISNUMBER(D22),IF(YEAR(D22)<Stammdaten!$AE$28,1,IF(YEAR(D22)>Stammdaten!$AE$28,12,MONTH(D22))),""),"") ->  | F22: 2024-12-01 | G22: =IF(Stammdaten!$AE$29="1 - Vereinnahmte Entgelte",IF(ISNUMBER(F22),IF(YEAR(F22)<Stammdaten!$AE$28,1,IF(YEAR(F22)>Stammdaten!$AE$28,12,MONTH(F22))),""),"") -> 12 | H22: Kfz - Steuern, Vers. etc. | I22: 100.00 | J22: 0% | K22: 0.00 | L22: 100.00 | N22: =+IF(Stammdaten!$AE$30="1 - Ja",I22,L22) -> 100.00 | O22: =+IF(Stammdaten!$AE$30="1 - Ja",K22,0) -> 0.00 | U22: 1 | V22: 1 | W22: 1 | X22: 1 | Y22: 1 | AA22: 5 | AB22: 5 | AC22: 1 | AD22: 0
C23: =IF(H23="","",VLOOKUP(H23,Steuerung!$E$26:$G$49,3,FALSE)) ->  | E23: =IF(Stammdaten!$AE$29="2 - Vereinbarte Entgelte",IF(ISNUMBER(D23),IF(YEAR(D23)<Stammdaten!$AE$28,1,IF(YEAR(D23)>Stammdaten!$AE$28,12,MONTH(D23))),""),"") ->  | G23: =IF(Stammdaten!$AE$29="1 - Vereinnahmte Entgelte",IF(ISNUMBER(F23),IF(YEAR(F23)<Stammdaten!$AE$28,1,IF(YEAR(F23)>Stammdaten!$AE$28,12,MONTH(F23))),""),"") ->  | N23: =+IF(Stammdaten!$AE$30="1 - Ja",I23,L23) -> 0.00 | O23: =+IF(Stammdaten!$AE$30="1 - Ja",K23,0) ->  | U23: 0 | V23: 0 | W23: 0 | X23: 0 | Y23: 0 | AA23: 0 | AB23: 5 | AC23: 0 | AD23: 0
C24: =IF(H24="","",VLOOKUP(H24,Steuerung!$E$26:$G$49,3,FALSE)) ->  | E24: =IF(Stammdaten!$AE$29="2 - Vereinbarte Entgelte",IF(ISNUMBER(D24),IF(YEAR(D24)<Stammdaten!$AE$28,1,IF(YEAR(D24)>Stammdaten!$AE$28,12,MONTH(D24))),""),"") ->  | G24: =IF(Stammdaten!$AE$29="1 - Vereinnahmte Entgelte",IF(ISNUMBER(F24),IF(YEAR(F24)<Stammdaten!$AE$28,1,IF(YEAR(F24)>Stammdaten!$AE$28,12,MONTH(F24))),""),"") ->  | N24: =+IF(Stammdaten!$AE$30="1 - Ja",I24,L24) -> 0.00 | O24: =+IF(Stammdaten!$AE$30="1 - Ja",K24,0) ->  | U24: 0 | V24: 0 | W24: 0 | X24: 0 | Y24: 0 | AA24: 0 | AB24: 5 | AC24: 0 | AD24: 0
C25: =IF(H25="","",VLOOKUP(H25,Steuerung!$E$26:$G$49,3,FALSE)) ->  | E25: =IF(Stammdaten!$AE$29="2 - Vereinbarte Entgelte",IF(ISNUMBER(D25),IF(YEAR(D25)<Stammdaten!$AE$28,1,IF(YEAR(D25)>Stammdaten!$AE$28,12,MONTH(D25))),""),"") ->  | G25: =IF(Stammdaten!$AE$29="1 - Vereinnahmte Entgelte",IF(ISNUMBER(F25),IF(YEAR(F25)<Stammdaten!$AE$28,1,IF(YEAR(F25)>Stammdaten!$AE$28,12,MONTH(F25))),""),"") ->  | N25: =+IF(Stammdaten!$AE$30="1 - Ja",I25,L25) -> 0.00 | O25: =+IF(Stammdaten!$AE$30="1 - Ja",K25,0) ->  | U25: 0 | V25: 0 | W25: 0 | X25: 0 | Y25: 0 | AA25: 0 | AB25: 5 | AC25: 0 | AD25: 0
C26: =IF(H26="","",VLOOKUP(H26,Steuerung!$E$26:$G$49,3,FALSE)) ->  | E26: =IF(Stammdaten!$AE$29="2 - Vereinbarte Entgelte",IF(ISNUMBER(D26),IF(YEAR(D26)<Stammdaten!$AE$28,1,IF(YEAR(D26)>Stammdaten!$AE$28,12,MONTH(D26))),""),"") ->  | G26: =IF(Stammdaten!$AE$29="1 - Vereinnahmte Entgelte",IF(ISNUMBER(F26),IF(YEAR(F26)<Stammdaten!$AE$28,1,IF(YEAR(F26)>Stammdaten!$AE$28,12,MONTH(F26))),""),"") ->  | N26: =+IF(Stammdaten!$AE$30="1 - Ja",I26,L26) -> 0.00 | O26: =+IF(Stammdaten!$AE$30="1 - Ja",K26,0) ->  | U26: 0 | V26: 0 | W26: 0 | X26: 0 | Y26: 0 | AA26: 0 | AB26: 5 | AC26: 0 | AD26: 0
C27: =IF(H27="","",VLOOKUP(H27,Steuerung!$E$26:$G$49,3,FALSE)) ->  | E27: =IF(Stammdaten!$AE$29="2 - Vereinbarte Entgelte",IF(ISNUMBER(D27),IF(YEAR(D27)<Stammdaten!$AE$28,1,IF(YEAR(D27)>Stammdaten!$AE$28,12,MONTH(D27))),""),"") ->  | G27: =IF(Stammdaten!$AE$29="1 - Vereinnahmte Entgelte",IF(ISNUMBER(F27),IF(YEAR(F27)<Stammdaten!$AE$28,1,IF(YEAR(F27)>Stammdaten!$AE$28,12,MONTH(F27))),""),"") ->  | N27: =+IF(Stammdaten!$AE$30="1 - Ja",I27,L27) -> 0.00 | O27: =+IF(Stammdaten!$AE$30="1 - Ja",K27,0) ->  | U27: 0 | V27: 0 | W27: 0 | X27: 0 | Y27: 0 | AA27: 0 | AB27: 5 | AC27: 0 | AD27: 0
C28: =IF(H28="","",VLOOKUP(H28,Steuerung!$E$26:$G$49,3,FALSE)) ->  | E28: =IF(Stammdaten!$AE$29="2 - Vereinbarte Entgelte",IF(ISNUMBER(D28),IF(YEAR(D28)<Stammdaten!$AE$28,1,IF(YEAR(D28)>Stammdaten!$AE$28,12,MONTH(D28))),""),"") ->  | G28: =IF(Stammdaten!$AE$29="1 - Vereinnahmte Entgelte",IF(ISNUMBER(F28),IF(YEAR(F28)<Stammdaten!$AE$28,1,IF(YEAR(F28)>Stammdaten!$AE$28,12,MONTH(F28))),""),"") ->  | N28: =+IF(Stammdaten!$AE$30="1 - Ja",I28,L28) -> 0.00 | O28: =+IF(Stammdaten!$AE$30="1 - Ja",K28,0) ->  | U28: 0 | V28: 0 | W28: 0 | X28: 0 | Y28: 0 | AA28: 0 | AB28: 5 | AC28: 0 | AD28: 0
C29: =IF(H29="","",VLOOKUP(H29,Steuerung!$E$26:$G$49,3,FALSE)) ->  | E29: =IF(Stammdaten!$AE$29="2 - Vereinbarte Entgelte",IF(ISNUMBER(D29),IF(YEAR(D29)<Stammdaten!$AE$28,1,IF(YEAR(D29)>Stammdaten!$AE$28,12,MONTH(D29))),""),"") ->  | G29: =IF(Stammdaten!$AE$29="1 - Vereinnahmte Entgelte",IF(ISNUMBER(F29),IF(YEAR(F29)<Stammdaten!$AE$28,1,IF(YEAR(F29)>Stammdaten!$AE$28,12,MONTH(F29))),""),"") ->  | N29: =+IF(Stammdaten!$AE$30="1 - Ja",I29,L29) -> 0.00 | O29: =+IF(Stammdaten!$AE$30="1 - Ja",K29,0) ->  | U29: 0 | V29: 0 | W29: 0 | X29: 0 | Y29: 0 | AA29: 0 | AB29: 5 | AC29: 0 | AD29: 0
C30: =IF(H30="","",VLOOKUP(H30,Steuerung!$E$26:$G$49,3,FALSE)) ->  | E30: =IF(Stammdaten!$AE$29="2 - Vereinbarte Entgelte",IF(ISNUMBER(D30),IF(YEAR(D30)<Stammdaten!$AE$28,1,IF(YEAR(D30)>Stammdaten!$AE$28,12,MONTH(D30))),""),"") ->  | G30: =IF(Stammdaten!$AE$29="1 - Vereinnahmte Entgelte",IF(ISNUMBER(F30),IF(YEAR(F30)<Stammdaten!$AE$28,1,IF(YEAR(F30)>Stammdaten!$AE$28,12,MONTH(F30))),""),"") ->  | N30: =+IF(Stammdaten!$AE$30="1 - Ja",I30,L30) -> 0.00 | O30: =+IF(Stammdaten!$AE$30="1 - Ja",K30,0) ->  | U30: 0 | V30: 0 | W30: 0 | X30: 0 | Y30: 0 | AA30: 0 | AB30: 5 | AC30: 0 | AD30: 0
C31: =IF(H31="","",VLOOKUP(H31,Steuerung!$E$26:$G$49,3,FALSE)) ->  | E31: =IF(Stammdaten!$AE$29="2 - Vereinbarte Entgelte",IF(ISNUMBER(D31),IF(YEAR(D31)<Stammdaten!$AE$28,1,IF(YEAR(D31)>Stammdaten!$AE$28,12,MONTH(D31))),""),"") ->  | G31: =IF(Stammdaten!$AE$29="1 - Vereinnahmte Entgelte",IF(ISNUMBER(F31),IF(YEAR(F31)<Stammdaten!$AE$28,1,IF(YEAR(F31)>Stammdaten!$AE$28,12,MONTH(F31))),""),"") ->  | N31: =+IF(Stammdaten!$AE$30="1 - Ja",I31,L31) -> 0.00 | O31: =+IF(Stammdaten!$AE$30="1 - Ja",K31,0) ->  | U31: 0 | V31: 0 | W31: 0 | X31: 0 | Y31: 0 | AA31: 0 | AB31: 5 | AC31: 0 | AD31: 0
C32: =IF(H32="","",VLOOKUP(H32,Steuerung!$E$26:$G$49,3,FALSE)) ->  | E32: =IF(Stammdaten!$AE$29="2 - Vereinbarte Entgelte",IF(ISNUMBER(D32),IF(YEAR(D32)<Stammdaten!$AE$28,1,IF(YEAR(D32)>Stammdaten!$AE$28,12,MONTH(D32))),""),"") ->  | G32: =IF(Stammdaten!$AE$29="1 - Vereinnahmte Entgelte",IF(ISNUMBER(F32),IF(YEAR(F32)<Stammdaten!$AE$28,1,IF(YEAR(F32)>Stammdaten!$AE$28,12,MONTH(F32))),""),"") ->  | N32: =+IF(Stammdaten!$AE$30="1 - Ja",I32,L32) -> 0.00 | O32: =+IF(Stammdaten!$AE$30="1 - Ja",K32,0) ->  | U32: 0 | V32: 0 | W32: 0 | X32: 0 | Y32: 0 | AA32: 0 | AB32: 5 | AC32: 0 | AD32: 0
C33: =IF(H33="","",VLOOKUP(H33,Steuerung!$E$26:$G$49,3,FALSE)) ->  | E33: =IF(Stammdaten!$AE$29="2 - Vereinbarte Entgelte",IF(ISNUMBER(D33),IF(YEAR(D33)<Stammdaten!$AE$28,1,IF(YEAR(D33)>Stammdaten!$AE$28,12,MONTH(D33))),""),"") ->  | G33: =IF(Stammdaten!$AE$29="1 - Vereinnahmte Entgelte",IF(ISNUMBER(F33),IF(YEAR(F33)<Stammdaten!$AE$28,1,IF(YEAR(F33)>Stammdaten!$AE$28,12,MONTH(F33))),""),"") ->  | N33: =+IF(Stammdaten!$AE$30="1 - Ja",I33,L33) -> 0.00 | O33: =+IF(Stammdaten!$AE$30="1 - Ja",K33,0) ->  | U33: 0 | V33: 0 | W33: 0 | X33: 0 | Y33: 0 | AA33: 0 | AB33: 5 | AC33: 0 | AD33: 0
C34: =IF(H34="","",VLOOKUP(H34,Steuerung!$E$26:$G$49,3,FALSE)) ->  | E34: =IF(Stammdaten!$AE$29="2 - Vereinbarte Entgelte",IF(ISNUMBER(D34),IF(YEAR(D34)<Stammdaten!$AE$28,1,IF(YEAR(D34)>Stammdaten!$AE$28,12,MONTH(D34))),""),"") ->  | G34: =IF(Stammdaten!$AE$29="1 - Vereinnahmte Entgelte",IF(ISNUMBER(F34),IF(YEAR(F34)<Stammdaten!$AE$28,1,IF(YEAR(F34)>Stammdaten!$AE$28,12,MONTH(F34))),""),"") ->  | N34: =+IF(Stammdaten!$AE$30="1 - Ja",I34,L34) -> 0.00 | O34: =+IF(Stammdaten!$AE$30="1 - Ja",K34,0) ->  | U34: 0 | V34: 0 | W34: 0 | X34: 0 | Y34: 0 | AA34: 0 | AB34: 5 | AC34: 0 | AD34: 0
C35: =IF(H35="","",VLOOKUP(H35,Steuerung!$E$26:$G$49,3,FALSE)) ->  | E35: =IF(Stammdaten!$AE$29="2 - Vereinbarte Entgelte",IF(ISNUMBER(D35),IF(YEAR(D35)<Stammdaten!$AE$28,1,IF(YEAR(D35)>Stammdaten!$AE$28,12,MONTH(D35))),""),"") ->  | G35: =IF(Stammdaten!$AE$29="1 - Vereinnahmte Entgelte",IF(ISNUMBER(F35),IF(YEAR(F35)<Stammdaten!$AE$28,1,IF(YEAR(F35)>Stammdaten!$AE$28,12,MONTH(F35))),""),"") ->  | N35: =+IF(Stammdaten!$AE$30="1 - Ja",I35,L35) -> 0.00 | O35: =+IF(Stammdaten!$AE$30="1 - Ja",K35,0) ->  | U35: 0 | V35: 0 | W35: 0 | X35: 0 | Y35: 0 | AA35: 0 | AB35: 5 | AC35: 0 | AD35: 0
C36: =IF(H36="","",VLOOKUP(H36,Steuerung!$E$26:$G$49,3,FALSE)) ->  | E36: =IF(Stammdaten!$AE$29="2 - Vereinbarte Entgelte",IF(ISNUMBER(D36),IF(YEAR(D36)<Stammdaten!$AE$28,1,IF(YEAR(D36)>Stammdaten!$AE$28,12,MONTH(D36))),""),"") ->  | G36: =IF(Stammdaten!$AE$29="1 - Vereinnahmte Entgelte",IF(ISNUMBER(F36),IF(YEAR(F36)<Stammdaten!$AE$28,1,IF(YEAR(F36)>Stammdaten!$AE$28,12,MONTH(F36))),""),"") ->  | N36: =+IF(Stammdaten!$AE$30="1 - Ja",I36,L36) -> 0.00 | O36: =+IF(Stammdaten!$AE$30="1 - Ja",K36,0) ->  | U36: 0 | V36: 0 | W36: 0 | X36: 0 | Y36: 0 | AA36: 0 | AB36: 5 | AC36: 0 | AD36: 0
C37: =IF(H37="","",VLOOKUP(H37,Steuerung!$E$26:$G$49,3,FALSE)) ->  | E37: =IF(Stammdaten!$AE$29="2 - Vereinbarte Entgelte",IF(ISNUMBER(D37),IF(YEAR(D37)<Stammdaten!$AE$28,1,IF(YEAR(D37)>Stammdaten!$AE$28,12,MONTH(D37))),""),"") ->  | G37: =IF(Stammdaten!$AE$29="1 - Vereinnahmte Entgelte",IF(ISNUMBER(F37),IF(YEAR(F37)<Stammdaten!$AE$28,1,IF(YEAR(F37)>Stammdaten!$AE$28,12,MONTH(F37))),""),"") ->  | K37: =+IF(AND(ISNUMBER(I37),ISNUMBER(J37)),ROUND(I37*J37,2),"") ->  | N37: =+IF(Stammdaten!$AE$30="1 - Ja",I37,L37) -> 0.00 | O37: =+IF(Stammdaten!$AE$30="1 - Ja",K37,0) ->  | U37: =+IF(B37="",0,1) -> 0 | V37: =+IF(ISNUMBER(D37),1,0) -> 0 | W37: =+IF(H37="",0,1) -> 0 | X37: =+IF(ISNUMBER(L37),1,0) -> 0 | Y37: =+IF(ISNUMBER(F37),1,0) -> 0 | AA37: 0 | AB37: 5 | AC37: 0 | AD37: 0
C38: =IF(H38="","",VLOOKUP(H38,Steuerung!$E$26:$G$49,3,FALSE)) ->  | E38: =IF(Stammdaten!$AE$29="2 - Vereinbarte Entgelte",IF(ISNUMBER(D38),IF(YEAR(D38)<Stammdaten!$AE$28,1,IF(YEAR(D38)>Stammdaten!$AE$28,12,MONTH(D38))),""),"") ->  | G38: =IF(Stammdaten!$AE$29="1 - Vereinnahmte Entgelte",IF(ISNUMBER(F38),IF(YEAR(F38)<Stammdaten!$AE$28,1,IF(YEAR(F38)>Stammdaten!$AE$28,12,MONTH(F38))),""),"") ->  | N38: =+IF(Stammdaten!$AE$30="1 - Ja",I38,L38) -> 0.00 | O38: =+IF(Stammdaten!$AE$30="1 - Ja",K38,0) ->  | U38: 0 | V38: 0 | W38: 0 | X38: 0 | Y38: 0 | AA38: 0 | AB38: 5 | AC38: 0 | AD38: 0
C39: =IF(H39="","",VLOOKUP(H39,Steuerung!$E$26:$G$49,3,FALSE)) ->  | E39: =IF(Stammdaten!$AE$29="2 - Vereinbarte Entgelte",IF(ISNUMBER(D39),IF(YEAR(D39)<Stammdaten!$AE$28,1,IF(YEAR(D39)>Stammdaten!$AE$28,12,MONTH(D39))),""),"") ->  | G39: =IF(Stammdaten!$AE$29="1 - Vereinnahmte Entgelte",IF(ISNUMBER(F39),IF(YEAR(F39)<Stammdaten!$AE$28,1,IF(YEAR(F39)>Stammdaten!$AE$28,12,MONTH(F39))),""),"") ->  | N39: =+IF(Stammdaten!$AE$30="1 - Ja",I39,L39) -> 0.00 | O39: =+IF(Stammdaten!$AE$30="1 - Ja",K39,0) ->  | U39: 0 | V39: 0 | W39: 0 | X39: 0 | Y39: 0 | AA39: 0 | AB39: 5 | AC39: 0 | AD39: 0
C40: =IF(H40="","",VLOOKUP(H40,Steuerung!$E$26:$G$49,3,FALSE)) ->  | E40: =IF(Stammdaten!$AE$29="2 - Vereinbarte Entgelte",IF(ISNUMBER(D40),IF(YEAR(D40)<Stammdaten!$AE$28,1,IF(YEAR(D40)>Stammdaten!$AE$28,12,MONTH(D40))),""),"") ->  | G40: =IF(Stammdaten!$AE$29="1 - Vereinnahmte Entgelte",IF(ISNUMBER(F40),IF(YEAR(F40)<Stammdaten!$AE$28,1,IF(YEAR(F40)>Stammdaten!$AE$28,12,MONTH(F40))),""),"") ->  | N40: =+IF(Stammdaten!$AE$30="1 - Ja",I40,L40) -> 0.00 | O40: =+IF(Stammdaten!$AE$30="1 - Ja",K40,0) ->  | U40: 0 | V40: 0 | W40: 0 | X40: 0 | Y40: 0 | AA40: 0 | AB40: 5 | AC40: 0 | AD40: 0
C41: =IF(H41="","",VLOOKUP(H41,Steuerung!$E$26:$G$49,3,FALSE)) ->  | E41: =IF(Stammdaten!$AE$29="2 - Vereinbarte Entgelte",IF(ISNUMBER(D41),IF(YEAR(D41)<Stammdaten!$AE$28,1,IF(YEAR(D41)>Stammdaten!$AE$28,12,MONTH(D41))),""),"") ->  | G41: =IF(Stammdaten!$AE$29="1 - Vereinnahmte Entgelte",IF(ISNUMBER(F41),IF(YEAR(F41)<Stammdaten!$AE$28,1,IF(YEAR(F41)>Stammdaten!$AE$28,12,MONTH(F41))),""),"") ->  | N41: =+IF(Stammdaten!$AE$30="1 - Ja",I41,L41) -> 0.00 | O41: =+IF(Stammdaten!$AE$30="1 - Ja",K41,0) ->  | U41: 0 | V41: 0 | W41: 0 | X41: 0 | Y41: 0 | AA41: 0 | AB41: 5 | AC41: 0 | AD41: 0
C42: =IF(H42="","",VLOOKUP(H42,Steuerung!$E$26:$G$49,3,FALSE)) ->  | E42: =IF(Stammdaten!$AE$29="2 - Vereinbarte Entgelte",IF(ISNUMBER(D42),IF(YEAR(D42)<Stammdaten!$AE$28,1,IF(YEAR(D42)>Stammdaten!$AE$28,12,MONTH(D42))),""),"") ->  | G42: =IF(Stammdaten!$AE$29="1 - Vereinnahmte Entgelte",IF(ISNUMBER(F42),IF(YEAR(F42)<Stammdaten!$AE$28,1,IF(YEAR(F42)>Stammdaten!$AE$28,12,MONTH(F42))),""),"") ->  | N42: =+IF(Stammdaten!$AE$30="1 - Ja",I42,L42) -> 0.00 | O42: =+IF(Stammdaten!$AE$30="1 - Ja",K42,0) ->  | U42: 0 | V42: 0 | W42: 0 | X42: 0 | Y42: 0 | AA42: 0 | AB42: 5 | AC42: 0 | AD42: 0
C43: =IF(H43="","",VLOOKUP(H43,Steuerung!$E$26:$G$49,3,FALSE)) ->  | E43: =IF(Stammdaten!$AE$29="2 - Vereinbarte Entgelte",IF(ISNUMBER(D43),IF(YEAR(D43)<Stammdaten!$AE$28,1,IF(YEAR(D43)>Stammdaten!$AE$28,12,MONTH(D43))),""),"") ->  | G43: =IF(Stammdaten!$AE$29="1 - Vereinnahmte Entgelte",IF(ISNUMBER(F43),IF(YEAR(F43)<Stammdaten!$AE$28,1,IF(YEAR(F43)>Stammdaten!$AE$28,12,MONTH(F43))),""),"") ->  | N43: =+IF(Stammdaten!$AE$30="1 - Ja",I43,L43) -> 0.00 | O43: =+IF(Stammdaten!$AE$30="1 - Ja",K43,0) ->  | U43: 0 | V43: 0 | W43: 0 | X43: 0 | Y43: 0 | AA43: 0 | AB43: 5 | AC43: 0 | AD43: 0
C44: =IF(H44="","",VLOOKUP(H44,Steuerung!$E$26:$G$49,3,FALSE)) ->  | E44: =IF(Stammdaten!$AE$29="2 - Vereinbarte Entgelte",IF(ISNUMBER(D44),IF(YEAR(D44)<Stammdaten!$AE$28,1,IF(YEAR(D44)>Stammdaten!$AE$28,12,MONTH(D44))),""),"") ->  | G44: =IF(Stammdaten!$AE$29="1 - Vereinnahmte Entgelte",IF(ISNUMBER(F44),IF(YEAR(F44)<Stammdaten!$AE$28,1,IF(YEAR(F44)>Stammdaten!$AE$28,12,MONTH(F44))),""),"") ->  | N44: =+IF(Stammdaten!$AE$30="1 - Ja",I44,L44) -> 0.00 | O44: =+IF(Stammdaten!$AE$30="1 - Ja",K44,0) ->  | U44: 0 | V44: 0 | W44: 0 | X44: 0 | Y44: 0 | AA44: 0 | AB44: 5 | AC44: 0 | AD44: 0
C45: =IF(H45="","",VLOOKUP(H45,Steuerung!$E$26:$G$49,3,FALSE)) ->  | E45: =IF(Stammdaten!$AE$29="2 - Vereinbarte Entgelte",IF(ISNUMBER(D45),IF(YEAR(D45)<Stammdaten!$AE$28,1,IF(YEAR(D45)>Stammdaten!$AE$28,12,MONTH(D45))),""),"") ->  | G45: =IF(Stammdaten!$AE$29="1 - Vereinnahmte Entgelte",IF(ISNUMBER(F45),IF(YEAR(F45)<Stammdaten!$AE$28,1,IF(YEAR(F45)>Stammdaten!$AE$28,12,MONTH(F45))),""),"") ->  | N45: =+IF(Stammdaten!$AE$30="1 - Ja",I45,L45) -> 0.00 | O45: =+IF(Stammdaten!$AE$30="1 - Ja",K45,0) ->  | U45: 0 | V45: 0 | W45: 0 | X45: 0 | Y45: 0 | AA45: 0 | AB45: 5 | AC45: 0 | AD45: 0
C46: =IF(H46="","",VLOOKUP(H46,Steuerung!$E$26:$G$49,3,FALSE)) ->  | E46: =IF(Stammdaten!$AE$29="2 - Vereinbarte Entgelte",IF(ISNUMBER(D46),IF(YEAR(D46)<Stammdaten!$AE$28,1,IF(YEAR(D46)>Stammdaten!$AE$28,12,MONTH(D46))),""),"") ->  | G46: =IF(Stammdaten!$AE$29="1 - Vereinnahmte Entgelte",IF(ISNUMBER(F46),IF(YEAR(F46)<Stammdaten!$AE$28,1,IF(YEAR(F46)>Stammdaten!$AE$28,12,MONTH(F46))),""),"") ->  | N46: =+IF(Stammdaten!$AE$30="1 - Ja",I46,L46) -> 0.00 | O46: =+IF(Stammdaten!$AE$30="1 - Ja",K46,0) ->  | U46: 0 | V46: 0 | W46: 0 | X46: 0 | Y46: 0 | AA46: 0 | AB46: 5 | AC46: 0 | AD46: 0
C47: =IF(H47="","",VLOOKUP(H47,Steuerung!$E$26:$G$49,3,FALSE)) ->  | E47: =IF(Stammdaten!$AE$29="2 - Vereinbarte Entgelte",IF(ISNUMBER(D47),IF(YEAR(D47)<Stammdaten!$AE$28,1,IF(YEAR(D47)>Stammdaten!$AE$28,12,MONTH(D47))),""),"") ->  | G47: =IF(Stammdaten!$AE$29="1 - Vereinnahmte Entgelte",IF(ISNUMBER(F47),IF(YEAR(F47)<Stammdaten!$AE$28,1,IF(YEAR(F47)>Stammdaten!$AE$28,12,MONTH(F47))),""),"") ->  | N47: =+IF(Stammdaten!$AE$30="1 - Ja",I47,L47) -> 0.00 | O47: =+IF(Stammdaten!$AE$30="1 - Ja",K47,0) ->  | U47: 0 | V47: 0 | W47: 0 | X47: 0 | Y47: 0 | AA47: 0 | AB47: 5 | AC47: 0 | AD47: 0
C48: =IF(H48="","",VLOOKUP(H48,Steuerung!$E$26:$G$49,3,FALSE)) ->  | E48: =IF(Stammdaten!$AE$29="2 - Vereinbarte Entgelte",IF(ISNUMBER(D48),IF(YEAR(D48)<Stammdaten!$AE$28,1,IF(YEAR(D48)>Stammdaten!$AE$28,12,MONTH(D48))),""),"") ->  | G48: =IF(Stammdaten!$AE$29="1 - Vereinnahmte Entgelte",IF(ISNUMBER(F48),IF(YEAR(F48)<Stammdaten!$AE$28,1,IF(YEAR(F48)>Stammdaten!$AE$28,12,MONTH(F48))),""),"") ->  | N48: =+IF(Stammdaten!$AE$30="1 - Ja",I48,L48) -> 0.00 | O48: =+IF(Stammdaten!$AE$30="1 - Ja",K48,0) ->  | U48: 0 | V48: 0 | W48: 0 | X48: 0 | Y48: 0 | AA48: 0 | AB48: 5 | AC48: 0 | AD48: 0
C49: =IF(H49="","",VLOOKUP(H49,Steuerung!$E$26:$G$49,3,FALSE)) ->  | E49: =IF(Stammdaten!$AE$29="2 - Vereinbarte Entgelte",IF(ISNUMBER(D49),IF(YEAR(D49)<Stammdaten!$AE$28,1,IF(YEAR(D49)>Stammdaten!$AE$28,12,MONTH(D49))),""),"") ->  | G49: =IF(Stammdaten!$AE$29="1 - Vereinnahmte Entgelte",IF(ISNUMBER(F49),IF(YEAR(F49)<Stammdaten!$AE$28,1,IF(YEAR(F49)>Stammdaten!$AE$28,12,MONTH(F49))),""),"") ->  | N49: =+IF(Stammdaten!$AE$30="1 - Ja",I49,L49) -> 0.00 | O49: =+IF(Stammdaten!$AE$30="1 - Ja",K49,0) ->  | U49: 0 | V49: 0 | W49: 0 | X49: 0 | Y49: 0 | AA49: 0 | AB49: 5 | AC49: 0 | AD49: 0
C50: =IF(H50="","",VLOOKUP(H50,Steuerung!$E$26:$G$49,3,FALSE)) ->  | E50: =IF(Stammdaten!$AE$29="2 - Vereinbarte Entgelte",IF(ISNUMBER(D50),IF(YEAR(D50)<Stammdaten!$AE$28,1,IF(YEAR(D50)>Stammdaten!$AE$28,12,MONTH(D50))),""),"") ->  | G50: =IF(Stammdaten!$AE$29="1 - Vereinnahmte Entgelte",IF(ISNUMBER(F50),IF(YEAR(F50)<Stammdaten!$AE$28,1,IF(YEAR(F50)>Stammdaten!$AE$28,12,MONTH(F50))),""),"") ->  | N50: =+IF(Stammdaten!$AE$30="1 - Ja",I50,L50) -> 0.00 | O50: =+IF(Stammdaten!$AE$30="1 - Ja",K50,0) ->  | U50: 0 | V50: 0 | W50: 0 | X50: 0 | Y50: 0 | AA50: 0 | AB50: 5 | AC50: 0 | AD50: 0
C51: =IF(H51="","",VLOOKUP(H51,Steuerung!$E$26:$G$49,3,FALSE)) ->  | E51: =IF(Stammdaten!$AE$29="2 - Vereinbarte Entgelte",IF(ISNUMBER(D51),IF(YEAR(D51)<Stammdaten!$AE$28,1,IF(YEAR(D51)>Stammdaten!$AE$28,12,MONTH(D51))),""),"") ->  | G51: =IF(Stammdaten!$AE$29="1 - Vereinnahmte Entgelte",IF(ISNUMBER(F51),IF(YEAR(F51)<Stammdaten!$AE$28,1,IF(YEAR(F51)>Stammdaten!$AE$28,12,MONTH(F51))),""),"") ->  | N51: =+IF(Stammdaten!$AE$30="1 - Ja",I51,L51) -> 0.00 | O51: =+IF(Stammdaten!$AE$30="1 - Ja",K51,0) ->  | U51: 0 | V51: 0 | W51: 0 | X51: 0 | Y51: 0 | AA51: 0 | AB51: 5 | AC51: 0 | AD51: 0
C52: =IF(H52="","",VLOOKUP(H52,Steuerung!$E$26:$G$49,3,FALSE)) ->  | E52: =IF(Stammdaten!$AE$29="2 - Vereinbarte Entgelte",IF(ISNUMBER(D52),IF(YEAR(D52)<Stammdaten!$AE$28,1,IF(YEAR(D52)>Stammdaten!$AE$28,12,MONTH(D52))),""),"") ->  | G52: =IF(Stammdaten!$AE$29="1 - Vereinnahmte Entgelte",IF(ISNUMBER(F52),IF(YEAR(F52)<Stammdaten!$AE$28,1,IF(YEAR(F52)>Stammdaten!$AE$28,12,MONTH(F52))),""),"") ->  | N52: =+IF(Stammdaten!$AE$30="1 - Ja",I52,L52) -> 0.00 | O52: =+IF(Stammdaten!$AE$30="1 - Ja",K52,0) ->  | U52: 0 | V52: 0 | W52: 0 | X52: 0 | Y52: 0 | AA52: 0 | AB52: 5 | AC52: 0 | AD52: 0
C53: =IF(H53="","",VLOOKUP(H53,Steuerung!$E$26:$G$49,3,FALSE)) ->  | E53: =IF(Stammdaten!$AE$29="2 - Vereinbarte Entgelte",IF(ISNUMBER(D53),IF(YEAR(D53)<Stammdaten!$AE$28,1,IF(YEAR(D53)>Stammdaten!$AE$28,12,MONTH(D53))),""),"") ->  | G53: =IF(Stammdaten!$AE$29="1 - Vereinnahmte Entgelte",IF(ISNUMBER(F53),IF(YEAR(F53)<Stammdaten!$AE$28,1,IF(YEAR(F53)>Stammdaten!$AE$28,12,MONTH(F53))),""),"") ->  | N53: =+IF(Stammdaten!$AE$30="1 - Ja",I53,L53) -> 0.00 | O53: =+IF(Stammdaten!$AE$30="1 - Ja",K53,0) ->  | U53: 0 | V53: 0 | W53: 0 | X53: 0 | Y53: 0 | AA53: 0 | AB53: 5 | AC53: 0 | AD53: 0
C54: =IF(H54="","",VLOOKUP(H54,Steuerung!$E$26:$G$49,3,FALSE)) ->  | E54: =IF(Stammdaten!$AE$29="2 - Vereinbarte Entgelte",IF(ISNUMBER(D54),IF(YEAR(D54)<Stammdaten!$AE$28,1,IF(YEAR(D54)>Stammdaten!$AE$28,12,MONTH(D54))),""),"") ->  | G54: =IF(Stammdaten!$AE$29="1 - Vereinnahmte Entgelte",IF(ISNUMBER(F54),IF(YEAR(F54)<Stammdaten!$AE$28,1,IF(YEAR(F54)>Stammdaten!$AE$28,12,MONTH(F54))),""),"") ->  | N54: =+IF(Stammdaten!$AE$30="1 - Ja",I54,L54) -> 0.00 | O54: =+IF(Stammdaten!$AE$30="1 - Ja",K54,0) ->  | U54: 0 | V54: 0 | W54: 0 | X54: 0 | Y54: 0 | AA54: 0 | AB54: 5 | AC54: 0 | AD54: 0
C55: =IF(H55="","",VLOOKUP(H55,Steuerung!$E$26:$G$49,3,FALSE)) ->  | E55: =IF(Stammdaten!$AE$29="2 - Vereinbarte Entgelte",IF(ISNUMBER(D55),IF(YEAR(D55)<Stammdaten!$AE$28,1,IF(YEAR(D55)>Stammdaten!$AE$28,12,MONTH(D55))),""),"") ->  | G55: =IF(Stammdaten!$AE$29="1 - Vereinnahmte Entgelte",IF(ISNUMBER(F55),IF(YEAR(F55)<Stammdaten!$AE$28,1,IF(YEAR(F55)>Stammdaten!$AE$28,12,MONTH(F55))),""),"") ->  | N55: =+IF(Stammdaten!$AE$30="1 - Ja",I55,L55) -> 0.00 | O55: =+IF(Stammdaten!$AE$30="1 - Ja",K55,0) ->  | U55: 0 | V55: 0 | W55: 0 | X55: 0 | Y55: 0 | AA55: 0 | AB55: 5 | AC55: 0 | AD55: 0
C56: =IF(H56="","",VLOOKUP(H56,Steuerung!$E$26:$G$49,3,FALSE)) ->  | E56: =IF(Stammdaten!$AE$29="2 - Vereinbarte Entgelte",IF(ISNUMBER(D56),IF(YEAR(D56)<Stammdaten!$AE$28,1,IF(YEAR(D56)>Stammdaten!$AE$28,12,MONTH(D56))),""),"") ->  | G56: =IF(Stammdaten!$AE$29="1 - Vereinnahmte Entgelte",IF(ISNUMBER(F56),IF(YEAR(F56)<Stammdaten!$AE$28,1,IF(YEAR(F56)>Stammdaten!$AE$28,12,MONTH(F56))),""),"") ->  | N56: =+IF(Stammdaten!$AE$30="1 - Ja",I56,L56) -> 0.00 | O56: =+IF(Stammdaten!$AE$30="1 - Ja",K56,0) ->  | U56: 0 | V56: 0 | W56: 0 | X56: 0 | Y56: 0 | AA56: 0 | AB56: 5 | AC56: 0 | AD56: 0
C57: =IF(H57="","",VLOOKUP(H57,Steuerung!$E$26:$G$49,3,FALSE)) ->  | E57: =IF(Stammdaten!$AE$29="2 - Vereinbarte Entgelte",IF(ISNUMBER(D57),IF(YEAR(D57)<Stammdaten!$AE$28,1,IF(YEAR(D57)>Stammdaten!$AE$28,12,MONTH(D57))),""),"") ->  | G57: =IF(Stammdaten!$AE$29="1 - Vereinnahmte Entgelte",IF(ISNUMBER(F57),IF(YEAR(F57)<Stammdaten!$AE$28,1,IF(YEAR(F57)>Stammdaten!$AE$28,12,MONTH(F57))),""),"") ->  | N57: =+IF(Stammdaten!$AE$30="1 - Ja",I57,L57) -> 0.00 | O57: =+IF(Stammdaten!$AE$30="1 - Ja",K57,0) ->  | U57: 0 | V57: 0 | W57: 0 | X57: 0 | Y57: 0 | AA57: 0 | AB57: 5 | AC57: 0 | AD57: 0
C58: =IF(H58="","",VLOOKUP(H58,Steuerung!$E$26:$G$49,3,FALSE)) ->  | E58: =IF(Stammdaten!$AE$29="2 - Vereinbarte Entgelte",IF(ISNUMBER(D58),IF(YEAR(D58)<Stammdaten!$AE$28,1,IF(YEAR(D58)>Stammdaten!$AE$28,12,MONTH(D58))),""),"") ->  | G58: =IF(Stammdaten!$AE$29="1 - Vereinnahmte Entgelte",IF(ISNUMBER(F58),IF(YEAR(F58)<Stammdaten!$AE$28,1,IF(YEAR(F58)>Stammdaten!$AE$28,12,MONTH(F58))),""),"") ->  | N58: =+IF(Stammdaten!$AE$30="1 - Ja",I58,L58) -> 0.00 | O58: =+IF(Stammdaten!$AE$30="1 - Ja",K58,0) ->  | U58: 0 | V58: 0 | W58: 0 | X58: 0 | Y58: 0 | AA58: 0 | AB58: 5 | AC58: 0 | AD58: 0
C59: =IF(H59="","",VLOOKUP(H59,Steuerung!$E$26:$G$49,3,FALSE)) ->  | E59: =IF(Stammdaten!$AE$29="2 - Vereinbarte Entgelte",IF(ISNUMBER(D59),IF(YEAR(D59)<Stammdaten!$AE$28,1,IF(YEAR(D59)>Stammdaten!$AE$28,12,MONTH(D59))),""),"") ->  | G59: =IF(Stammdaten!$AE$29="1 - Vereinnahmte Entgelte",IF(ISNUMBER(F59),IF(YEAR(F59)<Stammdaten!$AE$28,1,IF(YEAR(F59)>Stammdaten!$AE$28,12,MONTH(F59))),""),"") ->  | N59: =+IF(Stammdaten!$AE$30="1 - Ja",I59,L59) -> 0.00 | O59: =+IF(Stammdaten!$AE$30="1 - Ja",K59,0) ->  | U59: 0 | V59: 0 | W59: 0 | X59: 0 | Y59: 0 | AA59: 0 | AB59: 5 | AC59: 0 | AD59: 0
C60: =IF(H60="","",VLOOKUP(H60,Steuerung!$E$26:$G$49,3,FALSE)) ->  | E60: =IF(Stammdaten!$AE$29="2 - Vereinbarte Entgelte",IF(ISNUMBER(D60),IF(YEAR(D60)<Stammdaten!$AE$28,1,IF(YEAR(D60)>Stammdaten!$AE$28,12,MONTH(D60))),""),"") ->  | G60: =IF(Stammdaten!$AE$29="1 - Vereinnahmte Entgelte",IF(ISNUMBER(F60),IF(YEAR(F60)<Stammdaten!$AE$28,1,IF(YEAR(F60)>Stammdaten!$AE$28,12,MONTH(F60))),""),"") ->  | N60: =+IF(Stammdaten!$AE$30="1 - Ja",I60,L60) -> 0.00 | O60: =+IF(Stammdaten!$AE$30="1 - Ja",K60,0) ->  | U60: 0 | V60: 0 | W60: 0 | X60: 0 | Y60: 0 | AA60: 0 | AB60: 5 | AC60: 0 | AD60: 0
C61: =IF(H61="","",VLOOKUP(H61,Steuerung!$E$26:$G$49,3,FALSE)) ->  | E61: =IF(Stammdaten!$AE$29="2 - Vereinbarte Entgelte",IF(ISNUMBER(D61),IF(YEAR(D61)<Stammdaten!$AE$28,1,IF(YEAR(D61)>Stammdaten!$AE$28,12,MONTH(D61))),""),"") ->  | G61: =IF(Stammdaten!$AE$29="1 - Vereinnahmte Entgelte",IF(ISNUMBER(F61),IF(YEAR(F61)<Stammdaten!$AE$28,1,IF(YEAR(F61)>Stammdaten!$AE$28,12,MONTH(F61))),""),"") ->  | N61: =+IF(Stammdaten!$AE$30="1 - Ja",I61,L61) -> 0.00 | O61: =+IF(Stammdaten!$AE$30="1 - Ja",K61,0) ->  | U61: 0 | V61: 0 | W61: 0 | X61: 0 | Y61: 0 | AA61: 0 | AB61: 5 | AC61: 0 | AD61: 0
C62: =IF(H62="","",VLOOKUP(H62,Steuerung!$E$26:$G$49,3,FALSE)) ->  | E62: =IF(Stammdaten!$AE$29="2 - Vereinbarte Entgelte",IF(ISNUMBER(D62),IF(YEAR(D62)<Stammdaten!$AE$28,1,IF(YEAR(D62)>Stammdaten!$AE$28,12,MONTH(D62))),""),"") ->  | G62: =IF(Stammdaten!$AE$29="1 - Vereinnahmte Entgelte",IF(ISNUMBER(F62),IF(YEAR(F62)<Stammdaten!$AE$28,1,IF(YEAR(F62)>Stammdaten!$AE$28,12,MONTH(F62))),""),"") ->  | N62: =+IF(Stammdaten!$AE$30="1 - Ja",I62,L62) -> 0.00 | O62: =+IF(Stammdaten!$AE$30="1 - Ja",K62,0) ->  | U62: 0 | V62: 0 | W62: 0 | X62: 0 | Y62: 0 | AA62: 0 | AB62: 5 | AC62: 0 | AD62: 0
C63: =IF(H63="","",VLOOKUP(H63,Steuerung!$E$26:$G$49,3,FALSE)) ->  | E63: =IF(Stammdaten!$AE$29="2 - Vereinbarte Entgelte",IF(ISNUMBER(D63),IF(YEAR(D63)<Stammdaten!$AE$28,1,IF(YEAR(D63)>Stammdaten!$AE$28,12,MONTH(D63))),""),"") ->  | G63: =IF(Stammdaten!$AE$29="1 - Vereinnahmte Entgelte",IF(ISNUMBER(F63),IF(YEAR(F63)<Stammdaten!$AE$28,1,IF(YEAR(F63)>Stammdaten!$AE$28,12,MONTH(F63))),""),"") ->  | N63: =+IF(Stammdaten!$AE$30="1 - Ja",I63,L63) -> 0.00 | O63: =+IF(Stammdaten!$AE$30="1 - Ja",K63,0) ->  | U63: 0 | V63: 0 | W63: 0 | X63: 0 | Y63: 0 | AA63: 0 | AB63: 5 | AC63: 0 | AD63: 0
C64: =IF(H64="","",VLOOKUP(H64,Steuerung!$E$26:$G$49,3,FALSE)) ->  | E64: =IF(Stammdaten!$AE$29="2 - Vereinbarte Entgelte",IF(ISNUMBER(D64),IF(YEAR(D64)<Stammdaten!$AE$28,1,IF(YEAR(D64)>Stammdaten!$AE$28,12,MONTH(D64))),""),"") ->  | G64: =IF(Stammdaten!$AE$29="1 - Vereinnahmte Entgelte",IF(ISNUMBER(F64),IF(YEAR(F64)<Stammdaten!$AE$28,1,IF(YEAR(F64)>Stammdaten!$AE$28,12,MONTH(F64))),""),"") ->  | N64: =+IF(Stammdaten!$AE$30="1 - Ja",I64,L64) -> 0.00 | O64: =+IF(Stammdaten!$AE$30="1 - Ja",K64,0) ->  | U64: 0 | V64: 0 | W64: 0 | X64: 0 | Y64: 0 | AA64: 0 | AB64: 5 | AC64: 0 | AD64: 0
C65: =IF(H65="","",VLOOKUP(H65,Steuerung!$E$26:$G$49,3,FALSE)) ->  | E65: =IF(Stammdaten!$AE$29="2 - Vereinbarte Entgelte",IF(ISNUMBER(D65),IF(YEAR(D65)<Stammdaten!$AE$28,1,IF(YEAR(D65)>Stammdaten!$AE$28,12,MONTH(D65))),""),"") ->  | G65: =IF(Stammdaten!$AE$29="1 - Vereinnahmte Entgelte",IF(ISNUMBER(F65),IF(YEAR(F65)<Stammdaten!$AE$28,1,IF(YEAR(F65)>Stammdaten!$AE$28,12,MONTH(F65))),""),"") ->  | N65: =+IF(Stammdaten!$AE$30="1 - Ja",I65,L65) -> 0.00 | O65: =+IF(Stammdaten!$AE$30="1 - Ja",K65,0) ->  | U65: 0 | V65: 0 | W65: 0 | X65: 0 | Y65: 0 | AA65: 0 | AB65: 5 | AC65: 0 | AD65: 0
C66: =IF(H66="","",VLOOKUP(H66,Steuerung!$E$26:$G$49,3,FALSE)) ->  | E66: =IF(Stammdaten!$AE$29="2 - Vereinbarte Entgelte",IF(ISNUMBER(D66),IF(YEAR(D66)<Stammdaten!$AE$28,1,IF(YEAR(D66)>Stammdaten!$AE$28,12,MONTH(D66))),""),"") ->  | G66: =IF(Stammdaten!$AE$29="1 - Vereinnahmte Entgelte",IF(ISNUMBER(F66),IF(YEAR(F66)<Stammdaten!$AE$28,1,IF(YEAR(F66)>Stammdaten!$AE$28,12,MONTH(F66))),""),"") ->  | N66: =+IF(Stammdaten!$AE$30="1 - Ja",I66,L66) -> 0.00 | O66: =+IF(Stammdaten!$AE$30="1 - Ja",K66,0) ->  | U66: 0 | V66: 0 | W66: 0 | X66: 0 | Y66: 0 | AA66: 0 | AB66: 5 | AC66: 0 | AD66: 0
C67: =IF(H67="","",VLOOKUP(H67,Steuerung!$E$26:$G$49,3,FALSE)) ->  | E67: =IF(Stammdaten!$AE$29="2 - Vereinbarte Entgelte",IF(ISNUMBER(D67),IF(YEAR(D67)<Stammdaten!$AE$28,1,IF(YEAR(D67)>Stammdaten!$AE$28,12,MONTH(D67))),""),"") ->  | G67: =IF(Stammdaten!$AE$29="1 - Vereinnahmte Entgelte",IF(ISNUMBER(F67),IF(YEAR(F67)<Stammdaten!$AE$28,1,IF(YEAR(F67)>Stammdaten!$AE$28,12,MONTH(F67))),""),"") ->  | N67: =+IF(Stammdaten!$AE$30="1 - Ja",I67,L67) -> 0.00 | O67: =+IF(Stammdaten!$AE$30="1 - Ja",K67,0) ->  | U67: 0 | V67: 0 | W67: 0 | X67: 0 | Y67: 0 | AA67: 0 | AB67: 5 | AC67: 0 | AD67: 0
C68: =IF(H68="","",VLOOKUP(H68,Steuerung!$E$26:$G$49,3,FALSE)) ->  | E68: =IF(Stammdaten!$AE$29="2 - Vereinbarte Entgelte",IF(ISNUMBER(D68),IF(YEAR(D68)<Stammdaten!$AE$28,1,IF(YEAR(D68)>Stammdaten!$AE$28,12,MONTH(D68))),""),"") ->  | G68: =IF(Stammdaten!$AE$29="1 - Vereinnahmte Entgelte",IF(ISNUMBER(F68),IF(YEAR(F68)<Stammdaten!$AE$28,1,IF(YEAR(F68)>Stammdaten!$AE$28,12,MONTH(F68))),""),"") ->  | N68: =+IF(Stammdaten!$AE$30="1 - Ja",I68,L68) -> 0.00 | O68: =+IF(Stammdaten!$AE$30="1 - Ja",K68,0) ->  | U68: 0 | V68: 0 | W68: 0 | X68: 0 | Y68: 0 | AA68: 0 | AB68: 5 | AC68: 0 | AD68: 0
C69: =IF(H69="","",VLOOKUP(H69,Steuerung!$E$26:$G$49,3,FALSE)) ->  | E69: =IF(Stammdaten!$AE$29="2 - Vereinbarte Entgelte",IF(ISNUMBER(D69),IF(YEAR(D69)<Stammdaten!$AE$28,1,IF(YEAR(D69)>Stammdaten!$AE$28,12,MONTH(D69))),""),"") ->  | G69: =IF(Stammdaten!$AE$29="1 - Vereinnahmte Entgelte",IF(ISNUMBER(F69),IF(YEAR(F69)<Stammdaten!$AE$28,1,IF(YEAR(F69)>Stammdaten!$AE$28,12,MONTH(F69))),""),"") ->  | K69: =+IF(AND(ISNUMBER(I69),ISNUMBER(J69)),ROUND(I69*J69,2),"") ->  | N69: =+IF(Stammdaten!$AE$30="1 - Ja",I69,L69) -> 0.00 | O69: =+IF(Stammdaten!$AE$30="1 - Ja",K69,0) ->  | U69: =+IF(B69="",0,1) -> 0 | V69: =+IF(ISNUMBER(D69),1,0) -> 0 | W69: =+IF(H69="",0,1) -> 0 | X69: =+IF(ISNUMBER(L69),1,0) -> 0 | Y69: =+IF(ISNUMBER(F69),1,0) -> 0 | AA69: 0 | AB69: 5 | AC69: 0 | AD69: 0
C70: =IF(H70="","",VLOOKUP(H70,Steuerung!$E$26:$G$49,3,FALSE)) ->  | E70: =IF(Stammdaten!$AE$29="2 - Vereinbarte Entgelte",IF(ISNUMBER(D70),IF(YEAR(D70)<Stammdaten!$AE$28,1,IF(YEAR(D70)>Stammdaten!$AE$28,12,MONTH(D70))),""),"") ->  | G70: =IF(Stammdaten!$AE$29="1 - Vereinnahmte Entgelte",IF(ISNUMBER(F70),IF(YEAR(F70)<Stammdaten!$AE$28,1,IF(YEAR(F70)>Stammdaten!$AE$28,12,MONTH(F70))),""),"") ->  | L70: =+IF(AND(ISNUMBER(I70),ISNUMBER(K70)),I70+K70,"") ->  | N70: =+IF(Stammdaten!$AE$30="1 - Ja",I70,L70) -> 0.00 | O70: =+IF(Stammdaten!$AE$30="1 - Ja",K70,0) ->  | Q70: =+IF(AD70=0,"","Eingaben unvollständig") ->  | U70: 0 | V70: 0 | W70: 0 | X70: 0 | Y70: 0 | AA70: =+SUM(U70:Z70) -> 0 | AB70: =+$AB$3 -> 5 | AC70: =+IF(AA70=AB70,1,0) -> 0 | AD70: =+IF(AND(AA70>0,AC70=0),1,0) -> 0
C71: =IF(H71="","",VLOOKUP(H71,Steuerung!$E$26:$G$49,3,FALSE)) ->  | E71: =IF(Stammdaten!$AE$29="2 - Vereinbarte Entgelte",IF(ISNUMBER(D71),IF(YEAR(D71)<Stammdaten!$AE$28,1,IF(YEAR(D71)>Stammdaten!$AE$28,12,MONTH(D71))),""),"") ->  | G71: =IF(Stammdaten!$AE$29="1 - Vereinnahmte Entgelte",IF(ISNUMBER(F71),IF(YEAR(F71)<Stammdaten!$AE$28,1,IF(YEAR(F71)>Stammdaten!$AE$28,12,MONTH(F71))),""),"") ->  | N71: =+IF(Stammdaten!$AE$30="1 - Ja",I71,L71) -> 0.00 | O71: =+IF(Stammdaten!$AE$30="1 - Ja",K71,0) ->  | U71: 0 | V71: 0 | W71: 0 | X71: 0 | Y71: 0 | AA71: 0 | AB71: 5 | AC71: 0 | AD71: 0
C72: =IF(H72="","",VLOOKUP(H72,Steuerung!$E$26:$G$49,3,FALSE)) ->  | E72: =IF(Stammdaten!$AE$29="2 - Vereinbarte Entgelte",IF(ISNUMBER(D72),IF(YEAR(D72)<Stammdaten!$AE$28,1,IF(YEAR(D72)>Stammdaten!$AE$28,12,MONTH(D72))),""),"") ->  | G72: =IF(Stammdaten!$AE$29="1 - Vereinnahmte Entgelte",IF(ISNUMBER(F72),IF(YEAR(F72)<Stammdaten!$AE$28,1,IF(YEAR(F72)>Stammdaten!$AE$28,12,MONTH(F72))),""),"") ->  | N72: =+IF(Stammdaten!$AE$30="1 - Ja",I72,L72) -> 0.00 | O72: =+IF(Stammdaten!$AE$30="1 - Ja",K72,0) ->  | U72: 0 | V72: 0 | W72: 0 | X72: 0 | Y72: 0 | AA72: 0 | AB72: 5 | AC72: 0 | AD72: 0
C73: =IF(H73="","",VLOOKUP(H73,Steuerung!$E$26:$G$49,3,FALSE)) ->  | E73: =IF(Stammdaten!$AE$29="2 - Vereinbarte Entgelte",IF(ISNUMBER(D73),IF(YEAR(D73)<Stammdaten!$AE$28,1,IF(YEAR(D73)>Stammdaten!$AE$28,12,MONTH(D73))),""),"") ->  | G73: =IF(Stammdaten!$AE$29="1 - Vereinnahmte Entgelte",IF(ISNUMBER(F73),IF(YEAR(F73)<Stammdaten!$AE$28,1,IF(YEAR(F73)>Stammdaten!$AE$28,12,MONTH(F73))),""),"") ->  | N73: =+IF(Stammdaten!$AE$30="1 - Ja",I73,L73) -> 0.00 | O73: =+IF(Stammdaten!$AE$30="1 - Ja",K73,0) ->  | U73: 0 | V73: 0 | W73: 0 | X73: 0 | Y73: 0 | AA73: 0 | AB73: 5 | AC73: 0 | AD73: 0
C74: =IF(H74="","",VLOOKUP(H74,Steuerung!$E$26:$G$49,3,FALSE)) ->  | E74: =IF(Stammdaten!$AE$29="2 - Vereinbarte Entgelte",IF(ISNUMBER(D74),IF(YEAR(D74)<Stammdaten!$AE$28,1,IF(YEAR(D74)>Stammdaten!$AE$28,12,MONTH(D74))),""),"") ->  | G74: =IF(Stammdaten!$AE$29="1 - Vereinnahmte Entgelte",IF(ISNUMBER(F74),IF(YEAR(F74)<Stammdaten!$AE$28,1,IF(YEAR(F74)>Stammdaten!$AE$28,12,MONTH(F74))),""),"") ->  | N74: =+IF(Stammdaten!$AE$30="1 - Ja",I74,L74) -> 0.00 | O74: =+IF(Stammdaten!$AE$30="1 - Ja",K74,0) ->  | U74: 0 | V74: 0 | W74: 0 | X74: 0 | Y74: 0 | AA74: 0 | AB74: 5 | AC74: 0 | AD74: 0
C75: =IF(H75="","",VLOOKUP(H75,Steuerung!$E$26:$G$49,3,FALSE)) ->  | E75: =IF(Stammdaten!$AE$29="2 - Vereinbarte Entgelte",IF(ISNUMBER(D75),IF(YEAR(D75)<Stammdaten!$AE$28,1,IF(YEAR(D75)>Stammdaten!$AE$28,12,MONTH(D75))),""),"") ->  | G75: =IF(Stammdaten!$AE$29="1 - Vereinnahmte Entgelte",IF(ISNUMBER(F75),IF(YEAR(F75)<Stammdaten!$AE$28,1,IF(YEAR(F75)>Stammdaten!$AE$28,12,MONTH(F75))),""),"") ->  | N75: =+IF(Stammdaten!$AE$30="1 - Ja",I75,L75) -> 0.00 | O75: =+IF(Stammdaten!$AE$30="1 - Ja",K75,0) ->  | U75: 0 | V75: 0 | W75: 0 | X75: 0 | Y75: 0 | AA75: 0 | AB75: 5 | AC75: 0 | AD75: 0
C76: =IF(H76="","",VLOOKUP(H76,Steuerung!$E$26:$G$49,3,FALSE)) ->  | E76: =IF(Stammdaten!$AE$29="2 - Vereinbarte Entgelte",IF(ISNUMBER(D76),IF(YEAR(D76)<Stammdaten!$AE$28,1,IF(YEAR(D76)>Stammdaten!$AE$28,12,MONTH(D76))),""),"") ->  | G76: =IF(Stammdaten!$AE$29="1 - Vereinnahmte Entgelte",IF(ISNUMBER(F76),IF(YEAR(F76)<Stammdaten!$AE$28,1,IF(YEAR(F76)>Stammdaten!$AE$28,12,MONTH(F76))),""),"") ->  | N76: =+IF(Stammdaten!$AE$30="1 - Ja",I76,L76) -> 0.00 | O76: =+IF(Stammdaten!$AE$30="1 - Ja",K76,0) ->  | U76: 0 | V76: 0 | W76: 0 | X76: 0 | Y76: 0 | AA76: 0 | AB76: 5 | AC76: 0 | AD76: 0
C77: =IF(H77="","",VLOOKUP(H77,Steuerung!$E$26:$G$49,3,FALSE)) ->  | E77: =IF(Stammdaten!$AE$29="2 - Vereinbarte Entgelte",IF(ISNUMBER(D77),IF(YEAR(D77)<Stammdaten!$AE$28,1,IF(YEAR(D77)>Stammdaten!$AE$28,12,MONTH(D77))),""),"") ->  | G77: =IF(Stammdaten!$AE$29="1 - Vereinnahmte Entgelte",IF(ISNUMBER(F77),IF(YEAR(F77)<Stammdaten!$AE$28,1,IF(YEAR(F77)>Stammdaten!$AE$28,12,MONTH(F77))),""),"") ->  | N77: =+IF(Stammdaten!$AE$30="1 - Ja",I77,L77) -> 0.00 | O77: =+IF(Stammdaten!$AE$30="1 - Ja",K77,0) ->  | U77: 0 | V77: 0 | W77: 0 | X77: 0 | Y77: 0 | AA77: 0 | AB77: 5 | AC77: 0 | AD77: 0
C78: =IF(H78="","",VLOOKUP(H78,Steuerung!$E$26:$G$49,3,FALSE)) ->  | E78: =IF(Stammdaten!$AE$29="2 - Vereinbarte Entgelte",IF(ISNUMBER(D78),IF(YEAR(D78)<Stammdaten!$AE$28,1,IF(YEAR(D78)>Stammdaten!$AE$28,12,MONTH(D78))),""),"") ->  | G78: =IF(Stammdaten!$AE$29="1 - Vereinnahmte Entgelte",IF(ISNUMBER(F78),IF(YEAR(F78)<Stammdaten!$AE$28,1,IF(YEAR(F78)>Stammdaten!$AE$28,12,MONTH(F78))),""),"") ->  | N78: =+IF(Stammdaten!$AE$30="1 - Ja",I78,L78) -> 0.00 | O78: =+IF(Stammdaten!$AE$30="1 - Ja",K78,0) ->  | U78: 0 | V78: 0 | W78: 0 | X78: 0 | Y78: 0 | AA78: 0 | AB78: 5 | AC78: 0 | AD78: 0
C79: =IF(H79="","",VLOOKUP(H79,Steuerung!$E$26:$G$49,3,FALSE)) ->  | E79: =IF(Stammdaten!$AE$29="2 - Vereinbarte Entgelte",IF(ISNUMBER(D79),IF(YEAR(D79)<Stammdaten!$AE$28,1,IF(YEAR(D79)>Stammdaten!$AE$28,12,MONTH(D79))),""),"") ->  | G79: =IF(Stammdaten!$AE$29="1 - Vereinnahmte Entgelte",IF(ISNUMBER(F79),IF(YEAR(F79)<Stammdaten!$AE$28,1,IF(YEAR(F79)>Stammdaten!$AE$28,12,MONTH(F79))),""),"") ->  | N79: =+IF(Stammdaten!$AE$30="1 - Ja",I79,L79) -> 0.00 | O79: =+IF(Stammdaten!$AE$30="1 - Ja",K79,0) ->  | U79: 0 | V79: 0 | W79: 0 | X79: 0 | Y79: 0 | AA79: 0 | AB79: 5 | AC79: 0 | AD79: 0
C80: =IF(H80="","",VLOOKUP(H80,Steuerung!$E$26:$G$49,3,FALSE)) ->  | E80: =IF(Stammdaten!$AE$29="2 - Vereinbarte Entgelte",IF(ISNUMBER(D80),IF(YEAR(D80)<Stammdaten!$AE$28,1,IF(YEAR(D80)>Stammdaten!$AE$28,12,MONTH(D80))),""),"") ->  | G80: =IF(Stammdaten!$AE$29="1 - Vereinnahmte Entgelte",IF(ISNUMBER(F80),IF(YEAR(F80)<Stammdaten!$AE$28,1,IF(YEAR(F80)>Stammdaten!$AE$28,12,MONTH(F80))),""),"") ->  | N80: =+IF(Stammdaten!$AE$30="1 - Ja",I80,L80) -> 0.00 | O80: =+IF(Stammdaten!$AE$30="1 - Ja",K80,0) ->  | U80: 0 | V80: 0 | W80: 0 | X80: 0 | Y80: 0 | AA80: 0 | AB80: 5 | AC80: 0 | AD80: 0
C81: =IF(H81="","",VLOOKUP(H81,Steuerung!$E$26:$G$49,3,FALSE)) ->  | E81: =IF(Stammdaten!$AE$29="2 - Vereinbarte Entgelte",IF(ISNUMBER(D81),IF(YEAR(D81)<Stammdaten!$AE$28,1,IF(YEAR(D81)>Stammdaten!$AE$28,12,MONTH(D81))),""),"") ->  | G81: =IF(Stammdaten!$AE$29="1 - Vereinnahmte Entgelte",IF(ISNUMBER(F81),IF(YEAR(F81)<Stammdaten!$AE$28,1,IF(YEAR(F81)>Stammdaten!$AE$28,12,MONTH(F81))),""),"") ->  | N81: =+IF(Stammdaten!$AE$30="1 - Ja",I81,L81) -> 0.00 | O81: =+IF(Stammdaten!$AE$30="1 - Ja",K81,0) ->  | U81: 0 | V81: 0 | W81: 0 | X81: 0 | Y81: 0 | AA81: 0 | AB81: 5 | AC81: 0 | AD81: 0
C82: =IF(H82="","",VLOOKUP(H82,Steuerung!$E$26:$G$49,3,FALSE)) ->  | E82: =IF(Stammdaten!$AE$29="2 - Vereinbarte Entgelte",IF(ISNUMBER(D82),IF(YEAR(D82)<Stammdaten!$AE$28,1,IF(YEAR(D82)>Stammdaten!$AE$28,12,MONTH(D82))),""),"") ->  | G82: =IF(Stammdaten!$AE$29="1 - Vereinnahmte Entgelte",IF(ISNUMBER(F82),IF(YEAR(F82)<Stammdaten!$AE$28,1,IF(YEAR(F82)>Stammdaten!$AE$28,12,MONTH(F82))),""),"") ->  | N82: =+IF(Stammdaten!$AE$30="1 - Ja",I82,L82) -> 0.00 | O82: =+IF(Stammdaten!$AE$30="1 - Ja",K82,0) ->  | U82: 0 | V82: 0 | W82: 0 | X82: 0 | Y82: 0 | AA82: 0 | AB82: 5 | AC82: 0 | AD82: 0
C83: =IF(H83="","",VLOOKUP(H83,Steuerung!$E$26:$G$49,3,FALSE)) ->  | E83: =IF(Stammdaten!$AE$29="2 - Vereinbarte Entgelte",IF(ISNUMBER(D83),IF(YEAR(D83)<Stammdaten!$AE$28,1,IF(YEAR(D83)>Stammdaten!$AE$28,12,MONTH(D83))),""),"") ->  | G83: =IF(Stammdaten!$AE$29="1 - Vereinnahmte Entgelte",IF(ISNUMBER(F83),IF(YEAR(F83)<Stammdaten!$AE$28,1,IF(YEAR(F83)>Stammdaten!$AE$28,12,MONTH(F83))),""),"") ->  | N83: =+IF(Stammdaten!$AE$30="1 - Ja",I83,L83) -> 0.00 | O83: =+IF(Stammdaten!$AE$30="1 - Ja",K83,0) ->  | U83: 0 | V83: 0 | W83: 0 | X83: 0 | Y83: 0 | AA83: 0 | AB83: 5 | AC83: 0 | AD83: 0
C84: =IF(H84="","",VLOOKUP(H84,Steuerung!$E$26:$G$49,3,FALSE)) ->  | E84: =IF(Stammdaten!$AE$29="2 - Vereinbarte Entgelte",IF(ISNUMBER(D84),IF(YEAR(D84)<Stammdaten!$AE$28,1,IF(YEAR(D84)>Stammdaten!$AE$28,12,MONTH(D84))),""),"") ->  | G84: =IF(Stammdaten!$AE$29="1 - Vereinnahmte Entgelte",IF(ISNUMBER(F84),IF(YEAR(F84)<Stammdaten!$AE$28,1,IF(YEAR(F84)>Stammdaten!$AE$28,12,MONTH(F84))),""),"") ->  | N84: =+IF(Stammdaten!$AE$30="1 - Ja",I84,L84) -> 0.00 | O84: =+IF(Stammdaten!$AE$30="1 - Ja",K84,0) ->  | U84: 0 | V84: 0 | W84: 0 | X84: 0 | Y84: 0 | AA84: 0 | AB84: 5 | AC84: 0 | AD84: 0
C85: =IF(H85="","",VLOOKUP(H85,Steuerung!$E$26:$G$49,3,FALSE)) ->  | E85: =IF(Stammdaten!$AE$29="2 - Vereinbarte Entgelte",IF(ISNUMBER(D85),IF(YEAR(D85)<Stammdaten!$AE$28,1,IF(YEAR(D85)>Stammdaten!$AE$28,12,MONTH(D85))),""),"") ->  | G85: =IF(Stammdaten!$AE$29="1 - Vereinnahmte Entgelte",IF(ISNUMBER(F85),IF(YEAR(F85)<Stammdaten!$AE$28,1,IF(YEAR(F85)>Stammdaten!$AE$28,12,MONTH(F85))),""),"") ->  | N85: =+IF(Stammdaten!$AE$30="1 - Ja",I85,L85) -> 0.00 | O85: =+IF(Stammdaten!$AE$30="1 - Ja",K85,0) ->  | U85: 0 | V85: 0 | W85: 0 | X85: 0 | Y85: 0 | AA85: 0 | AB85: 5 | AC85: 0 | AD85: 0
C86: =IF(H86="","",VLOOKUP(H86,Steuerung!$E$26:$G$49,3,FALSE)) ->  | E86: =IF(Stammdaten!$AE$29="2 - Vereinbarte Entgelte",IF(ISNUMBER(D86),IF(YEAR(D86)<Stammdaten!$AE$28,1,IF(YEAR(D86)>Stammdaten!$AE$28,12,MONTH(D86))),""),"") ->  | G86: =IF(Stammdaten!$AE$29="1 - Vereinnahmte Entgelte",IF(ISNUMBER(F86),IF(YEAR(F86)<Stammdaten!$AE$28,1,IF(YEAR(F86)>Stammdaten!$AE$28,12,MONTH(F86))),""),"") ->  | N86: =+IF(Stammdaten!$AE$30="1 - Ja",I86,L86) -> 0.00 | O86: =+IF(Stammdaten!$AE$30="1 - Ja",K86,0) ->  | U86: 0 | V86: 0 | W86: 0 | X86: 0 | Y86: 0 | AA86: 0 | AB86: 5 | AC86: 0 | AD86: 0
C87: =IF(H87="","",VLOOKUP(H87,Steuerung!$E$26:$G$49,3,FALSE)) ->  | E87: =IF(Stammdaten!$AE$29="2 - Vereinbarte Entgelte",IF(ISNUMBER(D87),IF(YEAR(D87)<Stammdaten!$AE$28,1,IF(YEAR(D87)>Stammdaten!$AE$28,12,MONTH(D87))),""),"") ->  | G87: =IF(Stammdaten!$AE$29="1 - Vereinnahmte Entgelte",IF(ISNUMBER(F87),IF(YEAR(F87)<Stammdaten!$AE$28,1,IF(YEAR(F87)>Stammdaten!$AE$28,12,MONTH(F87))),""),"") ->  | N87: =+IF(Stammdaten!$AE$30="1 - Ja",I87,L87) -> 0.00 | O87: =+IF(Stammdaten!$AE$30="1 - Ja",K87,0) ->  | U87: 0 | V87: 0 | W87: 0 | X87: 0 | Y87: 0 | AA87: 0 | AB87: 5 | AC87: 0 | AD87: 0
C88: =IF(H88="","",VLOOKUP(H88,Steuerung!$E$26:$G$49,3,FALSE)) ->  | E88: =IF(Stammdaten!$AE$29="2 - Vereinbarte Entgelte",IF(ISNUMBER(D88),IF(YEAR(D88)<Stammdaten!$AE$28,1,IF(YEAR(D88)>Stammdaten!$AE$28,12,MONTH(D88))),""),"") ->  | G88: =IF(Stammdaten!$AE$29="1 - Vereinnahmte Entgelte",IF(ISNUMBER(F88),IF(YEAR(F88)<Stammdaten!$AE$28,1,IF(YEAR(F88)>Stammdaten!$AE$28,12,MONTH(F88))),""),"") ->  | N88: =+IF(Stammdaten!$AE$30="1 - Ja",I88,L88) -> 0.00 | O88: =+IF(Stammdaten!$AE$30="1 - Ja",K88,0) ->  | U88: 0 | V88: 0 | W88: 0 | X88: 0 | Y88: 0 | AA88: 0 | AB88: 5 | AC88: 0 | AD88: 0
C89: =IF(H89="","",VLOOKUP(H89,Steuerung!$E$26:$G$49,3,FALSE)) ->  | E89: =IF(Stammdaten!$AE$29="2 - Vereinbarte Entgelte",IF(ISNUMBER(D89),IF(YEAR(D89)<Stammdaten!$AE$28,1,IF(YEAR(D89)>Stammdaten!$AE$28,12,MONTH(D89))),""),"") ->  | G89: =IF(Stammdaten!$AE$29="1 - Vereinnahmte Entgelte",IF(ISNUMBER(F89),IF(YEAR(F89)<Stammdaten!$AE$28,1,IF(YEAR(F89)>Stammdaten!$AE$28,12,MONTH(F89))),""),"") ->  | N89: =+IF(Stammdaten!$AE$30="1 - Ja",I89,L89) -> 0.00 | O89: =+IF(Stammdaten!$AE$30="1 - Ja",K89,0) ->  | U89: 0 | V89: 0 | W89: 0 | X89: 0 | Y89: 0 | AA89: 0 | AB89: 5 | AC89: 0 | AD89: 0
C90: =IF(H90="","",VLOOKUP(H90,Steuerung!$E$26:$G$49,3,FALSE)) ->  | E90: =IF(Stammdaten!$AE$29="2 - Vereinbarte Entgelte",IF(ISNUMBER(D90),IF(YEAR(D90)<Stammdaten!$AE$28,1,IF(YEAR(D90)>Stammdaten!$AE$28,12,MONTH(D90))),""),"") ->  | G90: =IF(Stammdaten!$AE$29="1 - Vereinnahmte Entgelte",IF(ISNUMBER(F90),IF(YEAR(F90)<Stammdaten!$AE$28,1,IF(YEAR(F90)>Stammdaten!$AE$28,12,MONTH(F90))),""),"") ->  | N90: =+IF(Stammdaten!$AE$30="1 - Ja",I90,L90) -> 0.00 | O90: =+IF(Stammdaten!$AE$30="1 - Ja",K90,0) ->  | U90: 0 | V90: 0 | W90: 0 | X90: 0 | Y90: 0 | AA90: 0 | AB90: 5 | AC90: 0 | AD90: 0
C91: =IF(H91="","",VLOOKUP(H91,Steuerung!$E$26:$G$49,3,FALSE)) ->  | E91: =IF(Stammdaten!$AE$29="2 - Vereinbarte Entgelte",IF(ISNUMBER(D91),IF(YEAR(D91)<Stammdaten!$AE$28,1,IF(YEAR(D91)>Stammdaten!$AE$28,12,MONTH(D91))),""),"") ->  | G91: =IF(Stammdaten!$AE$29="1 - Vereinnahmte Entgelte",IF(ISNUMBER(F91),IF(YEAR(F91)<Stammdaten!$AE$28,1,IF(YEAR(F91)>Stammdaten!$AE$28,12,MONTH(F91))),""),"") ->  | N91: =+IF(Stammdaten!$AE$30="1 - Ja",I91,L91) -> 0.00 | O91: =+IF(Stammdaten!$AE$30="1 - Ja",K91,0) ->  | U91: 0 | V91: 0 | W91: 0 | X91: 0 | Y91: 0 | AA91: 0 | AB91: 5 | AC91: 0 | AD91: 0
C92: =IF(H92="","",VLOOKUP(H92,Steuerung!$E$26:$G$49,3,FALSE)) ->  | E92: =IF(Stammdaten!$AE$29="2 - Vereinbarte Entgelte",IF(ISNUMBER(D92),IF(YEAR(D92)<Stammdaten!$AE$28,1,IF(YEAR(D92)>Stammdaten!$AE$28,12,MONTH(D92))),""),"") ->  | G92: =IF(Stammdaten!$AE$29="1 - Vereinnahmte Entgelte",IF(ISNUMBER(F92),IF(YEAR(F92)<Stammdaten!$AE$28,1,IF(YEAR(F92)>Stammdaten!$AE$28,12,MONTH(F92))),""),"") ->  | N92: =+IF(Stammdaten!$AE$30="1 - Ja",I92,L92) -> 0.00 | O92: =+IF(Stammdaten!$AE$30="1 - Ja",K92,0) ->  | U92: 0 | V92: 0 | W92: 0 | X92: 0 | Y92: 0 | AA92: 0 | AB92: 5 | AC92: 0 | AD92: 0
C93: =IF(H93="","",VLOOKUP(H93,Steuerung!$E$26:$G$49,3,FALSE)) ->  | E93: =IF(Stammdaten!$AE$29="2 - Vereinbarte Entgelte",IF(ISNUMBER(D93),IF(YEAR(D93)<Stammdaten!$AE$28,1,IF(YEAR(D93)>Stammdaten!$AE$28,12,MONTH(D93))),""),"") ->  | G93: =IF(Stammdaten!$AE$29="1 - Vereinnahmte Entgelte",IF(ISNUMBER(F93),IF(YEAR(F93)<Stammdaten!$AE$28,1,IF(YEAR(F93)>Stammdaten!$AE$28,12,MONTH(F93))),""),"") ->  | N93: =+IF(Stammdaten!$AE$30="1 - Ja",I93,L93) -> 0.00 | O93: =+IF(Stammdaten!$AE$30="1 - Ja",K93,0) ->  | U93: 0 | V93: 0 | W93: 0 | X93: 0 | Y93: 0 | AA93: 0 | AB93: 5 | AC93: 0 | AD93: 0
C94: =IF(H94="","",VLOOKUP(H94,Steuerung!$E$26:$G$49,3,FALSE)) ->  | E94: =IF(Stammdaten!$AE$29="2 - Vereinbarte Entgelte",IF(ISNUMBER(D94),IF(YEAR(D94)<Stammdaten!$AE$28,1,IF(YEAR(D94)>Stammdaten!$AE$28,12,MONTH(D94))),""),"") ->  | G94: =IF(Stammdaten!$AE$29="1 - Vereinnahmte Entgelte",IF(ISNUMBER(F94),IF(YEAR(F94)<Stammdaten!$AE$28,1,IF(YEAR(F94)>Stammdaten!$AE$28,12,MONTH(F94))),""),"") ->  | N94: =+IF(Stammdaten!$AE$30="1 - Ja",I94,L94) -> 0.00 | O94: =+IF(Stammdaten!$AE$30="1 - Ja",K94,0) ->  | U94: 0 | V94: 0 | W94: 0 | X94: 0 | Y94: 0 | AA94: 0 | AB94: 5 | AC94: 0 | AD94: 0
C95: =IF(H95="","",VLOOKUP(H95,Steuerung!$E$26:$G$49,3,FALSE)) ->  | E95: =IF(Stammdaten!$AE$29="2 - Vereinbarte Entgelte",IF(ISNUMBER(D95),IF(YEAR(D95)<Stammdaten!$AE$28,1,IF(YEAR(D95)>Stammdaten!$AE$28,12,MONTH(D95))),""),"") ->  | G95: =IF(Stammdaten!$AE$29="1 - Vereinnahmte Entgelte",IF(ISNUMBER(F95),IF(YEAR(F95)<Stammdaten!$AE$28,1,IF(YEAR(F95)>Stammdaten!$AE$28,12,MONTH(F95))),""),"") ->  | N95: =+IF(Stammdaten!$AE$30="1 - Ja",I95,L95) -> 0.00 | O95: =+IF(Stammdaten!$AE$30="1 - Ja",K95,0) ->  | U95: 0 | V95: 0 | W95: 0 | X95: 0 | Y95: 0 | AA95: 0 | AB95: 5 | AC95: 0 | AD95: 0
C96: =IF(H96="","",VLOOKUP(H96,Steuerung!$E$26:$G$49,3,FALSE)) ->  | E96: =IF(Stammdaten!$AE$29="2 - Vereinbarte Entgelte",IF(ISNUMBER(D96),IF(YEAR(D96)<Stammdaten!$AE$28,1,IF(YEAR(D96)>Stammdaten!$AE$28,12,MONTH(D96))),""),"") ->  | G96: =IF(Stammdaten!$AE$29="1 - Vereinnahmte Entgelte",IF(ISNUMBER(F96),IF(YEAR(F96)<Stammdaten!$AE$28,1,IF(YEAR(F96)>Stammdaten!$AE$28,12,MONTH(F96))),""),"") ->  | N96: =+IF(Stammdaten!$AE$30="1 - Ja",I96,L96) -> 0.00 | O96: =+IF(Stammdaten!$AE$30="1 - Ja",K96,0) ->  | U96: 0 | V96: 0 | W96: 0 | X96: 0 | Y96: 0 | AA96: 0 | AB96: 5 | AC96: 0 | AD96: 0
C97: =IF(H97="","",VLOOKUP(H97,Steuerung!$E$26:$G$49,3,FALSE)) ->  | E97: =IF(Stammdaten!$AE$29="2 - Vereinbarte Entgelte",IF(ISNUMBER(D97),IF(YEAR(D97)<Stammdaten!$AE$28,1,IF(YEAR(D97)>Stammdaten!$AE$28,12,MONTH(D97))),""),"") ->  | G97: =IF(Stammdaten!$AE$29="1 - Vereinnahmte Entgelte",IF(ISNUMBER(F97),IF(YEAR(F97)<Stammdaten!$AE$28,1,IF(YEAR(F97)>Stammdaten!$AE$28,12,MONTH(F97))),""),"") ->  | N97: =+IF(Stammdaten!$AE$30="1 - Ja",I97,L97) -> 0.00 | O97: =+IF(Stammdaten!$AE$30="1 - Ja",K97,0) ->  | U97: 0 | V97: 0 | W97: 0 | X97: 0 | Y97: 0 | AA97: 0 | AB97: 5 | AC97: 0 | AD97: 0
C98: =IF(H98="","",VLOOKUP(H98,Steuerung!$E$26:$G$49,3,FALSE)) ->  | E98: =IF(Stammdaten!$AE$29="2 - Vereinbarte Entgelte",IF(ISNUMBER(D98),IF(YEAR(D98)<Stammdaten!$AE$28,1,IF(YEAR(D98)>Stammdaten!$AE$28,12,MONTH(D98))),""),"") ->  | G98: =IF(Stammdaten!$AE$29="1 - Vereinnahmte Entgelte",IF(ISNUMBER(F98),IF(YEAR(F98)<Stammdaten!$AE$28,1,IF(YEAR(F98)>Stammdaten!$AE$28,12,MONTH(F98))),""),"") ->  | N98: =+IF(Stammdaten!$AE$30="1 - Ja",I98,L98) -> 0.00 | O98: =+IF(Stammdaten!$AE$30="1 - Ja",K98,0) ->  | U98: 0 | V98: 0 | W98: 0 | X98: 0 | Y98: 0 | AA98: 0 | AB98: 5 | AC98: 0 | AD98: 0
C99: =IF(H99="","",VLOOKUP(H99,Steuerung!$E$26:$G$49,3,FALSE)) ->  | E99: =IF(Stammdaten!$AE$29="2 - Vereinbarte Entgelte",IF(ISNUMBER(D99),IF(YEAR(D99)<Stammdaten!$AE$28,1,IF(YEAR(D99)>Stammdaten!$AE$28,12,MONTH(D99))),""),"") ->  | G99: =IF(Stammdaten!$AE$29="1 - Vereinnahmte Entgelte",IF(ISNUMBER(F99),IF(YEAR(F99)<Stammdaten!$AE$28,1,IF(YEAR(F99)>Stammdaten!$AE$28,12,MONTH(F99))),""),"") ->  | N99: =+IF(Stammdaten!$AE$30="1 - Ja",I99,L99) -> 0.00 | O99: =+IF(Stammdaten!$AE$30="1 - Ja",K99,0) ->  | U99: 0 | V99: 0 | W99: 0 | X99: 0 | Y99: 0 | AA99: 0 | AB99: 5 | AC99: 0 | AD99: 0
C100: =IF(H100="","",VLOOKUP(H100,Steuerung!$E$26:$G$49,3,FALSE)) ->  | E100: =IF(Stammdaten!$AE$29="2 - Vereinbarte Entgelte",IF(ISNUMBER(D100),IF(YEAR(D100)<Stammdaten!$AE$28,1,IF(YEAR(D100)>Stammdaten!$AE$28,12,MONTH(D100))),""),"") ->  | G100: =IF(Stammdaten!$AE$29="1 - Vereinnahmte Entgelte",IF(ISNUMBER(F100),IF(YEAR(F100)<Stammdaten!$AE$28,1,IF(YEAR(F100)>Stammdaten!$AE$28,12,MONTH(F100))),""),"") ->  | N100: =+IF(Stammdaten!$AE$30="1 - Ja",I100,L100) -> 0.00 | O100: =+IF(Stammdaten!$AE$30="1 - Ja",K100,0) ->  | U100: 0 | V100: 0 | W100: 0 | X100: 0 | Y100: 0 | AA100: 0 | AB100: 5 | AC100: 0 | AD100: 0
C101: =IF(H101="","",VLOOKUP(H101,Steuerung!$E$26:$G$49,3,FALSE)) ->  | E101: =IF(Stammdaten!$AE$29="2 - Vereinbarte Entgelte",IF(ISNUMBER(D101),IF(YEAR(D101)<Stammdaten!$AE$28,1,IF(YEAR(D101)>Stammdaten!$AE$28,12,MONTH(D101))),""),"") ->  | G101: =IF(Stammdaten!$AE$29="1 - Vereinnahmte Entgelte",IF(ISNUMBER(F101),IF(YEAR(F101)<Stammdaten!$AE$28,1,IF(YEAR(F101)>Stammdaten!$AE$28,12,MONTH(F101))),""),"") ->  | K101: =+IF(AND(ISNUMBER(I101),ISNUMBER(J101)),ROUND(I101*J101,2),"") ->  | N101: =+IF(Stammdaten!$AE$30="1 - Ja",I101,L101) -> 0.00 | O101: =+IF(Stammdaten!$AE$30="1 - Ja",K101,0) ->  | U101: =+IF(B101="",0,1) -> 0 | V101: =+IF(ISNUMBER(D101),1,0) -> 0 | W101: =+IF(H101="",0,1) -> 0 | X101: =+IF(ISNUMBER(L101),1,0) -> 0 | Y101: =+IF(ISNUMBER(F101),1,0) -> 0 | AA101: 0 | AB101: 5 | AC101: 0 | AD101: 0
C102: =IF(H102="","",VLOOKUP(H102,Steuerung!$E$26:$G$49,3,FALSE)) ->  | E102: =IF(Stammdaten!$AE$29="2 - Vereinbarte Entgelte",IF(ISNUMBER(D102),IF(YEAR(D102)<Stammdaten!$AE$28,1,IF(YEAR(D102)>Stammdaten!$AE$28,12,MONTH(D102))),""),"") ->  | G102: =IF(Stammdaten!$AE$29="1 - Vereinnahmte Entgelte",IF(ISNUMBER(F102),IF(YEAR(F102)<Stammdaten!$AE$28,1,IF(YEAR(F102)>Stammdaten!$AE$28,12,MONTH(F102))),""),"") ->  | N102: =+IF(Stammdaten!$AE$30="1 - Ja",I102,L102) -> 0.00 | O102: =+IF(Stammdaten!$AE$30="1 - Ja",K102,0) ->  | U102: 0 | V102: 0 | W102: 0 | X102: 0 | Y102: 0 | AA102: 0 | AB102: 5 | AC102: 0 | AD102: 0
C103: =IF(H103="","",VLOOKUP(H103,Steuerung!$E$26:$G$49,3,FALSE)) ->  | E103: =IF(Stammdaten!$AE$29="2 - Vereinbarte Entgelte",IF(ISNUMBER(D103),IF(YEAR(D103)<Stammdaten!$AE$28,1,IF(YEAR(D103)>Stammdaten!$AE$28,12,MONTH(D103))),""),"") ->  | G103: =IF(Stammdaten!$AE$29="1 - Vereinnahmte Entgelte",IF(ISNUMBER(F103),IF(YEAR(F103)<Stammdaten!$AE$28,1,IF(YEAR(F103)>Stammdaten!$AE$28,12,MONTH(F103))),""),"") ->  | N103: =+IF(Stammdaten!$AE$30="1 - Ja",I103,L103) -> 0.00 | O103: =+IF(Stammdaten!$AE$30="1 - Ja",K103,0) ->  | U103: 0 | V103: 0 | W103: 0 | X103: 0 | Y103: 0 | AA103: 0 | AB103: 5 | AC103: 0 | AD103: 0
C104: =IF(H104="","",VLOOKUP(H104,Steuerung!$E$26:$G$49,3,FALSE)) ->  | E104: =IF(Stammdaten!$AE$29="2 - Vereinbarte Entgelte",IF(ISNUMBER(D104),IF(YEAR(D104)<Stammdaten!$AE$28,1,IF(YEAR(D104)>Stammdaten!$AE$28,12,MONTH(D104))),""),"") ->  | G104: =IF(Stammdaten!$AE$29="1 - Vereinnahmte Entgelte",IF(ISNUMBER(F104),IF(YEAR(F104)<Stammdaten!$AE$28,1,IF(YEAR(F104)>Stammdaten!$AE$28,12,MONTH(F104))),""),"") ->  | N104: =+IF(Stammdaten!$AE$30="1 - Ja",I104,L104) -> 0.00 | O104: =+IF(Stammdaten!$AE$30="1 - Ja",K104,0) ->  | U104: 0 | V104: 0 | W104: 0 | X104: 0 | Y104: 0 | AA104: 0 | AB104: 5 | AC104: 0 | AD104: 0
C105: =IF(H105="","",VLOOKUP(H105,Steuerung!$E$26:$G$49,3,FALSE)) ->  | E105: =IF(Stammdaten!$AE$29="2 - Vereinbarte Entgelte",IF(ISNUMBER(D105),IF(YEAR(D105)<Stammdaten!$AE$28,1,IF(YEAR(D105)>Stammdaten!$AE$28,12,MONTH(D105))),""),"") ->  | G105: =IF(Stammdaten!$AE$29="1 - Vereinnahmte Entgelte",IF(ISNUMBER(F105),IF(YEAR(F105)<Stammdaten!$AE$28,1,IF(YEAR(F105)>Stammdaten!$AE$28,12,MONTH(F105))),""),"") ->  | N105: =+IF(Stammdaten!$AE$30="1 - Ja",I105,L105) -> 0.00 | O105: =+IF(Stammdaten!$AE$30="1 - Ja",K105,0) ->  | U105: 0 | V105: 0 | W105: 0 | X105: 0 | Y105: 0 | AA105: 0 | AB105: 5 | AC105: 0 | AD105: 0
C106: =IF(H106="","",VLOOKUP(H106,Steuerung!$E$26:$G$49,3,FALSE)) ->  | E106: =IF(Stammdaten!$AE$29="2 - Vereinbarte Entgelte",IF(ISNUMBER(D106),IF(YEAR(D106)<Stammdaten!$AE$28,1,IF(YEAR(D106)>Stammdaten!$AE$28,12,MONTH(D106))),""),"") ->  | G106: =IF(Stammdaten!$AE$29="1 - Vereinnahmte Entgelte",IF(ISNUMBER(F106),IF(YEAR(F106)<Stammdaten!$AE$28,1,IF(YEAR(F106)>Stammdaten!$AE$28,12,MONTH(F106))),""),"") ->  | N106: =+IF(Stammdaten!$AE$30="1 - Ja",I106,L106) -> 0.00 | O106: =+IF(Stammdaten!$AE$30="1 - Ja",K106,0) ->  | U106: 0 | V106: 0 | W106: 0 | X106: 0 | Y106: 0 | AA106: 0 | AB106: 5 | AC106: 0 | AD106: 0
C107: =IF(H107="","",VLOOKUP(H107,Steuerung!$E$26:$G$49,3,FALSE)) ->  | E107: =IF(Stammdaten!$AE$29="2 - Vereinbarte Entgelte",IF(ISNUMBER(D107),IF(YEAR(D107)<Stammdaten!$AE$28,1,IF(YEAR(D107)>Stammdaten!$AE$28,12,MONTH(D107))),""),"") ->  | G107: =IF(Stammdaten!$AE$29="1 - Vereinnahmte Entgelte",IF(ISNUMBER(F107),IF(YEAR(F107)<Stammdaten!$AE$28,1,IF(YEAR(F107)>Stammdaten!$AE$28,12,MONTH(F107))),""),"") ->  | N107: =+IF(Stammdaten!$AE$30="1 - Ja",I107,L107) -> 0.00 | O107: =+IF(Stammdaten!$AE$30="1 - Ja",K107,0) ->  | U107: 0 | V107: 0 | W107: 0 | X107: 0 | Y107: 0 | AA107: 0 | AB107: 5 | AC107: 0 | AD107: 0
C108: =IF(H108="","",VLOOKUP(H108,Steuerung!$E$26:$G$49,3,FALSE)) ->  | E108: =IF(Stammdaten!$AE$29="2 - Vereinbarte Entgelte",IF(ISNUMBER(D108),IF(YEAR(D108)<Stammdaten!$AE$28,1,IF(YEAR(D108)>Stammdaten!$AE$28,12,MONTH(D108))),""),"") ->  | G108: =IF(Stammdaten!$AE$29="1 - Vereinnahmte Entgelte",IF(ISNUMBER(F108),IF(YEAR(F108)<Stammdaten!$AE$28,1,IF(YEAR(F108)>Stammdaten!$AE$28,12,MONTH(F108))),""),"") ->  | N108: =+IF(Stammdaten!$AE$30="1 - Ja",I108,L108) -> 0.00 | O108: =+IF(Stammdaten!$AE$30="1 - Ja",K108,0) ->  | U108: 0 | V108: 0 | W108: 0 | X108: 0 | Y108: 0 | AA108: 0 | AB108: 5 | AC108: 0 | AD108: 0
C109: =IF(H109="","",VLOOKUP(H109,Steuerung!$E$26:$G$49,3,FALSE)) ->  | E109: =IF(Stammdaten!$AE$29="2 - Vereinbarte Entgelte",IF(ISNUMBER(D109),IF(YEAR(D109)<Stammdaten!$AE$28,1,IF(YEAR(D109)>Stammdaten!$AE$28,12,MONTH(D109))),""),"") ->  | G109: =IF(Stammdaten!$AE$29="1 - Vereinnahmte Entgelte",IF(ISNUMBER(F109),IF(YEAR(F109)<Stammdaten!$AE$28,1,IF(YEAR(F109)>Stammdaten!$AE$28,12,MONTH(F109))),""),"") ->  | N109: =+IF(Stammdaten!$AE$30="1 - Ja",I109,L109) -> 0.00 | O109: =+IF(Stammdaten!$AE$30="1 - Ja",K109,0) ->  | U109: 0 | V109: 0 | W109: 0 | X109: 0 | Y109: 0 | AA109: 0 | AB109: 5 | AC109: 0 | AD109: 0
C110: =IF(H110="","",VLOOKUP(H110,Steuerung!$E$26:$G$49,3,FALSE)) ->  | E110: =IF(Stammdaten!$AE$29="2 - Vereinbarte Entgelte",IF(ISNUMBER(D110),IF(YEAR(D110)<Stammdaten!$AE$28,1,IF(YEAR(D110)>Stammdaten!$AE$28,12,MONTH(D110))),""),"") ->  | G110: =IF(Stammdaten!$AE$29="1 - Vereinnahmte Entgelte",IF(ISNUMBER(F110),IF(YEAR(F110)<Stammdaten!$AE$28,1,IF(YEAR(F110)>Stammdaten!$AE$28,12,MONTH(F110))),""),"") ->  | N110: =+IF(Stammdaten!$AE$30="1 - Ja",I110,L110) -> 0.00 | O110: =+IF(Stammdaten!$AE$30="1 - Ja",K110,0) ->  | U110: 0 | V110: 0 | W110: 0 | X110: 0 | Y110: 0 | AA110: 0 | AB110: 5 | AC110: 0 | AD110: 0
C111: =IF(H111="","",VLOOKUP(H111,Steuerung!$E$26:$G$49,3,FALSE)) ->  | E111: =IF(Stammdaten!$AE$29="2 - Vereinbarte Entgelte",IF(ISNUMBER(D111),IF(YEAR(D111)<Stammdaten!$AE$28,1,IF(YEAR(D111)>Stammdaten!$AE$28,12,MONTH(D111))),""),"") ->  | G111: =IF(Stammdaten!$AE$29="1 - Vereinnahmte Entgelte",IF(ISNUMBER(F111),IF(YEAR(F111)<Stammdaten!$AE$28,1,IF(YEAR(F111)>Stammdaten!$AE$28,12,MONTH(F111))),""),"") ->  | N111: =+IF(Stammdaten!$AE$30="1 - Ja",I111,L111) -> 0.00 | O111: =+IF(Stammdaten!$AE$30="1 - Ja",K111,0) ->  | U111: 0 | V111: 0 | W111: 0 | X111: 0 | Y111: 0 | AA111: 0 | AB111: 5 | AC111: 0 | AD111: 0
C112: =IF(H112="","",VLOOKUP(H112,Steuerung!$E$26:$G$49,3,FALSE)) ->  | E112: =IF(Stammdaten!$AE$29="2 - Vereinbarte Entgelte",IF(ISNUMBER(D112),IF(YEAR(D112)<Stammdaten!$AE$28,1,IF(YEAR(D112)>Stammdaten!$AE$28,12,MONTH(D112))),""),"") ->  | G112: =IF(Stammdaten!$AE$29="1 - Vereinnahmte Entgelte",IF(ISNUMBER(F112),IF(YEAR(F112)<Stammdaten!$AE$28,1,IF(YEAR(F112)>Stammdaten!$AE$28,12,MONTH(F112))),""),"") ->  | N112: =+IF(Stammdaten!$AE$30="1 - Ja",I112,L112) -> 0.00 | O112: =+IF(Stammdaten!$AE$30="1 - Ja",K112,0) ->  | U112: 0 | V112: 0 | W112: 0 | X112: 0 | Y112: 0 | AA112: 0 | AB112: 5 | AC112: 0 | AD112: 0
C113: =IF(H113="","",VLOOKUP(H113,Steuerung!$E$26:$G$49,3,FALSE)) ->  | E113: =IF(Stammdaten!$AE$29="2 - Vereinbarte Entgelte",IF(ISNUMBER(D113),IF(YEAR(D113)<Stammdaten!$AE$28,1,IF(YEAR(D113)>Stammdaten!$AE$28,12,MONTH(D113))),""),"") ->  | G113: =IF(Stammdaten!$AE$29="1 - Vereinnahmte Entgelte",IF(ISNUMBER(F113),IF(YEAR(F113)<Stammdaten!$AE$28,1,IF(YEAR(F113)>Stammdaten!$AE$28,12,MONTH(F113))),""),"") ->  | N113: =+IF(Stammdaten!$AE$30="1 - Ja",I113,L113) -> 0.00 | O113: =+IF(Stammdaten!$AE$30="1 - Ja",K113,0) ->  | U113: 0 | V113: 0 | W113: 0 | X113: 0 | Y113: 0 | AA113: 0 | AB113: 5 | AC113: 0 | AD113: 0
C114: =IF(H114="","",VLOOKUP(H114,Steuerung!$E$26:$G$49,3,FALSE)) ->  | E114: =IF(Stammdaten!$AE$29="2 - Vereinbarte Entgelte",IF(ISNUMBER(D114),IF(YEAR(D114)<Stammdaten!$AE$28,1,IF(YEAR(D114)>Stammdaten!$AE$28,12,MONTH(D114))),""),"") ->  | G114: =IF(Stammdaten!$AE$29="1 - Vereinnahmte Entgelte",IF(ISNUMBER(F114),IF(YEAR(F114)<Stammdaten!$AE$28,1,IF(YEAR(F114)>Stammdaten!$AE$28,12,MONTH(F114))),""),"") ->  | N114: =+IF(Stammdaten!$AE$30="1 - Ja",I114,L114) -> 0.00 | O114: =+IF(Stammdaten!$AE$30="1 - Ja",K114,0) ->  | U114: 0 | V114: 0 | W114: 0 | X114: 0 | Y114: 0 | AA114: 0 | AB114: 5 | AC114: 0 | AD114: 0
C115: =IF(H115="","",VLOOKUP(H115,Steuerung!$E$26:$G$49,3,FALSE)) ->  | E115: =IF(Stammdaten!$AE$29="2 - Vereinbarte Entgelte",IF(ISNUMBER(D115),IF(YEAR(D115)<Stammdaten!$AE$28,1,IF(YEAR(D115)>Stammdaten!$AE$28,12,MONTH(D115))),""),"") ->  | G115: =IF(Stammdaten!$AE$29="1 - Vereinnahmte Entgelte",IF(ISNUMBER(F115),IF(YEAR(F115)<Stammdaten!$AE$28,1,IF(YEAR(F115)>Stammdaten!$AE$28,12,MONTH(F115))),""),"") ->  | N115: =+IF(Stammdaten!$AE$30="1 - Ja",I115,L115) -> 0.00 | O115: =+IF(Stammdaten!$AE$30="1 - Ja",K115,0) ->  | U115: 0 | V115: 0 | W115: 0 | X115: 0 | Y115: 0 | AA115: 0 | AB115: 5 | AC115: 0 | AD115: 0
C116: =IF(H116="","",VLOOKUP(H116,Steuerung!$E$26:$G$49,3,FALSE)) ->  | E116: =IF(Stammdaten!$AE$29="2 - Vereinbarte Entgelte",IF(ISNUMBER(D116),IF(YEAR(D116)<Stammdaten!$AE$28,1,IF(YEAR(D116)>Stammdaten!$AE$28,12,MONTH(D116))),""),"") ->  | G116: =IF(Stammdaten!$AE$29="1 - Vereinnahmte Entgelte",IF(ISNUMBER(F116),IF(YEAR(F116)<Stammdaten!$AE$28,1,IF(YEAR(F116)>Stammdaten!$AE$28,12,MONTH(F116))),""),"") ->  | N116: =+IF(Stammdaten!$AE$30="1 - Ja",I116,L116) -> 0.00 | O116: =+IF(Stammdaten!$AE$30="1 - Ja",K116,0) ->  | U116: 0 | V116: 0 | W116: 0 | X116: 0 | Y116: 0 | AA116: 0 | AB116: 5 | AC116: 0 | AD116: 0
C117: =IF(H117="","",VLOOKUP(H117,Steuerung!$E$26:$G$49,3,FALSE)) ->  | E117: =IF(Stammdaten!$AE$29="2 - Vereinbarte Entgelte",IF(ISNUMBER(D117),IF(YEAR(D117)<Stammdaten!$AE$28,1,IF(YEAR(D117)>Stammdaten!$AE$28,12,MONTH(D117))),""),"") ->  | G117: =IF(Stammdaten!$AE$29="1 - Vereinnahmte Entgelte",IF(ISNUMBER(F117),IF(YEAR(F117)<Stammdaten!$AE$28,1,IF(YEAR(F117)>Stammdaten!$AE$28,12,MONTH(F117))),""),"") ->  | N117: =+IF(Stammdaten!$AE$30="1 - Ja",I117,L117) -> 0.00 | O117: =+IF(Stammdaten!$AE$30="1 - Ja",K117,0) ->  | U117: 0 | V117: 0 | W117: 0 | X117: 0 | Y117: 0 | AA117: 0 | AB117: 5 | AC117: 0 | AD117: 0
C118: =IF(H118="","",VLOOKUP(H118,Steuerung!$E$26:$G$49,3,FALSE)) ->  | E118: =IF(Stammdaten!$AE$29="2 - Vereinbarte Entgelte",IF(ISNUMBER(D118),IF(YEAR(D118)<Stammdaten!$AE$28,1,IF(YEAR(D118)>Stammdaten!$AE$28,12,MONTH(D118))),""),"") ->  | G118: =IF(Stammdaten!$AE$29="1 - Vereinnahmte Entgelte",IF(ISNUMBER(F118),IF(YEAR(F118)<Stammdaten!$AE$28,1,IF(YEAR(F118)>Stammdaten!$AE$28,12,MONTH(F118))),""),"") ->  | N118: =+IF(Stammdaten!$AE$30="1 - Ja",I118,L118) -> 0.00 | O118: =+IF(Stammdaten!$AE$30="1 - Ja",K118,0) ->  | U118: 0 | V118: 0 | W118: 0 | X118: 0 | Y118: 0 | AA118: 0 | AB118: 5 | AC118: 0 | AD118: 0
C119: =IF(H119="","",VLOOKUP(H119,Steuerung!$E$26:$G$49,3,FALSE)) ->  | E119: =IF(Stammdaten!$AE$29="2 - Vereinbarte Entgelte",IF(ISNUMBER(D119),IF(YEAR(D119)<Stammdaten!$AE$28,1,IF(YEAR(D119)>Stammdaten!$AE$28,12,MONTH(D119))),""),"") ->  | G119: =IF(Stammdaten!$AE$29="1 - Vereinnahmte Entgelte",IF(ISNUMBER(F119),IF(YEAR(F119)<Stammdaten!$AE$28,1,IF(YEAR(F119)>Stammdaten!$AE$28,12,MONTH(F119))),""),"") ->  | N119: =+IF(Stammdaten!$AE$30="1 - Ja",I119,L119) -> 0.00 | O119: =+IF(Stammdaten!$AE$30="1 - Ja",K119,0) ->  | U119: 0 | V119: 0 | W119: 0 | X119: 0 | Y119: 0 | AA119: 0 | AB119: 5 | AC119: 0 | AD119: 0
C120: =IF(H120="","",VLOOKUP(H120,Steuerung!$E$26:$G$49,3,FALSE)) ->  | E120: =IF(Stammdaten!$AE$29="2 - Vereinbarte Entgelte",IF(ISNUMBER(D120),IF(YEAR(D120)<Stammdaten!$AE$28,1,IF(YEAR(D120)>Stammdaten!$AE$28,12,MONTH(D120))),""),"") ->  | G120: =IF(Stammdaten!$AE$29="1 - Vereinnahmte Entgelte",IF(ISNUMBER(F120),IF(YEAR(F120)<Stammdaten!$AE$28,1,IF(YEAR(F120)>Stammdaten!$AE$28,12,MONTH(F120))),""),"") ->  | N120: =+IF(Stammdaten!$AE$30="1 - Ja",I120,L120) -> 0.00 | O120: =+IF(Stammdaten!$AE$30="1 - Ja",K120,0) ->  | U120: 0 | V120: 0 | W120: 0 | X120: 0 | Y120: 0 | AA120: 0 | AB120: 5 | AC120: 0 | AD120: 0
C121: =IF(H121="","",VLOOKUP(H121,Steuerung!$E$26:$G$49,3,FALSE)) ->  | E121: =IF(Stammdaten!$AE$29="2 - Vereinbarte Entgelte",IF(ISNUMBER(D121),IF(YEAR(D121)<Stammdaten!$AE$28,1,IF(YEAR(D121)>Stammdaten!$AE$28,12,MONTH(D121))),""),"") ->  | G121: =IF(Stammdaten!$AE$29="1 - Vereinnahmte Entgelte",IF(ISNUMBER(F121),IF(YEAR(F121)<Stammdaten!$AE$28,1,IF(YEAR(F121)>Stammdaten!$AE$28,12,MONTH(F121))),""),"") ->  | N121: =+IF(Stammdaten!$AE$30="1 - Ja",I121,L121) -> 0.00 | O121: =+IF(Stammdaten!$AE$30="1 - Ja",K121,0) ->  | U121: 0 | V121: 0 | W121: 0 | X121: 0 | Y121: 0 | AA121: 0 | AB121: 5 | AC121: 0 | AD121: 0
C122: =IF(H122="","",VLOOKUP(H122,Steuerung!$E$26:$G$49,3,FALSE)) ->  | E122: =IF(Stammdaten!$AE$29="2 - Vereinbarte Entgelte",IF(ISNUMBER(D122),IF(YEAR(D122)<Stammdaten!$AE$28,1,IF(YEAR(D122)>Stammdaten!$AE$28,12,MONTH(D122))),""),"") ->  | G122: =IF(Stammdaten!$AE$29="1 - Vereinnahmte Entgelte",IF(ISNUMBER(F122),IF(YEAR(F122)<Stammdaten!$AE$28,1,IF(YEAR(F122)>Stammdaten!$AE$28,12,MONTH(F122))),""),"") ->  | N122: =+IF(Stammdaten!$AE$30="1 - Ja",I122,L122) -> 0.00 | O122: =+IF(Stammdaten!$AE$30="1 - Ja",K122,0) ->  | U122: 0 | V122: 0 | W122: 0 | X122: 0 | Y122: 0 | AA122: 0 | AB122: 5 | AC122: 0 | AD122: 0
C123: =IF(H123="","",VLOOKUP(H123,Steuerung!$E$26:$G$49,3,FALSE)) ->  | E123: =IF(Stammdaten!$AE$29="2 - Vereinbarte Entgelte",IF(ISNUMBER(D123),IF(YEAR(D123)<Stammdaten!$AE$28,1,IF(YEAR(D123)>Stammdaten!$AE$28,12,MONTH(D123))),""),"") ->  | G123: =IF(Stammdaten!$AE$29="1 - Vereinnahmte Entgelte",IF(ISNUMBER(F123),IF(YEAR(F123)<Stammdaten!$AE$28,1,IF(YEAR(F123)>Stammdaten!$AE$28,12,MONTH(F123))),""),"") ->  | N123: =+IF(Stammdaten!$AE$30="1 - Ja",I123,L123) -> 0.00 | O123: =+IF(Stammdaten!$AE$30="1 - Ja",K123,0) ->  | U123: 0 | V123: 0 | W123: 0 | X123: 0 | Y123: 0 | AA123: 0 | AB123: 5 | AC123: 0 | AD123: 0
C124: =IF(H124="","",VLOOKUP(H124,Steuerung!$E$26:$G$49,3,FALSE)) ->  | E124: =IF(Stammdaten!$AE$29="2 - Vereinbarte Entgelte",IF(ISNUMBER(D124),IF(YEAR(D124)<Stammdaten!$AE$28,1,IF(YEAR(D124)>Stammdaten!$AE$28,12,MONTH(D124))),""),"") ->  | G124: =IF(Stammdaten!$AE$29="1 - Vereinnahmte Entgelte",IF(ISNUMBER(F124),IF(YEAR(F124)<Stammdaten!$AE$28,1,IF(YEAR(F124)>Stammdaten!$AE$28,12,MONTH(F124))),""),"") ->  | N124: =+IF(Stammdaten!$AE$30="1 - Ja",I124,L124) -> 0.00 | O124: =+IF(Stammdaten!$AE$30="1 - Ja",K124,0) ->  | U124: 0 | V124: 0 | W124: 0 | X124: 0 | Y124: 0 | AA124: 0 | AB124: 5 | AC124: 0 | AD124: 0
C125: =IF(H125="","",VLOOKUP(H125,Steuerung!$E$26:$G$49,3,FALSE)) ->  | E125: =IF(Stammdaten!$AE$29="2 - Vereinbarte Entgelte",IF(ISNUMBER(D125),IF(YEAR(D125)<Stammdaten!$AE$28,1,IF(YEAR(D125)>Stammdaten!$AE$28,12,MONTH(D125))),""),"") ->  | G125: =IF(Stammdaten!$AE$29="1 - Vereinnahmte Entgelte",IF(ISNUMBER(F125),IF(YEAR(F125)<Stammdaten!$AE$28,1,IF(YEAR(F125)>Stammdaten!$AE$28,12,MONTH(F125))),""),"") ->  | N125: =+IF(Stammdaten!$AE$30="1 - Ja",I125,L125) -> 0.00 | O125: =+IF(Stammdaten!$AE$30="1 - Ja",K125,0) ->  | U125: 0 | V125: 0 | W125: 0 | X125: 0 | Y125: 0 | AA125: 0 | AB125: 5 | AC125: 0 | AD125: 0
C126: =IF(H126="","",VLOOKUP(H126,Steuerung!$E$26:$G$49,3,FALSE)) ->  | E126: =IF(Stammdaten!$AE$29="2 - Vereinbarte Entgelte",IF(ISNUMBER(D126),IF(YEAR(D126)<Stammdaten!$AE$28,1,IF(YEAR(D126)>Stammdaten!$AE$28,12,MONTH(D126))),""),"") ->  | G126: =IF(Stammdaten!$AE$29="1 - Vereinnahmte Entgelte",IF(ISNUMBER(F126),IF(YEAR(F126)<Stammdaten!$AE$28,1,IF(YEAR(F126)>Stammdaten!$AE$28,12,MONTH(F126))),""),"") ->  | N126: =+IF(Stammdaten!$AE$30="1 - Ja",I126,L126) -> 0.00 | O126: =+IF(Stammdaten!$AE$30="1 - Ja",K126,0) ->  | U126: 0 | V126: 0 | W126: 0 | X126: 0 | Y126: 0 | AA126: 0 | AB126: 5 | AC126: 0 | AD126: 0
C127: =IF(H127="","",VLOOKUP(H127,Steuerung!$E$26:$G$49,3,FALSE)) ->  | E127: =IF(Stammdaten!$AE$29="2 - Vereinbarte Entgelte",IF(ISNUMBER(D127),IF(YEAR(D127)<Stammdaten!$AE$28,1,IF(YEAR(D127)>Stammdaten!$AE$28,12,MONTH(D127))),""),"") ->  | G127: =IF(Stammdaten!$AE$29="1 - Vereinnahmte Entgelte",IF(ISNUMBER(F127),IF(YEAR(F127)<Stammdaten!$AE$28,1,IF(YEAR(F127)>Stammdaten!$AE$28,12,MONTH(F127))),""),"") ->  | N127: =+IF(Stammdaten!$AE$30="1 - Ja",I127,L127) -> 0.00 | O127: =+IF(Stammdaten!$AE$30="1 - Ja",K127,0) ->  | U127: 0 | V127: 0 | W127: 0 | X127: 0 | Y127: 0 | AA127: 0 | AB127: 5 | AC127: 0 | AD127: 0
C128: =IF(H128="","",VLOOKUP(H128,Steuerung!$E$26:$G$49,3,FALSE)) ->  | E128: =IF(Stammdaten!$AE$29="2 - Vereinbarte Entgelte",IF(ISNUMBER(D128),IF(YEAR(D128)<Stammdaten!$AE$28,1,IF(YEAR(D128)>Stammdaten!$AE$28,12,MONTH(D128))),""),"") ->  | G128: =IF(Stammdaten!$AE$29="1 - Vereinnahmte Entgelte",IF(ISNUMBER(F128),IF(YEAR(F128)<Stammdaten!$AE$28,1,IF(YEAR(F128)>Stammdaten!$AE$28,12,MONTH(F128))),""),"") ->  | N128: =+IF(Stammdaten!$AE$30="1 - Ja",I128,L128) -> 0.00 | O128: =+IF(Stammdaten!$AE$30="1 - Ja",K128,0) ->  | U128: 0 | V128: 0 | W128: 0 | X128: 0 | Y128: 0 | AA128: 0 | AB128: 5 | AC128: 0 | AD128: 0
C129: =IF(H129="","",VLOOKUP(H129,Steuerung!$E$26:$G$49,3,FALSE)) ->  | E129: =IF(Stammdaten!$AE$29="2 - Vereinbarte Entgelte",IF(ISNUMBER(D129),IF(YEAR(D129)<Stammdaten!$AE$28,1,IF(YEAR(D129)>Stammdaten!$AE$28,12,MONTH(D129))),""),"") ->  | G129: =IF(Stammdaten!$AE$29="1 - Vereinnahmte Entgelte",IF(ISNUMBER(F129),IF(YEAR(F129)<Stammdaten!$AE$28,1,IF(YEAR(F129)>Stammdaten!$AE$28,12,MONTH(F129))),""),"") ->  | N129: =+IF(Stammdaten!$AE$30="1 - Ja",I129,L129) -> 0.00 | O129: =+IF(Stammdaten!$AE$30="1 - Ja",K129,0) ->  | U129: 0 | V129: 0 | W129: 0 | X129: 0 | Y129: 0 | AA129: 0 | AB129: 5 | AC129: 0 | AD129: 0
C130: =IF(H130="","",VLOOKUP(H130,Steuerung!$E$26:$G$49,3,FALSE)) ->  | E130: =IF(Stammdaten!$AE$29="2 - Vereinbarte Entgelte",IF(ISNUMBER(D130),IF(YEAR(D130)<Stammdaten!$AE$28,1,IF(YEAR(D130)>Stammdaten!$AE$28,12,MONTH(D130))),""),"") ->  | G130: =IF(Stammdaten!$AE$29="1 - Vereinnahmte Entgelte",IF(ISNUMBER(F130),IF(YEAR(F130)<Stammdaten!$AE$28,1,IF(YEAR(F130)>Stammdaten!$AE$28,12,MONTH(F130))),""),"") ->  | N130: =+IF(Stammdaten!$AE$30="1 - Ja",I130,L130) -> 0.00 | O130: =+IF(Stammdaten!$AE$30="1 - Ja",K130,0) ->  | U130: 0 | V130: 0 | W130: 0 | X130: 0 | Y130: 0 | AA130: 0 | AB130: 5 | AC130: 0 | AD130: 0
C131: =IF(H131="","",VLOOKUP(H131,Steuerung!$E$26:$G$49,3,FALSE)) ->  | E131: =IF(Stammdaten!$AE$29="2 - Vereinbarte Entgelte",IF(ISNUMBER(D131),IF(YEAR(D131)<Stammdaten!$AE$28,1,IF(YEAR(D131)>Stammdaten!$AE$28,12,MONTH(D131))),""),"") ->  | G131: =IF(Stammdaten!$AE$29="1 - Vereinnahmte Entgelte",IF(ISNUMBER(F131),IF(YEAR(F131)<Stammdaten!$AE$28,1,IF(YEAR(F131)>Stammdaten!$AE$28,12,MONTH(F131))),""),"") ->  | N131: =+IF(Stammdaten!$AE$30="1 - Ja",I131,L131) -> 0.00 | O131: =+IF(Stammdaten!$AE$30="1 - Ja",K131,0) ->  | U131: 0 | V131: 0 | W131: 0 | X131: 0 | Y131: 0 | AA131: 0 | AB131: 5 | AC131: 0 | AD131: 0
C132: =IF(H132="","",VLOOKUP(H132,Steuerung!$E$26:$G$49,3,FALSE)) ->  | E132: =IF(Stammdaten!$AE$29="2 - Vereinbarte Entgelte",IF(ISNUMBER(D132),IF(YEAR(D132)<Stammdaten!$AE$28,1,IF(YEAR(D132)>Stammdaten!$AE$28,12,MONTH(D132))),""),"") ->  | G132: =IF(Stammdaten!$AE$29="1 - Vereinnahmte Entgelte",IF(ISNUMBER(F132),IF(YEAR(F132)<Stammdaten!$AE$28,1,IF(YEAR(F132)>Stammdaten!$AE$28,12,MONTH(F132))),""),"") ->  | N132: =+IF(Stammdaten!$AE$30="1 - Ja",I132,L132) -> 0.00 | O132: =+IF(Stammdaten!$AE$30="1 - Ja",K132,0) ->  | U132: 0 | V132: 0 | W132: 0 | X132: 0 | Y132: 0 | AA132: 0 | AB132: 5 | AC132: 0 | AD132: 0
C133: =IF(H133="","",VLOOKUP(H133,Steuerung!$E$26:$G$49,3,FALSE)) ->  | E133: =IF(Stammdaten!$AE$29="2 - Vereinbarte Entgelte",IF(ISNUMBER(D133),IF(YEAR(D133)<Stammdaten!$AE$28,1,IF(YEAR(D133)>Stammdaten!$AE$28,12,MONTH(D133))),""),"") ->  | G133: =IF(Stammdaten!$AE$29="1 - Vereinnahmte Entgelte",IF(ISNUMBER(F133),IF(YEAR(F133)<Stammdaten!$AE$28,1,IF(YEAR(F133)>Stammdaten!$AE$28,12,MONTH(F133))),""),"") ->  | K133: =+IF(AND(ISNUMBER(I133),ISNUMBER(J133)),ROUND(I133*J133,2),"") ->  | N133: =+IF(Stammdaten!$AE$30="1 - Ja",I133,L133) -> 0.00 | O133: =+IF(Stammdaten!$AE$30="1 - Ja",K133,0) ->  | U133: =+IF(B133="",0,1) -> 0 | V133: =+IF(ISNUMBER(D133),1,0) -> 0 | W133: =+IF(H133="",0,1) -> 0 | X133: =+IF(ISNUMBER(L133),1,0) -> 0 | Y133: =+IF(ISNUMBER(F133),1,0) -> 0 | AA133: 0 | AB133: 5 | AC133: 0 | AD133: 0
C134: =IF(H134="","",VLOOKUP(H134,Steuerung!$E$26:$G$49,3,FALSE)) ->  | E134: =IF(Stammdaten!$AE$29="2 - Vereinbarte Entgelte",IF(ISNUMBER(D134),IF(YEAR(D134)<Stammdaten!$AE$28,1,IF(YEAR(D134)>Stammdaten!$AE$28,12,MONTH(D134))),""),"") ->  | G134: =IF(Stammdaten!$AE$29="1 - Vereinnahmte Entgelte",IF(ISNUMBER(F134),IF(YEAR(F134)<Stammdaten!$AE$28,1,IF(YEAR(F134)>Stammdaten!$AE$28,12,MONTH(F134))),""),"") ->  | L134: =+IF(AND(ISNUMBER(I134),ISNUMBER(K134)),I134+K134,"") ->  | N134: =+IF(Stammdaten!$AE$30="1 - Ja",I134,L134) -> 0.00 | O134: =+IF(Stammdaten!$AE$30="1 - Ja",K134,0) ->  | Q134: =+IF(AD134=0,"","Eingaben unvollständig") ->  | U134: 0 | V134: 0 | W134: 0 | X134: 0 | Y134: 0 | AA134: =+SUM(U134:Z134) -> 0 | AB134: =+$AB$3 -> 5 | AC134: =+IF(AA134=AB134,1,0) -> 0 | AD134: =+IF(AND(AA134>0,AC134=0),1,0) -> 0
C135: =IF(H135="","",VLOOKUP(H135,Steuerung!$E$26:$G$49,3,FALSE)) ->  | E135: =IF(Stammdaten!$AE$29="2 - Vereinbarte Entgelte",IF(ISNUMBER(D135),IF(YEAR(D135)<Stammdaten!$AE$28,1,IF(YEAR(D135)>Stammdaten!$AE$28,12,MONTH(D135))),""),"") ->  | G135: =IF(Stammdaten!$AE$29="1 - Vereinnahmte Entgelte",IF(ISNUMBER(F135),IF(YEAR(F135)<Stammdaten!$AE$28,1,IF(YEAR(F135)>Stammdaten!$AE$28,12,MONTH(F135))),""),"") ->  | N135: =+IF(Stammdaten!$AE$30="1 - Ja",I135,L135) -> 0.00 | O135: =+IF(Stammdaten!$AE$30="1 - Ja",K135,0) ->  | U135: 0 | V135: 0 | W135: 0 | X135: 0 | Y135: 0 | AA135: 0 | AB135: 5 | AC135: 0 | AD135: 0
C136: =IF(H136="","",VLOOKUP(H136,Steuerung!$E$26:$G$49,3,FALSE)) ->  | E136: =IF(Stammdaten!$AE$29="2 - Vereinbarte Entgelte",IF(ISNUMBER(D136),IF(YEAR(D136)<Stammdaten!$AE$28,1,IF(YEAR(D136)>Stammdaten!$AE$28,12,MONTH(D136))),""),"") ->  | G136: =IF(Stammdaten!$AE$29="1 - Vereinnahmte Entgelte",IF(ISNUMBER(F136),IF(YEAR(F136)<Stammdaten!$AE$28,1,IF(YEAR(F136)>Stammdaten!$AE$28,12,MONTH(F136))),""),"") ->  | N136: =+IF(Stammdaten!$AE$30="1 - Ja",I136,L136) -> 0.00 | O136: =+IF(Stammdaten!$AE$30="1 - Ja",K136,0) ->  | U136: 0 | V136: 0 | W136: 0 | X136: 0 | Y136: 0 | AA136: 0 | AB136: 5 | AC136: 0 | AD136: 0
C137: =IF(H137="","",VLOOKUP(H137,Steuerung!$E$26:$G$49,3,FALSE)) ->  | E137: =IF(Stammdaten!$AE$29="2 - Vereinbarte Entgelte",IF(ISNUMBER(D137),IF(YEAR(D137)<Stammdaten!$AE$28,1,IF(YEAR(D137)>Stammdaten!$AE$28,12,MONTH(D137))),""),"") ->  | G137: =IF(Stammdaten!$AE$29="1 - Vereinnahmte Entgelte",IF(ISNUMBER(F137),IF(YEAR(F137)<Stammdaten!$AE$28,1,IF(YEAR(F137)>Stammdaten!$AE$28,12,MONTH(F137))),""),"") ->  | N137: =+IF(Stammdaten!$AE$30="1 - Ja",I137,L137) -> 0.00 | O137: =+IF(Stammdaten!$AE$30="1 - Ja",K137,0) ->  | U137: 0 | V137: 0 | W137: 0 | X137: 0 | Y137: 0 | AA137: 0 | AB137: 5 | AC137: 0 | AD137: 0
C138: =IF(H138="","",VLOOKUP(H138,Steuerung!$E$26:$G$49,3,FALSE)) ->  | E138: =IF(Stammdaten!$AE$29="2 - Vereinbarte Entgelte",IF(ISNUMBER(D138),IF(YEAR(D138)<Stammdaten!$AE$28,1,IF(YEAR(D138)>Stammdaten!$AE$28,12,MONTH(D138))),""),"") ->  | G138: =IF(Stammdaten!$AE$29="1 - Vereinnahmte Entgelte",IF(ISNUMBER(F138),IF(YEAR(F138)<Stammdaten!$AE$28,1,IF(YEAR(F138)>Stammdaten!$AE$28,12,MONTH(F138))),""),"") ->  | N138: =+IF(Stammdaten!$AE$30="1 - Ja",I138,L138) -> 0.00 | O138: =+IF(Stammdaten!$AE$30="1 - Ja",K138,0) ->  | U138: 0 | V138: 0 | W138: 0 | X138: 0 | Y138: 0 | AA138: 0 | AB138: 5 | AC138: 0 | AD138: 0
C139: =IF(H139="","",VLOOKUP(H139,Steuerung!$E$26:$G$49,3,FALSE)) ->  | E139: =IF(Stammdaten!$AE$29="2 - Vereinbarte Entgelte",IF(ISNUMBER(D139),IF(YEAR(D139)<Stammdaten!$AE$28,1,IF(YEAR(D139)>Stammdaten!$AE$28,12,MONTH(D139))),""),"") ->  | G139: =IF(Stammdaten!$AE$29="1 - Vereinnahmte Entgelte",IF(ISNUMBER(F139),IF(YEAR(F139)<Stammdaten!$AE$28,1,IF(YEAR(F139)>Stammdaten!$AE$28,12,MONTH(F139))),""),"") ->  | N139: =+IF(Stammdaten!$AE$30="1 - Ja",I139,L139) -> 0.00 | O139: =+IF(Stammdaten!$AE$30="1 - Ja",K139,0) ->  | U139: 0 | V139: 0 | W139: 0 | X139: 0 | Y139: 0 | AA139: 0 | AB139: 5 | AC139: 0 | AD139: 0
C140: =IF(H140="","",VLOOKUP(H140,Steuerung!$E$26:$G$49,3,FALSE)) ->  | E140: =IF(Stammdaten!$AE$29="2 - Vereinbarte Entgelte",IF(ISNUMBER(D140),IF(YEAR(D140)<Stammdaten!$AE$28,1,IF(YEAR(D140)>Stammdaten!$AE$28,12,MONTH(D140))),""),"") ->  | G140: =IF(Stammdaten!$AE$29="1 - Vereinnahmte Entgelte",IF(ISNUMBER(F140),IF(YEAR(F140)<Stammdaten!$AE$28,1,IF(YEAR(F140)>Stammdaten!$AE$28,12,MONTH(F140))),""),"") ->  | N140: =+IF(Stammdaten!$AE$30="1 - Ja",I140,L140) -> 0.00 | O140: =+IF(Stammdaten!$AE$30="1 - Ja",K140,0) ->  | U140: 0 | V140: 0 | W140: 0 | X140: 0 | Y140: 0 | AA140: 0 | AB140: 5 | AC140: 0 | AD140: 0
C141: =IF(H141="","",VLOOKUP(H141,Steuerung!$E$26:$G$49,3,FALSE)) ->  | E141: =IF(Stammdaten!$AE$29="2 - Vereinbarte Entgelte",IF(ISNUMBER(D141),IF(YEAR(D141)<Stammdaten!$AE$28,1,IF(YEAR(D141)>Stammdaten!$AE$28,12,MONTH(D141))),""),"") ->  | G141: =IF(Stammdaten!$AE$29="1 - Vereinnahmte Entgelte",IF(ISNUMBER(F141),IF(YEAR(F141)<Stammdaten!$AE$28,1,IF(YEAR(F141)>Stammdaten!$AE$28,12,MONTH(F141))),""),"") ->  | N141: =+IF(Stammdaten!$AE$30="1 - Ja",I141,L141) -> 0.00 | O141: =+IF(Stammdaten!$AE$30="1 - Ja",K141,0) ->  | U141: 0 | V141: 0 | W141: 0 | X141: 0 | Y141: 0 | AA141: 0 | AB141: 5 | AC141: 0 | AD141: 0
C142: =IF(H142="","",VLOOKUP(H142,Steuerung!$E$26:$G$49,3,FALSE)) ->  | E142: =IF(Stammdaten!$AE$29="2 - Vereinbarte Entgelte",IF(ISNUMBER(D142),IF(YEAR(D142)<Stammdaten!$AE$28,1,IF(YEAR(D142)>Stammdaten!$AE$28,12,MONTH(D142))),""),"") ->  | G142: =IF(Stammdaten!$AE$29="1 - Vereinnahmte Entgelte",IF(ISNUMBER(F142),IF(YEAR(F142)<Stammdaten!$AE$28,1,IF(YEAR(F142)>Stammdaten!$AE$28,12,MONTH(F142))),""),"") ->  | N142: =+IF(Stammdaten!$AE$30="1 - Ja",I142,L142) -> 0.00 | O142: =+IF(Stammdaten!$AE$30="1 - Ja",K142,0) ->  | U142: 0 | V142: 0 | W142: 0 | X142: 0 | Y142: 0 | AA142: 0 | AB142: 5 | AC142: 0 | AD142: 0
C143: =IF(H143="","",VLOOKUP(H143,Steuerung!$E$26:$G$49,3,FALSE)) ->  | E143: =IF(Stammdaten!$AE$29="2 - Vereinbarte Entgelte",IF(ISNUMBER(D143),IF(YEAR(D143)<Stammdaten!$AE$28,1,IF(YEAR(D143)>Stammdaten!$AE$28,12,MONTH(D143))),""),"") ->  | G143: =IF(Stammdaten!$AE$29="1 - Vereinnahmte Entgelte",IF(ISNUMBER(F143),IF(YEAR(F143)<Stammdaten!$AE$28,1,IF(YEAR(F143)>Stammdaten!$AE$28,12,MONTH(F143))),""),"") ->  | N143: =+IF(Stammdaten!$AE$30="1 - Ja",I143,L143) -> 0.00 | O143: =+IF(Stammdaten!$AE$30="1 - Ja",K143,0) ->  | U143: 0 | V143: 0 | W143: 0 | X143: 0 | Y143: 0 | AA143: 0 | AB143: 5 | AC143: 0 | AD143: 0
C144: =IF(H144="","",VLOOKUP(H144,Steuerung!$E$26:$G$49,3,FALSE)) ->  | E144: =IF(Stammdaten!$AE$29="2 - Vereinbarte Entgelte",IF(ISNUMBER(D144),IF(YEAR(D144)<Stammdaten!$AE$28,1,IF(YEAR(D144)>Stammdaten!$AE$28,12,MONTH(D144))),""),"") ->  | G144: =IF(Stammdaten!$AE$29="1 - Vereinnahmte Entgelte",IF(ISNUMBER(F144),IF(YEAR(F144)<Stammdaten!$AE$28,1,IF(YEAR(F144)>Stammdaten!$AE$28,12,MONTH(F144))),""),"") ->  | N144: =+IF(Stammdaten!$AE$30="1 - Ja",I144,L144) -> 0.00 | O144: =+IF(Stammdaten!$AE$30="1 - Ja",K144,0) ->  | U144: 0 | V144: 0 | W144: 0 | X144: 0 | Y144: 0 | AA144: 0 | AB144: 5 | AC144: 0 | AD144: 0
C145: =IF(H145="","",VLOOKUP(H145,Steuerung!$E$26:$G$49,3,FALSE)) ->  | E145: =IF(Stammdaten!$AE$29="2 - Vereinbarte Entgelte",IF(ISNUMBER(D145),IF(YEAR(D145)<Stammdaten!$AE$28,1,IF(YEAR(D145)>Stammdaten!$AE$28,12,MONTH(D145))),""),"") ->  | G145: =IF(Stammdaten!$AE$29="1 - Vereinnahmte Entgelte",IF(ISNUMBER(F145),IF(YEAR(F145)<Stammdaten!$AE$28,1,IF(YEAR(F145)>Stammdaten!$AE$28,12,MONTH(F145))),""),"") ->  | N145: =+IF(Stammdaten!$AE$30="1 - Ja",I145,L145) -> 0.00 | O145: =+IF(Stammdaten!$AE$30="1 - Ja",K145,0) ->  | U145: 0 | V145: 0 | W145: 0 | X145: 0 | Y145: 0 | AA145: 0 | AB145: 5 | AC145: 0 | AD145: 0
C146: =IF(H146="","",VLOOKUP(H146,Steuerung!$E$26:$G$49,3,FALSE)) ->  | E146: =IF(Stammdaten!$AE$29="2 - Vereinbarte Entgelte",IF(ISNUMBER(D146),IF(YEAR(D146)<Stammdaten!$AE$28,1,IF(YEAR(D146)>Stammdaten!$AE$28,12,MONTH(D146))),""),"") ->  | G146: =IF(Stammdaten!$AE$29="1 - Vereinnahmte Entgelte",IF(ISNUMBER(F146),IF(YEAR(F146)<Stammdaten!$AE$28,1,IF(YEAR(F146)>Stammdaten!$AE$28,12,MONTH(F146))),""),"") ->  | N146: =+IF(Stammdaten!$AE$30="1 - Ja",I146,L146) -> 0.00 | O146: =+IF(Stammdaten!$AE$30="1 - Ja",K146,0) ->  | U146: 0 | V146: 0 | W146: 0 | X146: 0 | Y146: 0 | AA146: 0 | AB146: 5 | AC146: 0 | AD146: 0
C147: =IF(H147="","",VLOOKUP(H147,Steuerung!$E$26:$G$49,3,FALSE)) ->  | E147: =IF(Stammdaten!$AE$29="2 - Vereinbarte Entgelte",IF(ISNUMBER(D147),IF(YEAR(D147)<Stammdaten!$AE$28,1,IF(YEAR(D147)>Stammdaten!$AE$28,12,MONTH(D147))),""),"") ->  | G147: =IF(Stammdaten!$AE$29="1 - Vereinnahmte Entgelte",IF(ISNUMBER(F147),IF(YEAR(F147)<Stammdaten!$AE$28,1,IF(YEAR(F147)>Stammdaten!$AE$28,12,MONTH(F147))),""),"") ->  | N147: =+IF(Stammdaten!$AE$30="1 - Ja",I147,L147) -> 0.00 | O147: =+IF(Stammdaten!$AE$30="1 - Ja",K147,0) ->  | U147: 0 | V147: 0 | W147: 0 | X147: 0 | Y147: 0 | AA147: 0 | AB147: 5 | AC147: 0 | AD147: 0
C148: =IF(H148="","",VLOOKUP(H148,Steuerung!$E$26:$G$49,3,FALSE)) ->  | E148: =IF(Stammdaten!$AE$29="2 - Vereinbarte Entgelte",IF(ISNUMBER(D148),IF(YEAR(D148)<Stammdaten!$AE$28,1,IF(YEAR(D148)>Stammdaten!$AE$28,12,MONTH(D148))),""),"") ->  | G148: =IF(Stammdaten!$AE$29="1 - Vereinnahmte Entgelte",IF(ISNUMBER(F148),IF(YEAR(F148)<Stammdaten!$AE$28,1,IF(YEAR(F148)>Stammdaten!$AE$28,12,MONTH(F148))),""),"") ->  | N148: =+IF(Stammdaten!$AE$30="1 - Ja",I148,L148) -> 0.00 | O148: =+IF(Stammdaten!$AE$30="1 - Ja",K148,0) ->  | U148: 0 | V148: 0 | W148: 0 | X148: 0 | Y148: 0 | AA148: 0 | AB148: 5 | AC148: 0 | AD148: 0
C149: =IF(H149="","",VLOOKUP(H149,Steuerung!$E$26:$G$49,3,FALSE)) ->  | E149: =IF(Stammdaten!$AE$29="2 - Vereinbarte Entgelte",IF(ISNUMBER(D149),IF(YEAR(D149)<Stammdaten!$AE$28,1,IF(YEAR(D149)>Stammdaten!$AE$28,12,MONTH(D149))),""),"") ->  | G149: =IF(Stammdaten!$AE$29="1 - Vereinnahmte Entgelte",IF(ISNUMBER(F149),IF(YEAR(F149)<Stammdaten!$AE$28,1,IF(YEAR(F149)>Stammdaten!$AE$28,12,MONTH(F149))),""),"") ->  | N149: =+IF(Stammdaten!$AE$30="1 - Ja",I149,L149) -> 0.00 | O149: =+IF(Stammdaten!$AE$30="1 - Ja",K149,0) ->  | U149: 0 | V149: 0 | W149: 0 | X149: 0 | Y149: 0 | AA149: 0 | AB149: 5 | AC149: 0 | AD149: 0
C150: =IF(H150="","",VLOOKUP(H150,Steuerung!$E$26:$G$49,3,FALSE)) ->  | E150: =IF(Stammdaten!$AE$29="2 - Vereinbarte Entgelte",IF(ISNUMBER(D150),IF(YEAR(D150)<Stammdaten!$AE$28,1,IF(YEAR(D150)>Stammdaten!$AE$28,12,MONTH(D150))),""),"") ->  | G150: =IF(Stammdaten!$AE$29="1 - Vereinnahmte Entgelte",IF(ISNUMBER(F150),IF(YEAR(F150)<Stammdaten!$AE$28,1,IF(YEAR(F150)>Stammdaten!$AE$28,12,MONTH(F150))),""),"") ->  | N150: =+IF(Stammdaten!$AE$30="1 - Ja",I150,L150) -> 0.00 | O150: =+IF(Stammdaten!$AE$30="1 - Ja",K150,0) ->  | U150: 0 | V150: 0 | W150: 0 | X150: 0 | Y150: 0 | AA150: 0 | AB150: 5 | AC150: 0 | AD150: 0
C151: =IF(H151="","",VLOOKUP(H151,Steuerung!$E$26:$G$49,3,FALSE)) ->  | E151: =IF(Stammdaten!$AE$29="2 - Vereinbarte Entgelte",IF(ISNUMBER(D151),IF(YEAR(D151)<Stammdaten!$AE$28,1,IF(YEAR(D151)>Stammdaten!$AE$28,12,MONTH(D151))),""),"") ->  | G151: =IF(Stammdaten!$AE$29="1 - Vereinnahmte Entgelte",IF(ISNUMBER(F151),IF(YEAR(F151)<Stammdaten!$AE$28,1,IF(YEAR(F151)>Stammdaten!$AE$28,12,MONTH(F151))),""),"") ->  | N151: =+IF(Stammdaten!$AE$30="1 - Ja",I151,L151) -> 0.00 | O151: =+IF(Stammdaten!$AE$30="1 - Ja",K151,0) ->  | U151: 0 | V151: 0 | W151: 0 | X151: 0 | Y151: 0 | AA151: 0 | AB151: 5 | AC151: 0 | AD151: 0
C152: =IF(H152="","",VLOOKUP(H152,Steuerung!$E$26:$G$49,3,FALSE)) ->  | E152: =IF(Stammdaten!$AE$29="2 - Vereinbarte Entgelte",IF(ISNUMBER(D152),IF(YEAR(D152)<Stammdaten!$AE$28,1,IF(YEAR(D152)>Stammdaten!$AE$28,12,MONTH(D152))),""),"") ->  | G152: =IF(Stammdaten!$AE$29="1 - Vereinnahmte Entgelte",IF(ISNUMBER(F152),IF(YEAR(F152)<Stammdaten!$AE$28,1,IF(YEAR(F152)>Stammdaten!$AE$28,12,MONTH(F152))),""),"") ->  | N152: =+IF(Stammdaten!$AE$30="1 - Ja",I152,L152) -> 0.00 | O152: =+IF(Stammdaten!$AE$30="1 - Ja",K152,0) ->  | U152: 0 | V152: 0 | W152: 0 | X152: 0 | Y152: 0 | AA152: 0 | AB152: 5 | AC152: 0 | AD152: 0
C153: =IF(H153="","",VLOOKUP(H153,Steuerung!$E$26:$G$49,3,FALSE)) ->  | E153: =IF(Stammdaten!$AE$29="2 - Vereinbarte Entgelte",IF(ISNUMBER(D153),IF(YEAR(D153)<Stammdaten!$AE$28,1,IF(YEAR(D153)>Stammdaten!$AE$28,12,MONTH(D153))),""),"") ->  | G153: =IF(Stammdaten!$AE$29="1 - Vereinnahmte Entgelte",IF(ISNUMBER(F153),IF(YEAR(F153)<Stammdaten!$AE$28,1,IF(YEAR(F153)>Stammdaten!$AE$28,12,MONTH(F153))),""),"") ->  | N153: =+IF(Stammdaten!$AE$30="1 - Ja",I153,L153) -> 0.00 | O153: =+IF(Stammdaten!$AE$30="1 - Ja",K153,0) ->  | U153: 0 | V153: 0 | W153: 0 | X153: 0 | Y153: 0 | AA153: 0 | AB153: 5 | AC153: 0 | AD153: 0
C154: =IF(H154="","",VLOOKUP(H154,Steuerung!$E$26:$G$49,3,FALSE)) ->  | E154: =IF(Stammdaten!$AE$29="2 - Vereinbarte Entgelte",IF(ISNUMBER(D154),IF(YEAR(D154)<Stammdaten!$AE$28,1,IF(YEAR(D154)>Stammdaten!$AE$28,12,MONTH(D154))),""),"") ->  | G154: =IF(Stammdaten!$AE$29="1 - Vereinnahmte Entgelte",IF(ISNUMBER(F154),IF(YEAR(F154)<Stammdaten!$AE$28,1,IF(YEAR(F154)>Stammdaten!$AE$28,12,MONTH(F154))),""),"") ->  | N154: =+IF(Stammdaten!$AE$30="1 - Ja",I154,L154) -> 0.00 | O154: =+IF(Stammdaten!$AE$30="1 - Ja",K154,0) ->  | U154: 0 | V154: 0 | W154: 0 | X154: 0 | Y154: 0 | AA154: 0 | AB154: 5 | AC154: 0 | AD154: 0
C155: =IF(H155="","",VLOOKUP(H155,Steuerung!$E$26:$G$49,3,FALSE)) ->  | E155: =IF(Stammdaten!$AE$29="2 - Vereinbarte Entgelte",IF(ISNUMBER(D155),IF(YEAR(D155)<Stammdaten!$AE$28,1,IF(YEAR(D155)>Stammdaten!$AE$28,12,MONTH(D155))),""),"") ->  | G155: =IF(Stammdaten!$AE$29="1 - Vereinnahmte Entgelte",IF(ISNUMBER(F155),IF(YEAR(F155)<Stammdaten!$AE$28,1,IF(YEAR(F155)>Stammdaten!$AE$28,12,MONTH(F155))),""),"") ->  | N155: =+IF(Stammdaten!$AE$30="1 - Ja",I155,L155) -> 0.00 | O155: =+IF(Stammdaten!$AE$30="1 - Ja",K155,0) ->  | U155: 0 | V155: 0 | W155: 0 | X155: 0 | Y155: 0 | AA155: 0 | AB155: 5 | AC155: 0 | AD155: 0
C156: =IF(H156="","",VLOOKUP(H156,Steuerung!$E$26:$G$49,3,FALSE)) ->  | E156: =IF(Stammdaten!$AE$29="2 - Vereinbarte Entgelte",IF(ISNUMBER(D156),IF(YEAR(D156)<Stammdaten!$AE$28,1,IF(YEAR(D156)>Stammdaten!$AE$28,12,MONTH(D156))),""),"") ->  | G156: =IF(Stammdaten!$AE$29="1 - Vereinnahmte Entgelte",IF(ISNUMBER(F156),IF(YEAR(F156)<Stammdaten!$AE$28,1,IF(YEAR(F156)>Stammdaten!$AE$28,12,MONTH(F156))),""),"") ->  | N156: =+IF(Stammdaten!$AE$30="1 - Ja",I156,L156) -> 0.00 | O156: =+IF(Stammdaten!$AE$30="1 - Ja",K156,0) ->  | U156: 0 | V156: 0 | W156: 0 | X156: 0 | Y156: 0 | AA156: 0 | AB156: 5 | AC156: 0 | AD156: 0
C157: =IF(H157="","",VLOOKUP(H157,Steuerung!$E$26:$G$49,3,FALSE)) ->  | E157: =IF(Stammdaten!$AE$29="2 - Vereinbarte Entgelte",IF(ISNUMBER(D157),IF(YEAR(D157)<Stammdaten!$AE$28,1,IF(YEAR(D157)>Stammdaten!$AE$28,12,MONTH(D157))),""),"") ->  | G157: =IF(Stammdaten!$AE$29="1 - Vereinnahmte Entgelte",IF(ISNUMBER(F157),IF(YEAR(F157)<Stammdaten!$AE$28,1,IF(YEAR(F157)>Stammdaten!$AE$28,12,MONTH(F157))),""),"") ->  | N157: =+IF(Stammdaten!$AE$30="1 - Ja",I157,L157) -> 0.00 | O157: =+IF(Stammdaten!$AE$30="1 - Ja",K157,0) ->  | U157: 0 | V157: 0 | W157: 0 | X157: 0 | Y157: 0 | AA157: 0 | AB157: 5 | AC157: 0 | AD157: 0
C158: =IF(H158="","",VLOOKUP(H158,Steuerung!$E$26:$G$49,3,FALSE)) ->  | E158: =IF(Stammdaten!$AE$29="2 - Vereinbarte Entgelte",IF(ISNUMBER(D158),IF(YEAR(D158)<Stammdaten!$AE$28,1,IF(YEAR(D158)>Stammdaten!$AE$28,12,MONTH(D158))),""),"") ->  | G158: =IF(Stammdaten!$AE$29="1 - Vereinnahmte Entgelte",IF(ISNUMBER(F158),IF(YEAR(F158)<Stammdaten!$AE$28,1,IF(YEAR(F158)>Stammdaten!$AE$28,12,MONTH(F158))),""),"") ->  | N158: =+IF(Stammdaten!$AE$30="1 - Ja",I158,L158) -> 0.00 | O158: =+IF(Stammdaten!$AE$30="1 - Ja",K158,0) ->  | U158: 0 | V158: 0 | W158: 0 | X158: 0 | Y158: 0 | AA158: 0 | AB158: 5 | AC158: 0 | AD158: 0
C159: =IF(H159="","",VLOOKUP(H159,Steuerung!$E$26:$G$49,3,FALSE)) ->  | E159: =IF(Stammdaten!$AE$29="2 - Vereinbarte Entgelte",IF(ISNUMBER(D159),IF(YEAR(D159)<Stammdaten!$AE$28,1,IF(YEAR(D159)>Stammdaten!$AE$28,12,MONTH(D159))),""),"") ->  | G159: =IF(Stammdaten!$AE$29="1 - Vereinnahmte Entgelte",IF(ISNUMBER(F159),IF(YEAR(F159)<Stammdaten!$AE$28,1,IF(YEAR(F159)>Stammdaten!$AE$28,12,MONTH(F159))),""),"") ->  | N159: =+IF(Stammdaten!$AE$30="1 - Ja",I159,L159) -> 0.00 | O159: =+IF(Stammdaten!$AE$30="1 - Ja",K159,0) ->  | U159: 0 | V159: 0 | W159: 0 | X159: 0 | Y159: 0 | AA159: 0 | AB159: 5 | AC159: 0 | AD159: 0
C160: =IF(H160="","",VLOOKUP(H160,Steuerung!$E$26:$G$49,3,FALSE)) ->  | E160: =IF(Stammdaten!$AE$29="2 - Vereinbarte Entgelte",IF(ISNUMBER(D160),IF(YEAR(D160)<Stammdaten!$AE$28,1,IF(YEAR(D160)>Stammdaten!$AE$28,12,MONTH(D160))),""),"") ->  | G160: =IF(Stammdaten!$AE$29="1 - Vereinnahmte Entgelte",IF(ISNUMBER(F160),IF(YEAR(F160)<Stammdaten!$AE$28,1,IF(YEAR(F160)>Stammdaten!$AE$28,12,MONTH(F160))),""),"") ->  | N160: =+IF(Stammdaten!$AE$30="1 - Ja",I160,L160) -> 0.00 | O160: =+IF(Stammdaten!$AE$30="1 - Ja",K160,0) ->  | U160: 0 | V160: 0 | W160: 0 | X160: 0 | Y160: 0 | AA160: 0 | AB160: 5 | AC160: 0 | AD160: 0
C161: =IF(H161="","",VLOOKUP(H161,Steuerung!$E$26:$G$49,3,FALSE)) ->  | E161: =IF(Stammdaten!$AE$29="2 - Vereinbarte Entgelte",IF(ISNUMBER(D161),IF(YEAR(D161)<Stammdaten!$AE$28,1,IF(YEAR(D161)>Stammdaten!$AE$28,12,MONTH(D161))),""),"") ->  | G161: =IF(Stammdaten!$AE$29="1 - Vereinnahmte Entgelte",IF(ISNUMBER(F161),IF(YEAR(F161)<Stammdaten!$AE$28,1,IF(YEAR(F161)>Stammdaten!$AE$28,12,MONTH(F161))),""),"") ->  | N161: =+IF(Stammdaten!$AE$30="1 - Ja",I161,L161) -> 0.00 | O161: =+IF(Stammdaten!$AE$30="1 - Ja",K161,0) ->  | U161: 0 | V161: 0 | W161: 0 | X161: 0 | Y161: 0 | AA161: 0 | AB161: 5 | AC161: 0 | AD161: 0
C162: =IF(H162="","",VLOOKUP(H162,Steuerung!$E$26:$G$49,3,FALSE)) ->  | E162: =IF(Stammdaten!$AE$29="2 - Vereinbarte Entgelte",IF(ISNUMBER(D162),IF(YEAR(D162)<Stammdaten!$AE$28,1,IF(YEAR(D162)>Stammdaten!$AE$28,12,MONTH(D162))),""),"") ->  | G162: =IF(Stammdaten!$AE$29="1 - Vereinnahmte Entgelte",IF(ISNUMBER(F162),IF(YEAR(F162)<Stammdaten!$AE$28,1,IF(YEAR(F162)>Stammdaten!$AE$28,12,MONTH(F162))),""),"") ->  | N162: =+IF(Stammdaten!$AE$30="1 - Ja",I162,L162) -> 0.00 | O162: =+IF(Stammdaten!$AE$30="1 - Ja",K162,0) ->  | U162: 0 | V162: 0 | W162: 0 | X162: 0 | Y162: 0 | AA162: 0 | AB162: 5 | AC162: 0 | AD162: 0
C163: =IF(H163="","",VLOOKUP(H163,Steuerung!$E$26:$G$49,3,FALSE)) ->  | E163: =IF(Stammdaten!$AE$29="2 - Vereinbarte Entgelte",IF(ISNUMBER(D163),IF(YEAR(D163)<Stammdaten!$AE$28,1,IF(YEAR(D163)>Stammdaten!$AE$28,12,MONTH(D163))),""),"") ->  | G163: =IF(Stammdaten!$AE$29="1 - Vereinnahmte Entgelte",IF(ISNUMBER(F163),IF(YEAR(F163)<Stammdaten!$AE$28,1,IF(YEAR(F163)>Stammdaten!$AE$28,12,MONTH(F163))),""),"") ->  | N163: =+IF(Stammdaten!$AE$30="1 - Ja",I163,L163) -> 0.00 | O163: =+IF(Stammdaten!$AE$30="1 - Ja",K163,0) ->  | U163: 0 | V163: 0 | W163: 0 | X163: 0 | Y163: 0 | AA163: 0 | AB163: 5 | AC163: 0 | AD163: 0
C164: =IF(H164="","",VLOOKUP(H164,Steuerung!$E$26:$G$49,3,FALSE)) ->  | E164: =IF(Stammdaten!$AE$29="2 - Vereinbarte Entgelte",IF(ISNUMBER(D164),IF(YEAR(D164)<Stammdaten!$AE$28,1,IF(YEAR(D164)>Stammdaten!$AE$28,12,MONTH(D164))),""),"") ->  | G164: =IF(Stammdaten!$AE$29="1 - Vereinnahmte Entgelte",IF(ISNUMBER(F164),IF(YEAR(F164)<Stammdaten!$AE$28,1,IF(YEAR(F164)>Stammdaten!$AE$28,12,MONTH(F164))),""),"") ->  | N164: =+IF(Stammdaten!$AE$30="1 - Ja",I164,L164) -> 0.00 | O164: =+IF(Stammdaten!$AE$30="1 - Ja",K164,0) ->  | U164: 0 | V164: 0 | W164: 0 | X164: 0 | Y164: 0 | AA164: 0 | AB164: 5 | AC164: 0 | AD164: 0
C165: =IF(H165="","",VLOOKUP(H165,Steuerung!$E$26:$G$49,3,FALSE)) ->  | E165: =IF(Stammdaten!$AE$29="2 - Vereinbarte Entgelte",IF(ISNUMBER(D165),IF(YEAR(D165)<Stammdaten!$AE$28,1,IF(YEAR(D165)>Stammdaten!$AE$28,12,MONTH(D165))),""),"") ->  | G165: =IF(Stammdaten!$AE$29="1 - Vereinnahmte Entgelte",IF(ISNUMBER(F165),IF(YEAR(F165)<Stammdaten!$AE$28,1,IF(YEAR(F165)>Stammdaten!$AE$28,12,MONTH(F165))),""),"") ->  | K165: =+IF(AND(ISNUMBER(I165),ISNUMBER(J165)),ROUND(I165*J165,2),"") ->  | N165: =+IF(Stammdaten!$AE$30="1 - Ja",I165,L165) -> 0.00 | O165: =+IF(Stammdaten!$AE$30="1 - Ja",K165,0) ->  | U165: =+IF(B165="",0,1) -> 0 | V165: =+IF(ISNUMBER(D165),1,0) -> 0 | W165: =+IF(H165="",0,1) -> 0 | X165: =+IF(ISNUMBER(L165),1,0) -> 0 | Y165: =+IF(ISNUMBER(F165),1,0) -> 0 | AA165: 0 | AB165: 5 | AC165: 0 | AD165: 0
C166: =IF(H166="","",VLOOKUP(H166,Steuerung!$E$26:$G$49,3,FALSE)) ->  | E166: =IF(Stammdaten!$AE$29="2 - Vereinbarte Entgelte",IF(ISNUMBER(D166),IF(YEAR(D166)<Stammdaten!$AE$28,1,IF(YEAR(D166)>Stammdaten!$AE$28,12,MONTH(D166))),""),"") ->  | G166: =IF(Stammdaten!$AE$29="1 - Vereinnahmte Entgelte",IF(ISNUMBER(F166),IF(YEAR(F166)<Stammdaten!$AE$28,1,IF(YEAR(F166)>Stammdaten!$AE$28,12,MONTH(F166))),""),"") ->  | N166: =+IF(Stammdaten!$AE$30="1 - Ja",I166,L166) -> 0.00 | O166: =+IF(Stammdaten!$AE$30="1 - Ja",K166,0) ->  | U166: 0 | V166: 0 | W166: 0 | X166: 0 | Y166: 0 | AA166: 0 | AB166: 5 | AC166: 0 | AD166: 0
C167: =IF(H167="","",VLOOKUP(H167,Steuerung!$E$26:$G$49,3,FALSE)) ->  | E167: =IF(Stammdaten!$AE$29="2 - Vereinbarte Entgelte",IF(ISNUMBER(D167),IF(YEAR(D167)<Stammdaten!$AE$28,1,IF(YEAR(D167)>Stammdaten!$AE$28,12,MONTH(D167))),""),"") ->  | G167: =IF(Stammdaten!$AE$29="1 - Vereinnahmte Entgelte",IF(ISNUMBER(F167),IF(YEAR(F167)<Stammdaten!$AE$28,1,IF(YEAR(F167)>Stammdaten!$AE$28,12,MONTH(F167))),""),"") ->  | N167: =+IF(Stammdaten!$AE$30="1 - Ja",I167,L167) -> 0.00 | O167: =+IF(Stammdaten!$AE$30="1 - Ja",K167,0) ->  | U167: 0 | V167: 0 | W167: 0 | X167: 0 | Y167: 0 | AA167: 0 | AB167: 5 | AC167: 0 | AD167: 0
C168: =IF(H168="","",VLOOKUP(H168,Steuerung!$E$26:$G$49,3,FALSE)) ->  | E168: =IF(Stammdaten!$AE$29="2 - Vereinbarte Entgelte",IF(ISNUMBER(D168),IF(YEAR(D168)<Stammdaten!$AE$28,1,IF(YEAR(D168)>Stammdaten!$AE$28,12,MONTH(D168))),""),"") ->  | G168: =IF(Stammdaten!$AE$29="1 - Vereinnahmte Entgelte",IF(ISNUMBER(F168),IF(YEAR(F168)<Stammdaten!$AE$28,1,IF(YEAR(F168)>Stammdaten!$AE$28,12,MONTH(F168))),""),"") ->  | N168: =+IF(Stammdaten!$AE$30="1 - Ja",I168,L168) -> 0.00 | O168: =+IF(Stammdaten!$AE$30="1 - Ja",K168,0) ->  | U168: 0 | V168: 0 | W168: 0 | X168: 0 | Y168: 0 | AA168: 0 | AB168: 5 | AC168: 0 | AD168: 0
C169: =IF(H169="","",VLOOKUP(H169,Steuerung!$E$26:$G$49,3,FALSE)) ->  | E169: =IF(Stammdaten!$AE$29="2 - Vereinbarte Entgelte",IF(ISNUMBER(D169),IF(YEAR(D169)<Stammdaten!$AE$28,1,IF(YEAR(D169)>Stammdaten!$AE$28,12,MONTH(D169))),""),"") ->  | G169: =IF(Stammdaten!$AE$29="1 - Vereinnahmte Entgelte",IF(ISNUMBER(F169),IF(YEAR(F169)<Stammdaten!$AE$28,1,IF(YEAR(F169)>Stammdaten!$AE$28,12,MONTH(F169))),""),"") ->  | N169: =+IF(Stammdaten!$AE$30="1 - Ja",I169,L169) -> 0.00 | O169: =+IF(Stammdaten!$AE$30="1 - Ja",K169,0) ->  | U169: 0 | V169: 0 | W169: 0 | X169: 0 | Y169: 0 | AA169: 0 | AB169: 5 | AC169: 0 | AD169: 0
C170: =IF(H170="","",VLOOKUP(H170,Steuerung!$E$26:$G$49,3,FALSE)) ->  | E170: =IF(Stammdaten!$AE$29="2 - Vereinbarte Entgelte",IF(ISNUMBER(D170),IF(YEAR(D170)<Stammdaten!$AE$28,1,IF(YEAR(D170)>Stammdaten!$AE$28,12,MONTH(D170))),""),"") ->  | G170: =IF(Stammdaten!$AE$29="1 - Vereinnahmte Entgelte",IF(ISNUMBER(F170),IF(YEAR(F170)<Stammdaten!$AE$28,1,IF(YEAR(F170)>Stammdaten!$AE$28,12,MONTH(F170))),""),"") ->  | N170: =+IF(Stammdaten!$AE$30="1 - Ja",I170,L170) -> 0.00 | O170: =+IF(Stammdaten!$AE$30="1 - Ja",K170,0) ->  | U170: 0 | V170: 0 | W170: 0 | X170: 0 | Y170: 0 | AA170: 0 | AB170: 5 | AC170: 0 | AD170: 0
C171: =IF(H171="","",VLOOKUP(H171,Steuerung!$E$26:$G$49,3,FALSE)) ->  | E171: =IF(Stammdaten!$AE$29="2 - Vereinbarte Entgelte",IF(ISNUMBER(D171),IF(YEAR(D171)<Stammdaten!$AE$28,1,IF(YEAR(D171)>Stammdaten!$AE$28,12,MONTH(D171))),""),"") ->  | G171: =IF(Stammdaten!$AE$29="1 - Vereinnahmte Entgelte",IF(ISNUMBER(F171),IF(YEAR(F171)<Stammdaten!$AE$28,1,IF(YEAR(F171)>Stammdaten!$AE$28,12,MONTH(F171))),""),"") ->  | N171: =+IF(Stammdaten!$AE$30="1 - Ja",I171,L171) -> 0.00 | O171: =+IF(Stammdaten!$AE$30="1 - Ja",K171,0) ->  | U171: 0 | V171: 0 | W171: 0 | X171: 0 | Y171: 0 | AA171: 0 | AB171: 5 | AC171: 0 | AD171: 0
C172: =IF(H172="","",VLOOKUP(H172,Steuerung!$E$26:$G$49,3,FALSE)) ->  | E172: =IF(Stammdaten!$AE$29="2 - Vereinbarte Entgelte",IF(ISNUMBER(D172),IF(YEAR(D172)<Stammdaten!$AE$28,1,IF(YEAR(D172)>Stammdaten!$AE$28,12,MONTH(D172))),""),"") ->  | G172: =IF(Stammdaten!$AE$29="1 - Vereinnahmte Entgelte",IF(ISNUMBER(F172),IF(YEAR(F172)<Stammdaten!$AE$28,1,IF(YEAR(F172)>Stammdaten!$AE$28,12,MONTH(F172))),""),"") ->  | N172: =+IF(Stammdaten!$AE$30="1 - Ja",I172,L172) -> 0.00 | O172: =+IF(Stammdaten!$AE$30="1 - Ja",K172,0) ->  | U172: 0 | V172: 0 | W172: 0 | X172: 0 | Y172: 0 | AA172: 0 | AB172: 5 | AC172: 0 | AD172: 0
C173: =IF(H173="","",VLOOKUP(H173,Steuerung!$E$26:$G$49,3,FALSE)) ->  | E173: =IF(Stammdaten!$AE$29="2 - Vereinbarte Entgelte",IF(ISNUMBER(D173),IF(YEAR(D173)<Stammdaten!$AE$28,1,IF(YEAR(D173)>Stammdaten!$AE$28,12,MONTH(D173))),""),"") ->  | G173: =IF(Stammdaten!$AE$29="1 - Vereinnahmte Entgelte",IF(ISNUMBER(F173),IF(YEAR(F173)<Stammdaten!$AE$28,1,IF(YEAR(F173)>Stammdaten!$AE$28,12,MONTH(F173))),""),"") ->  | N173: =+IF(Stammdaten!$AE$30="1 - Ja",I173,L173) -> 0.00 | O173: =+IF(Stammdaten!$AE$30="1 - Ja",K173,0) ->  | U173: 0 | V173: 0 | W173: 0 | X173: 0 | Y173: 0 | AA173: 0 | AB173: 5 | AC173: 0 | AD173: 0
C174: =IF(H174="","",VLOOKUP(H174,Steuerung!$E$26:$G$49,3,FALSE)) ->  | E174: =IF(Stammdaten!$AE$29="2 - Vereinbarte Entgelte",IF(ISNUMBER(D174),IF(YEAR(D174)<Stammdaten!$AE$28,1,IF(YEAR(D174)>Stammdaten!$AE$28,12,MONTH(D174))),""),"") ->  | G174: =IF(Stammdaten!$AE$29="1 - Vereinnahmte Entgelte",IF(ISNUMBER(F174),IF(YEAR(F174)<Stammdaten!$AE$28,1,IF(YEAR(F174)>Stammdaten!$AE$28,12,MONTH(F174))),""),"") ->  | N174: =+IF(Stammdaten!$AE$30="1 - Ja",I174,L174) -> 0.00 | O174: =+IF(Stammdaten!$AE$30="1 - Ja",K174,0) ->  | U174: 0 | V174: 0 | W174: 0 | X174: 0 | Y174: 0 | AA174: 0 | AB174: 5 | AC174: 0 | AD174: 0
C175: =IF(H175="","",VLOOKUP(H175,Steuerung!$E$26:$G$49,3,FALSE)) ->  | E175: =IF(Stammdaten!$AE$29="2 - Vereinbarte Entgelte",IF(ISNUMBER(D175),IF(YEAR(D175)<Stammdaten!$AE$28,1,IF(YEAR(D175)>Stammdaten!$AE$28,12,MONTH(D175))),""),"") ->  | G175: =IF(Stammdaten!$AE$29="1 - Vereinnahmte Entgelte",IF(ISNUMBER(F175),IF(YEAR(F175)<Stammdaten!$AE$28,1,IF(YEAR(F175)>Stammdaten!$AE$28,12,MONTH(F175))),""),"") ->  | N175: =+IF(Stammdaten!$AE$30="1 - Ja",I175,L175) -> 0.00 | O175: =+IF(Stammdaten!$AE$30="1 - Ja",K175,0) ->  | U175: 0 | V175: 0 | W175: 0 | X175: 0 | Y175: 0 | AA175: 0 | AB175: 5 | AC175: 0 | AD175: 0
C176: =IF(H176="","",VLOOKUP(H176,Steuerung!$E$26:$G$49,3,FALSE)) ->  | E176: =IF(Stammdaten!$AE$29="2 - Vereinbarte Entgelte",IF(ISNUMBER(D176),IF(YEAR(D176)<Stammdaten!$AE$28,1,IF(YEAR(D176)>Stammdaten!$AE$28,12,MONTH(D176))),""),"") ->  | G176: =IF(Stammdaten!$AE$29="1 - Vereinnahmte Entgelte",IF(ISNUMBER(F176),IF(YEAR(F176)<Stammdaten!$AE$28,1,IF(YEAR(F176)>Stammdaten!$AE$28,12,MONTH(F176))),""),"") ->  | N176: =+IF(Stammdaten!$AE$30="1 - Ja",I176,L176) -> 0.00 | O176: =+IF(Stammdaten!$AE$30="1 - Ja",K176,0) ->  | U176: 0 | V176: 0 | W176: 0 | X176: 0 | Y176: 0 | AA176: 0 | AB176: 5 | AC176: 0 | AD176: 0
C177: =IF(H177="","",VLOOKUP(H177,Steuerung!$E$26:$G$49,3,FALSE)) ->  | E177: =IF(Stammdaten!$AE$29="2 - Vereinbarte Entgelte",IF(ISNUMBER(D177),IF(YEAR(D177)<Stammdaten!$AE$28,1,IF(YEAR(D177)>Stammdaten!$AE$28,12,MONTH(D177))),""),"") ->  | G177: =IF(Stammdaten!$AE$29="1 - Vereinnahmte Entgelte",IF(ISNUMBER(F177),IF(YEAR(F177)<Stammdaten!$AE$28,1,IF(YEAR(F177)>Stammdaten!$AE$28,12,MONTH(F177))),""),"") ->  | N177: =+IF(Stammdaten!$AE$30="1 - Ja",I177,L177) -> 0.00 | O177: =+IF(Stammdaten!$AE$30="1 - Ja",K177,0) ->  | U177: 0 | V177: 0 | W177: 0 | X177: 0 | Y177: 0 | AA177: 0 | AB177: 5 | AC177: 0 | AD177: 0
C178: =IF(H178="","",VLOOKUP(H178,Steuerung!$E$26:$G$49,3,FALSE)) ->  | E178: =IF(Stammdaten!$AE$29="2 - Vereinbarte Entgelte",IF(ISNUMBER(D178),IF(YEAR(D178)<Stammdaten!$AE$28,1,IF(YEAR(D178)>Stammdaten!$AE$28,12,MONTH(D178))),""),"") ->  | G178: =IF(Stammdaten!$AE$29="1 - Vereinnahmte Entgelte",IF(ISNUMBER(F178),IF(YEAR(F178)<Stammdaten!$AE$28,1,IF(YEAR(F178)>Stammdaten!$AE$28,12,MONTH(F178))),""),"") ->  | N178: =+IF(Stammdaten!$AE$30="1 - Ja",I178,L178) -> 0.00 | O178: =+IF(Stammdaten!$AE$30="1 - Ja",K178,0) ->  | U178: 0 | V178: 0 | W178: 0 | X178: 0 | Y178: 0 | AA178: 0 | AB178: 5 | AC178: 0 | AD178: 0
C179: =IF(H179="","",VLOOKUP(H179,Steuerung!$E$26:$G$49,3,FALSE)) ->  | E179: =IF(Stammdaten!$AE$29="2 - Vereinbarte Entgelte",IF(ISNUMBER(D179),IF(YEAR(D179)<Stammdaten!$AE$28,1,IF(YEAR(D179)>Stammdaten!$AE$28,12,MONTH(D179))),""),"") ->  | G179: =IF(Stammdaten!$AE$29="1 - Vereinnahmte Entgelte",IF(ISNUMBER(F179),IF(YEAR(F179)<Stammdaten!$AE$28,1,IF(YEAR(F179)>Stammdaten!$AE$28,12,MONTH(F179))),""),"") ->  | N179: =+IF(Stammdaten!$AE$30="1 - Ja",I179,L179) -> 0.00 | O179: =+IF(Stammdaten!$AE$30="1 - Ja",K179,0) ->  | U179: 0 | V179: 0 | W179: 0 | X179: 0 | Y179: 0 | AA179: 0 | AB179: 5 | AC179: 0 | AD179: 0
C180: =IF(H180="","",VLOOKUP(H180,Steuerung!$E$26:$G$49,3,FALSE)) ->  | E180: =IF(Stammdaten!$AE$29="2 - Vereinbarte Entgelte",IF(ISNUMBER(D180),IF(YEAR(D180)<Stammdaten!$AE$28,1,IF(YEAR(D180)>Stammdaten!$AE$28,12,MONTH(D180))),""),"") ->  | G180: =IF(Stammdaten!$AE$29="1 - Vereinnahmte Entgelte",IF(ISNUMBER(F180),IF(YEAR(F180)<Stammdaten!$AE$28,1,IF(YEAR(F180)>Stammdaten!$AE$28,12,MONTH(F180))),""),"") ->  | N180: =+IF(Stammdaten!$AE$30="1 - Ja",I180,L180) -> 0.00 | O180: =+IF(Stammdaten!$AE$30="1 - Ja",K180,0) ->  | U180: 0 | V180: 0 | W180: 0 | X180: 0 | Y180: 0 | AA180: 0 | AB180: 5 | AC180: 0 | AD180: 0
C181: =IF(H181="","",VLOOKUP(H181,Steuerung!$E$26:$G$49,3,FALSE)) ->  | E181: =IF(Stammdaten!$AE$29="2 - Vereinbarte Entgelte",IF(ISNUMBER(D181),IF(YEAR(D181)<Stammdaten!$AE$28,1,IF(YEAR(D181)>Stammdaten!$AE$28,12,MONTH(D181))),""),"") ->  | G181: =IF(Stammdaten!$AE$29="1 - Vereinnahmte Entgelte",IF(ISNUMBER(F181),IF(YEAR(F181)<Stammdaten!$AE$28,1,IF(YEAR(F181)>Stammdaten!$AE$28,12,MONTH(F181))),""),"") ->  | N181: =+IF(Stammdaten!$AE$30="1 - Ja",I181,L181) -> 0.00 | O181: =+IF(Stammdaten!$AE$30="1 - Ja",K181,0) ->  | U181: 0 | V181: 0 | W181: 0 | X181: 0 | Y181: 0 | AA181: 0 | AB181: 5 | AC181: 0 | AD181: 0
C182: =IF(H182="","",VLOOKUP(H182,Steuerung!$E$26:$G$49,3,FALSE)) ->  | E182: =IF(Stammdaten!$AE$29="2 - Vereinbarte Entgelte",IF(ISNUMBER(D182),IF(YEAR(D182)<Stammdaten!$AE$28,1,IF(YEAR(D182)>Stammdaten!$AE$28,12,MONTH(D182))),""),"") ->  | G182: =IF(Stammdaten!$AE$29="1 - Vereinnahmte Entgelte",IF(ISNUMBER(F182),IF(YEAR(F182)<Stammdaten!$AE$28,1,IF(YEAR(F182)>Stammdaten!$AE$28,12,MONTH(F182))),""),"") ->  | N182: =+IF(Stammdaten!$AE$30="1 - Ja",I182,L182) -> 0.00 | O182: =+IF(Stammdaten!$AE$30="1 - Ja",K182,0) ->  | U182: 0 | V182: 0 | W182: 0 | X182: 0 | Y182: 0 | AA182: 0 | AB182: 5 | AC182: 0 | AD182: 0
C183: =IF(H183="","",VLOOKUP(H183,Steuerung!$E$26:$G$49,3,FALSE)) ->  | E183: =IF(Stammdaten!$AE$29="2 - Vereinbarte Entgelte",IF(ISNUMBER(D183),IF(YEAR(D183)<Stammdaten!$AE$28,1,IF(YEAR(D183)>Stammdaten!$AE$28,12,MONTH(D183))),""),"") ->  | G183: =IF(Stammdaten!$AE$29="1 - Vereinnahmte Entgelte",IF(ISNUMBER(F183),IF(YEAR(F183)<Stammdaten!$AE$28,1,IF(YEAR(F183)>Stammdaten!$AE$28,12,MONTH(F183))),""),"") ->  | N183: =+IF(Stammdaten!$AE$30="1 - Ja",I183,L183) -> 0.00 | O183: =+IF(Stammdaten!$AE$30="1 - Ja",K183,0) ->  | U183: 0 | V183: 0 | W183: 0 | X183: 0 | Y183: 0 | AA183: 0 | AB183: 5 | AC183: 0 | AD183: 0
C184: =IF(H184="","",VLOOKUP(H184,Steuerung!$E$26:$G$49,3,FALSE)) ->  | E184: =IF(Stammdaten!$AE$29="2 - Vereinbarte Entgelte",IF(ISNUMBER(D184),IF(YEAR(D184)<Stammdaten!$AE$28,1,IF(YEAR(D184)>Stammdaten!$AE$28,12,MONTH(D184))),""),"") ->  | G184: =IF(Stammdaten!$AE$29="1 - Vereinnahmte Entgelte",IF(ISNUMBER(F184),IF(YEAR(F184)<Stammdaten!$AE$28,1,IF(YEAR(F184)>Stammdaten!$AE$28,12,MONTH(F184))),""),"") ->  | N184: =+IF(Stammdaten!$AE$30="1 - Ja",I184,L184) -> 0.00 | O184: =+IF(Stammdaten!$AE$30="1 - Ja",K184,0) ->  | U184: 0 | V184: 0 | W184: 0 | X184: 0 | Y184: 0 | AA184: 0 | AB184: 5 | AC184: 0 | AD184: 0
C185: =IF(H185="","",VLOOKUP(H185,Steuerung!$E$26:$G$49,3,FALSE)) ->  | E185: =IF(Stammdaten!$AE$29="2 - Vereinbarte Entgelte",IF(ISNUMBER(D185),IF(YEAR(D185)<Stammdaten!$AE$28,1,IF(YEAR(D185)>Stammdaten!$AE$28,12,MONTH(D185))),""),"") ->  | G185: =IF(Stammdaten!$AE$29="1 - Vereinnahmte Entgelte",IF(ISNUMBER(F185),IF(YEAR(F185)<Stammdaten!$AE$28,1,IF(YEAR(F185)>Stammdaten!$AE$28,12,MONTH(F185))),""),"") ->  | N185: =+IF(Stammdaten!$AE$30="1 - Ja",I185,L185) -> 0.00 | O185: =+IF(Stammdaten!$AE$30="1 - Ja",K185,0) ->  | U185: 0 | V185: 0 | W185: 0 | X185: 0 | Y185: 0 | AA185: 0 | AB185: 5 | AC185: 0 | AD185: 0
C186: =IF(H186="","",VLOOKUP(H186,Steuerung!$E$26:$G$49,3,FALSE)) ->  | E186: =IF(Stammdaten!$AE$29="2 - Vereinbarte Entgelte",IF(ISNUMBER(D186),IF(YEAR(D186)<Stammdaten!$AE$28,1,IF(YEAR(D186)>Stammdaten!$AE$28,12,MONTH(D186))),""),"") ->  | G186: =IF(Stammdaten!$AE$29="1 - Vereinnahmte Entgelte",IF(ISNUMBER(F186),IF(YEAR(F186)<Stammdaten!$AE$28,1,IF(YEAR(F186)>Stammdaten!$AE$28,12,MONTH(F186))),""),"") ->  | N186: =+IF(Stammdaten!$AE$30="1 - Ja",I186,L186) -> 0.00 | O186: =+IF(Stammdaten!$AE$30="1 - Ja",K186,0) ->  | U186: 0 | V186: 0 | W186: 0 | X186: 0 | Y186: 0 | AA186: 0 | AB186: 5 | AC186: 0 | AD186: 0
C187: =IF(H187="","",VLOOKUP(H187,Steuerung!$E$26:$G$49,3,FALSE)) ->  | E187: =IF(Stammdaten!$AE$29="2 - Vereinbarte Entgelte",IF(ISNUMBER(D187),IF(YEAR(D187)<Stammdaten!$AE$28,1,IF(YEAR(D187)>Stammdaten!$AE$28,12,MONTH(D187))),""),"") ->  | G187: =IF(Stammdaten!$AE$29="1 - Vereinnahmte Entgelte",IF(ISNUMBER(F187),IF(YEAR(F187)<Stammdaten!$AE$28,1,IF(YEAR(F187)>Stammdaten!$AE$28,12,MONTH(F187))),""),"") ->  | N187: =+IF(Stammdaten!$AE$30="1 - Ja",I187,L187) -> 0.00 | O187: =+IF(Stammdaten!$AE$30="1 - Ja",K187,0) ->  | U187: 0 | V187: 0 | W187: 0 | X187: 0 | Y187: 0 | AA187: 0 | AB187: 5 | AC187: 0 | AD187: 0
C188: =IF(H188="","",VLOOKUP(H188,Steuerung!$E$26:$G$49,3,FALSE)) ->  | E188: =IF(Stammdaten!$AE$29="2 - Vereinbarte Entgelte",IF(ISNUMBER(D188),IF(YEAR(D188)<Stammdaten!$AE$28,1,IF(YEAR(D188)>Stammdaten!$AE$28,12,MONTH(D188))),""),"") ->  | G188: =IF(Stammdaten!$AE$29="1 - Vereinnahmte Entgelte",IF(ISNUMBER(F188),IF(YEAR(F188)<Stammdaten!$AE$28,1,IF(YEAR(F188)>Stammdaten!$AE$28,12,MONTH(F188))),""),"") ->  | N188: =+IF(Stammdaten!$AE$30="1 - Ja",I188,L188) -> 0.00 | O188: =+IF(Stammdaten!$AE$30="1 - Ja",K188,0) ->  | U188: 0 | V188: 0 | W188: 0 | X188: 0 | Y188: 0 | AA188: 0 | AB188: 5 | AC188: 0 | AD188: 0
C189: =IF(H189="","",VLOOKUP(H189,Steuerung!$E$26:$G$49,3,FALSE)) ->  | E189: =IF(Stammdaten!$AE$29="2 - Vereinbarte Entgelte",IF(ISNUMBER(D189),IF(YEAR(D189)<Stammdaten!$AE$28,1,IF(YEAR(D189)>Stammdaten!$AE$28,12,MONTH(D189))),""),"") ->  | G189: =IF(Stammdaten!$AE$29="1 - Vereinnahmte Entgelte",IF(ISNUMBER(F189),IF(YEAR(F189)<Stammdaten!$AE$28,1,IF(YEAR(F189)>Stammdaten!$AE$28,12,MONTH(F189))),""),"") ->  | N189: =+IF(Stammdaten!$AE$30="1 - Ja",I189,L189) -> 0.00 | O189: =+IF(Stammdaten!$AE$30="1 - Ja",K189,0) ->  | U189: 0 | V189: 0 | W189: 0 | X189: 0 | Y189: 0 | AA189: 0 | AB189: 5 | AC189: 0 | AD189: 0
C190: =IF(H190="","",VLOOKUP(H190,Steuerung!$E$26:$G$49,3,FALSE)) ->  | E190: =IF(Stammdaten!$AE$29="2 - Vereinbarte Entgelte",IF(ISNUMBER(D190),IF(YEAR(D190)<Stammdaten!$AE$28,1,IF(YEAR(D190)>Stammdaten!$AE$28,12,MONTH(D190))),""),"") ->  | G190: =IF(Stammdaten!$AE$29="1 - Vereinnahmte Entgelte",IF(ISNUMBER(F190),IF(YEAR(F190)<Stammdaten!$AE$28,1,IF(YEAR(F190)>Stammdaten!$AE$28,12,MONTH(F190))),""),"") ->  | N190: =+IF(Stammdaten!$AE$30="1 - Ja",I190,L190) -> 0.00 | O190: =+IF(Stammdaten!$AE$30="1 - Ja",K190,0) ->  | U190: 0 | V190: 0 | W190: 0 | X190: 0 | Y190: 0 | AA190: 0 | AB190: 5 | AC190: 0 | AD190: 0
C191: =IF(H191="","",VLOOKUP(H191,Steuerung!$E$26:$G$49,3,FALSE)) ->  | E191: =IF(Stammdaten!$AE$29="2 - Vereinbarte Entgelte",IF(ISNUMBER(D191),IF(YEAR(D191)<Stammdaten!$AE$28,1,IF(YEAR(D191)>Stammdaten!$AE$28,12,MONTH(D191))),""),"") ->  | G191: =IF(Stammdaten!$AE$29="1 - Vereinnahmte Entgelte",IF(ISNUMBER(F191),IF(YEAR(F191)<Stammdaten!$AE$28,1,IF(YEAR(F191)>Stammdaten!$AE$28,12,MONTH(F191))),""),"") ->  | N191: =+IF(Stammdaten!$AE$30="1 - Ja",I191,L191) -> 0.00 | O191: =+IF(Stammdaten!$AE$30="1 - Ja",K191,0) ->  | U191: 0 | V191: 0 | W191: 0 | X191: 0 | Y191: 0 | AA191: 0 | AB191: 5 | AC191: 0 | AD191: 0
C192: =IF(H192="","",VLOOKUP(H192,Steuerung!$E$26:$G$49,3,FALSE)) ->  | E192: =IF(Stammdaten!$AE$29="2 - Vereinbarte Entgelte",IF(ISNUMBER(D192),IF(YEAR(D192)<Stammdaten!$AE$28,1,IF(YEAR(D192)>Stammdaten!$AE$28,12,MONTH(D192))),""),"") ->  | G192: =IF(Stammdaten!$AE$29="1 - Vereinnahmte Entgelte",IF(ISNUMBER(F192),IF(YEAR(F192)<Stammdaten!$AE$28,1,IF(YEAR(F192)>Stammdaten!$AE$28,12,MONTH(F192))),""),"") ->  | N192: =+IF(Stammdaten!$AE$30="1 - Ja",I192,L192) -> 0.00 | O192: =+IF(Stammdaten!$AE$30="1 - Ja",K192,0) ->  | U192: 0 | V192: 0 | W192: 0 | X192: 0 | Y192: 0 | AA192: 0 | AB192: 5 | AC192: 0 | AD192: 0
C193: =IF(H193="","",VLOOKUP(H193,Steuerung!$E$26:$G$49,3,FALSE)) ->  | E193: =IF(Stammdaten!$AE$29="2 - Vereinbarte Entgelte",IF(ISNUMBER(D193),IF(YEAR(D193)<Stammdaten!$AE$28,1,IF(YEAR(D193)>Stammdaten!$AE$28,12,MONTH(D193))),""),"") ->  | G193: =IF(Stammdaten!$AE$29="1 - Vereinnahmte Entgelte",IF(ISNUMBER(F193),IF(YEAR(F193)<Stammdaten!$AE$28,1,IF(YEAR(F193)>Stammdaten!$AE$28,12,MONTH(F193))),""),"") ->  | N193: =+IF(Stammdaten!$AE$30="1 - Ja",I193,L193) -> 0.00 | O193: =+IF(Stammdaten!$AE$30="1 - Ja",K193,0) ->  | U193: 0 | V193: 0 | W193: 0 | X193: 0 | Y193: 0 | AA193: 0 | AB193: 5 | AC193: 0 | AD193: 0
C194: =IF(H194="","",VLOOKUP(H194,Steuerung!$E$26:$G$49,3,FALSE)) ->  | E194: =IF(Stammdaten!$AE$29="2 - Vereinbarte Entgelte",IF(ISNUMBER(D194),IF(YEAR(D194)<Stammdaten!$AE$28,1,IF(YEAR(D194)>Stammdaten!$AE$28,12,MONTH(D194))),""),"") ->  | G194: =IF(Stammdaten!$AE$29="1 - Vereinnahmte Entgelte",IF(ISNUMBER(F194),IF(YEAR(F194)<Stammdaten!$AE$28,1,IF(YEAR(F194)>Stammdaten!$AE$28,12,MONTH(F194))),""),"") ->  | N194: =+IF(Stammdaten!$AE$30="1 - Ja",I194,L194) -> 0.00 | O194: =+IF(Stammdaten!$AE$30="1 - Ja",K194,0) ->  | U194: 0 | V194: 0 | W194: 0 | X194: 0 | Y194: 0 | AA194: 0 | AB194: 5 | AC194: 0 | AD194: 0
C195: =IF(H195="","",VLOOKUP(H195,Steuerung!$E$26:$G$49,3,FALSE)) ->  | E195: =IF(Stammdaten!$AE$29="2 - Vereinbarte Entgelte",IF(ISNUMBER(D195),IF(YEAR(D195)<Stammdaten!$AE$28,1,IF(YEAR(D195)>Stammdaten!$AE$28,12,MONTH(D195))),""),"") ->  | G195: =IF(Stammdaten!$AE$29="1 - Vereinnahmte Entgelte",IF(ISNUMBER(F195),IF(YEAR(F195)<Stammdaten!$AE$28,1,IF(YEAR(F195)>Stammdaten!$AE$28,12,MONTH(F195))),""),"") ->  | N195: =+IF(Stammdaten!$AE$30="1 - Ja",I195,L195) -> 0.00 | O195: =+IF(Stammdaten!$AE$30="1 - Ja",K195,0) ->  | U195: 0 | V195: 0 | W195: 0 | X195: 0 | Y195: 0 | AA195: 0 | AB195: 5 | AC195: 0 | AD195: 0
C196: =IF(H196="","",VLOOKUP(H196,Steuerung!$E$26:$G$49,3,FALSE)) ->  | E196: =IF(Stammdaten!$AE$29="2 - Vereinbarte Entgelte",IF(ISNUMBER(D196),IF(YEAR(D196)<Stammdaten!$AE$28,1,IF(YEAR(D196)>Stammdaten!$AE$28,12,MONTH(D196))),""),"") ->  | G196: =IF(Stammdaten!$AE$29="1 - Vereinnahmte Entgelte",IF(ISNUMBER(F196),IF(YEAR(F196)<Stammdaten!$AE$28,1,IF(YEAR(F196)>Stammdaten!$AE$28,12,MONTH(F196))),""),"") ->  | N196: =+IF(Stammdaten!$AE$30="1 - Ja",I196,L196) -> 0.00 | O196: =+IF(Stammdaten!$AE$30="1 - Ja",K196,0) ->  | U196: 0 | V196: 0 | W196: 0 | X196: 0 | Y196: 0 | AA196: 0 | AB196: 5 | AC196: 0 | AD196: 0
C197: =IF(H197="","",VLOOKUP(H197,Steuerung!$E$26:$G$49,3,FALSE)) ->  | E197: =IF(Stammdaten!$AE$29="2 - Vereinbarte Entgelte",IF(ISNUMBER(D197),IF(YEAR(D197)<Stammdaten!$AE$28,1,IF(YEAR(D197)>Stammdaten!$AE$28,12,MONTH(D197))),""),"") ->  | G197: =IF(Stammdaten!$AE$29="1 - Vereinnahmte Entgelte",IF(ISNUMBER(F197),IF(YEAR(F197)<Stammdaten!$AE$28,1,IF(YEAR(F197)>Stammdaten!$AE$28,12,MONTH(F197))),""),"") ->  | K197: =+IF(AND(ISNUMBER(I197),ISNUMBER(J197)),ROUND(I197*J197,2),"") ->  | N197: =+IF(Stammdaten!$AE$30="1 - Ja",I197,L197) -> 0.00 | O197: =+IF(Stammdaten!$AE$30="1 - Ja",K197,0) ->  | U197: 0 | V197: 0 | W197: 0 | X197: 0 | Y197: 0 | AA197: 0 | AB197: 5 | AC197: 0 | AD197: 0
C198: =IF(H198="","",VLOOKUP(H198,Steuerung!$E$26:$G$49,3,FALSE)) ->  | E198: =IF(Stammdaten!$AE$29="2 - Vereinbarte Entgelte",IF(ISNUMBER(D198),IF(YEAR(D198)<Stammdaten!$AE$28,1,IF(YEAR(D198)>Stammdaten!$AE$28,12,MONTH(D198))),""),"") ->  | G198: =IF(Stammdaten!$AE$29="1 - Vereinnahmte Entgelte",IF(ISNUMBER(F198),IF(YEAR(F198)<Stammdaten!$AE$28,1,IF(YEAR(F198)>Stammdaten!$AE$28,12,MONTH(F198))),""),"") ->  | K198: =+IF(AND(ISNUMBER(I198),ISNUMBER(J198)),ROUND(I198*J198,2),"") ->  | L198: =+IF(AND(ISNUMBER(I198),ISNUMBER(K198)),I198+K198,"") ->  | N198: =+IF(Stammdaten!$AE$30="1 - Ja",I198,L198) -> 0.00 | O198: =+IF(Stammdaten!$AE$30="1 - Ja",K198,0) ->  | Q198: =+IF(AD198=0,"","Eingaben unvollständig") ->  | U198: 0 | V198: 0 | W198: 0 | X198: 0 | Y198: 0 | AA198: =+SUM(U198:Z198) -> 0 | AB198: =+$AB$3 -> 5 | AC198: =+IF(AA198=AB198,1,0) -> 0 | AD198: =+IF(AND(AA198>0,AC198=0),1,0) -> 0
C199: =IF(H199="","",VLOOKUP(H199,Steuerung!$E$26:$G$49,3,FALSE)) ->  | E199: =IF(Stammdaten!$AE$29="2 - Vereinbarte Entgelte",IF(ISNUMBER(D199),IF(YEAR(D199)<Stammdaten!$AE$28,1,IF(YEAR(D199)>Stammdaten!$AE$28,12,MONTH(D199))),""),"") ->  | G199: =IF(Stammdaten!$AE$29="1 - Vereinnahmte Entgelte",IF(ISNUMBER(F199),IF(YEAR(F199)<Stammdaten!$AE$28,1,IF(YEAR(F199)>Stammdaten!$AE$28,12,MONTH(F199))),""),"") ->  | K199: =+IF(AND(ISNUMBER(I199),ISNUMBER(J199)),ROUND(I199*J199,2),"") ->  | L199: =+IF(AND(ISNUMBER(I199),ISNUMBER(K199)),I199+K199,"") ->  | N199: =+IF(Stammdaten!$AE$30="1 - Ja",I199,L199) -> 0.00 | O199: =+IF(Stammdaten!$AE$30="1 - Ja",K199,0) ->  | Q199: =+IF(AD199=0,"","Eingaben unvollständig") ->  | U199: 0 | V199: 0 | W199: 0 | X199: 0 | Y199: 0 | AA199: =+SUM(U199:Z199) -> 0 | AB199: =+$AB$3 -> 5 | AC199: =+IF(AA199=AB199,1,0) -> 0 | AD199: =+IF(AND(AA199>0,AC199=0),1,0) -> 0
C200: =IF(H200="","",VLOOKUP(H200,Steuerung!$E$26:$G$49,3,FALSE)) ->  | E200: =IF(Stammdaten!$AE$29="2 - Vereinbarte Entgelte",IF(ISNUMBER(D200),IF(YEAR(D200)<Stammdaten!$AE$28,1,IF(YEAR(D200)>Stammdaten!$AE$28,12,MONTH(D200))),""),"") ->  | G200: =IF(Stammdaten!$AE$29="1 - Vereinnahmte Entgelte",IF(ISNUMBER(F200),IF(YEAR(F200)<Stammdaten!$AE$28,1,IF(YEAR(F200)>Stammdaten!$AE$28,12,MONTH(F200))),""),"") ->  | K200: =+IF(AND(ISNUMBER(I200),ISNUMBER(J200)),ROUND(I200*J200,2),"") ->  | L200: =+IF(AND(ISNUMBER(I200),ISNUMBER(K200)),I200+K200,"") ->  | N200: =+IF(Stammdaten!$AE$30="1 - Ja",I200,L200) -> 0.00 | O200: =+IF(Stammdaten!$AE$30="1 - Ja",K200,0) ->  | Q200: =+IF(AD200=0,"","Eingaben unvollständig") ->  | U200: 0 | V200: 0 | W200: 0 | X200: 0 | Y200: 0 | AA200: =+SUM(U200:Z200) -> 0 | AB200: =+$AB$3 -> 5 | AC200: =+IF(AA200=AB200,1,0) -> 0 | AD200: =+IF(AND(AA200>0,AC200=0),1,0) -> 0
B202: © 2025 by VNR Verlag für die Deutsche Wirtschaft AG
B203: Die Vervielfältigung, Verbreitung oder Veräußerung der Daten oder Texte ist unzulässig und
... 1 more rows

Sheet Bewirtungskosten
B3: 1 | C3: =1+B3 -> 2 | D3: =1+C3 -> 3 | E3: 4 | F3: 5 | G3: 6 | H3: 7 | I3: 8 | J3: 9 | K3: 10 | L3: 11 | M3: =1+K3 -> 11 | N3: =1+L3 -> 12 | O3: =1+L3 -> 12 | P3: =1+N3 -> 13 | Q3: =1+O3 -> 13 | R3: 14 | AE3: 5
B4: Rng-Nr. | C4: Zeile | D4: Rng.-Datum | E4: Monat | F4: Zahl-Datum | G4: Monat | H4: Bewirungskosten - Beschreibung | I4: Netto-Betrag | J4: USt% | K4: USt | L4: Brutto-Betrag | M4: Abzugsf. | N4: Nicht abzugsf. | O4: Bemerkung | P4: EÜR - Nicht abzungsfähig | Q4: EÜR - abzugsfähig | R4: Übergabe_EÜR_UST | T4: Hinweis | X4: =+B3 -> 1 | Y4: =+D3 -> 3 | Z4: =+H3 -> 7 | AA4: =+L3 -> 11 | AB4: =+F3 -> 5 | AD4: ∑1 | AE4: ∑2 | AF4: OK | AG4: BF
B5: 1 | C5: =IF(H5="","",68) -> 68 | D5: 2023-12-31 | E5: =IF(Stammdaten!$AE$29="2 - Vereinbarte Entgelte",IF(ISNUMBER(D5),IF(YEAR(D5)<Stammdaten!$AE$28,1,IF(YEAR(D5)>Stammdaten!$AE$28,12,MONTH(D5))),""),"") ->  | F5: 2024-01-02 | G5: =IF(Stammdaten!$AE$29="1 - Vereinnahmte Entgelte",IF(ISNUMBER(F5),IF(YEAR(F5)<Stammdaten!$AE$28,1,IF(YEAR(F5)>Stammdaten!$AE$28,12,MONTH(F5))),""),"") -> 1 | H5: Mit Firma Müller im Goldenen Löwen | I5: 100.00 | J5: 7% | K5: =+IF(AND(ISNUMBER(I5),ISNUMBER(J5)),ROUND(I5*J5,2),"") -> 7.00 | L5: =+IF(AND(ISNUMBER(I5),ISNUMBER(K5)),I5+K5,"") -> 107.00 | M5: =+IF(AND(ISNUMBER(I5),ISNUMBER(K5)),IF(Stammdaten!$AE$30="2 - Nein",L5-N5,I5-N5),"") -> 70.00 | N5: =+IF(AND(ISNUMBER(J5),ISNUMBER(L5)),IF(Stammdaten!$AE$30="2 - Nein",ROUND(L5*0.3,2),ROUND(I5*0.3,2)),"") -> 30.00 | P5: =+N5 -> 30.00 | Q5: =+M5 -> 70.00 | R5: =+IF(Stammdaten!$AE$30="1 - Ja",K5,0) -> 7.00 | T5: =+IF(AG5=0,"","Eingaben unvollständig") ->  | X5: =+IF(B5="",0,1) -> 1 | Y5: =+IF(ISNUMBER(D5),1,0) -> 1 | Z5: =+IF(H5="",0,1) -> 1 | AA5: =+IF(ISNUMBER(L5),1,0) -> 1 | AB5: =+IF(ISNUMBER(F5),1,0) -> 1 | AD5: =+SUM(X5:AC5) -> 5 | AE5: =+$AE$3 -> 5 | AF5: =+IF(AD5=AE5,1,0) -> 1 | AG5: =+IF(AND(AD5>0,AF5=0),1,0) -> 0
B6: 2 | C6: =IF(H6="","",68) -> 68 | D6: 2024-02-15 | E6: =IF(Stammdaten!$AE$29="2 - Vereinbarte Entgelte",IF(ISNUMBER(D6),IF(YEAR(D6)<Stammdaten!$AE$28,1,IF(YEAR(D6)>Stammdaten!$AE$28,12,MONTH(D6))),""),"") ->  | F6: 2024-02-28 | G6: =IF(Stammdaten!$AE$29="1 - Vereinnahmte Entgelte",IF(ISNUMBER(F6),IF(YEAR(F6)<Stammdaten!$AE$28,1,IF(YEAR(F6)>Stammdaten!$AE$28,12,MONTH(F6))),""),"") -> 2 | H6: Herr Müller von A-GmbH im Pizza-Hut | I6: 50.00 | J6: 19% | K6: 9.50 | L6: =+IF(AND(ISNUMBER(I6),ISNUMBER(K6)),I6+K6,"") -> 59.50 | M6: =+IF(AND(ISNUMBER(I6),ISNUMBER(K6)),IF(Stammdaten!$AE$30="2 - Nein",L6-N6,I6-N6),"") -> 35.00 | N6: =+IF(AND(ISNUMBER(J6),ISNUMBER(L6)),IF(Stammdaten!$AE$30="2 - Nein",ROUND(L6*0.3,2),ROUND(I6*0.3,2)),"") -> 15.00 | P6: =+N6 -> 15.00 | Q6: =+M6 -> 35.00 | R6: =+IF(Stammdaten!$AE$30="1 - Ja",K6,0) -> 9.50 | T6: =+IF(AG6=0,"","Eingaben unvollständig") ->  | X6: 1 | Y6: 1 | Z6: 1 | AA6: 1 | AB6: 1 | AD6: =+SUM(X6:AC6) -> 5 | AE6: =+$AE$3 -> 5 | AF6: =+IF(AD6=AE6,1,0) -> 1 | AG6: =+IF(AND(AD6>0,AF6=0),1,0) -> 0
B7: 3 | C7: =IF(H7="","",68) -> 68 | D7: 2024-03-30 | E7: =IF(Stammdaten!$AE$29="2 - Vereinbarte Entgelte",IF(ISNUMBER(D7),IF(YEAR(D7)<Stammdaten!$AE$28,1,IF(YEAR(D7)>Stammdaten!$AE$28,12,MONTH(D7))),""),"") ->  | F7: 2024-04-15 | G7: =IF(Stammdaten!$AE$29="1 - Vereinnahmte Entgelte",IF(ISNUMBER(F7),IF(YEAR(F7)<Stammdaten!$AE$28,1,IF(YEAR(F7)>Stammdaten!$AE$28,12,MONTH(F7))),""),"") -> 4 | H7: Pizzabestellung für Präsentation | I7: 100.00 | J7: 19% | K7: 19.00 | L7: 119.00 | M7: =+IF(AND(ISNUMBER(I7),ISNUMBER(K7)),IF(Stammdaten!$AE$30="2 - Nein",L7-N7,I7-N7),"") -> 70.00 | N7: =+IF(AND(ISNUMBER(J7),ISNUMBER(L7)),IF(Stammdaten!$AE$30="2 - Nein",ROUND(L7*0.3,2),ROUND(I7*0.3,2)),"") -> 30.00 | P7: 30.00 | Q7: 70.00 | R7: =+IF(Stammdaten!$AE$30="1 - Ja",K7,0) -> 19.00 | X7: 1 | Y7: 1 | Z7: 1 | AA7: 1 | AB7: 1 | AD7: 5 | AE7: 5 | AF7: 1 | AG7: 0
B8: 4 | C8: 68 | D8: 2024-04-01 | E8: =IF(Stammdaten!$AE$29="2 - Vereinbarte Entgelte",IF(ISNUMBER(D8),IF(YEAR(D8)<Stammdaten!$AE$28,1,IF(YEAR(D8)>Stammdaten!$AE$28,12,MONTH(D8))),""),"") ->  | F8: 2024-04-01 | G8: =IF(Stammdaten!$AE$29="1 - Vereinnahmte Entgelte",IF(ISNUMBER(F8),IF(YEAR(F8)<Stammdaten!$AE$28,1,IF(YEAR(F8)>Stammdaten!$AE$28,12,MONTH(F8))),""),"") -> 4 | H8: Lecker Essen mit Kunden im Bayerischen Löwen | I8: 250.00 | J8: 7% | K8: 17.50 | L8: 267.50 | M8: =+IF(AND(ISNUMBER(I8),ISNUMBER(K8)),IF(Stammdaten!$AE$30="2 - Nein",L8-N8,I8-N8),"") -> 175.00 | N8: =+IF(AND(ISNUMBER(J8),ISNUMBER(L8)),IF(Stammdaten!$AE$30="2 - Nein",ROUND(L8*0.3,2),ROUND(I8*0.3,2)),"") -> 75.00 | P8: 75.00 | Q8: 175.00 | R8: =+IF(Stammdaten!$AE$30="1 - Ja",K8,0) -> 17.50 | X8: 1 | Y8: 1 | Z8: 1 | AA8: 1 | AB8: 1 | AD8: 5 | AE8: 5 | AF8: 1 | AG8: 0
E9: =IF(Stammdaten!$AE$29="2 - Vereinbarte Entgelte",IF(ISNUMBER(D9),IF(YEAR(D9)<Stammdaten!$AE$28,1,IF(YEAR(D9)>Stammdaten!$AE$28,12,MONTH(D9))),""),"") ->  | G9: =IF(Stammdaten!$AE$29="1 - Vereinnahmte Entgelte",IF(ISNUMBER(F9),IF(YEAR(F9)<Stammdaten!$AE$28,1,IF(YEAR(F9)>Stammdaten!$AE$28,12,MONTH(F9))),""),"") ->  | M9: =+IF(AND(ISNUMBER(I9),ISNUMBER(K9)),IF(Stammdaten!$AE$30="2 - Nein",L9-N9,I9-N9),"") ->  | N9: =+IF(AND(ISNUMBER(J9),ISNUMBER(L9)),IF(Stammdaten!$AE$30="2 - Nein",ROUND(L9*0.3,2),ROUND(I9*0.3,2)),"") ->  | R9: =+IF(Stammdaten!$AE$30="1 - Ja",K9,0) ->  | X9: 0 | Y9: 0 | Z9: 0 | AA9: 0 | AB9: 0 | AD9: 0 | AE9: 5 | AF9: 0 | AG9: 0
E10: =IF(Stammdaten!$AE$29="2 - Vereinbarte Entgelte",IF(ISNUMBER(D10),IF(YEAR(D10)<Stammdaten!$AE$28,1,IF(YEAR(D10)>Stammdaten!$AE$28,12,MONTH(D10))),""),"") ->  | G10: =IF(Stammdaten!$AE$29="1 - Vereinnahmte Entgelte",IF(ISNUMBER(F10),IF(YEAR(F10)<Stammdaten!$AE$28,1,IF(YEAR(F10)>Stammdaten!$AE$28,12,MONTH(F10))),""),"") ->  | M10: =+IF(AND(ISNUMBER(I10),ISNUMBER(K10)),IF(Stammdaten!$AE$30="2 - Nein",L10-N10,I10-N10),"") ->  | N10: =+IF(AND(ISNUMBER(J10),ISNUMBER(L10)),IF(Stammdaten!$AE$30="2 - Nein",ROUND(L10*0.3,2),ROUND(I10*0.3,2)),"") ->  | R10: =+IF(Stammdaten!$AE$30="1 - Ja",K10,0) ->  | X10: 0 | Y10: 0 | Z10: 0 | AA10: 0 | AB10: 0 | AD10: 0 | AE10: 5 | AF10: 0 | AG10: 0
E11: =IF(Stammdaten!$AE$29="2 - Vereinbarte Entgelte",IF(ISNUMBER(D11),IF(YEAR(D11)<Stammdaten!$AE$28,1,IF(YEAR(D11)>Stammdaten!$AE$28,12,MONTH(D11))),""),"") ->  | G11: =IF(Stammdaten!$AE$29="1 - Vereinnahmte Entgelte",IF(ISNUMBER(F11),IF(YEAR(F11)<Stammdaten!$AE$28,1,IF(YEAR(F11)>Stammdaten!$AE$28,12,MONTH(F11))),""),"") ->  | M11: =+IF(AND(ISNUMBER(I11),ISNUMBER(K11)),IF(Stammdaten!$AE$30="2 - Nein",L11-N11,I11-N11),"") ->  | N11: =+IF(AND(ISNUMBER(J11),ISNUMBER(L11)),IF(Stammdaten!$AE$30="2 - Nein",ROUND(L11*0.3,2),ROUND(I11*0.3,2)),"") ->  | R11: =+IF(Stammdaten!$AE$30="1 - Ja",K11,0) ->  | X11: 0 | Y11: 0 | Z11: 0 | AA11: 0 | AB11: 0 | AD11: 0 | AE11: 5 | AF11: 0 | AG11: 0
E12: =IF(Stammdaten!$AE$29="2 - Vereinbarte Entgelte",IF(ISNUMBER(D12),IF(YEAR(D12)<Stammdaten!$AE$28,1,IF(YEAR(D12)>Stammdaten!$AE$28,12,MONTH(D12))),""),"") ->  | G12: =IF(Stammdaten!$AE$29="1 - Vereinnahmte Entgelte",IF(ISNUMBER(F12),IF(YEAR(F12)<Stammdaten!$AE$28,1,IF(YEAR(F12)>Stammdaten!$AE$28,12,MONTH(F12))),""),"") ->  | M12: =+IF(AND(ISNUMBER(I12),ISNUMBER(K12)),IF(Stammdaten!$AE$30="2 - Nein",L12-N12,I12-N12),"") ->  | N12: =+IF(AND(ISNUMBER(J12),ISNUMBER(L12)),IF(Stammdaten!$AE$30="2 - Nein",ROUND(L12*0.3,2),ROUND(I12*0.3,2)),"") ->  | R12: =+IF(Stammdaten!$AE$30="1 - Ja",K12,0) ->  | X12: 0 | Y12: 0 | Z12: 0 | AA12: 0 | AB12: 0 | AD12: 0 | AE12: 5 | AF12: 0 | AG12: 0
E13: =IF(Stammdaten!$AE$29="2 - Vereinbarte Entgelte",IF(ISNUMBER(D13),IF(YEAR(D13)<Stammdaten!$AE$28,1,IF(YEAR(D13)>Stammdaten!$AE$28,12,MONTH(D13))),""),"") ->  | G13: =IF(Stammdaten!$AE$29="1 - Vereinnahmte Entgelte",IF(ISNUMBER(F13),IF(YEAR(F13)<Stammdaten!$AE$28,1,IF(YEAR(F13)>Stammdaten!$AE$28,12,MONTH(F13))),""),"") ->  | M13: =+IF(AND(ISNUMBER(I13),ISNUMBER(K13)),IF(Stammdaten!$AE$30="2 - Nein",L13-N13,I13-N13),"") ->  | N13: =+IF(AND(ISNUMBER(J13),ISNUMBER(L13)),IF(Stammdaten!$AE$30="2 - Nein",ROUND(L13*0.3,2),ROUND(I13*0.3,2)),"") ->  | R13: =+IF(Stammdaten!$AE$30="1 - Ja",K13,0) ->  | X13: 0 | Y13: 0 | Z13: 0 | AA13: 0 | AB13: 0 | AD13: 0 | AE13: 5 | AF13: 0 | AG13: 0
E14: =IF(Stammdaten!$AE$29="2 - Vereinbarte Entgelte",IF(ISNUMBER(D14),IF(YEAR(D14)<Stammdaten!$AE$28,1,IF(YEAR(D14)>Stammdaten!$AE$28,12,MONTH(D14))),""),"") ->  | G14: =IF(Stammdaten!$AE$29="1 - Vereinnahmte Entgelte",IF(ISNUMBER(F14),IF(YEAR(F14)<Stammdaten!$AE$28,1,IF(YEAR(F14)>Stammdaten!$AE$28,12,MONTH(F14))),""),"") ->  | M14: =+IF(AND(ISNUMBER(I14),ISNUMBER(K14)),IF(Stammdaten!$AE$30="2 - Nein",L14-N14,I14-N14),"") ->  | N14: =+IF(AND(ISNUMBER(J14),ISNUMBER(L14)),IF(Stammdaten!$AE$30="2 - Nein",ROUND(L14*0.3,2),ROUND(I14*0.3,2)),"") ->  | R14: =+IF(Stammdaten!$AE$30="1 - Ja",K14,0) ->  | X14: 0 | Y14: 0 | Z14: 0 | AA14: 0 | AB14: 0 | AD14: 0 | AE14: 5 | AF14: 0 | AG14: 0
E15: =IF(Stammdaten!$AE$29="2 - Vereinbarte Entgelte",IF(ISNUMBER(D15),IF(YEAR(D15)<Stammdaten!$AE$28,1,IF(YEAR(D15)>Stammdaten!$AE$28,12,MONTH(D15))),""),"") ->  | G15: =IF(Stammdaten!$AE$29="1 - Vereinnahmte Entgelte",IF(ISNUMBER(F15),IF(YEAR(F15)<Stammdaten!$AE$28,1,IF(YEAR(F15)>Stammdaten!$AE$28,12,MONTH(F15))),""),"") ->  | M15: =+IF(AND(ISNUMBER(I15),ISNUMBER(K15)),IF(Stammdaten!$AE$30="2 - Nein",L15-N15,I15-N15),"") ->  | N15: =+IF(AND(ISNUMBER(J15),ISNUMBER(L15)),IF(Stammdaten!$AE$30="2 - Nein",ROUND(L15*0.3,2),ROUND(I15*0.3,2)),"") ->  | R15: =+IF(Stammdaten!$AE$30="1 - Ja",K15,0) ->  | X15: 0 | Y15: 0 | Z15: 0 | AA15: 0 | AB15: 0 | AD15: 0 | AE15: 5 | AF15: 0 | AG15: 0
E16: =IF(Stammdaten!$AE$29="2 - Vereinbarte Entgelte",IF(ISNUMBER(D16),IF(YEAR(D16)<Stammdaten!$AE$28,1,IF(YEAR(D16)>Stammdaten!$AE$28,12,MONTH(D16))),""),"") ->  | G16: =IF(Stammdaten!$AE$29="1 - Vereinnahmte Entgelte",IF(ISNUMBER(F16),IF(YEAR(F16)<Stammdaten!$AE$28,1,IF(YEAR(F16)>Stammdaten!$AE$28,12,MONTH(F16))),""),"") ->  | M16: =+IF(AND(ISNUMBER(I16),ISNUMBER(K16)),IF(Stammdaten!$AE$30="2 - Nein",L16-N16,I16-N16),"") ->  | N16: =+IF(AND(ISNUMBER(J16),ISNUMBER(L16)),IF(Stammdaten!$AE$30="2 - Nein",ROUND(L16*0.3,2),ROUND(I16*0.3,2)),"") ->  | R16: =+IF(Stammdaten!$AE$30="1 - Ja",K16,0) ->  | X16: 0 | Y16: 0 | Z16: 0 | AA16: 0 | AB16: 0 | AD16: 0 | AE16: 5 | AF16: 0 | AG16: 0
E17: =IF(Stammdaten!$AE$29="2 - Vereinbarte Entgelte",IF(ISNUMBER(D17),IF(YEAR(D17)<Stammdaten!$AE$28,1,IF(YEAR(D17)>Stammdaten!$AE$28,12,MONTH(D17))),""),"") ->  | G17: =IF(Stammdaten!$AE$29="1 - Vereinnahmte Entgelte",IF(ISNUMBER(F17),IF(YEAR(F17)<Stammdaten!$AE$28,1,IF(YEAR(F17)>Stammdaten!$AE$28,12,MONTH(F17))),""),"") ->  | M17: =+IF(AND(ISNUMBER(I17),ISNUMBER(K17)),IF(Stammdaten!$AE$30="2 - Nein",L17-N17,I17-N17),"") ->  | N17: =+IF(AND(ISNUMBER(J17),ISNUMBER(L17)),IF(Stammdaten!$AE$30="2 - Nein",ROUND(L17*0.3,2),ROUND(I17*0.3,2)),"") ->  | R17: =+IF(Stammdaten!$AE$30="1 - Ja",K17,0) ->  | X17: 0 | Y17: 0 | Z17: 0 | AA17: 0 | AB17: 0 | AD17: 0 | AE17: 5 | AF17: 0 | AG17: 0
E18: =IF(Stammdaten!$AE$29="2 - Vereinbarte Entgelte",IF(ISNUMBER(D18),IF(YEAR(D18)<Stammdaten!$AE$28,1,IF(YEAR(D18)>Stammdaten!$AE$28,12,MONTH(D18))),""),"") ->  | G18: =IF(Stammdaten!$AE$29="1 - Vereinnahmte Entgelte",IF(ISNUMBER(F18),IF(YEAR(F18)<Stammdaten!$AE$28,1,IF(YEAR(F18)>Stammdaten!$AE$28,12,MONTH(F18))),""),"") ->  | M18: =+IF(AND(ISNUMBER(I18),ISNUMBER(K18)),IF(Stammdaten!$AE$30="2 - Nein",L18-N18,I18-N18),"") ->  | N18: =+IF(AND(ISNUMBER(J18),ISNUMBER(L18)),IF(Stammdaten!$AE$30="2 - Nein",ROUND(L18*0.3,2),ROUND(I18*0.3,2)),"") ->  | R18: =+IF(Stammdaten!$AE$30="1 - Ja",K18,0) ->  | X18: 0 | Y18: 0 | Z18: 0 | AA18: 0 | AB18: 0 | AD18: 0 | AE18: 5 | AF18: 0 | AG18: 0
E19: =IF(Stammdaten!$AE$29="2 - Vereinbarte Entgelte",IF(ISNUMBER(D19),IF(YEAR(D19)<Stammdaten!$AE$28,1,IF(YEAR(D19)>Stammdaten!$AE$28,12,MONTH(D19))),""),"") ->  | G19: =IF(Stammdaten!$AE$29="1 - Vereinnahmte Entgelte",IF(ISNUMBER(F19),IF(YEAR(F19)<Stammdaten!$AE$28,1,IF(YEAR(F19)>Stammdaten!$AE$28,12,MONTH(F19))),""),"") ->  | M19: =+IF(AND(ISNUMBER(I19),ISNUMBER(K19)),IF(Stammdaten!$AE$30="2 - Nein",L19-N19,I19-N19),"") ->  | N19: =+IF(AND(ISNUMBER(J19),ISNUMBER(L19)),IF(Stammdaten!$AE$30="2 - Nein",ROUND(L19*0.3,2),ROUND(I19*0.3,2)),"") ->  | R19: =+IF(Stammdaten!$AE$30="1 - Ja",K19,0) ->  | X19: 0 | Y19: 0 | Z19: 0 | AA19: 0 | AB19: 0 | AD19: 0 | AE19: 5 | AF19: 0 | AG19: 0
E20: =IF(Stammdaten!$AE$29="2 - Vereinbarte Entgelte",IF(ISNUMBER(D20),IF(YEAR(D20)<Stammdaten!$AE$28,1,IF(YEAR(D20)>Stammdaten!$AE$28,12,MONTH(D20))),""),"") ->  | G20: =IF(Stammdaten!$AE$29="1 - Vereinnahmte Entgelte",IF(ISNUMBER(F20),IF(YEAR(F20)<Stammdaten!$AE$28,1,IF(YEAR(F20)>Stammdaten!$AE$28,12,MONTH(F20))),""),"") ->  | M20: =+IF(AND(ISNUMBER(I20),ISNUMBER(K20)),IF(Stammdaten!$AE$30="2 - Nein",L20-N20,I20-N20),"") ->  | N20: =+IF(AND(ISNUMBER(J20),ISNUMBER(L20)),IF(Stammdaten!$AE$30="2 - Nein",ROUND(L20*0.3,2),ROUND(I20*0.3,2)),"") ->  | R20: =+IF(Stammdaten!$AE$30="1 - Ja",K20,0) ->  | X20: 0 | Y20: 0 | Z20: 0 | AA20: 0 | AB20: 0 | AD20: 0 | AE20: 5 | AF20: 0 | AG20: 0
E21: =IF(Stammdaten!$AE$29="2 - Vereinbarte Entgelte",IF(ISNUMBER(D21),IF(YEAR(D21)<Stammdaten!$AE$28,1,IF(YEAR(D21)>Stammdaten!$AE$28,12,MONTH(D21))),""),"") ->  | G21: =IF(Stammdaten!$AE$29="1 - Vereinnahmte Entgelte",IF(ISNUMBER(F21),IF(YEAR(F21)<Stammdaten!$AE$28,1,IF(YEAR(F21)>Stammdaten!$AE$28,12,MONTH(F21))),""),"") ->  | M21: =+IF(AND(ISNUMBER(I21),ISNUMBER(K21)),IF(Stammdaten!$AE$30="2 - Nein",L21-N21,I21-N21),"") ->  | N21: =+IF(AND(ISNUMBER(J21),ISNUMBER(L21)),IF(Stammdaten!$AE$30="2 - Nein",ROUND(L21*0.3,2),ROUND(I21*0.3,2)),"") ->  | R21: =+IF(Stammdaten!$AE$30="1 - Ja",K21,0) ->  | X21: 0 | Y21: 0 | Z21: 0 | AA21: 0 | AB21: 0 | AD21: 0 | AE21: 5 | AF21: 0 | AG21: 0
E22: =IF(Stammdaten!$AE$29="2 - Vereinbarte Entgelte",IF(ISNUMBER(D22),IF(YEAR(D22)<Stammdaten!$AE$28,1,IF(YEAR(D22)>Stammdaten!$AE$28,12,MONTH(D22))),""),"") ->  | G22: =IF(Stammdaten!$AE$29="1 - Vereinnahmte Entgelte",IF(ISNUMBER(F22),IF(YEAR(F22)<Stammdaten!$AE$28,1,IF(YEAR(F22)>Stammdaten!$AE$28,12,MONTH(F22))),""),"") ->  | M22: =+IF(AND(ISNUMBER(I22),ISNUMBER(K22)),IF(Stammdaten!$AE$30="2 - Nein",L22-N22,I22-N22),"") ->  | N22: =+IF(AND(ISNUMBER(J22),ISNUMBER(L22)),IF(Stammdaten!$AE$30="2 - Nein",ROUND(L22*0.3,2),ROUND(I22*0.3,2)),"") ->  | R22: =+IF(Stammdaten!$AE$30="1 - Ja",K22,0) ->  | X22: 0 | Y22: 0 | Z22: 0 | AA22: 0 | AB22: 0 | AD22: 0 | AE22: 5 | AF22: 0 | AG22: 0
E23: =IF(Stammdaten!$AE$29="2 - Vereinbarte Entgelte",IF(ISNUMBER(D23),IF(YEAR(D23)<Stammdaten!$AE$28,1,IF(YEAR(D23)>Stammdaten!$AE$28,12,MONTH(D23))),""),"") ->  | G23: =IF(Stammdaten!$AE$29="1 - Vereinnahmte Entgelte",IF(ISNUMBER(F23),IF(YEAR(F23)<Stammdaten!$AE$28,1,IF(YEAR(F23)>Stammdaten!$AE$28,12,MONTH(F23))),""),"") ->  | M23: =+IF(AND(ISNUMBER(I23),ISNUMBER(K23)),IF(Stammdaten!$AE$30="2 - Nein",L23-N23,I23-N23),"") ->  | N23: =+IF(AND(ISNUMBER(J23),ISNUMBER(L23)),IF(Stammdaten!$AE$30="2 - Nein",ROUND(L23*0.3,2),ROUND(I23*0.3,2)),"") ->  | R23: =+IF(Stammdaten!$AE$30="1 - Ja",K23,0) ->  | X23: 0 | Y23: 0 | Z23: 0 | AA23: 0 | AB23: 0 | AD23: 0 | AE23: 5 | AF23: 0 | AG23: 0
E24: =IF(Stammdaten!$AE$29="2 - Vereinbarte Entgelte",IF(ISNUMBER(D24),IF(YEAR(D24)<Stammdaten!$AE$28,1,IF(YEAR(D24)>Stammdaten!$AE$28,12,MONTH(D24))),""),"") ->  | G24: =IF(Stammdaten!$AE$29="1 - Vereinnahmte Entgelte",IF(ISNUMBER(F24),IF(YEAR(F24)<Stammdaten!$AE$28,1,IF(YEAR(F24)>Stammdaten!$AE$28,12,MONTH(F24))),""),"") ->  | M24: =+IF(AND(ISNUMBER(I24),ISNUMBER(K24)),IF(Stammdaten!$AE$30="2 - Nein",L24-N24,I24-N24),"") ->  | N24: =+IF(AND(ISNUMBER(J24),ISNUMBER(L24)),IF(Stammdaten!$AE$30="2 - Nein",ROUND(L24*0.3,2),ROUND(I24*0.3,2)),"") ->  | R24: =+IF(Stammdaten!$AE$30="1 - Ja",K24,0) ->  | X24: 0 | Y24: 0 | Z24: 0 | AA24: 0 | AB24: 0 | AD24: 0 | AE24: 5 | AF24: 0 | AG24: 0
E25: =IF(Stammdaten!$AE$29="2 - Vereinbarte Entgelte",IF(ISNUMBER(D25),IF(YEAR(D25)<Stammdaten!$AE$28,1,IF(YEAR(D25)>Stammdaten!$AE$28,12,MONTH(D25))),""),"") ->  | G25: =IF(Stammdaten!$AE$29="1 - Vereinnahmte Entgelte",IF(ISNUMBER(F25),IF(YEAR(F25)<Stammdaten!$AE$28,1,IF(YEAR(F25)>Stammdaten!$AE$28,12,MONTH(F25))),""),"") ->  | M25: =+IF(AND(ISNUMBER(I25),ISNUMBER(K25)),IF(Stammdaten!$AE$30="2 - Nein",L25-N25,I25-N25),"") ->  | N25: =+IF(AND(ISNUMBER(J25),ISNUMBER(L25)),IF(Stammdaten!$AE$30="2 - Nein",ROUND(L25*0.3,2),ROUND(I25*0.3,2)),"") ->  | R25: =+IF(Stammdaten!$AE$30="1 - Ja",K25,0) ->  | X25: 0 | Y25: 0 | Z25: 0 | AA25: 0 | AB25: 0 | AD25: 0 | AE25: 5 | AF25: 0 | AG25: 0
E26: =IF(Stammdaten!$AE$29="2 - Vereinbarte Entgelte",IF(ISNUMBER(D26),IF(YEAR(D26)<Stammdaten!$AE$28,1,IF(YEAR(D26)>Stammdaten!$AE$28,12,MONTH(D26))),""),"") ->  | G26: =IF(Stammdaten!$AE$29="1 - Vereinnahmte Entgelte",IF(ISNUMBER(F26),IF(YEAR(F26)<Stammdaten!$AE$28,1,IF(YEAR(F26)>Stammdaten!$AE$28,12,MONTH(F26))),""),"") ->  | M26: =+IF(AND(ISNUMBER(I26),ISNUMBER(K26)),IF(Stammdaten!$AE$30="2 - Nein",L26-N26,I26-N26),"") ->  | N26: =+IF(AND(ISNUMBER(J26),ISNUMBER(L26)),IF(Stammdaten!$AE$30="2 - Nein",ROUND(L26*0.3,2),ROUND(I26*0.3,2)),"") ->  | R26: =+IF(Stammdaten!$AE$30="1 - Ja",K26,0) ->  | X26: 0 | Y26: 0 | Z26: 0 | AA26: 0 | AB26: 0 | AD26: 0 | AE26: 5 | AF26: 0 | AG26: 0
E27: =IF(Stammdaten!$AE$29="2 - Vereinbarte Entgelte",IF(ISNUMBER(D27),IF(YEAR(D27)<Stammdaten!$AE$28,1,IF(YEAR(D27)>Stammdaten!$AE$28,12,MONTH(D27))),""),"") ->  | G27: =IF(Stammdaten!$AE$29="1 - Vereinnahmte Entgelte",IF(ISNUMBER(F27),IF(YEAR(F27)<Stammdaten!$AE$28,1,IF(YEAR(F27)>Stammdaten!$AE$28,12,MONTH(F27))),""),"") ->  | M27: =+IF(AND(ISNUMBER(I27),ISNUMBER(K27)),IF(Stammdaten!$AE$30="2 - Nein",L27-N27,I27-N27),"") ->  | N27: =+IF(AND(ISNUMBER(J27),ISNUMBER(L27)),IF(Stammdaten!$AE$30="2 - Nein",ROUND(L27*0.3,2),ROUND(I27*0.3,2)),"") ->  | R27: =+IF(Stammdaten!$AE$30="1 - Ja",K27,0) ->  | X27: 0 | Y27: 0 | Z27: 0 | AA27: 0 | AB27: 0 | AD27: 0 | AE27: 5 | AF27: 0 | AG27: 0
E28: =IF(Stammdaten!$AE$29="2 - Vereinbarte Entgelte",IF(ISNUMBER(D28),IF(YEAR(D28)<Stammdaten!$AE$28,1,IF(YEAR(D28)>Stammdaten!$AE$28,12,MONTH(D28))),""),"") ->  | G28: =IF(Stammdaten!$AE$29="1 - Vereinnahmte Entgelte",IF(ISNUMBER(F28),IF(YEAR(F28)<Stammdaten!$AE$28,1,IF(YEAR(F28)>Stammdaten!$AE$28,12,MONTH(F28))),""),"") ->  | M28: =+IF(AND(ISNUMBER(I28),ISNUMBER(K28)),IF(Stammdaten!$AE$30="2 - Nein",L28-N28,I28-N28),"") ->  | N28: =+IF(AND(ISNUMBER(J28),ISNUMBER(L28)),IF(Stammdaten!$AE$30="2 - Nein",ROUND(L28*0.3,2),ROUND(I28*0.3,2)),"") ->  | R28: =+IF(Stammdaten!$AE$30="1 - Ja",K28,0) ->  | X28: 0 | Y28: 0 | Z28: 0 | AA28: 0 | AB28: 0 | AD28: 0 | AE28: 5 | AF28: 0 | AG28: 0
E29: =IF(Stammdaten!$AE$29="2 - Vereinbarte Entgelte",IF(ISNUMBER(D29),IF(YEAR(D29)<Stammdaten!$AE$28,1,IF(YEAR(D29)>Stammdaten!$AE$28,12,MONTH(D29))),""),"") ->  | G29: =IF(Stammdaten!$AE$29="1 - Vereinnahmte Entgelte",IF(ISNUMBER(F29),IF(YEAR(F29)<Stammdaten!$AE$28,1,IF(YEAR(F29)>Stammdaten!$AE$28,12,MONTH(F29))),""),"") ->  | M29: =+IF(AND(ISNUMBER(I29),ISNUMBER(K29)),IF(Stammdaten!$AE$30="2 - Nein",L29-N29,I29-N29),"") ->  | N29: =+IF(AND(ISNUMBER(J29),ISNUMBER(L29)),IF(Stammdaten!$AE$30="2 - Nein",ROUND(L29*0.3,2),ROUND(I29*0.3,2)),"") ->  | R29: =+IF(Stammdaten!$AE$30="1 - Ja",K29,0) ->  | X29: 0 | Y29: 0 | Z29: 0 | AA29: 0 | AB29: 0 | AD29: 0 | AE29: 5 | AF29: 0 | AG29: 0
E30: =IF(Stammdaten!$AE$29="2 - Vereinbarte Entgelte",IF(ISNUMBER(D30),IF(YEAR(D30)<Stammdaten!$AE$28,1,IF(YEAR(D30)>Stammdaten!$AE$28,12,MONTH(D30))),""),"") ->  | G30: =IF(Stammdaten!$AE$29="1 - Vereinnahmte Entgelte",IF(ISNUMBER(F30),IF(YEAR(F30)<Stammdaten!$AE$28,1,IF(YEAR(F30)>Stammdaten!$AE$28,12,MONTH(F30))),""),"") ->  | M30: =+IF(AND(ISNUMBER(I30),ISNUMBER(K30)),IF(Stammdaten!$AE$30="2 - Nein",L30-N30,I30-N30),"") ->  | N30: =+IF(AND(ISNUMBER(J30),ISNUMBER(L30)),IF(Stammdaten!$AE$30="2 - Nein",ROUND(L30*0.3,2),ROUND(I30*0.3,2)),"") ->  | R30: =+IF(Stammdaten!$AE$30="1 - Ja",K30,0) ->  | X30: 0 | Y30: 0 | Z30: 0 | AA30: 0 | AB30: 0 | AD30: 0 | AE30: 5 | AF30: 0 | AG30: 0
E31: =IF(Stammdaten!$AE$29="2 - Vereinbarte Entgelte",IF(ISNUMBER(D31),IF(YEAR(D31)<Stammdaten!$AE$28,1,IF(YEAR(D31)>Stammdaten!$AE$28,12,MONTH(D31))),""),"") ->  | G31: =IF(Stammdaten!$AE$29="1 - Vereinnahmte Entgelte",IF(ISNUMBER(F31),IF(YEAR(F31)<Stammdaten!$AE$28,1,IF(YEAR(F31)>Stammdaten!$AE$28,12,MONTH(F31))),""),"") ->  | M31: =+IF(AND(ISNUMBER(I31),ISNUMBER(K31)),IF(Stammdaten!$AE$30="2 - Nein",L31-N31,I31-N31),"") ->  | N31: =+IF(AND(ISNUMBER(J31),ISNUMBER(L31)),IF(Stammdaten!$AE$30="2 - Nein",ROUND(L31*0.3,2),ROUND(I31*0.3,2)),"") ->  | R31: =+IF(Stammdaten!$AE$30="1 - Ja",K31,0) ->  | X31: 0 | Y31: 0 | Z31: 0 | AA31: 0 | AB31: 0 | AD31: 0 | AE31: 5 | AF31: 0 | AG31: 0
E32: =IF(Stammdaten!$AE$29="2 - Vereinbarte Entgelte",IF(ISNUMBER(D32),IF(YEAR(D32)<Stammdaten!$AE$28,1,IF(YEAR(D32)>Stammdaten!$AE$28,12,MONTH(D32))),""),"") ->  | G32: =IF(Stammdaten!$AE$29="1 - Vereinnahmte Entgelte",IF(ISNUMBER(F32),IF(YEAR(F32)<Stammdaten!$AE$28,1,IF(YEAR(F32)>Stammdaten!$AE$28,12,MONTH(F32))),""),"") ->  | M32: =+IF(AND(ISNUMBER(I32),ISNUMBER(K32)),IF(Stammdaten!$AE$30="2 - Nein",L32-N32,I32-N32),"") ->  | N32: =+IF(AND(ISNUMBER(J32),ISNUMBER(L32)),IF(Stammdaten!$AE$30="2 - Nein",ROUND(L32*0.3,2),ROUND(I32*0.3,2)),"") ->  | R32: =+IF(Stammdaten!$AE$30="1 - Ja",K32,0) ->  | X32: 0 | Y32: 0 | Z32: 0 | AA32: 0 | AB32: 0 | AD32: 0 | AE32: 5 | AF32: 0 | AG32: 0
E33: =IF(Stammdaten!$AE$29="2 - Vereinbarte Entgelte",IF(ISNUMBER(D33),IF(YEAR(D33)<Stammdaten!$AE$28,1,IF(YEAR(D33)>Stammdaten!$AE$28,12,MONTH(D33))),""),"") ->  | G33: =IF(Stammdaten!$AE$29="1 - Vereinnahmte Entgelte",IF(ISNUMBER(F33),IF(YEAR(F33)<Stammdaten!$AE$28,1,IF(YEAR(F33)>Stammdaten!$AE$28,12,MONTH(F33))),""),"") ->  | M33: =+IF(AND(ISNUMBER(I33),ISNUMBER(K33)),IF(Stammdaten!$AE$30="2 - Nein",L33-N33,I33-N33),"") ->  | N33: =+IF(AND(ISNUMBER(J33),ISNUMBER(L33)),IF(Stammdaten!$AE$30="2 - Nein",ROUND(L33*0.3,2),ROUND(I33*0.3,2)),"") ->  | R33: =+IF(Stammdaten!$AE$30="1 - Ja",K33,0) ->  | X33: 0 | Y33: 0 | Z33: 0 | AA33: 0 | AB33: 0 | AD33: 0 | AE33: 5 | AF33: 0 | AG33: 0
E34: =IF(Stammdaten!$AE$29="2 - Vereinbarte Entgelte",IF(ISNUMBER(D34),IF(YEAR(D34)<Stammdaten!$AE$28,1,IF(YEAR(D34)>Stammdaten!$AE$28,12,MONTH(D34))),""),"") ->  | G34: =IF(Stammdaten!$AE$29="1 - Vereinnahmte Entgelte",IF(ISNUMBER(F34),IF(YEAR(F34)<Stammdaten!$AE$28,1,IF(YEAR(F34)>Stammdaten!$AE$28,12,MONTH(F34))),""),"") ->  | M34: =+IF(AND(ISNUMBER(I34),ISNUMBER(K34)),IF(Stammdaten!$AE$30="2 - Nein",L34-N34,I34-N34),"") ->  | N34: =+IF(AND(ISNUMBER(J34),ISNUMBER(L34)),IF(Stammdaten!$AE$30="2 - Nein",ROUND(L34*0.3,2),ROUND(I34*0.3,2)),"") ->  | R34: =+IF(Stammdaten!$AE$30="1 - Ja",K34,0) ->  | X34: 0 | Y34: 0 | Z34: 0 | AA34: 0 | AB34: 0 | AD34: 0 | AE34: 5 | AF34: 0 | AG34: 0
E35: =IF(Stammdaten!$AE$29="2 - Vereinbarte Entgelte",IF(ISNUMBER(D35),IF(YEAR(D35)<Stammdaten!$AE$28,1,IF(YEAR(D35)>Stammdaten!$AE$28,12,MONTH(D35))),""),"") ->  | G35: =IF(Stammdaten!$AE$29="1 - Vereinnahmte Entgelte",IF(ISNUMBER(F35),IF(YEAR(F35)<Stammdaten!$AE$28,1,IF(YEAR(F35)>Stammdaten!$AE$28,12,MONTH(F35))),""),"") ->  | M35: =+IF(AND(ISNUMBER(I35),ISNUMBER(K35)),IF(Stammdaten!$AE$30="2 - Nein",L35-N35,I35-N35),"") ->  | N35: =+IF(AND(ISNUMBER(J35),ISNUMBER(L35)),IF(Stammdaten!$AE$30="2 - Nein",ROUND(L35*0.3,2),ROUND(I35*0.3,2)),"") ->  | R35: =+IF(Stammdaten!$AE$30="1 - Ja",K35,0) ->  | X35: 0 | Y35: 0 | Z35: 0 | AA35: 0 | AB35: 0 | AD35: 0 | AE35: 5 | AF35: 0 | AG35: 0
E36: =IF(Stammdaten!$AE$29="2 - Vereinbarte Entgelte",IF(ISNUMBER(D36),IF(YEAR(D36)<Stammdaten!$AE$28,1,IF(YEAR(D36)>Stammdaten!$AE$28,12,MONTH(D36))),""),"") ->  | G36: =IF(Stammdaten!$AE$29="1 - Vereinnahmte Entgelte",IF(ISNUMBER(F36),IF(YEAR(F36)<Stammdaten!$AE$28,1,IF(YEAR(F36)>Stammdaten!$AE$28,12,MONTH(F36))),""),"") ->  | M36: =+IF(AND(ISNUMBER(I36),ISNUMBER(K36)),IF(Stammdaten!$AE$30="2 - Nein",L36-N36,I36-N36),"") ->  | N36: =+IF(AND(ISNUMBER(J36),ISNUMBER(L36)),IF(Stammdaten!$AE$30="2 - Nein",ROUND(L36*0.3,2),ROUND(I36*0.3,2)),"") ->  | R36: =+IF(Stammdaten!$AE$30="1 - Ja",K36,0) ->  | X36: 0 | Y36: 0 | Z36: 0 | AA36: 0 | AB36: 0 | AD36: 0 | AE36: 5 | AF36: 0 | AG36: 0
E37: =IF(Stammdaten!$AE$29="2 - Vereinbarte Entgelte",IF(ISNUMBER(D37),IF(YEAR(D37)<Stammdaten!$AE$28,1,IF(YEAR(D37)>Stammdaten!$AE$28,12,MONTH(D37))),""),"") ->  | G37: =IF(Stammdaten!$AE$29="1 - Vereinnahmte Entgelte",IF(ISNUMBER(F37),IF(YEAR(F37)<Stammdaten!$AE$28,1,IF(YEAR(F37)>Stammdaten!$AE$28,12,MONTH(F37))),""),"") ->  | M37: =+IF(AND(ISNUMBER(I37),ISNUMBER(K37)),IF(Stammdaten!$AE$30="2 - Nein",L37-N37,I37-N37),"") ->  | N37: =+IF(AND(ISNUMBER(J37),ISNUMBER(L37)),IF(Stammdaten!$AE$30="2 - Nein",ROUND(L37*0.3,2),ROUND(I37*0.3,2)),"") ->  | R37: =+IF(Stammdaten!$AE$30="1 - Ja",K37,0) ->  | X37: =+IF(B37="",0,1) -> 0 | Y37: =+IF(ISNUMBER(D37),1,0) -> 0 | Z37: =+IF(H37="",0,1) -> 0 | AA37: =+IF(ISNUMBER(L37),1,0) -> 0 | AB37: =+IF(ISNUMBER(F37),1,0) -> 0 | AD37: 0 | AE37: 5 | AF37: 0 | AG37: 0
E38: =IF(Stammdaten!$AE$29="2 - Vereinbarte Entgelte",IF(ISNUMBER(D38),IF(YEAR(D38)<Stammdaten!$AE$28,1,IF(YEAR(D38)>Stammdaten!$AE$28,12,MONTH(D38))),""),"") ->  | G38: =IF(Stammdaten!$AE$29="1 - Vereinnahmte Entgelte",IF(ISNUMBER(F38),IF(YEAR(F38)<Stammdaten!$AE$28,1,IF(YEAR(F38)>Stammdaten!$AE$28,12,MONTH(F38))),""),"") ->  | M38: =+IF(AND(ISNUMBER(I38),ISNUMBER(K38)),IF(Stammdaten!$AE$30="2 - Nein",L38-N38,I38-N38),"") ->  | N38: =+IF(AND(ISNUMBER(J38),ISNUMBER(L38)),IF(Stammdaten!$AE$30="2 - Nein",ROUND(L38*0.3,2),ROUND(I38*0.3,2)),"") ->  | R38: =+IF(Stammdaten!$AE$30="1 - Ja",K38,0) ->  | X38: 0 | Y38: 0 | Z38: 0 | AA38: 0 | AB38: 0 | AD38: 0 | AE38: 5 | AF38: 0 | AG38: 0
E39: =IF(Stammdaten!$AE$29="2 - Vereinbarte Entgelte",IF(ISNUMBER(D39),IF(YEAR(D39)<Stammdaten!$AE$28,1,IF(YEAR(D39)>Stammdaten!$AE$28,12,MONTH(D39))),""),"") ->  | G39: =IF(Stammdaten!$AE$29="1 - Vereinnahmte Entgelte",IF(ISNUMBER(F39),IF(YEAR(F39)<Stammdaten!$AE$28,1,IF(YEAR(F39)>Stammdaten!$AE$28,12,MONTH(F39))),""),"") ->  | M39: =+IF(AND(ISNUMBER(I39),ISNUMBER(K39)),IF(Stammdaten!$AE$30="2 - Nein",L39-N39,I39-N39),"") ->  | N39: =+IF(AND(ISNUMBER(J39),ISNUMBER(L39)),IF(Stammdaten!$AE$30="2 - Nein",ROUND(L39*0.3,2),ROUND(I39*0.3,2)),"") ->  | R39: =+IF(Stammdaten!$AE$30="1 - Ja",K39,0) ->  | X39: 0 | Y39: 0 | Z39: 0 | AA39: 0 | AB39: 0 | AD39: 0 | AE39: 5 | AF39: 0 | AG39: 0
E40: =IF(Stammdaten!$AE$29="2 - Vereinbarte Entgelte",IF(ISNUMBER(D40),IF(YEAR(D40)<Stammdaten!$AE$28,1,IF(YEAR(D40)>Stammdaten!$AE$28,12,MONTH(D40))),""),"") ->  | G40: =IF(Stammdaten!$AE$29="1 - Vereinnahmte Entgelte",IF(ISNUMBER(F40),IF(YEAR(F40)<Stammdaten!$AE$28,1,IF(YEAR(F40)>Stammdaten!$AE$28,12,MONTH(F40))),""),"") ->  | M40: =+IF(AND(ISNUMBER(I40),ISNUMBER(K40)),IF(Stammdaten!$AE$30="2 - Nein",L40-N40,I40-N40),"") ->  | N40: =+IF(AND(ISNUMBER(J40),ISNUMBER(L40)),IF(Stammdaten!$AE$30="2 - Nein",ROUND(L40*0.3,2),ROUND(I40*0.3,2)),"") ->  | R40: =+IF(Stammdaten!$AE$30="1 - Ja",K40,0) ->  | X40: 0 | Y40: 0 | Z40: 0 | AA40: 0 | AB40: 0 | AD40: 0 | AE40: 5 | AF40: 0 | AG40: 0
E41: =IF(Stammdaten!$AE$29="2 - Vereinbarte Entgelte",IF(ISNUMBER(D41),IF(YEAR(D41)<Stammdaten!$AE$28,1,IF(YEAR(D41)>Stammdaten!$AE$28,12,MONTH(D41))),""),"") ->  | G41: =IF(Stammdaten!$AE$29="1 - Vereinnahmte Entgelte",IF(ISNUMBER(F41),IF(YEAR(F41)<Stammdaten!$AE$28,1,IF(YEAR(F41)>Stammdaten!$AE$28,12,MONTH(F41))),""),"") ->  | M41: =+IF(AND(ISNUMBER(I41),ISNUMBER(K41)),IF(Stammdaten!$AE$30="2 - Nein",L41-N41,I41-N41),"") ->  | N41: =+IF(AND(ISNUMBER(J41),ISNUMBER(L41)),IF(Stammdaten!$AE$30="2 - Nein",ROUND(L41*0.3,2),ROUND(I41*0.3,2)),"") ->  | R41: =+IF(Stammdaten!$AE$30="1 - Ja",K41,0) ->  | X41: 0 | Y41: 0 | Z41: 0 | AA41: 0 | AB41: 0 | AD41: 0 | AE41: 5 | AF41: 0 | AG41: 0
E42: =IF(Stammdaten!$AE$29="2 - Vereinbarte Entgelte",IF(ISNUMBER(D42),IF(YEAR(D42)<Stammdaten!$AE$28,1,IF(YEAR(D42)>Stammdaten!$AE$28,12,MONTH(D42))),""),"") ->  | G42: =IF(Stammdaten!$AE$29="1 - Vereinnahmte Entgelte",IF(ISNUMBER(F42),IF(YEAR(F42)<Stammdaten!$AE$28,1,IF(YEAR(F42)>Stammdaten!$AE$28,12,MONTH(F42))),""),"") ->  | M42: =+IF(AND(ISNUMBER(I42),ISNUMBER(K42)),IF(Stammdaten!$AE$30="2 - Nein",L42-N42,I42-N42),"") ->  | N42: =+IF(AND(ISNUMBER(J42),ISNUMBER(L42)),IF(Stammdaten!$AE$30="2 - Nein",ROUND(L42*0.3,2),ROUND(I42*0.3,2)),"") ->  | R42: =+IF(Stammdaten!$AE$30="1 - Ja",K42,0) ->  | X42: 0 | Y42: 0 | Z42: 0 | AA42: 0 | AB42: 0 | AD42: 0 | AE42: 5 | AF42: 0 | AG42: 0
E43: =IF(Stammdaten!$AE$29="2 - Vereinbarte Entgelte",IF(ISNUMBER(D43),IF(YEAR(D43)<Stammdaten!$AE$28,1,IF(YEAR(D43)>Stammdaten!$AE$28,12,MONTH(D43))),""),"") ->  | G43: =IF(Stammdaten!$AE$29="1 - Vereinnahmte Entgelte",IF(ISNUMBER(F43),IF(YEAR(F43)<Stammdaten!$AE$28,1,IF(YEAR(F43)>Stammdaten!$AE$28,12,MONTH(F43))),""),"") ->  | M43: =+IF(AND(ISNUMBER(I43),ISNUMBER(K43)),IF(Stammdaten!$AE$30="2 - Nein",L43-N43,I43-N43),"") ->  | N43: =+IF(AND(ISNUMBER(J43),ISNUMBER(L43)),IF(Stammdaten!$AE$30="2 - Nein",ROUND(L43*0.3,2),ROUND(I43*0.3,2)),"") ->  | R43: =+IF(Stammdaten!$AE$30="1 - Ja",K43,0) ->  | X43: 0 | Y43: 0 | Z43: 0 | AA43: 0 | AB43: 0 | AD43: 0 | AE43: 5 | AF43: 0 | AG43: 0
E44: =IF(Stammdaten!$AE$29="2 - Vereinbarte Entgelte",IF(ISNUMBER(D44),IF(YEAR(D44)<Stammdaten!$AE$28,1,IF(YEAR(D44)>Stammdaten!$AE$28,12,MONTH(D44))),""),"") ->  | G44: =IF(Stammdaten!$AE$29="1 - Vereinnahmte Entgelte",IF(ISNUMBER(F44),IF(YEAR(F44)<Stammdaten!$AE$28,1,IF(YEAR(F44)>Stammdaten!$AE$28,12,MONTH(F44))),""),"") ->  | M44: =+IF(AND(ISNUMBER(I44),ISNUMBER(K44)),IF(Stammdaten!$AE$30="2 - Nein",L44-N44,I44-N44),"") ->  | N44: =+IF(AND(ISNUMBER(J44),ISNUMBER(L44)),IF(Stammdaten!$AE$30="2 - Nein",ROUND(L44*0.3,2),ROUND(I44*0.3,2)),"") ->  | R44: =+IF(Stammdaten!$AE$30="1 - Ja",K44,0) ->  | X44: 0 | Y44: 0 | Z44: 0 | AA44: 0 | AB44: 0 | AD44: 0 | AE44: 5 | AF44: 0 | AG44: 0
E45: =IF(Stammdaten!$AE$29="2 - Vereinbarte Entgelte",IF(ISNUMBER(D45),IF(YEAR(D45)<Stammdaten!$AE$28,1,IF(YEAR(D45)>Stammdaten!$AE$28,12,MONTH(D45))),""),"") ->  | G45: =IF(Stammdaten!$AE$29="1 - Vereinnahmte Entgelte",IF(ISNUMBER(F45),IF(YEAR(F45)<Stammdaten!$AE$28,1,IF(YEAR(F45)>Stammdaten!$AE$28,12,MONTH(F45))),""),"") ->  | M45: =+IF(AND(ISNUMBER(I45),ISNUMBER(K45)),IF(Stammdaten!$AE$30="2 - Nein",L45-N45,I45-N45),"") ->  | N45: =+IF(AND(ISNUMBER(J45),ISNUMBER(L45)),IF(Stammdaten!$AE$30="2 - Nein",ROUND(L45*0.3,2),ROUND(I45*0.3,2)),"") ->  | R45: =+IF(Stammdaten!$AE$30="1 - Ja",K45,0) ->  | X45: 0 | Y45: 0 | Z45: 0 | AA45: 0 | AB45: 0 | AD45: 0 | AE45: 5 | AF45: 0 | AG45: 0
E46: =IF(Stammdaten!$AE$29="2 - Vereinbarte Entgelte",IF(ISNUMBER(D46),IF(YEAR(D46)<Stammdaten!$AE$28,1,IF(YEAR(D46)>Stammdaten!$AE$28,12,MONTH(D46))),""),"") ->  | G46: =IF(Stammdaten!$AE$29="1 - Vereinnahmte Entgelte",IF(ISNUMBER(F46),IF(YEAR(F46)<Stammdaten!$AE$28,1,IF(YEAR(F46)>Stammdaten!$AE$28,12,MONTH(F46))),""),"") ->  | M46: =+IF(AND(ISNUMBER(I46),ISNUMBER(K46)),IF(Stammdaten!$AE$30="2 - Nein",L46-N46,I46-N46),"") ->  | N46: =+IF(AND(ISNUMBER(J46),ISNUMBER(L46)),IF(Stammdaten!$AE$30="2 - Nein",ROUND(L46*0.3,2),ROUND(I46*0.3,2)),"") ->  | R46: =+IF(Stammdaten!$AE$30="1 - Ja",K46,0) ->  | X46: 0 | Y46: 0 | Z46: 0 | AA46: 0 | AB46: 0 | AD46: 0 | AE46: 5 | AF46: 0 | AG46: 0
E47: =IF(Stammdaten!$AE$29="2 - Vereinbarte Entgelte",IF(ISNUMBER(D47),IF(YEAR(D47)<Stammdaten!$AE$28,1,IF(YEAR(D47)>Stammdaten!$AE$28,12,MONTH(D47))),""),"") ->  | G47: =IF(Stammdaten!$AE$29="1 - Vereinnahmte Entgelte",IF(ISNUMBER(F47),IF(YEAR(F47)<Stammdaten!$AE$28,1,IF(YEAR(F47)>Stammdaten!$AE$28,12,MONTH(F47))),""),"") ->  | M47: =+IF(AND(ISNUMBER(I47),ISNUMBER(K47)),IF(Stammdaten!$AE$30="2 - Nein",L47-N47,I47-N47),"") ->  | N47: =+IF(AND(ISNUMBER(J47),ISNUMBER(L47)),IF(Stammdaten!$AE$30="2 - Nein",ROUND(L47*0.3,2),ROUND(I47*0.3,2)),"") ->  | R47: =+IF(Stammdaten!$AE$30="1 - Ja",K47,0) ->  | X47: 0 | Y47: 0 | Z47: 0 | AA47: 0 | AB47: 0 | AD47: 0 | AE47: 5 | AF47: 0 | AG47: 0
E48: =IF(Stammdaten!$AE$29="2 - Vereinbarte Entgelte",IF(ISNUMBER(D48),IF(YEAR(D48)<Stammdaten!$AE$28,1,IF(YEAR(D48)>Stammdaten!$AE$28,12,MONTH(D48))),""),"") ->  | G48: =IF(Stammdaten!$AE$29="1 - Vereinnahmte Entgelte",IF(ISNUMBER(F48),IF(YEAR(F48)<Stammdaten!$AE$28,1,IF(YEAR(F48)>Stammdaten!$AE$28,12,MONTH(F48))),""),"") ->  | M48: =+IF(AND(ISNUMBER(I48),ISNUMBER(K48)),IF(Stammdaten!$AE$30="2 - Nein",L48-N48,I48-N48),"") ->  | N48: =+IF(AND(ISNUMBER(J48),ISNUMBER(L48)),IF(Stammdaten!$AE$30="2 - Nein",ROUND(L48*0.3,2),ROUND(I48*0.3,2)),"") ->  | R48: =+IF(Stammdaten!$AE$30="1 - Ja",K48,0) ->  | X48: 0 | Y48: 0 | Z48: 0 | AA48: 0 | AB48: 0 | AD48: 0 | AE48: 5 | AF48: 0 | AG48: 0
E49: =IF(Stammdaten!$AE$29="2 - Vereinbarte Entgelte",IF(ISNUMBER(D49),IF(YEAR(D49)<Stammdaten!$AE$28,1,IF(YEAR(D49)>Stammdaten!$AE$28,12,MONTH(D49))),""),"") ->  | G49: =IF(Stammdaten!$AE$29="1 - Vereinnahmte Entgelte",IF(ISNUMBER(F49),IF(YEAR(F49)<Stammdaten!$AE$28,1,IF(YEAR(F49)>Stammdaten!$AE$28,12,MONTH(F49))),""),"") ->  | M49: =+IF(AND(ISNUMBER(I49),ISNUMBER(K49)),IF(Stammdaten!$AE$30="2 - Nein",L49-N49,I49-N49),"") ->  | N49: =+IF(AND(ISNUMBER(J49),ISNUMBER(L49)),IF(Stammdaten!$AE$30="2 - Nein",ROUND(L49*0.3,2),ROUND(I49*0.3,2)),"") ->  | R49: =+IF(Stammdaten!$AE$30="1 - Ja",K49,0) ->  | X49: 0 | Y49: 0 | Z49: 0 | AA49: 0 | AB49: 0 | AD49: 0 | AE49: 5 | AF49: 0 | AG49: 0
E50: =IF(Stammdaten!$AE$29="2 - Vereinbarte Entgelte",IF(ISNUMBER(D50),IF(YEAR(D50)<Stammdaten!$AE$28,1,IF(YEAR(D50)>Stammdaten!$AE$28,12,MONTH(D50))),""),"") ->  | G50: =IF(Stammdaten!$AE$29="1 - Vereinnahmte Entgelte",IF(ISNUMBER(F50),IF(YEAR(F50)<Stammdaten!$AE$28,1,IF(YEAR(F50)>Stammdaten!$AE$28,12,MONTH(F50))),""),"") ->  | M50: =+IF(AND(ISNUMBER(I50),ISNUMBER(K50)),IF(Stammdaten!$AE$30="2 - Nein",L50-N50,I50-N50),"") ->  | N50: =+IF(AND(ISNUMBER(J50),ISNUMBER(L50)),IF(Stammdaten!$AE$30="2 - Nein",ROUND(L50*0.3,2),ROUND(I50*0.3,2)),"") ->  | R50: =+IF(Stammdaten!$AE$30="1 - Ja",K50,0) ->  | X50: 0 | Y50: 0 | Z50: 0 | AA50: 0 | AB50: 0 | AD50: 0 | AE50: 5 | AF50: 0 | AG50: 0
E51: =IF(Stammdaten!$AE$29="2 - Vereinbarte Entgelte",IF(ISNUMBER(D51),IF(YEAR(D51)<Stammdaten!$AE$28,1,IF(YEAR(D51)>Stammdaten!$AE$28,12,MONTH(D51))),""),"") ->  | G51: =IF(Stammdaten!$AE$29="1 - Vereinnahmte Entgelte",IF(ISNUMBER(F51),IF(YEAR(F51)<Stammdaten!$AE$28,1,IF(YEAR(F51)>Stammdaten!$AE$28,12,MONTH(F51))),""),"") ->  | M51: =+IF(AND(ISNUMBER(I51),ISNUMBER(K51)),IF(Stammdaten!$AE$30="2 - Nein",L51-N51,I51-N51),"") ->  | N51: =+IF(AND(ISNUMBER(J51),ISNUMBER(L51)),IF(Stammdaten!$AE$30="2 - Nein",ROUND(L51*0.3,2),ROUND(I51*0.3,2)),"") ->  | R51: =+IF(Stammdaten!$AE$30="1 - Ja",K51,0) ->  | X51: 0 | Y51: 0 | Z51: 0 | AA51: 0 | AB51: 0 | AD51: 0 | AE51: 5 | AF51: 0 | AG51: 0
E52: =IF(Stammdaten!$AE$29="2 - Vereinbarte Entgelte",IF(ISNUMBER(D52),IF(YEAR(D52)<Stammdaten!$AE$28,1,IF(YEAR(D52)>Stammdaten!$AE$28,12,MONTH(D52))),""),"") ->  | G52: =IF(Stammdaten!$AE$29="1 - Vereinnahmte Entgelte",IF(ISNUMBER(F52),IF(YEAR(F52)<Stammdaten!$AE$28,1,IF(YEAR(F52)>Stammdaten!$AE$28,12,MONTH(F52))),""),"") ->  | M52: =+IF(AND(ISNUMBER(I52),ISNUMBER(K52)),IF(Stammdaten!$AE$30="2 - Nein",L52-N52,I52-N52),"") ->  | N52: =+IF(AND(ISNUMBER(J52),ISNUMBER(L52)),IF(Stammdaten!$AE$30="2 - Nein",ROUND(L52*0.3,2),ROUND(I52*0.3,2)),"") ->  | R52: =+IF(Stammdaten!$AE$30="1 - Ja",K52,0) ->  | X52: 0 | Y52: 0 | Z52: 0 | AA52: 0 | AB52: 0 | AD52: 0 | AE52: 5 | AF52: 0 | AG52: 0
E53: =IF(Stammdaten!$AE$29="2 - Vereinbarte Entgelte",IF(ISNUMBER(D53),IF(YEAR(D53)<Stammdaten!$AE$28,1,IF(YEAR(D53)>Stammdaten!$AE$28,12,MONTH(D53))),""),"") ->  | G53: =IF(Stammdaten!$AE$29="1 - Vereinnahmte Entgelte",IF(ISNUMBER(F53),IF(YEAR(F53)<Stammdaten!$AE$28,1,IF(YEAR(F53)>Stammdaten!$AE$28,12,MONTH(F53))),""),"") ->  | M53: =+IF(AND(ISNUMBER(I53),ISNUMBER(K53)),IF(Stammdaten!$AE$30="2 - Nein",L53-N53,I53-N53),"") ->  | N53: =+IF(AND(ISNUMBER(J53),ISNUMBER(L53)),IF(Stammdaten!$AE$30="2 - Nein",ROUND(L53*0.3,2),ROUND(I53*0.3,2)),"") ->  | R53: =+IF(Stammdaten!$AE$30="1 - Ja",K53,0) ->  | X53: 0 | Y53: 0 | Z53: 0 | AA53: 0 | AB53: 0 | AD53: 0 | AE53: 5 | AF53: 0 | AG53: 0
E54: =IF(Stammdaten!$AE$29="2 - Vereinbarte Entgelte",IF(ISNUMBER(D54),IF(YEAR(D54)<Stammdaten!$AE$28,1,IF(YEAR(D54)>Stammdaten!$AE$28,12,MONTH(D54))),""),"") ->  | G54: =IF(Stammdaten!$AE$29="1 - Vereinnahmte Entgelte",IF(ISNUMBER(F54),IF(YEAR(F54)<Stammdaten!$AE$28,1,IF(YEAR(F54)>Stammdaten!$AE$28,12,MONTH(F54))),""),"") ->  | M54: =+IF(AND(ISNUMBER(I54),ISNUMBER(K54)),IF(Stammdaten!$AE$30="2 - Nein",L54-N54,I54-N54),"") ->  | N54: =+IF(AND(ISNUMBER(J54),ISNUMBER(L54)),IF(Stammdaten!$AE$30="2 - Nein",ROUND(L54*0.3,2),ROUND(I54*0.3,2)),"") ->  | R54: =+IF(Stammdaten!$AE$30="1 - Ja",K54,0) ->  | X54: 0 | Y54: 0 | Z54: 0 | AA54: 0 | AB54: 0 | AD54: 0 | AE54: 5 | AF54: 0 | AG54: 0
E55: =IF(Stammdaten!$AE$29="2 - Vereinbarte Entgelte",IF(ISNUMBER(D55),IF(YEAR(D55)<Stammdaten!$AE$28,1,IF(YEAR(D55)>Stammdaten!$AE$28,12,MONTH(D55))),""),"") ->  | G55: =IF(Stammdaten!$AE$29="1 - Vereinnahmte Entgelte",IF(ISNUMBER(F55),IF(YEAR(F55)<Stammdaten!$AE$28,1,IF(YEAR(F55)>Stammdaten!$AE$28,12,MONTH(F55))),""),"") ->  | M55: =+IF(AND(ISNUMBER(I55),ISNUMBER(K55)),IF(Stammdaten!$AE$30="2 - Nein",L55-N55,I55-N55),"") ->  | N55: =+IF(AND(ISNUMBER(J55),ISNUMBER(L55)),IF(Stammdaten!$AE$30="2 - Nein",ROUND(L55*0.3,2),ROUND(I55*0.3,2)),"") ->  | R55: =+IF(Stammdaten!$AE$30="1 - Ja",K55,0) ->  | X55: 0 | Y55: 0 | Z55: 0 | AA55: 0 | AB55: 0 | AD55: 0 | AE55: 5 | AF55: 0 | AG55: 0
E56: =IF(Stammdaten!$AE$29="2 - Vereinbarte Entgelte",IF(ISNUMBER(D56),IF(YEAR(D56)<Stammdaten!$AE$28,1,IF(YEAR(D56)>Stammdaten!$AE$28,12,MONTH(D56))),""),"") ->  | G56: =IF(Stammdaten!$AE$29="1 - Vereinnahmte Entgelte",IF(ISNUMBER(F56),IF(YEAR(F56)<Stammdaten!$AE$28,1,IF(YEAR(F56)>Stammdaten!$AE$28,12,MONTH(F56))),""),"") ->  | M56: =+IF(AND(ISNUMBER(I56),ISNUMBER(K56)),IF(Stammdaten!$AE$30="2 - Nein",L56-N56,I56-N56),"") ->  | N56: =+IF(AND(ISNUMBER(J56),ISNUMBER(L56)),IF(Stammdaten!$AE$30="2 - Nein",ROUND(L56*0.3,2),ROUND(I56*0.3,2)),"") ->  | R56: =+IF(Stammdaten!$AE$30="1 - Ja",K56,0) ->  | X56: 0 | Y56: 0 | Z56: 0 | AA56: 0 | AB56: 0 | AD56: 0 | AE56: 5 | AF56: 0 | AG56: 0
E57: =IF(Stammdaten!$AE$29="2 - Vereinbarte Entgelte",IF(ISNUMBER(D57),IF(YEAR(D57)<Stammdaten!$AE$28,1,IF(YEAR(D57)>Stammdaten!$AE$28,12,MONTH(D57))),""),"") ->  | G57: =IF(Stammdaten!$AE$29="1 - Vereinnahmte Entgelte",IF(ISNUMBER(F57),IF(YEAR(F57)<Stammdaten!$AE$28,1,IF(YEAR(F57)>Stammdaten!$AE$28,12,MONTH(F57))),""),"") ->  | M57: =+IF(AND(ISNUMBER(I57),ISNUMBER(K57)),IF(Stammdaten!$AE$30="2 - Nein",L57-N57,I57-N57),"") ->  | N57: =+IF(AND(ISNUMBER(J57),ISNUMBER(L57)),IF(Stammdaten!$AE$30="2 - Nein",ROUND(L57*0.3,2),ROUND(I57*0.3,2)),"") ->  | R57: =+IF(Stammdaten!$AE$30="1 - Ja",K57,0) ->  | X57: 0 | Y57: 0 | Z57: 0 | AA57: 0 | AB57: 0 | AD57: 0 | AE57: 5 | AF57: 0 | AG57: 0
E58: =IF(Stammdaten!$AE$29="2 - Vereinbarte Entgelte",IF(ISNUMBER(D58),IF(YEAR(D58)<Stammdaten!$AE$28,1,IF(YEAR(D58)>Stammdaten!$AE$28,12,MONTH(D58))),""),"") ->  | G58: =IF(Stammdaten!$AE$29="1 - Vereinnahmte Entgelte",IF(ISNUMBER(F58),IF(YEAR(F58)<Stammdaten!$AE$28,1,IF(YEAR(F58)>Stammdaten!$AE$28,12,MONTH(F58))),""),"") ->  | M58: =+IF(AND(ISNUMBER(I58),ISNUMBER(K58)),IF(Stammdaten!$AE$30="2 - Nein",L58-N58,I58-N58),"") ->  | N58: =+IF(AND(ISNUMBER(J58),ISNUMBER(L58)),IF(Stammdaten!$AE$30="2 - Nein",ROUND(L58*0.3,2),ROUND(I58*0.3,2)),"") ->  | R58: =+IF(Stammdaten!$AE$30="1 - Ja",K58,0) ->  | X58: 0 | Y58: 0 | Z58: 0 | AA58: 0 | AB58: 0 | AD58: 0 | AE58: 5 | AF58: 0 | AG58: 0
E59: =IF(Stammdaten!$AE$29="2 - Vereinbarte Entgelte",IF(ISNUMBER(D59),IF(YEAR(D59)<Stammdaten!$AE$28,1,IF(YEAR(D59)>Stammdaten!$AE$28,12,MONTH(D59))),""),"") ->  | G59: =IF(Stammdaten!$AE$29="1 - Vereinnahmte Entgelte",IF(ISNUMBER(F59),IF(YEAR(F59)<Stammdaten!$AE$28,1,IF(YEAR(F59)>Stammdaten!$AE$28,12,MONTH(F59))),""),"") ->  | M59: =+IF(AND(ISNUMBER(I59),ISNUMBER(K59)),IF(Stammdaten!$AE$30="2 - Nein",L59-N59,I59-N59),"") ->  | N59: =+IF(AND(ISNUMBER(J59),ISNUMBER(L59)),IF(Stammdaten!$AE$30="2 - Nein",ROUND(L59*0.3,2),ROUND(I59*0.3,2)),"") ->  | R59: =+IF(Stammdaten!$AE$30="1 - Ja",K59,0) ->  | X59: 0 | Y59: 0 | Z59: 0 | AA59: 0 | AB59: 0 | AD59: 0 | AE59: 5 | AF59: 0 | AG59: 0
E60: =IF(Stammdaten!$AE$29="2 - Vereinbarte Entgelte",IF(ISNUMBER(D60),IF(YEAR(D60)<Stammdaten!$AE$28,1,IF(YEAR(D60)>Stammdaten!$AE$28,12,MONTH(D60))),""),"") ->  | G60: =IF(Stammdaten!$AE$29="1 - Vereinnahmte Entgelte",IF(ISNUMBER(F60),IF(YEAR(F60)<Stammdaten!$AE$28,1,IF(YEAR(F60)>Stammdaten!$AE$28,12,MONTH(F60))),""),"") ->  | M60: =+IF(AND(ISNUMBER(I60),ISNUMBER(K60)),IF(Stammdaten!$AE$30="2 - Nein",L60-N60,I60-N60),"") ->  | N60: =+IF(AND(ISNUMBER(J60),ISNUMBER(L60)),IF(Stammdaten!$AE$30="2 - Nein",ROUND(L60*0.3,2),ROUND(I60*0.3,2)),"") ->  | R60: =+IF(Stammdaten!$AE$30="1 - Ja",K60,0) ->  | X60: 0 | Y60: 0 | Z60: 0 | AA60: 0 | AB60: 0 | AD60: 0 | AE60: 5 | AF60: 0 | AG60: 0
E61: =IF(Stammdaten!$AE$29="2 - Vereinbarte Entgelte",IF(ISNUMBER(D61),IF(YEAR(D61)<Stammdaten!$AE$28,1,IF(YEAR(D61)>Stammdaten!$AE$28,12,MONTH(D61))),""),"") ->  | G61: =IF(Stammdaten!$AE$29="1 - Vereinnahmte Entgelte",IF(ISNUMBER(F61),IF(YEAR(F61)<Stammdaten!$AE$28,1,IF(YEAR(F61)>Stammdaten!$AE$28,12,MONTH(F61))),""),"") ->  | M61: =+IF(AND(ISNUMBER(I61),ISNUMBER(K61)),IF(Stammdaten!$AE$30="2 - Nein",L61-N61,I61-N61),"") ->  | N61: =+IF(AND(ISNUMBER(J61),ISNUMBER(L61)),IF(Stammdaten!$AE$30="2 - Nein",ROUND(L61*0.3,2),ROUND(I61*0.3,2)),"") ->  | R61: =+IF(Stammdaten!$AE$30="1 - Ja",K61,0) ->  | X61: 0 | Y61: 0 | Z61: 0 | AA61: 0 | AB61: 0 | AD61: 0 | AE61: 5 | AF61: 0 | AG61: 0
E62: =IF(Stammdaten!$AE$29="2 - Vereinbarte Entgelte",IF(ISNUMBER(D62),IF(YEAR(D62)<Stammdaten!$AE$28,1,IF(YEAR(D62)>Stammdaten!$AE$28,12,MONTH(D62))),""),"") ->  | G62: =IF(Stammdaten!$AE$29="1 - Vereinnahmte Entgelte",IF(ISNUMBER(F62),IF(YEAR(F62)<Stammdaten!$AE$28,1,IF(YEAR(F62)>Stammdaten!$AE$28,12,MONTH(F62))),""),"") ->  | M62: =+IF(AND(ISNUMBER(I62),ISNUMBER(K62)),IF(Stammdaten!$AE$30="2 - Nein",L62-N62,I62-N62),"") ->  | N62: =+IF(AND(ISNUMBER(J62),ISNUMBER(L62)),IF(Stammdaten!$AE$30="2 - Nein",ROUND(L62*0.3,2),ROUND(I62*0.3,2)),"") ->  | R62: =+IF(Stammdaten!$AE$30="1 - Ja",K62,0) ->  | X62: 0 | Y62: 0 | Z62: 0 | AA62: 0 | AB62: 0 | AD62: 0 | AE62: 5 | AF62: 0 | AG62: 0
E63: =IF(Stammdaten!$AE$29="2 - Vereinbarte Entgelte",IF(ISNUMBER(D63),IF(YEAR(D63)<Stammdaten!$AE$28,1,IF(YEAR(D63)>Stammdaten!$AE$28,12,MONTH(D63))),""),"") ->  | G63: =IF(Stammdaten!$AE$29="1 - Vereinnahmte Entgelte",IF(ISNUMBER(F63),IF(YEAR(F63)<Stammdaten!$AE$28,1,IF(YEAR(F63)>Stammdaten!$AE$28,12,MONTH(F63))),""),"") ->  | M63: =+IF(AND(ISNUMBER(I63),ISNUMBER(K63)),IF(Stammdaten!$AE$30="2 - Nein",L63-N63,I63-N63),"") ->  | N63: =+IF(AND(ISNUMBER(J63),ISNUMBER(L63)),IF(Stammdaten!$AE$30="2 - Nein",ROUND(L63*0.3,2),ROUND(I63*0.3,2)),"") ->  | R63: =+IF(Stammdaten!$AE$30="1 - Ja",K63,0) ->  | X63: 0 | Y63: 0 | Z63: 0 | AA63: 0 | AB63: 0 | AD63: 0 | AE63: 5 | AF63: 0 | AG63: 0
E64: =IF(Stammdaten!$AE$29="2 - Vereinbarte Entgelte",IF(ISNUMBER(D64),IF(YEAR(D64)<Stammdaten!$AE$28,1,IF(YEAR(D64)>Stammdaten!$AE$28,12,MONTH(D64))),""),"") ->  | G64: =IF(Stammdaten!$AE$29="1 - Vereinnahmte Entgelte",IF(ISNUMBER(F64),IF(YEAR(F64)<Stammdaten!$AE$28,1,IF(YEAR(F64)>Stammdaten!$AE$28,12,MONTH(F64))),""),"") ->  | M64: =+IF(AND(ISNUMBER(I64),ISNUMBER(K64)),IF(Stammdaten!$AE$30="2 - Nein",L64-N64,I64-N64),"") ->  | N64: =+IF(AND(ISNUMBER(J64),ISNUMBER(L64)),IF(Stammdaten!$AE$30="2 - Nein",ROUND(L64*0.3,2),ROUND(I64*0.3,2)),"") ->  | R64: =+IF(Stammdaten!$AE$30="1 - Ja",K64,0) ->  | X64: 0 | Y64: 0 | Z64: 0 | AA64: 0 | AB64: 0 | AD64: 0 | AE64: 5 | AF64: 0 | AG64: 0
E65: =IF(Stammdaten!$AE$29="2 - Vereinbarte Entgelte",IF(ISNUMBER(D65),IF(YEAR(D65)<Stammdaten!$AE$28,1,IF(YEAR(D65)>Stammdaten!$AE$28,12,MONTH(D65))),""),"") ->  | G65: =IF(Stammdaten!$AE$29="1 - Vereinnahmte Entgelte",IF(ISNUMBER(F65),IF(YEAR(F65)<Stammdaten!$AE$28,1,IF(YEAR(F65)>Stammdaten!$AE$28,12,MONTH(F65))),""),"") ->  | M65: =+IF(AND(ISNUMBER(I65),ISNUMBER(K65)),IF(Stammdaten!$AE$30="2 - Nein",L65-N65,I65-N65),"") ->  | N65: =+IF(AND(ISNUMBER(J65),ISNUMBER(L65)),IF(Stammdaten!$AE$30="2 - Nein",ROUND(L65*0.3,2),ROUND(I65*0.3,2)),"") ->  | R65: =+IF(Stammdaten!$AE$30="1 - Ja",K65,0) ->  | X65: 0 | Y65: 0 | Z65: 0 | AA65: 0 | AB65: 0 | AD65: 0 | AE65: 5 | AF65: 0 | AG65: 0
E66: =IF(Stammdaten!$AE$29="2 - Vereinbarte Entgelte",IF(ISNUMBER(D66),IF(YEAR(D66)<Stammdaten!$AE$28,1,IF(YEAR(D66)>Stammdaten!$AE$28,12,MONTH(D66))),""),"") ->  | G66: =IF(Stammdaten!$AE$29="1 - Vereinnahmte Entgelte",IF(ISNUMBER(F66),IF(YEAR(F66)<Stammdaten!$AE$28,1,IF(YEAR(F66)>Stammdaten!$AE$28,12,MONTH(F66))),""),"") ->  | M66: =+IF(AND(ISNUMBER(I66),ISNUMBER(K66)),IF(Stammdaten!$AE$30="2 - Nein",L66-N66,I66-N66),"") ->  | N66: =+IF(AND(ISNUMBER(J66),ISNUMBER(L66)),IF(Stammdaten!$AE$30="2 - Nein",ROUND(L66*0.3,2),ROUND(I66*0.3,2)),"") ->  | R66: =+IF(Stammdaten!$AE$30="1 - Ja",K66,0) ->  | X66: 0 | Y66: 0 | Z66: 0 | AA66: 0 | AB66: 0 | AD66: 0 | AE66: 5 | AF66: 0 | AG66: 0
